Workbook

Sheet Data Maestro.
B4: NUTRIENTES | C4: MS | D4: NDT | E4: Prot. | F4: FC | G4: FDN | H4: FDA | I4: Ca | J4: P | K4: E.E | L4: PDR | M4: Prot. By pass | N4: CNF | O4: Sodio | P4: Magnesio | Q4: Potasio | R4: Cloro | S4: Azufre | T4: Gosipol | U4: Almidon | V4: Cobalto | W4: Cobre | X4: Yodo | Y4: Hierro | Z4: Manganeso | AA4: Selenio | AB4: Zinc | AC4: Vit. A | AD4: Vit. D | AE4: Vit. E
B5: INGREDIENTES | C5: % | D5: % | E5: % | F5: % | G5: % | H5: % | I5: % | J5: % | K5: % | L5: % | M5: % | N5: % | O5: % | P5: % | Q5: % | R5: % | S5: % | T5: % | U5: % | V5: Mg/kg | W5: Mg/kg | X5: Mg/kg | Y5: Mg/kg | Z5: Mg/kg | AA5: Mg/kg | AB5: Mg/kg | AC5: 1,000 UI/kg | AD5: 1,000 UI/kg | AE5: 1,000 UI/kg
B7: CONCENTRADO
A8: 1 | B8: PASTA ALGODÓN | C8: 90 | D8: 68 | E8: 35 | F8: 13 | G8: 30 | H8: 18 | I8: 0.2 | J8: 1.2 | K8: 2 | L8: 59 | M8: 41 | N8: 35 | O8: 0.07 | P8: 0.61 | Q8: 1.5 | R8: 0.05 | S8: 0.4
A9: 2 | B9: SOYA INTEGRAL | C9: 90 | D9: 95 | E9: 35 | F9: 6 | G9: 20 | H9: 10 | I9: 0.3 | J9: 0.63 | K9: 22 | L9: 50 | M9: 50 | N9: 18 | O9: 0.02 | P9: 0.32 | Q9: 1.67 | R9: 0.02 | S9: 0.4 | U9: 6.7
A10: 3 | B10: UREA | C10: 99 | D10: 0 | E10: 280
A11: 4 | B11: MELAZA | C11: 75 | D11: 76 | E11: 5 | I11: 1.1 | J11: 0.15 | L11: 20 | M11: 80 | N11: 83 | O11: 0.22 | P11: 0.42 | Q11: 4 | R11: 3.1 | S11: 0.46 | U11: 7
A12: 5 | B12: TORTA DE SOYA | C12: 91 | D12: 81 | E12: 48 | F12: 5 | G12: 10 | H12: 6.2 | I12: 0.3 | J12: 0.7 | K12: 2 | L12: 66 | M12: 34 | N12: 30 | O12: 0.03 | P12: 0.29 | Q12: 2.4 | R12: 0.07 | S12: 0.46
A13: 6 | B13: MAIZ MOLIDO | C13: 89 | D13: 91 | E13: 9.5 | F13: 5 | G13: 9.5 | H13: 3 | I13: 0.02 | J13: 0.3 | K13: 4 | L13: 50 | M13: 50 | N13: 75 | O13: 0.02 | P13: 0.12 | Q13: 0.4 | R13: 0.05 | S13: 0.12 | U13: 63
A14: 7 | B14: AFRECHO | C14: 89 | D14: 73 | E14: 17 | F14: 12 | G14: 37 | H14: 15.5 | I14: 0.12 | J14: 1.1 | K14: 4 | L14: 70 | M14: 30 | N14: 42 | O14: 0.02 | P14: 0.4 | Q14: 1.13 | R14: 0.06 | S14: 0.21 | U14: 31
A15: 8 | B15: PEPA ALGODÓN | C15: 90 | D15: 77.2 | E15: 22 | F15: 26 | G15: 50 | H15: 42 | I15: 0.2 | J15: 0.6 | K15: 19 | L15: 61 | M15: 39 | N15: 9 | O15: 0.02 | P15: 0.37 | Q15: 1.1 | R15: 0.02 | S15: 0.09
A16: 9 | B16: CONCENTRADO PROTEICO DE ARROZ (CPA) | C16: 50 | D16: 78 | E16: 50.14 | F16: 3.55 | G16: 8 | H16: 0 | I16: 0.45 | J16: 0.77 | K16: 5.91 | L16: 55 | M16: 45 | N16: 36
A17: 10 | B17: Hna.Pescad.1ª | C17: 90 | D17: 72 | E17: 60 | F17: 1 | G17: 25 | H17: 2 | I17: 6.4 | J17: 3.6 | K17: 8 | L17: 37 | M17: 63 | N17: 7
A18: 11 | B18: BICARBONATO | C18: 99
A19: 12 | B19: GRASA PROTEGIDA | C19: 95 | D19: 184 | I19: 9 | K19: 84
A20: 13 | B20: CARBONATO DE CALCIO | C20: 98 | I20: 38
A21: 14 | B21: SAL | C21: 99 | O21: 39 | R21: 60
A22: 15 | B22: Custom Pack 940 | C22: 99
A23: 16 | B23: DDGS | C23: 88 | D23: 80 | E23: 30 | F23: 33 | G23: 41.5 | H23: 16.1 | I23: 0.22 | J23: 0.83 | K23: 10 | L23: 45 | M23: 55
A24: 17 | B24: Colina | C24: 99
A25: 18 | B25: Optigen | C25: 99 | E25: 253
A26: 19 | B26: Stafac
A27: 20 | B27: Selplex
A28: 21 | B28: Dairy Pack
A29: 22 | B29: Bioplex Cobre
A30: 23 | B30: SUPLAMIN DIFOS | C30: 98 | I30: 18.5 | J30: 15.06 | O30: 2.35 | P30: 0.4864 | Q30: 0.0007 | S30: 0.094 | Z30: 1209 | AA30: 10 | AB30: 2500 | AC30: 515 | AD30: 650 | AE30: 100
A31: 24 | B31: MONTAFOS | C31: 99 | I31: 18 | J31: 21
A32: 25
A33: 26
A34: 27
A35: 28
A36: 29
A37: 30
A38: 31
A39: 32
A40: 33
A41: 34
A42: 35
B44: FORRAJES
A45: 36 | B45: Orujo de ceb. | C45: 18 | D45: 70 | E45: 21 | F45: 17 | G45: 47 | H45: 23 | I45: 0.29 | J45: 0.6 | K45: 6.6 | L45: 45 | M45: 55 | N45: 25
A46: 37 | B46: Panca picad | C46: 88 | D46: 48 | E46: 4.85 | F46: 34 | G46: 65 | H46: 49 | I46: 0.6 | J46: 0.09 | K46: 1.4 | L46: 70 | M46: 30 | N46: 28 | O46: 0.01 | P46: 0.19 | Q46: 0.9 | R46: 0.2 | S46: 0.14
A47: 38 | B47: Chala con choclo | C47: 26 | D47: 65 | E47: 9.7 | F47: 30 | G47: 52 | H47: 32 | I47: 0.25 | J47: 0.23 | K47: 2 | L47: 70 | M47: 30 | N47: 36 | O47: 0.01 | P47: 0.19 | Q47: 1.6 | R47: 0.3 | S47: 0.11 | U47: 60
A48: 39 | B48: Ensilaje chala maiz | C48: 32 | D48: 60 | E48: 9 | F48: 35 | G48: 55 | H48: 35 | I48: 0.25 | J48: 0.23 | K48: 2 | L48: 70 | M48: 30 | N48: 34
A49: 40 | B49: Alfalfa HENO | C49: 89 | D49: 52 | E49: 17.5 | F49: 32.5 | G49: 50 | H49: 35 | I49: 1.4 | J49: 0.24 | K49: 2.6 | L49: 67 | M49: 33 | N49: 30
A50: 41 | B50: Chala sin choclo | C50: 26 | D50: 49 | E50: 7 | F50: 33 | G50: 57 | H50: 36 | I50: 0.25 | J50: 0.2 | K50: 2 | L50: 50 | M50: 50 | N50: 34 | O50: 0.01 | P50: 0.19 | Q50: 1.6 | R50: 0.3 | S50: 0.11
A51: 42 | B51: Esparramel | C51: 82 | D51: 58 | E51: 9 | F51: 26.4 | G51: 58 | H51: 25 | I51: 0.5 | J51: 0.22 | K51: 1 | L51: 66 | M51: 34 | N51: 32
A52: 43 | B52: Pasto camerun | C52: 20 | D52: 55 | E52: 7 | F52: 35 | G52: 60 | H52: 40 | I52: 0.9 | J52: 0.29 | K52: 2 | L52: 25 | M52: 75 | N52: 31
A53: 44 | B53: Heno Alfalfa Estandar | C53: 87 | D53: 56 | E53: 17 | F53: 32 | G53: 51 | H53: 34 | I53: 1.4 | J53: 0.3 | K53: 1.2 | L53: 53 | M53: 47 | N53: 30
A54: 45 | B54: Pancamel (60panca-40melaza) | C54: 83.4 | D54: 56.6 | E54: 5.9 | F54: 25.1 | G54: 49 | H54: 28.5 | I54: 0.69 | J54: 0.1 | K54: 1 | L54: 65 | M54: 35 | N54: 44
A55: 46 | B55: Broza Esparrago | C55: 36.5 | D55: 53 | E55: 14 | F55: 39 | G55: 55 | H55: 28 | I55: 0.6 | J55: 0.2 | K55: 2 | L55: 60 | M55: 40 | N55: 29
A56: 47 | B56: Camote Tuberculo | C56: 32 | D56: 80 | E56: 4 | F56: 4 | G56: 6 | H56: 1 | I56: 0.28 | J56: 0.23 | K56: 1.6 | L56: 20 | M56: 80 | N56: 88
A57: 48 | B57: Alfalfa verde preboton | C57: 18.12 | D57: 58 | E57: 25.12 | G57: 33.1 | H57: 21.9 | K57: 1.69 | N57: 27.97
A58: 49
A59: 50
A60: 51
A61: 52
A62: 53
A63: 54
A64: 55
A65: 56
A66: 57
C70: C.N.F.
G71: ES IGUAL A: 100-(PROTEINA+ESTRACTO ETEREO+CENIZA+FIBRA DETERGENTE NEUTRA)
E73: PROT. | F73: E.E. | G73: CENIZ | H73: FDN | J73: C.N.F.
C74: INTRODUCIR DATOS | E74: 25.12 | F74: 1.69 | G74: 12.12 | H74: 33.1 | J74: =100-(E74+F74+G74+H74) -> 27.97

Sheet incog (hidden)
B4: NUTRIENTES | C4: =+'Data Maestro.'!C4 -> MS | D4: =+'Data Maestro.'!D4 -> NDT | E4: =+'Data Maestro.'!E4 -> Prot. | F4: =+'Data Maestro.'!F4 -> FC | G4: =+'Data Maestro.'!G4 -> FDN | H4: =+'Data Maestro.'!H4 -> FDA | I4: =+'Data Maestro.'!I4 -> Ca | J4: =+'Data Maestro.'!J4 -> P | K4: =+'Data Maestro.'!K4 -> E.E | L4: =+'Data Maestro.'!L4 -> PDR | M4: =+'Data Maestro.'!M4 -> Prot. By pass | N4: =+'Data Maestro.'!N4 -> CNF | O4: =+'Data Maestro.'!O4 -> Sodio | P4: =+'Data Maestro.'!P4 -> Magnesio | Q4: =+'Data Maestro.'!Q4 -> Potasio | R4: =+'Data Maestro.'!R4 -> Cloro | S4: =+'Data Maestro.'!S4 -> Azufre | T4: =+'Data Maestro.'!T4 -> Gosipol | U4: =+'Data Maestro.'!U4 -> Almidon | V4: =+'Data Maestro.'!V4 -> Cobalto | W4: =+'Data Maestro.'!W4 -> Cobre | X4: =+'Data Maestro.'!X4 -> Yodo | Y4: =+'Data Maestro.'!Y4 -> Hierro | Z4: =+'Data Maestro.'!Z4 -> Manganeso | AA4: =+'Data Maestro.'!AA4 -> Selenio | AB4: =+'Data Maestro.'!AB4 -> Zinc | AC4: =+'Data Maestro.'!AC4 -> Vit. A | AD4: =+'Data Maestro.'!AD4 -> Vit. D | AE4: =+'Data Maestro.'!AE4 -> Vit. E
B5: INGREDIENTES | C5: KG | D5: KG | E5: KG | F5: KG | G5: KG | H5: KG | I5: KG | J5: KG | K5: KG | L5: KG | M5: KG | N5: KG | O5: KG | P5: KG | Q5: KG | R5: KG | S5: KG | T5: KG | U5: KG | V5: Mg/kg | W5: Mg/kg | X5: Mg/kg | Y5: Mg/kg | Z5: Mg/kg | AA5: Mg/kg | AB5: Mg/kg | AC5: 1,000 UI/kg | AD5: 1,000 UI/kg | AE5: 1,000 UI/kg
B7: CONCENTRADO
A8: 1 | B8: =+IF(ISBLANK('Data Maestro.'!B8),"",'Data Maestro.'!B8) -> PASTA ALGODÓN | C8: =+'Data Maestro.'!C8/100 -> 0.9 | D8: =+'Data Maestro.'!D8/100 -> 0.68 | E8: =+'Data Maestro.'!E8/100 -> 0.35 | F8: =+'Data Maestro.'!F8/100 -> 0.13 | G8: =+'Data Maestro.'!G8/100 -> 0.3 | H8: =+'Data Maestro.'!H8/100 -> 0.18 | I8: =+'Data Maestro.'!I8/100 -> 0.002 | J8: =+'Data Maestro.'!J8/100 -> 0.012 | K8: =+'Data Maestro.'!K8/100 -> 0.02 | L8: =+'Data Maestro.'!L8/100 -> 0.59 | M8: =+'Data Maestro.'!M8/100 -> 0.41 | N8: =+'Data Maestro.'!N8/100 -> 0.35 | O8: =+'Data Maestro.'!O8/100 -> 0.0007 | P8: =+'Data Maestro.'!P8/100 -> 0.0061 | Q8: =+'Data Maestro.'!Q8/100 -> 0.015 | R8: =+'Data Maestro.'!R8/100 -> 0.0005 | S8: =+'Data Maestro.'!S8/100 -> 0.004 | T8: =+'Data Maestro.'!T8/100 -> 0 | U8: =+'Data Maestro.'!U8/100 -> 0 | V8: =+'Data Maestro.'!V8 -> 0 | W8: =+'Data Maestro.'!W8 -> 0 | X8: =+'Data Maestro.'!X8 -> 0 | Y8: =+'Data Maestro.'!Y8 -> 0 | Z8: =+'Data Maestro.'!Z8 -> 0 | AA8: =+'Data Maestro.'!AA8 -> 0 | AB8: =+'Data Maestro.'!AB8 -> 0 | AC8: =+'Data Maestro.'!AC8 -> 0 | AD8: =+'Data Maestro.'!AD8 -> 0 | AE8: =+'Data Maestro.'!AE8 -> 0
A9: 2 | B9: =+IF(ISBLANK('Data Maestro.'!B9),"",'Data Maestro.'!B9) -> SOYA INTEGRAL | C9: =+'Data Maestro.'!C9/100 -> 0.9 | D9: =+'Data Maestro.'!D9/100 -> 0.95 | E9: =+'Data Maestro.'!E9/100 -> 0.35 | F9: =+'Data Maestro.'!F9/100 -> 0.06 | G9: =+'Data Maestro.'!G9/100 -> 0.2 | H9: =+'Data Maestro.'!H9/100 -> 0.1 | I9: =+'Data Maestro.'!I9/100 -> 0.003 | J9: =+'Data Maestro.'!J9/100 -> 0.0063 | K9: =+'Data Maestro.'!K9/100 -> 0.22 | L9: =+'Data Maestro.'!L9/100 -> 0.5 | M9: =+'Data Maestro.'!M9/100 -> 0.5 | N9: =+'Data Maestro.'!N9/100 -> 0.18 | O9: =+'Data Maestro.'!O9/100 -> 0.0002 | P9: =+'Data Maestro.'!P9/100 -> 0.0032 | Q9: =+'Data Maestro.'!Q9/100 -> 0.0167 | R9: =+'Data Maestro.'!R9/100 -> 0.0002 | S9: =+'Data Maestro.'!S9/100 -> 0.004 | T9: =+'Data Maestro.'!T9/100 -> 0 | U9: =+'Data Maestro.'!U9/100 -> 0.067 | V9: =+'Data Maestro.'!V9 -> 0 | W9: =+'Data Maestro.'!W9 -> 0 | X9: =+'Data Maestro.'!X9 -> 0 | Y9: =+'Data Maestro.'!Y9 -> 0 | Z9: =+'Data Maestro.'!Z9 -> 0 | AA9: =+'Data Maestro.'!AA9 -> 0 | AB9: =+'Data Maestro.'!AB9 -> 0 | AC9: =+'Data Maestro.'!AC9 -> 0 | AD9: =+'Data Maestro.'!AD9 -> 0 | AE9: =+'Data Maestro.'!AE9 -> 0
A10: 3 | B10: =+IF(ISBLANK('Data Maestro.'!B10),"",'Data Maestro.'!B10) -> UREA | C10: =+'Data Maestro.'!C10/100 -> 0.99 | D10: =+'Data Maestro.'!D10/100 -> 0 | E10: =+'Data Maestro.'!E10/100 -> 2.8 | F10: =+'Data Maestro.'!F10/100 -> 0 | G10: =+'Data Maestro.'!G10/100 -> 0 | H10: =+'Data Maestro.'!H10/100 -> 0 | I10: =+'Data Maestro.'!I10/100 -> 0 | J10: =+'Data Maestro.'!J10/100 -> 0 | K10: =+'Data Maestro.'!K10/100 -> 0 | L10: =+'Data Maestro.'!L10/100 -> 0 | M10: =+'Data Maestro.'!M10/100 -> 0 | N10: =+'Data Maestro.'!N10/100 -> 0 | O10: =+'Data Maestro.'!O10/100 -> 0 | P10: =+'Data Maestro.'!P10/100 -> 0 | Q10: =+'Data Maestro.'!Q10/100 -> 0 | R10: =+'Data Maestro.'!R10/100 -> 0 | S10: =+'Data Maestro.'!S10/100 -> 0 | T10: =+'Data Maestro.'!T10/100 -> 0 | U10: =+'Data Maestro.'!U10/100 -> 0 | V10: =+'Data Maestro.'!V10 -> 0 | W10: =+'Data Maestro.'!W10 -> 0 | X10: =+'Data Maestro.'!X10 -> 0 | Y10: =+'Data Maestro.'!Y10 -> 0 | Z10: =+'Data Maestro.'!Z10 -> 0 | AA10: =+'Data Maestro.'!AA10 -> 0 | AB10: =+'Data Maestro.'!AB10 -> 0 | AC10: =+'Data Maestro.'!AC10 -> 0 | AD10: =+'Data Maestro.'!AD10 -> 0 | AE10: =+'Data Maestro.'!AE10 -> 0
A11: 4 | B11: =+IF(ISBLANK('Data Maestro.'!B11),"",'Data Maestro.'!B11) -> MELAZA | C11: =+'Data Maestro.'!C11/100 -> 0.75 | D11: =+'Data Maestro.'!D11/100 -> 0.76 | E11: =+'Data Maestro.'!E11/100 -> 0.05 | F11: =+'Data Maestro.'!F11/100 -> 0 | G11: =+'Data Maestro.'!G11/100 -> 0 | H11: =+'Data Maestro.'!H11/100 -> 0 | I11: =+'Data Maestro.'!I11/100 -> 0.011 | J11: =+'Data Maestro.'!J11/100 -> 0.0015 | K11: =+'Data Maestro.'!K11/100 -> 0 | L11: =+'Data Maestro.'!L11/100 -> 0.2 | M11: =+'Data Maestro.'!M11/100 -> 0.8 | N11: =+'Data Maestro.'!N11/100 -> 0.83 | O11: =+'Data Maestro.'!O11/100 -> 0.0022 | P11: =+'Data Maestro.'!P11/100 -> 0.0042 | Q11: =+'Data Maestro.'!Q11/100 -> 0.04 | R11: =+'Data Maestro.'!R11/100 -> 0.031 | S11: =+'Data Maestro.'!S11/100 -> 0.0046 | T11: =+'Data Maestro.'!T11/100 -> 0 | U11: =+'Data Maestro.'!U11/100 -> 0.07 | V11: =+'Data Maestro.'!V11 -> 0 | W11: =+'Data Maestro.'!W11 -> 0 | X11: =+'Data Maestro.'!X11 -> 0 | Y11: =+'Data Maestro.'!Y11 -> 0 | Z11: =+'Data Maestro.'!Z11 -> 0 | AA11: =+'Data Maestro.'!AA11 -> 0 | AB11: =+'Data Maestro.'!AB11 -> 0 | AC11: =+'Data Maestro.'!AC11 -> 0 | AD11: =+'Data Maestro.'!AD11 -> 0 | AE11: =+'Data Maestro.'!AE11 -> 0
A12: 5 | B12: =+IF(ISBLANK('Data Maestro.'!B12),"",'Data Maestro.'!B12) -> TORTA DE SOYA | C12: =+'Data Maestro.'!C12/100 -> 0.91 | D12: =+'Data Maestro.'!D12/100 -> 0.81 | E12: =+'Data Maestro.'!E12/100 -> 0.48 | F12: =+'Data Maestro.'!F12/100 -> 0.05 | G12: =+'Data Maestro.'!G12/100 -> 0.1 | H12: =+'Data Maestro.'!H12/100 -> 0.062 | I12: =+'Data Maestro.'!I12/100 -> 0.003 | J12: =+'Data Maestro.'!J12/100 -> 0.007 | K12: =+'Data Maestro.'!K12/100 -> 0.02 | L12: =+'Data Maestro.'!L12/100 -> 0.66 | M12: =+'Data Maestro.'!M12/100 -> 0.34 | N12: =+'Data Maestro.'!N12/100 -> 0.3 | O12: =+'Data Maestro.'!O12/100 -> 0.0003 | P12: =+'Data Maestro.'!P12/100 -> 0.0029 | Q12: =+'Data Maestro.'!Q12/100 -> 0.024 | R12: =+'Data Maestro.'!R12/100 -> 0.0007 | S12: =+'Data Maestro.'!S12/100 -> 0.0046 | T12: =+'Data Maestro.'!T12/100 -> 0 | U12: =+'Data Maestro.'!U12/100 -> 0 | V12: =+'Data Maestro.'!V12 -> 0 | W12: =+'Data Maestro.'!W12 -> 0 | X12: =+'Data Maestro.'!X12 -> 0 | Y12: =+'Data Maestro.'!Y12 -> 0 | Z12: =+'Data Maestro.'!Z12 -> 0 | AA12: =+'Data Maestro.'!AA12 -> 0 | AB12: =+'Data Maestro.'!AB12 -> 0 | AC12: =+'Data Maestro.'!AC12 -> 0 | AD12: =+'Data Maestro.'!AD12 -> 0 | AE12: =+'Data Maestro.'!AE12 -> 0
A13: 6 | B13: =+IF(ISBLANK('Data Maestro.'!B13),"",'Data Maestro.'!B13) -> MAIZ MOLIDO | C13: =+'Data Maestro.'!C13/100 -> 0.89 | D13: =+'Data Maestro.'!D13/100 -> 0.91 | E13: =+'Data Maestro.'!E13/100 -> 0.095 | F13: =+'Data Maestro.'!F13/100 -> 0.05 | G13: =+'Data Maestro.'!G13/100 -> 0.095 | H13: =+'Data Maestro.'!H13/100 -> 0.03 | I13: =+'Data Maestro.'!I13/100 -> 0.0002 | J13: =+'Data Maestro.'!J13/100 -> 0.003 | K13: =+'Data Maestro.'!K13/100 -> 0.04 | L13: =+'Data Maestro.'!L13/100 -> 0.5 | M13: =+'Data Maestro.'!M13/100 -> 0.5 | N13: =+'Data Maestro.'!N13/100 -> 0.75 | O13: =+'Data Maestro.'!O13/100 -> 0.0002 | P13: =+'Data Maestro.'!P13/100 -> 0.0012 | Q13: =+'Data Maestro.'!Q13/100 -> 0.004 | R13: =+'Data Maestro.'!R13/100 -> 0.0005 | S13: =+'Data Maestro.'!S13/100 -> 0.0012 | T13: =+'Data Maestro.'!T13/100 -> 0 | U13: =+'Data Maestro.'!U13/100 -> 0.63 | V13: =+'Data Maestro.'!V13 -> 0 | W13: =+'Data Maestro.'!W13 -> 0 | X13: =+'Data Maestro.'!X13 -> 0 | Y13: =+'Data Maestro.'!Y13 -> 0 | Z13: =+'Data Maestro.'!Z13 -> 0 | AA13: =+'Data Maestro.'!AA13 -> 0 | AB13: =+'Data Maestro.'!AB13 -> 0 | AC13: =+'Data Maestro.'!AC13 -> 0 | AD13: =+'Data Maestro.'!AD13 -> 0 | AE13: =+'Data Maestro.'!AE13 -> 0
A14: 7 | B14: =+IF(ISBLANK('Data Maestro.'!B14),"",'Data Maestro.'!B14) -> AFRECHO | C14: =+'Data Maestro.'!C14/100 -> 0.89 | D14: =+'Data Maestro.'!D14/100 -> 0.73 | E14: =+'Data Maestro.'!E14/100 -> 0.17 | F14: =+'Data Maestro.'!F14/100 -> 0.12 | G14: =+'Data Maestro.'!G14/100 -> 0.37 | H14: =+'Data Maestro.'!H14/100 -> 0.155 | I14: =+'Data Maestro.'!I14/100 -> 0.0012 | J14: =+'Data Maestro.'!J14/100 -> 0.011 | K14: =+'Data Maestro.'!K14/100 -> 0.04 | L14: =+'Data Maestro.'!L14/100 -> 0.7 | M14: =+'Data Maestro.'!M14/100 -> 0.3 | N14: =+'Data Maestro.'!N14/100 -> 0.42 | O14: =+'Data Maestro.'!O14/100 -> 0.0002 | P14: =+'Data Maestro.'!P14/100 -> 0.004 | Q14: =+'Data Maestro.'!Q14/100 -> 0.0113 | R14: =+'Data Maestro.'!R14/100 -> 0.0006 | S14: =+'Data Maestro.'!S14/100 -> 0.0021 | T14: =+'Data Maestro.'!T14/100 -> 0 | U14: =+'Data Maestro.'!U14/100 -> 0.31 | V14: =+'Data Maestro.'!V14 -> 0 | W14: =+'Data Maestro.'!W14 -> 0 | X14: =+'Data Maestro.'!X14 -> 0 | Y14: =+'Data Maestro.'!Y14 -> 0 | Z14: =+'Data Maestro.'!Z14 -> 0 | AA14: =+'Data Maestro.'!AA14 -> 0 | AB14: =+'Data Maestro.'!AB14 -> 0 | AC14: =+'Data Maestro.'!AC14 -> 0 | AD14: =+'Data Maestro.'!AD14 -> 0 | AE14: =+'Data Maestro.'!AE14 -> 0
A15: 8 | B15: =+IF(ISBLANK('Data Maestro.'!B15),"",'Data Maestro.'!B15) -> PEPA ALGODÓN | C15: =+'Data Maestro.'!C15/100 -> 0.9 | D15: =+'Data Maestro.'!D15/100 -> 0.772 | E15: =+'Data Maestro.'!E15/100 -> 0.22 | F15: =+'Data Maestro.'!F15/100 -> 0.26 | G15: =+'Data Maestro.'!G15/100 -> 0.5 | H15: =+'Data Maestro.'!H15/100 -> 0.42 | I15: =+'Data Maestro.'!I15/100 -> 0.002 | J15: =+'Data Maestro.'!J15/100 -> 0.006 | K15: =+'Data Maestro.'!K15/100 -> 0.19 | L15: =+'Data Maestro.'!L15/100 -> 0.61 | M15: =+'Data Maestro.'!M15/100 -> 0.39 | N15: =+'Data Maestro.'!N15/100 -> 0.09 | O15: =+'Data Maestro.'!O15/100 -> 0.0002 | P15: =+'Data Maestro.'!P15/100 -> 0.0037 | Q15: =+'Data Maestro.'!Q15/100 -> 0.011 | R15: =+'Data Maestro.'!R15/100 -> 0.0002 | S15: =+'Data Maestro.'!S15/100 -> 0.0009 | T15: =+'Data Maestro.'!T15/100 -> 0 | U15: =+'Data Maestro.'!U15/100 -> 0 | V15: =+'Data Maestro.'!V15 -> 0 | W15: =+'Data Maestro.'!W15 -> 0 | X15: =+'Data Maestro.'!X15 -> 0 | Y15: =+'Data Maestro.'!Y15 -> 0 | Z15: =+'Data Maestro.'!Z15 -> 0 | AA15: =+'Data Maestro.'!AA15 -> 0 | AB15: =+'Data Maestro.'!AB15 -> 0 | AC15: =+'Data Maestro.'!AC15 -> 0 | AD15: =+'Data Maestro.'!AD15 -> 0 | AE15: =+'Data Maestro.'!AE15 -> 0
A16: 9 | B16: =+IF(ISBLANK('Data Maestro.'!B16),"",'Data Maestro.'!B16) -> CONCENTRADO PROTEICO DE ARROZ (CPA) | C16: =+'Data Maestro.'!C16/100 -> 0.5 | D16: =+'Data Maestro.'!D16/100 -> 0.78 | E16: =+'Data Maestro.'!E16/100 -> 0.5014 | F16: =+'Data Maestro.'!F16/100 -> 0.0355 | G16: =+'Data Maestro.'!G16/100 -> 0.08 | H16: =+'Data Maestro.'!H16/100 -> 0 | I16: =+'Data Maestro.'!I16/100 -> 0.0045 | J16: =+'Data Maestro.'!J16/100 -> 0.0077 | K16: =+'Data Maestro.'!K16/100 -> 0.0591 | L16: =+'Data Maestro.'!L16/100 -> 0.55 | M16: =+'Data Maestro.'!M16/100 -> 0.45 | N16: =+'Data Maestro.'!N16/100 -> 0.36 | O16: =+'Data Maestro.'!O16/100 -> 0 | P16: =+'Data Maestro.'!P16/100 -> 0 | Q16: =+'Data Maestro.'!Q16/100 -> 0 | R16: =+'Data Maestro.'!R16/100 -> 0 | S16: =+'Data Maestro.'!S16/100 -> 0 | T16: =+'Data Maestro.'!T16/100 -> 0 | U16: =+'Data Maestro.'!U16/100 -> 0 | V16: =+'Data Maestro.'!V16 -> 0 | W16: =+'Data Maestro.'!W16 -> 0 | X16: =+'Data Maestro.'!X16 -> 0 | Y16: =+'Data Maestro.'!Y16 -> 0 | Z16: =+'Data Maestro.'!Z16 -> 0 | AA16: =+'Data Maestro.'!AA16 -> 0 | AB16: =+'Data Maestro.'!AB16 -> 0 | AC16: =+'Data Maestro.'!AC16 -> 0 | AD16: =+'Data Maestro.'!AD16 -> 0 | AE16: =+'Data Maestro.'!AE16 -> 0
A17: 10 | B17: =+IF(ISBLANK('Data Maestro.'!B17),"",'Data Maestro.'!B17) -> Hna.Pescad.1ª | C17: =+'Data Maestro.'!C17/100 -> 0.9 | D17: =+'Data Maestro.'!D17/100 -> 0.72 | E17: =+'Data Maestro.'!E17/100 -> 0.6 | F17: =+'Data Maestro.'!F17/100 -> 0.01 | G17: =+'Data Maestro.'!G17/100 -> 0.25 | H17: =+'Data Maestro.'!H17/100 -> 0.02 | I17: =+'Data Maestro.'!I17/100 -> 0.064 | J17: =+'Data Maestro.'!J17/100 -> 0.036 | K17: =+'Data Maestro.'!K17/100 -> 0.08 | L17: =+'Data Maestro.'!L17/100 -> 0.37 | M17: =+'Data Maestro.'!M17/100 -> 0.63 | N17: =+'Data Maestro.'!N17/100 -> 0.07 | O17: =+'Data Maestro.'!O17/100 -> 0 | P17: =+'Data Maestro.'!P17/100 -> 0 | Q17: =+'Data Maestro.'!Q17/100 -> 0 | R17: =+'Data Maestro.'!R17/100 -> 0 | S17: =+'Data Maestro.'!S17/100 -> 0 | T17: =+'Data Maestro.'!T17/100 -> 0 | U17: =+'Data Maestro.'!U17/100 -> 0 | V17: =+'Data Maestro.'!V17 -> 0 | W17: =+'Data Maestro.'!W17 -> 0 | X17: =+'Data Maestro.'!X17 -> 0 | Y17: =+'Data Maestro.'!Y17 -> 0 | Z17: =+'Data Maestro.'!Z17 -> 0 | AA17: =+'Data Maestro.'!AA17 -> 0 | AB17: =+'Data Maestro.'!AB17 -> 0 | AC17: =+'Data Maestro.'!AC17 -> 0 | AD17: =+'Data Maestro.'!AD17 -> 0 | AE17: =+'Data Maestro.'!AE17 -> 0
A18: 11 | B18: =+IF(ISBLANK('Data Maestro.'!B18),"",'Data Maestro.'!B18) -> BICARBONATO | C18: =+'Data Maestro.'!C18/100 -> 0.99 | D18: =+'Data Maestro.'!D18/100 -> 0 | E18: =+'Data Maestro.'!E18/100 -> 0 | F18: =+'Data Maestro.'!F18/100 -> 0 | G18: =+'Data Maestro.'!G18/100 -> 0 | H18: =+'Data Maestro.'!H18/100 -> 0 | I18: =+'Data Maestro.'!I18/100 -> 0 | J18: =+'Data Maestro.'!J18/100 -> 0 | K18: =+'Data Maestro.'!K18/100 -> 0 | L18: =+'Data Maestro.'!L18/100 -> 0 | M18: =+'Data Maestro.'!M18/100 -> 0 | N18: =+'Data Maestro.'!N18/100 -> 0 | O18: =+'Data Maestro.'!O18/100 -> 0 | P18: =+'Data Maestro.'!P18/100 -> 0 | Q18: =+'Data Maestro.'!Q18/100 -> 0 | R18: =+'Data Maestro.'!R18/100 -> 0 | S18: =+'Data Maestro.'!S18/100 -> 0 | T18: =+'Data Maestro.'!T18/100 -> 0 | U18: =+'Data Maestro.'!U18/100 -> 0 | V18: =+'Data Maestro.'!V18 -> 0 | W18: =+'Data Maestro.'!W18 -> 0 | X18: =+'Data Maestro.'!X18 -> 0 | Y18: =+'Data Maestro.'!Y18 -> 0 | Z18: =+'Data Maestro.'!Z18 -> 0 | AA18: =+'Data Maestro.'!AA18 -> 0 | AB18: =+'Data Maestro.'!AB18 -> 0 | AC18: =+'Data Maestro.'!AC18 -> 0 | AD18: =+'Data Maestro.'!AD18 -> 0 | AE18: =+'Data Maestro.'!AE18 -> 0
A19: 12 | B19: =+IF(ISBLANK('Data Maestro.'!B19),"",'Data Maestro.'!B19) -> GRASA PROTEGIDA | C19: =+'Data Maestro.'!C19/100 -> 0.95 | D19: =+'Data Maestro.'!D19/100 -> 1.84 | E19: =+'Data Maestro.'!E19/100 -> 0 | F19: =+'Data Maestro.'!F19/100 -> 0 | G19: =+'Data Maestro.'!G19/100 -> 0 | H19: =+'Data Maestro.'!H19/100 -> 0 | I19: =+'Data Maestro.'!I19/100 -> 0.09 | J19: =+'Data Maestro.'!J19/100 -> 0 | K19: =+'Data Maestro.'!K19/100 -> 0.84 | L19: =+'Data Maestro.'!L19/100 -> 0 | M19: =+'Data Maestro.'!M19/100 -> 0 | N19: =+'Data Maestro.'!N19/100 -> 0 | O19: =+'Data Maestro.'!O19/100 -> 0 | P19: =+'Data Maestro.'!P19/100 -> 0 | Q19: =+'Data Maestro.'!Q19/100 -> 0 | R19: =+'Data Maestro.'!R19/100 -> 0 | S19: =+'Data Maestro.'!S19/100 -> 0 | T19: =+'Data Maestro.'!T19/100 -> 0 | U19: =+'Data Maestro.'!U19/100 -> 0 | V19: =+'Data Maestro.'!V19 -> 0 | W19: =+'Data Maestro.'!W19 -> 0 | X19: =+'Data Maestro.'!X19 -> 0 | Y19: =+'Data Maestro.'!Y19 -> 0 | Z19: =+'Data Maestro.'!Z19 -> 0 | AA19: =+'Data Maestro.'!AA19 -> 0 | AB19: =+'Data Maestro.'!AB19 -> 0 | AC19: =+'Data Maestro.'!AC19 -> 0 | AD19: =+'Data Maestro.'!AD19 -> 0 | AE19: =+'Data Maestro.'!AE19 -> 0
A20: 13 | B20: =+IF(ISBLANK('Data Maestro.'!B20),"",'Data Maestro.'!B20) -> CARBONATO DE CALCIO | C20: =+'Data Maestro.'!C20/100 -> 0.98 | D20: =+'Data Maestro.'!D20/100 -> 0 | E20: =+'Data Maestro.'!E20/100 -> 0 | F20: =+'Data Maestro.'!F20/100 -> 0 | G20: =+'Data Maestro.'!G20/100 -> 0 | H20: =+'Data Maestro.'!H20/100 -> 0 | I20: =+'Data Maestro.'!I20/100 -> 0.38 | J20: =+'Data Maestro.'!J20/100 -> 0 | K20: =+'Data Maestro.'!K20/100 -> 0 | L20: =+'Data Maestro.'!L20/100 -> 0 | M20: =+'Data Maestro.'!M20/100 -> 0 | N20: =+'Data Maestro.'!N20/100 -> 0 | O20: =+'Data Maestro.'!O20/100 -> 0 | P20: =+'Data Maestro.'!P20/100 -> 0 | Q20: =+'Data Maestro.'!Q20/100 -> 0 | R20: =+'Data Maestro.'!R20/100 -> 0 | S20: =+'Data Maestro.'!S20/100 -> 0 | T20: =+'Data Maestro.'!T20/100 -> 0 | U20: =+'Data Maestro.'!U20/100 -> 0 | V20: =+'Data Maestro.'!V20 -> 0 | W20: =+'Data Maestro.'!W20 -> 0 | X20: =+'Data Maestro.'!X20 -> 0 | Y20: =+'Data Maestro.'!Y20 -> 0 | Z20: =+'Data Maestro.'!Z20 -> 0 | AA20: =+'Data Maestro.'!AA20 -> 0 | AB20: =+'Data Maestro.'!AB20 -> 0 | AC20: =+'Data Maestro.'!AC20 -> 0 | AD20: =+'Data Maestro.'!AD20 -> 0 | AE20: =+'Data Maestro.'!AE20 -> 0
A21: 14 | B21: =+IF(ISBLANK('Data Maestro.'!B21),"",'Data Maestro.'!B21) -> SAL | C21: =+'Data Maestro.'!C21/100 -> 0.99 | D21: =+'Data Maestro.'!D21/100 -> 0 | E21: =+'Data Maestro.'!E21/100 -> 0 | F21: =+'Data Maestro.'!F21/100 -> 0 | G21: =+'Data Maestro.'!G21/100 -> 0 | H21: =+'Data Maestro.'!H21/100 -> 0 | I21: =+'Data Maestro.'!I21/100 -> 0 | J21: =+'Data Maestro.'!J21/100 -> 0 | K21: =+'Data Maestro.'!K21/100 -> 0 | L21: =+'Data Maestro.'!L21/100 -> 0 | M21: =+'Data Maestro.'!M21/100 -> 0 | N21: =+'Data Maestro.'!N21/100 -> 0 | O21: =+'Data Maestro.'!O21/100 -> 0.39 | P21: =+'Data Maestro.'!P21/100 -> 0 | Q21: =+'Data Maestro.'!Q21/100 -> 0 | R21: =+'Data Maestro.'!R21/100 -> 0.6 | S21: =+'Data Maestro.'!S21/100 -> 0 | T21: =+'Data Maestro.'!T21/100 -> 0 | U21: =+'Data Maestro.'!U21/100 -> 0 | V21: =+'Data Maestro.'!V21 -> 0 | W21: =+'Data Maestro.'!W21 -> 0 | X21: =+'Data Maestro.'!X21 -> 0 | Y21: =+'Data Maestro.'!Y21 -> 0 | Z21: =+'Data Maestro.'!Z21 -> 0 | AA21: =+'Data Maestro.'!AA21 -> 0 | AB21: =+'Data Maestro.'!AB21 -> 0 | AC21: =+'Data Maestro.'!AC21 -> 0 | AD21: =+'Data Maestro.'!AD21 -> 0 | AE21: =+'Data Maestro.'!AE21 -> 0
A22: 15 | B22: =+IF(ISBLANK('Data Maestro.'!B22),"",'Data Maestro.'!B22) -> Custom Pack 940 | C22: =+'Data Maestro.'!C22/100 -> 0.99 | D22: =+'Data Maestro.'!D22/100 -> 0 | E22: =+'Data Maestro.'!E22/100 -> 0 | F22: =+'Data Maestro.'!F22/100 -> 0 | G22: =+'Data Maestro.'!G22/100 -> 0 | H22: =+'Data Maestro.'!H22/100 -> 0 | I22: =+'Data Maestro.'!I22/100 -> 0 | J22: =+'Data Maestro.'!J22/100 -> 0 | K22: =+'Data Maestro.'!K22/100 -> 0 | L22: =+'Data Maestro.'!L22/100 -> 0 | M22: =+'Data Maestro.'!M22/100 -> 0 | N22: =+'Data Maestro.'!N22/100 -> 0 | O22: =+'Data Maestro.'!O22/100 -> 0 | P22: =+'Data Maestro.'!P22/100 -> 0 | Q22: =+'Data Maestro.'!Q22/100 -> 0 | R22: =+'Data Maestro.'!R22/100 -> 0 | S22: =+'Data Maestro.'!S22/100 -> 0 | T22: =+'Data Maestro.'!T22/100 -> 0 | U22: =+'Data Maestro.'!U22/100 -> 0 | V22: =+'Data Maestro.'!V22 -> 0 | W22: =+'Data Maestro.'!W22 -> 0 | X22: =+'Data Maestro.'!X22 -> 0 | Y22: =+'Data Maestro.'!Y22 -> 0 | Z22: =+'Data Maestro.'!Z22 -> 0 | AA22: =+'Data Maestro.'!AA22 -> 0 | AB22: =+'Data Maestro.'!AB22 -> 0 | AC22: =+'Data Maestro.'!AC22 -> 0 | AD22: =+'Data Maestro.'!AD22 -> 0 | AE22: =+'Data Maestro.'!AE22 -> 0
A23: 16 | B23: =+IF(ISBLANK('Data Maestro.'!B23),"",'Data Maestro.'!B23) -> DDGS | C23: =+'Data Maestro.'!C23/100 -> 0.88 | D23: =+'Data Maestro.'!D23/100 -> 0.8 | E23: =+'Data Maestro.'!E23/100 -> 0.3 | F23: =+'Data Maestro.'!F23/100 -> 0.33 | G23: =+'Data Maestro.'!G23/100 -> 0.415 | H23: =+'Data Maestro.'!H23/100 -> 0.161 | I23: =+'Data Maestro.'!I23/100 -> 0.0022 | J23: =+'Data Maestro.'!J23/100 -> 0.0083 | K23: =+'Data Maestro.'!K23/100 -> 0.1 | L23: =+'Data Maestro.'!L23/100 -> 0.45 | M23: =+'Data Maestro.'!M23/100 -> 0.55 | N23: =+'Data Maestro.'!N23/100 -> 0 | O23: =+'Data Maestro.'!O23/100 -> 0 | P23: =+'Data Maestro.'!P23/100 -> 0 | Q23: =+'Data Maestro.'!Q23/100 -> 0 | R23: =+'Data Maestro.'!R23/100 -> 0 | S23: =+'Data Maestro.'!S23/100 -> 0 | T23: =+'Data Maestro.'!T23/100 -> 0 | U23: =+'Data Maestro.'!U23/100 -> 0 | V23: =+'Data Maestro.'!V23 -> 0 | W23: =+'Data Maestro.'!W23 -> 0 | X23: =+'Data Maestro.'!X23 -> 0 | Y23: =+'Data Maestro.'!Y23 -> 0 | Z23: =+'Data Maestro.'!Z23 -> 0 | AA23: =+'Data Maestro.'!AA23 -> 0 | AB23: =+'Data Maestro.'!AB23 -> 0 | AC23: =+'Data Maestro.'!AC23 -> 0 | AD23: =+'Data Maestro.'!AD23 -> 0 | AE23: =+'Data Maestro.'!AE23 -> 0
A24: 17 | B24: =+IF(ISBLANK('Data Maestro.'!B24),"",'Data Maestro.'!B24) -> Colina | C24: =+'Data Maestro.'!C24/100 -> 0.99 | D24: =+'Data Maestro.'!D24/100 -> 0 | E24: =+'Data Maestro.'!E24/100 -> 0 | F24: =+'Data Maestro.'!F24/100 -> 0 | G24: =+'Data Maestro.'!G24/100 -> 0 | H24: =+'Data Maestro.'!H24/100 -> 0 | I24: =+'Data Maestro.'!I24/100 -> 0 | J24: =+'Data Maestro.'!J24/100 -> 0 | K24: =+'Data Maestro.'!K24/100 -> 0 | L24: =+'Data Maestro.'!L24/100 -> 0 | M24: =+'Data Maestro.'!M24/100 -> 0 | N24: =+'Data Maestro.'!N24/100 -> 0 | O24: =+'Data Maestro.'!O24/100 -> 0 | P24: =+'Data Maestro.'!P24/100 -> 0 | Q24: =+'Data Maestro.'!Q24/100 -> 0 | R24: =+'Data Maestro.'!R24/100 -> 0 | S24: =+'Data Maestro.'!S24/100 -> 0 | T24: =+'Data Maestro.'!T24/100 -> 0 | U24: =+'Data Maestro.'!U24/100 -> 0 | V24: =+'Data Maestro.'!V24 -> 0 | W24: =+'Data Maestro.'!W24 -> 0 | X24: =+'Data Maestro.'!X24 -> 0 | Y24: =+'Data Maestro.'!Y24 -> 0 | Z24: =+'Data Maestro.'!Z24 -> 0 | AA24: =+'Data Maestro.'!AA24 -> 0 | AB24: =+'Data Maestro.'!AB24 -> 0 | AC24: =+'Data Maestro.'!AC24 -> 0 | AD24: =+'Data Maestro.'!AD24 -> 0 | AE24: =+'Data Maestro.'!AE24 -> 0
A25: 18 | B25: =+IF(ISBLANK('Data Maestro.'!B25),"",'Data Maestro.'!B25) -> Optigen | C25: =+'Data Maestro.'!C25/100 -> 0.99 | D25: =+'Data Maestro.'!D25/100 -> 0 | E25: =+'Data Maestro.'!E25/100 -> 2.53 | F25: =+'Data Maestro.'!F25/100 -> 0 | G25: =+'Data Maestro.'!G25/100 -> 0 | H25: =+'Data Maestro.'!H25/100 -> 0 | I25: =+'Data Maestro.'!I25/100 -> 0 | J25: =+'Data Maestro.'!J25/100 -> 0 | K25: =+'Data Maestro.'!K25/100 -> 0 | L25: =+'Data Maestro.'!L25/100 -> 0 | M25: =+'Data Maestro.'!M25/100 -> 0 | N25: =+'Data Maestro.'!N25/100 -> 0 | O25: =+'Data Maestro.'!O25/100 -> 0 | P25: =+'Data Maestro.'!P25/100 -> 0 | Q25: =+'Data Maestro.'!Q25/100 -> 0 | R25: =+'Data Maestro.'!R25/100 -> 0 | S25: =+'Data Maestro.'!S25/100 -> 0 | T25: =+'Data Maestro.'!T25/100 -> 0 | U25: =+'Data Maestro.'!U25/100 -> 0 | V25: =+'Data Maestro.'!V25 -> 0 | W25: =+'Data Maestro.'!W25 -> 0 | X25: =+'Data Maestro.'!X25 -> 0 | Y25: =+'Data Maestro.'!Y25 -> 0 | Z25: =+'Data Maestro.'!Z25 -> 0 | AA25: =+'Data Maestro.'!AA25 -> 0 | AB25: =+'Data Maestro.'!AB25 -> 0 | AC25: =+'Data Maestro.'!AC25 -> 0 | AD25: =+'Data Maestro.'!AD25 -> 0 | AE25: =+'Data Maestro.'!AE25 -> 0
A26: 19 | B26: =+IF(ISBLANK('Data Maestro.'!B26),"",'Data Maestro.'!B26) -> Stafac | C26: =+'Data Maestro.'!C26/100 -> 0 | D26: =+'Data Maestro.'!D26/100 -> 0 | E26: =+'Data Maestro.'!E26/100 -> 0 | F26: =+'Data Maestro.'!F26/100 -> 0 | G26: =+'Data Maestro.'!G26/100 -> 0 | H26: =+'Data Maestro.'!H26/100 -> 0 | I26: =+'Data Maestro.'!I26/100 -> 0 | J26: =+'Data Maestro.'!J26/100 -> 0 | K26: =+'Data Maestro.'!K26/100 -> 0 | L26: =+'Data Maestro.'!L26/100 -> 0 | M26: =+'Data Maestro.'!M26/100 -> 0 | N26: =+'Data Maestro.'!N26/100 -> 0 | O26: =+'Data Maestro.'!O26/100 -> 0 | P26: =+'Data Maestro.'!P26/100 -> 0 | Q26: =+'Data Maestro.'!Q26/100 -> 0 | R26: =+'Data Maestro.'!R26/100 -> 0 | S26: =+'Data Maestro.'!S26/100 -> 0 | T26: =+'Data Maestro.'!T26/100 -> 0 | U26: =+'Data Maestro.'!U26/100 -> 0 | V26: =+'Data Maestro.'!V26 -> 0 | W26: =+'Data Maestro.'!W26 -> 0 | X26: =+'Data Maestro.'!X26 -> 0 | Y26: =+'Data Maestro.'!Y26 -> 0 | Z26: =+'Data Maestro.'!Z26 -> 0 | AA26: =+'Data Maestro.'!AA26 -> 0 | AB26: =+'Data Maestro.'!AB26 -> 0 | AC26: =+'Data Maestro.'!AC26 -> 0 | AD26: =+'Data Maestro.'!AD26 -> 0 | AE26: =+'Data Maestro.'!AE26 -> 0
A27: 20 | B27: =+IF(ISBLANK('Data Maestro.'!B27),"",'Data Maestro.'!B27) -> Selplex | C27: =+'Data Maestro.'!C27/100 -> 0 | D27: =+'Data Maestro.'!D27/100 -> 0 | E27: =+'Data Maestro.'!E27/100 -> 0 | F27: =+'Data Maestro.'!F27/100 -> 0 | G27: =+'Data Maestro.'!G27/100 -> 0 | H27: =+'Data Maestro.'!H27/100 -> 0 | I27: =+'Data Maestro.'!I27/100 -> 0 | J27: =+'Data Maestro.'!J27/100 -> 0 | K27: =+'Data Maestro.'!K27/100 -> 0 | L27: =+'Data Maestro.'!L27/100 -> 0 | M27: =+'Data Maestro.'!M27/100 -> 0 | N27: =+'Data Maestro.'!N27/100 -> 0 | O27: =+'Data Maestro.'!O27/100 -> 0 | P27: =+'Data Maestro.'!P27/100 -> 0 | Q27: =+'Data Maestro.'!Q27/100 -> 0 | R27: =+'Data Maestro.'!R27/100 -> 0 | S27: =+'Data Maestro.'!S27/100 -> 0 | T27: =+'Data Maestro.'!T27/100 -> 0 | U27: =+'Data Maestro.'!U27/100 -> 0 | V27: =+'Data Maestro.'!V27 -> 0 | W27: =+'Data Maestro.'!W27 -> 0 | X27: =+'Data Maestro.'!X27 -> 0 | Y27: =+'Data Maestro.'!Y27 -> 0 | Z27: =+'Data Maestro.'!Z27 -> 0 | AA27: =+'Data Maestro.'!AA27 -> 0 | AB27: =+'Data Maestro.'!AB27 -> 0 | AC27: =+'Data Maestro.'!AC27 -> 0 | AD27: =+'Data Maestro.'!AD27 -> 0 | AE27: =+'Data Maestro.'!AE27 -> 0
A28: 21 | B28: =+IF(ISBLANK('Data Maestro.'!B28),"",'Data Maestro.'!B28) -> Dairy Pack | C28: =+'Data Maestro.'!C28/100 -> 0 | D28: =+'Data Maestro.'!D28/100 -> 0 | E28: =+'Data Maestro.'!E28/100 -> 0 | F28: =+'Data Maestro.'!F28/100 -> 0 | G28: =+'Data Maestro.'!G28/100 -> 0 | H28: =+'Data Maestro.'!H28/100 -> 0 | I28: =+'Data Maestro.'!I28/100 -> 0 | J28: =+'Data Maestro.'!J28/100 -> 0 | K28: =+'Data Maestro.'!K28/100 -> 0 | L28: =+'Data Maestro.'!L28/100 -> 0 | M28: =+'Data Maestro.'!M28/100 -> 0 | N28: =+'Data Maestro.'!N28/100 -> 0 | O28: =+'Data Maestro.'!O28/100 -> 0 | P28: =+'Data Maestro.'!P28/100 -> 0 | Q28: =+'Data Maestro.'!Q28/100 -> 0 | R28: =+'Data Maestro.'!R28/100 -> 0 | S28: =+'Data Maestro.'!S28/100 -> 0 | T28: =+'Data Maestro.'!T28/100 -> 0 | U28: =+'Data Maestro.'!U28/100 -> 0 | V28: =+'Data Maestro.'!V28 -> 0 | W28: =+'Data Maestro.'!W28 -> 0 | X28: =+'Data Maestro.'!X28 -> 0 | Y28: =+'Data Maestro.'!Y28 -> 0 | Z28: =+'Data Maestro.'!Z28 -> 0 | AA28: =+'Data Maestro.'!AA28 -> 0 | AB28: =+'Data Maestro.'!AB28 -> 0 | AC28: =+'Data Maestro.'!AC28 -> 0 | AD28: =+'Data Maestro.'!AD28 -> 0 | AE28: =+'Data Maestro.'!AE28 -> 0
A29: 22 | B29: =+IF(ISBLANK('Data Maestro.'!B29),"",'Data Maestro.'!B29) -> Bioplex Cobre | C29: =+'Data Maestro.'!C29/100 -> 0 | D29: =+'Data Maestro.'!D29/100 -> 0 | E29: =+'Data Maestro.'!E29/100 -> 0 | F29: =+'Data Maestro.'!F29/100 -> 0 | G29: =+'Data Maestro.'!G29/100 -> 0 | H29: =+'Data Maestro.'!H29/100 -> 0 | I29: =+'Data Maestro.'!I29/100 -> 0 | J29: =+'Data Maestro.'!J29/100 -> 0 | K29: =+'Data Maestro.'!K29/100 -> 0 | L29: =+'Data Maestro.'!L29/100 -> 0 | M29: =+'Data Maestro.'!M29/100 -> 0 | N29: =+'Data Maestro.'!N29/100 -> 0 | O29: =+'Data Maestro.'!O29/100 -> 0 | P29: =+'Data Maestro.'!P29/100 -> 0 | Q29: =+'Data Maestro.'!Q29/100 -> 0 | R29: =+'Data Maestro.'!R29/100 -> 0 | S29: =+'Data Maestro.'!S29/100 -> 0 | T29: =+'Data Maestro.'!T29/100 -> 0 | U29: =+'Data Maestro.'!U29/100 -> 0 | V29: =+'Data Maestro.'!V29 -> 0 | W29: =+'Data Maestro.'!W29 -> 0 | X29: =+'Data Maestro.'!X29 -> 0 | Y29: =+'Data Maestro.'!Y29 -> 0 | Z29: =+'Data Maestro.'!Z29 -> 0 | AA29: =+'Data Maestro.'!AA29 -> 0 | AB29: =+'Data Maestro.'!AB29 -> 0 | AC29: =+'Data Maestro.'!AC29 -> 0 | AD29: =+'Data Maestro.'!AD29 -> 0 | AE29: =+'Data Maestro.'!AE29 -> 0
A30: 23 | B30: =+IF(ISBLANK('Data Maestro.'!B30),"",'Data Maestro.'!B30) -> SUPLAMIN DIFOS | C30: =+'Data Maestro.'!C30/100 -> 0.98 | D30: =+'Data Maestro.'!D30/100 -> 0 | E30: =+'Data Maestro.'!E30/100 -> 0 | F30: =+'Data Maestro.'!F30/100 -> 0 | G30: =+'Data Maestro.'!G30/100 -> 0 | H30: =+'Data Maestro.'!H30/100 -> 0 | I30: =+'Data Maestro.'!I30/100 -> 0.185 | J30: =+'Data Maestro.'!J30/100 -> 0.1506 | K30: =+'Data Maestro.'!K30/100 -> 0 | L30: =+'Data Maestro.'!L30/100 -> 0 | M30: =+'Data Maestro.'!M30/100 -> 0 | N30: =+'Data Maestro.'!N30/100 -> 0 | O30: =+'Data Maestro.'!O30/100 -> 0.0235 | P30: =+'Data Maestro.'!P30/100 -> 0.004864 | Q30: =+'Data Maestro.'!Q30/100 -> 7e-06 | R30: =+'Data Maestro.'!R30/100 -> 0 | S30: =+'Data Maestro.'!S30/100 -> 0.00094 | T30: =+'Data Maestro.'!T30/100 -> 0 | U30: =+'Data Maestro.'!U30/100 -> 0 | V30: =+'Data Maestro.'!V30 -> 0 | W30: =+'Data Maestro.'!W30 -> 0 | X30: =+'Data Maestro.'!X30 -> 0 | Y30: =+'Data Maestro.'!Y30 -> 0 | Z30: =+'Data Maestro.'!Z30 -> 1209 | AA30: =+'Data Maestro.'!AA30 -> 10 | AB30: =+'Data Maestro.'!AB30 -> 2500 | AC30: =+'Data Maestro.'!AC30 -> 515 | AD30: =+'Data Maestro.'!AD30 -> 650 | AE30: =+'Data Maestro.'!AE30 -> 100
A31: 24 | B31: =+IF(ISBLANK('Data Maestro.'!B31),"",'Data Maestro.'!B31) -> MONTAFOS | C31: =+'Data Maestro.'!C31/100 -> 0.99 | D31: =+'Data Maestro.'!D31/100 -> 0 | E31: =+'Data Maestro.'!E31/100 -> 0 | F31: =+'Data Maestro.'!F31/100 -> 0 | G31: =+'Data Maestro.'!G31/100 -> 0 | H31: =+'Data Maestro.'!H31/100 -> 0 | I31: =+'Data Maestro.'!I31/100 -> 0.18 | J31: =+'Data Maestro.'!J31/100 -> 0.21 | K31: =+'Data Maestro.'!K31/100 -> 0 | L31: =+'Data Maestro.'!L31/100 -> 0 | M31: =+'Data Maestro.'!M31/100 -> 0 | N31: =+'Data Maestro.'!N31/100 -> 0 | O31: =+'Data Maestro.'!O31/100 -> 0 | P31: =+'Data Maestro.'!P31/100 -> 0 | Q31: =+'Data Maestro.'!Q31/100 -> 0 | R31: =+'Data Maestro.'!R31/100 -> 0 | S31: =+'Data Maestro.'!S31/100 -> 0 | T31: =+'Data Maestro.'!T31/100 -> 0 | U31: =+'Data Maestro.'!U31/100 -> 0 | V31: =+'Data Maestro.'!V31 -> 0 | W31: =+'Data Maestro.'!W31 -> 0 | X31: =+'Data Maestro.'!X31 -> 0 | Y31: =+'Data Maestro.'!Y31 -> 0 | Z31: =+'Data Maestro.'!Z31 -> 0 | AA31: =+'Data Maestro.'!AA31 -> 0 | AB31: =+'Data Maestro.'!AB31 -> 0 | AC31: =+'Data Maestro.'!AC31 -> 0 | AD31: =+'Data Maestro.'!AD31 -> 0 | AE31: =+'Data Maestro.'!AE31 -> 0
A32: 25 | B32: =+IF(ISBLANK('Data Maestro.'!B32),"",'Data Maestro.'!B32) ->  | C32: =+'Data Maestro.'!C32/100 -> 0 | D32: =+'Data Maestro.'!D32/100 -> 0 | E32: =+'Data Maestro.'!E32/100 -> 0 | F32: =+'Data Maestro.'!F32/100 -> 0 | G32: =+'Data Maestro.'!G32/100 -> 0 | H32: =+'Data Maestro.'!H32/100 -> 0 | I32: =+'Data Maestro.'!I32/100 -> 0 | J32: =+'Data Maestro.'!J32/100 -> 0 | K32: =+'Data Maestro.'!K32/100 -> 0 | L32: =+'Data Maestro.'!L32/100 -> 0 | M32: =+'Data Maestro.'!M32/100 -> 0 | N32: =+'Data Maestro.'!N32/100 -> 0 | O32: =+'Data Maestro.'!O32/100 -> 0 | P32: =+'Data Maestro.'!P32/100 -> 0 | Q32: =+'Data Maestro.'!Q32/100 -> 0 | R32: =+'Data Maestro.'!R32/100 -> 0 | S32: =+'Data Maestro.'!S32/100 -> 0 | T32: =+'Data Maestro.'!T32/100 -> 0 | U32: =+'Data Maestro.'!U32/100 -> 0 | V32: =+'Data Maestro.'!V32 -> 0 | W32: =+'Data Maestro.'!W32 -> 0 | X32: =+'Data Maestro.'!X32 -> 0 | Y32: =+'Data Maestro.'!Y32 -> 0 | Z32: =+'Data Maestro.'!Z32 -> 0 | AA32: =+'Data Maestro.'!AA32 -> 0 | AB32: =+'Data Maestro.'!AB32 -> 0 | AC32: =+'Data Maestro.'!AC32 -> 0 | AD32: =+'Data Maestro.'!AD32 -> 0 | AE32: =+'Data Maestro.'!AE32 -> 0
A33: 26 | B33: =+IF(ISBLANK('Data Maestro.'!B33),"",'Data Maestro.'!B33) ->  | C33: =+'Data Maestro.'!C33/100 -> 0 | D33: =+'Data Maestro.'!D33/100 -> 0 | E33: =+'Data Maestro.'!E33/100 -> 0 | F33: =+'Data Maestro.'!F33/100 -> 0 | G33: =+'Data Maestro.'!G33/100 -> 0 | H33: =+'Data Maestro.'!H33/100 -> 0 | I33: =+'Data Maestro.'!I33/100 -> 0 | J33: =+'Data Maestro.'!J33/100 -> 0 | K33: =+'Data Maestro.'!K33/100 -> 0 | L33: =+'Data Maestro.'!L33/100 -> 0 | M33: =+'Data Maestro.'!M33/100 -> 0 | N33: =+'Data Maestro.'!N33/100 -> 0 | O33: =+'Data Maestro.'!O33/100 -> 0 | P33: =+'Data Maestro.'!P33/100 -> 0 | Q33: =+'Data Maestro.'!Q33/100 -> 0 | R33: =+'Data Maestro.'!R33/100 -> 0 | S33: =+'Data Maestro.'!S33/100 -> 0 | T33: =+'Data Maestro.'!T33/100 -> 0 | U33: =+'Data Maestro.'!U33/100 -> 0 | V33: =+'Data Maestro.'!V33 -> 0 | W33: =+'Data Maestro.'!W33 -> 0 | X33: =+'Data Maestro.'!X33 -> 0 | Y33: =+'Data Maestro.'!Y33 -> 0 | Z33: =+'Data Maestro.'!Z33 -> 0 | AA33: =+'Data Maestro.'!AA33 -> 0 | AB33: =+'Data Maestro.'!AB33 -> 0 | AC33: =+'Data Maestro.'!AC33 -> 0 | AD33: =+'Data Maestro.'!AD33 -> 0 | AE33: =+'Data Maestro.'!AE33 -> 0
A34: 27 | B34: =+IF(ISBLANK('Data Maestro.'!B34),"",'Data Maestro.'!B34) ->  | C34: =+'Data Maestro.'!C34/100 -> 0 | D34: =+'Data Maestro.'!D34/100 -> 0 | E34: =+'Data Maestro.'!E34/100 -> 0 | F34: =+'Data Maestro.'!F34/100 -> 0 | G34: =+'Data Maestro.'!G34/100 -> 0 | H34: =+'Data Maestro.'!H34/100 -> 0 | I34: =+'Data Maestro.'!I34/100 -> 0 | J34: =+'Data Maestro.'!J34/100 -> 0 | K34: =+'Data Maestro.'!K34/100 -> 0 | L34: =+'Data Maestro.'!L34/100 -> 0 | M34: =+'Data Maestro.'!M34/100 -> 0 | N34: =+'Data Maestro.'!N34/100 -> 0 | O34: =+'Data Maestro.'!O34/100 -> 0 | P34: =+'Data Maestro.'!P34/100 -> 0 | Q34: =+'Data Maestro.'!Q34/100 -> 0 | R34: =+'Data Maestro.'!R34/100 -> 0 | S34: =+'Data Maestro.'!S34/100 -> 0 | T34: =+'Data Maestro.'!T34/100 -> 0 | U34: =+'Data Maestro.'!U34/100 -> 0 | V34: =+'Data Maestro.'!V34 -> 0 | W34: =+'Data Maestro.'!W34 -> 0 | X34: =+'Data Maestro.'!X34 -> 0 | Y34: =+'Data Maestro.'!Y34 -> 0 | Z34: =+'Data Maestro.'!Z34 -> 0 | AA34: =+'Data Maestro.'!AA34 -> 0 | AB34: =+'Data Maestro.'!AB34 -> 0 | AC34: =+'Data Maestro.'!AC34 -> 0 | AD34: =+'Data Maestro.'!AD34 -> 0 | AE34: =+'Data Maestro.'!AE34 -> 0
A35: 28 | B35: =+IF(ISBLANK('Data Maestro.'!B35),"",'Data Maestro.'!B35) ->  | C35: =+'Data Maestro.'!C35/100 -> 0 | D35: =+'Data Maestro.'!D35/100 -> 0 | E35: =+'Data Maestro.'!E35/100 -> 0 | F35: =+'Data Maestro.'!F35/100 -> 0 | G35: =+'Data Maestro.'!G35/100 -> 0 | H35: =+'Data Maestro.'!H35/100 -> 0 | I35: =+'Data Maestro.'!I35/100 -> 0 | J35: =+'Data Maestro.'!J35/100 -> 0 | K35: =+'Data Maestro.'!K35/100 -> 0 | L35: =+'Data Maestro.'!L35/100 -> 0 | M35: =+'Data Maestro.'!M35/100 -> 0 | N35: =+'Data Maestro.'!N35/100 -> 0 | O35: =+'Data Maestro.'!O35/100 -> 0 | P35: =+'Data Maestro.'!P35/100 -> 0 | Q35: =+'Data Maestro.'!Q35/100 -> 0 | R35: =+'Data Maestro.'!R35/100 -> 0 | S35: =+'Data Maestro.'!S35/100 -> 0 | T35: =+'Data Maestro.'!T35/100 -> 0 | U35: =+'Data Maestro.'!U35/100 -> 0 | V35: =+'Data Maestro.'!V35 -> 0 | W35: =+'Data Maestro.'!W35 -> 0 | X35: =+'Data Maestro.'!X35 -> 0 | Y35: =+'Data Maestro.'!Y35 -> 0 | Z35: =+'Data Maestro.'!Z35 -> 0 | AA35: =+'Data Maestro.'!AA35 -> 0 | AB35: =+'Data Maestro.'!AB35 -> 0 | AC35: =+'Data Maestro.'!AC35 -> 0 | AD35: =+'Data Maestro.'!AD35 -> 0 | AE35: =+'Data Maestro.'!AE35 -> 0
A36: 29 | B36: =+IF(ISBLANK('Data Maestro.'!B36),"",'Data Maestro.'!B36) ->  | C36: =+'Data Maestro.'!C36/100 -> 0 | D36: =+'Data Maestro.'!D36/100 -> 0 | E36: =+'Data Maestro.'!E36/100 -> 0 | F36: =+'Data Maestro.'!F36/100 -> 0 | G36: =+'Data Maestro.'!G36/100 -> 0 | H36: =+'Data Maestro.'!H36/100 -> 0 | I36: =+'Data Maestro.'!I36/100 -> 0 | J36: =+'Data Maestro.'!J36/100 -> 0 | K36: =+'Data Maestro.'!K36/100 -> 0 | L36: =+'Data Maestro.'!L36/100 -> 0 | M36: =+'Data Maestro.'!M36/100 -> 0 | N36: =+'Data Maestro.'!N36/100 -> 0 | O36: =+'Data Maestro.'!O36/100 -> 0 | P36: =+'Data Maestro.'!P36/100 -> 0 | Q36: =+'Data Maestro.'!Q36/100 -> 0 | R36: =+'Data Maestro.'!R36/100 -> 0 | S36: =+'Data Maestro.'!S36/100 -> 0 | T36: =+'Data Maestro.'!T36/100 -> 0 | U36: =+'Data Maestro.'!U36/100 -> 0 | V36: =+'Data Maestro.'!V36 -> 0 | W36: =+'Data Maestro.'!W36 -> 0 | X36: =+'Data Maestro.'!X36 -> 0 | Y36: =+'Data Maestro.'!Y36 -> 0 | Z36: =+'Data Maestro.'!Z36 -> 0 | AA36: =+'Data Maestro.'!AA36 -> 0 | AB36: =+'Data Maestro.'!AB36 -> 0 | AC36: =+'Data Maestro.'!AC36 -> 0 | AD36: =+'Data Maestro.'!AD36 -> 0 | AE36: =+'Data Maestro.'!AE36 -> 0
A37: 30 | B37: =+IF(ISBLANK('Data Maestro.'!B37),"",'Data Maestro.'!B37) ->  | C37: =+'Data Maestro.'!C37/100 -> 0 | D37: =+'Data Maestro.'!D37/100 -> 0 | E37: =+'Data Maestro.'!E37/100 -> 0 | F37: =+'Data Maestro.'!F37/100 -> 0 | G37: =+'Data Maestro.'!G37/100 -> 0 | H37: =+'Data Maestro.'!H37/100 -> 0 | I37: =+'Data Maestro.'!I37/100 -> 0 | J37: =+'Data Maestro.'!J37/100 -> 0 | K37: =+'Data Maestro.'!K37/100 -> 0 | L37: =+'Data Maestro.'!L37/100 -> 0 | M37: =+'Data Maestro.'!M37/100 -> 0 | N37: =+'Data Maestro.'!N37/100 -> 0 | O37: =+'Data Maestro.'!O37/100 -> 0 | P37: =+'Data Maestro.'!P37/100 -> 0 | Q37: =+'Data Maestro.'!Q37/100 -> 0 | R37: =+'Data Maestro.'!R37/100 -> 0 | S37: =+'Data Maestro.'!S37/100 -> 0 | T37: =+'Data Maestro.'!T37/100 -> 0 | U37: =+'Data Maestro.'!U37/100 -> 0 | V37: =+'Data Maestro.'!V37 -> 0 | W37: =+'Data Maestro.'!W37 -> 0 | X37: =+'Data Maestro.'!X37 -> 0 | Y37: =+'Data Maestro.'!Y37 -> 0 | Z37: =+'Data Maestro.'!Z37 -> 0 | AA37: =+'Data Maestro.'!AA37 -> 0 | AB37: =+'Data Maestro.'!AB37 -> 0 | AC37: =+'Data Maestro.'!AC37 -> 0 | AD37: =+'Data Maestro.'!AD37 -> 0 | AE37: =+'Data Maestro.'!AE37 -> 0
A38: 31 | B38: =+IF(ISBLANK('Data Maestro.'!B38),"",'Data Maestro.'!B38) ->  | C38: =+'Data Maestro.'!C38/100 -> 0 | D38: =+'Data Maestro.'!D38/100 -> 0 | E38: =+'Data Maestro.'!E38/100 -> 0 | F38: =+'Data Maestro.'!F38/100 -> 0 | G38: =+'Data Maestro.'!G38/100 -> 0 | H38: =+'Data Maestro.'!H38/100 -> 0 | I38: =+'Data Maestro.'!I38/100 -> 0 | J38: =+'Data Maestro.'!J38/100 -> 0 | K38: =+'Data Maestro.'!K38/100 -> 0 | L38: =+'Data Maestro.'!L38/100 -> 0 | M38: =+'Data Maestro.'!M38/100 -> 0 | N38: =+'Data Maestro.'!N38/100 -> 0 | O38: =+'Data Maestro.'!O38/100 -> 0 | P38: =+'Data Maestro.'!P38/100 -> 0 | Q38: =+'Data Maestro.'!Q38/100 -> 0 | R38: =+'Data Maestro.'!R38/100 -> 0 | S38: =+'Data Maestro.'!S38/100 -> 0 | T38: =+'Data Maestro.'!T38/100 -> 0 | U38: =+'Data Maestro.'!U38/100 -> 0 | V38: =+'Data Maestro.'!V38 -> 0 | W38: =+'Data Maestro.'!W38 -> 0 | X38: =+'Data Maestro.'!X38 -> 0 | Y38: =+'Data Maestro.'!Y38 -> 0 | Z38: =+'Data Maestro.'!Z38 -> 0 | AA38: =+'Data Maestro.'!AA38 -> 0 | AB38: =+'Data Maestro.'!AB38 -> 0 | AC38: =+'Data Maestro.'!AC38 -> 0 | AD38: =+'Data Maestro.'!AD38 -> 0 | AE38: =+'Data Maestro.'!AE38 -> 0
A39: 32 | B39: =+IF(ISBLANK('Data Maestro.'!B39),"",'Data Maestro.'!B39) ->  | C39: =+'Data Maestro.'!C39/100 -> 0 | D39: =+'Data Maestro.'!D39/100 -> 0 | E39: =+'Data Maestro.'!E39/100 -> 0 | F39: =+'Data Maestro.'!F39/100 -> 0 | G39: =+'Data Maestro.'!G39/100 -> 0 | H39: =+'Data Maestro.'!H39/100 -> 0 | I39: =+'Data Maestro.'!I39/100 -> 0 | J39: =+'Data Maestro.'!J39/100 -> 0 | K39: =+'Data Maestro.'!K39/100 -> 0 | L39: =+'Data Maestro.'!L39/100 -> 0 | M39: =+'Data Maestro.'!M39/100 -> 0 | N39: =+'Data Maestro.'!N39/100 -> 0 | O39: =+'Data Maestro.'!O39/100 -> 0 | P39: =+'Data Maestro.'!P39/100 -> 0 | Q39: =+'Data Maestro.'!Q39/100 -> 0 | R39: =+'Data Maestro.'!R39/100 -> 0 | S39: =+'Data Maestro.'!S39/100 -> 0 | T39: =+'Data Maestro.'!T39/100 -> 0 | U39: =+'Data Maestro.'!U39/100 -> 0 | V39: =+'Data Maestro.'!V39 -> 0 | W39: =+'Data Maestro.'!W39 -> 0 | X39: =+'Data Maestro.'!X39 -> 0 | Y39: =+'Data Maestro.'!Y39 -> 0 | Z39: =+'Data Maestro.'!Z39 -> 0 | AA39: =+'Data Maestro.'!AA39 -> 0 | AB39: =+'Data Maestro.'!AB39 -> 0 | AC39: =+'Data Maestro.'!AC39 -> 0 | AD39: =+'Data Maestro.'!AD39 -> 0 | AE39: =+'Data Maestro.'!AE39 -> 0
A40: 33 | B40: =+IF(ISBLANK('Data Maestro.'!B40),"",'Data Maestro.'!B40) ->  | C40: =+'Data Maestro.'!C40/100 -> 0 | D40: =+'Data Maestro.'!D40/100 -> 0 | E40: =+'Data Maestro.'!E40/100 -> 0 | F40: =+'Data Maestro.'!F40/100 -> 0 | G40: =+'Data Maestro.'!G40/100 -> 0 | H40: =+'Data Maestro.'!H40/100 -> 0 | I40: =+'Data Maestro.'!I40/100 -> 0 | J40: =+'Data Maestro.'!J40/100 -> 0 | K40: =+'Data Maestro.'!K40/100 -> 0 | L40: =+'Data Maestro.'!L40/100 -> 0 | M40: =+'Data Maestro.'!M40/100 -> 0 | N40: =+'Data Maestro.'!N40/100 -> 0 | O40: =+'Data Maestro.'!O40/100 -> 0 | P40: =+'Data Maestro.'!P40/100 -> 0 | Q40: =+'Data Maestro.'!Q40/100 -> 0 | R40: =+'Data Maestro.'!R40/100 -> 0 | S40: =+'Data Maestro.'!S40/100 -> 0 | T40: =+'Data Maestro.'!T40/100 -> 0 | U40: =+'Data Maestro.'!U40/100 -> 0 | V40: =+'Data Maestro.'!V40 -> 0 | W40: =+'Data Maestro.'!W40 -> 0 | X40: =+'Data Maestro.'!X40 -> 0 | Y40: =+'Data Maestro.'!Y40 -> 0 | Z40: =+'Data Maestro.'!Z40 -> 0 | AA40: =+'Data Maestro.'!AA40 -> 0 | AB40: =+'Data Maestro.'!AB40 -> 0 | AC40: =+'Data Maestro.'!AC40 -> 0 | AD40: =+'Data Maestro.'!AD40 -> 0 | AE40: =+'Data Maestro.'!AE40 -> 0
A41: 34 | B41: =+IF(ISBLANK('Data Maestro.'!B41),"",'Data Maestro.'!B41) ->  | C41: =+'Data Maestro.'!C41/100 -> 0 | D41: =+'Data Maestro.'!D41/100 -> 0 | E41: =+'Data Maestro.'!E41/100 -> 0 | F41: =+'Data Maestro.'!F41/100 -> 0 | G41: =+'Data Maestro.'!G41/100 -> 0 | H41: =+'Data Maestro.'!H41/100 -> 0 | I41: =+'Data Maestro.'!I41/100 -> 0 | J41: =+'Data Maestro.'!J41/100 -> 0 | K41: =+'Data Maestro.'!K41/100 -> 0 | L41: =+'Data Maestro.'!L41/100 -> 0 | M41: =+'Data Maestro.'!M41/100 -> 0 | N41: =+'Data Maestro.'!N41/100 -> 0 | O41: =+'Data Maestro.'!O41/100 -> 0 | P41: =+'Data Maestro.'!P41/100 -> 0 | Q41: =+'Data Maestro.'!Q41/100 -> 0 | R41: =+'Data Maestro.'!R41/100 -> 0 | S41: =+'Data Maestro.'!S41/100 -> 0 | T41: =+'Data Maestro.'!T41/100 -> 0 | U41: =+'Data Maestro.'!U41/100 -> 0 | V41: =+'Data Maestro.'!V41 -> 0 | W41: =+'Data Maestro.'!W41 -> 0 | X41: =+'Data Maestro.'!X41 -> 0 | Y41: =+'Data Maestro.'!Y41 -> 0 | Z41: =+'Data Maestro.'!Z41 -> 0 | AA41: =+'Data Maestro.'!AA41 -> 0 | AB41: =+'Data Maestro.'!AB41 -> 0 | AC41: =+'Data Maestro.'!AC41 -> 0 | AD41: =+'Data Maestro.'!AD41 -> 0 | AE41: =+'Data Maestro.'!AE41 -> 0
A42: 35 | B42: =+IF(ISBLANK('Data Maestro.'!B42),"",'Data Maestro.'!B42) ->  | C42: =+'Data Maestro.'!C42/100 -> 0 | D42: =+'Data Maestro.'!D42/100 -> 0 | E42: =+'Data Maestro.'!E42/100 -> 0 | F42: =+'Data Maestro.'!F42/100 -> 0 | G42: =+'Data Maestro.'!G42/100 -> 0 | H42: =+'Data Maestro.'!H42/100 -> 0 | I42: =+'Data Maestro.'!I42/100 -> 0 | J42: =+'Data Maestro.'!J42/100 -> 0 | K42: =+'Data Maestro.'!K42/100 -> 0 | L42: =+'Data Maestro.'!L42/100 -> 0 | M42: =+'Data Maestro.'!M42/100 -> 0 | N42: =+'Data Maestro.'!N42/100 -> 0 | O42: =+'Data Maestro.'!O42/100 -> 0 | P42: =+'Data Maestro.'!P42/100 -> 0 | Q42: =+'Data Maestro.'!Q42/100 -> 0 | R42: =+'Data Maestro.'!R42/100 -> 0 | S42: =+'Data Maestro.'!S42/100 -> 0 | T42: =+'Data Maestro.'!T42/100 -> 0 | U42: =+'Data Maestro.'!U42/100 -> 0 | V42: =+'Data Maestro.'!V42 -> 0 | W42: =+'Data Maestro.'!W42 -> 0 | X42: =+'Data Maestro.'!X42 -> 0 | Y42: =+'Data Maestro.'!Y42 -> 0 | Z42: =+'Data Maestro.'!Z42 -> 0 | AA42: =+'Data Maestro.'!AA42 -> 0 | AB42: =+'Data Maestro.'!AB42 -> 0 | AC42: =+'Data Maestro.'!AC42 -> 0 | AD42: =+'Data Maestro.'!AD42 -> 0 | AE42: =+'Data Maestro.'!AE42 -> 0
B44: Forrajes
A45: 36 | B45: =+IF(ISBLANK('Data Maestro.'!B45),"",'Data Maestro.'!B45) -> Orujo de ceb. | C45: =+'Data Maestro.'!C45/100 -> 0.18 | D45: =+'Data Maestro.'!D45/100 -> 0.7 | E45: =+'Data Maestro.'!E45/100 -> 0.21 | F45: =+'Data Maestro.'!F45/100 -> 0.17 | G45: =+'Data Maestro.'!G45/100 -> 0.47 | H45: =+'Data Maestro.'!H45/100 -> 0.23 | I45: =+'Data Maestro.'!I45/100 -> 0.0029 | J45: =+'Data Maestro.'!J45/100 -> 0.006 | K45: =+'Data Maestro.'!K45/100 -> 0.066 | L45: =+'Data Maestro.'!L45/100 -> 0.45 | M45: =+'Data Maestro.'!M45/100 -> 0.55 | N45: =+'Data Maestro.'!N45/100 -> 0.25 | O45: =+'Data Maestro.'!O45/100 -> 0 | P45: =+'Data Maestro.'!P45/100 -> 0 | Q45: =+'Data Maestro.'!Q45/100 -> 0 | R45: =+'Data Maestro.'!R45/100 -> 0 | S45: =+'Data Maestro.'!S45/100 -> 0 | T45: =+'Data Maestro.'!T45/100 -> 0 | U45: =+'Data Maestro.'!U45/100 -> 0 | V45: =+'Data Maestro.'!V45 -> 0 | W45: =+'Data Maestro.'!W45 -> 0 | X45: =+'Data Maestro.'!X45 -> 0 | Y45: =+'Data Maestro.'!Y45 -> 0 | Z45: =+'Data Maestro.'!Z45 -> 0 | AA45: =+'Data Maestro.'!AA45 -> 0 | AB45: =+'Data Maestro.'!AB45 -> 0 | AC45: =+'Data Maestro.'!AC45 -> 0 | AD45: =+'Data Maestro.'!AD45 -> 0 | AE45: =+'Data Maestro.'!AE45 -> 0
A46: 37 | B46: =+IF(ISBLANK('Data Maestro.'!B46),"",'Data Maestro.'!B46) -> Panca picad | C46: =+'Data Maestro.'!C46/100 -> 0.88 | D46: =+'Data Maestro.'!D46/100 -> 0.48 | E46: =+'Data Maestro.'!E46/100 -> 0.0485 | F46: =+'Data Maestro.'!F46/100 -> 0.34 | G46: =+'Data Maestro.'!G46/100 -> 0.65 | H46: =+'Data Maestro.'!H46/100 -> 0.49 | I46: =+'Data Maestro.'!I46/100 -> 0.006 | J46: =+'Data Maestro.'!J46/100 -> 0.0009 | K46: =+'Data Maestro.'!K46/100 -> 0.014 | L46: =+'Data Maestro.'!L46/100 -> 0.7 | M46: =+'Data Maestro.'!M46/100 -> 0.3 | N46: =+'Data Maestro.'!N46/100 -> 0.28 | O46: =+'Data Maestro.'!O46/100 -> 0.0001 | P46: =+'Data Maestro.'!P46/100 -> 0.0019 | Q46: =+'Data Maestro.'!Q46/100 -> 0.009 | R46: =+'Data Maestro.'!R46/100 -> 0.002 | S46: =+'Data Maestro.'!S46/100 -> 0.0014 | T46: =+'Data Maestro.'!T46/100 -> 0 | U46: =+'Data Maestro.'!U46/100 -> 0 | V46: =+'Data Maestro.'!V46 -> 0 | W46: =+'Data Maestro.'!W46 -> 0 | X46: =+'Data Maestro.'!X46 -> 0 | Y46: =+'Data Maestro.'!Y46 -> 0 | Z46: =+'Data Maestro.'!Z46 -> 0 | AA46: =+'Data Maestro.'!AA46 -> 0 | AB46: =+'Data Maestro.'!AB46 -> 0 | AC46: =+'Data Maestro.'!AC46 -> 0 | AD46: =+'Data Maestro.'!AD46 -> 0 | AE46: =+'Data Maestro.'!AE46 -> 0
A47: 38 | B47: =+IF(ISBLANK('Data Maestro.'!B47),"",'Data Maestro.'!B47) -> Chala con choclo | C47: =+'Data Maestro.'!C47/100 -> 0.26 | D47: =+'Data Maestro.'!D47/100 -> 0.65 | E47: =+'Data Maestro.'!E47/100 -> 0.097 | F47: =+'Data Maestro.'!F47/100 -> 0.3 | G47: =+'Data Maestro.'!G47/100 -> 0.52 | H47: =+'Data Maestro.'!H47/100 -> 0.32 | I47: =+'Data Maestro.'!I47/100 -> 0.0025 | J47: =+'Data Maestro.'!J47/100 -> 0.0023 | K47: =+'Data Maestro.'!K47/100 -> 0.02 | L47: =+'Data Maestro.'!L47/100 -> 0.7 | M47: =+'Data Maestro.'!M47/100 -> 0.3 | N47: =+'Data Maestro.'!N47/100 -> 0.36 | O47: =+'Data Maestro.'!O47/100 -> 0.0001 | P47: =+'Data Maestro.'!P47/100 -> 0.0019 | Q47: =+'Data Maestro.'!Q47/100 -> 0.016 | R47: =+'Data Maestro.'!R47/100 -> 0.003 | S47: =+'Data Maestro.'!S47/100 -> 0.0011 | T47: =+'Data Maestro.'!T47/100 -> 0 | U47: =+'Data Maestro.'!U47/100 -> 0.6 | V47: =+'Data Maestro.'!V47 -> 0 | W47: =+'Data Maestro.'!W47 -> 0 | X47: =+'Data Maestro.'!X47 -> 0 | Y47: =+'Data Maestro.'!Y47 -> 0 | Z47: =+'Data Maestro.'!Z47 -> 0 | AA47: =+'Data Maestro.'!AA47 -> 0 | AB47: =+'Data Maestro.'!AB47 -> 0 | AC47: =+'Data Maestro.'!AC47 -> 0 | AD47: =+'Data Maestro.'!AD47 -> 0 | AE47: =+'Data Maestro.'!AE47 -> 0
A48: 39 | B48: =+IF(ISBLANK('Data Maestro.'!B48),"",'Data Maestro.'!B48) -> Ensilaje chala maiz | C48: =+'Data Maestro.'!C48/100 -> 0.32 | D48: =+'Data Maestro.'!D48/100 -> 0.6 | E48: =+'Data Maestro.'!E48/100 -> 0.09 | F48: =+'Data Maestro.'!F48/100 -> 0.35 | G48: =+'Data Maestro.'!G48/100 -> 0.55 | H48: =+'Data Maestro.'!H48/100 -> 0.35 | I48: =+'Data Maestro.'!I48/100 -> 0.0025 | J48: =+'Data Maestro.'!J48/100 -> 0.0023 | K48: =+'Data Maestro.'!K48/100 -> 0.02 | L48: =+'Data Maestro.'!L48/100 -> 0.7 | M48: =+'Data Maestro.'!M48/100 -> 0.3 | N48: =+'Data Maestro.'!N48/100 -> 0.34 | O48: =+'Data Maestro.'!O48/100 -> 0 | P48: =+'Data Maestro.'!P48/100 -> 0 | Q48: =+'Data Maestro.'!Q48/100 -> 0 | R48: =+'Data Maestro.'!R48/100 -> 0 | S48: =+'Data Maestro.'!S48/100 -> 0 | T48: =+'Data Maestro.'!T48/100 -> 0 | U48: =+'Data Maestro.'!U48/100 -> 0 | V48: =+'Data Maestro.'!V48 -> 0 | W48: =+'Data Maestro.'!W48 -> 0 | X48: =+'Data Maestro.'!X48 -> 0 | Y48: =+'Data Maestro.'!Y48 -> 0 | Z48: =+'Data Maestro.'!Z48 -> 0 | AA48: =+'Data Maestro.'!AA48 -> 0 | AB48: =+'Data Maestro.'!AB48 -> 0 | AC48: =+'Data Maestro.'!AC48 -> 0 | AD48: =+'Data Maestro.'!AD48 -> 0 | AE48: =+'Data Maestro.'!AE48 -> 0
A49: 40 | B49: =+IF(ISBLANK('Data Maestro.'!B49),"",'Data Maestro.'!B49) -> Alfalfa HENO | C49: =+'Data Maestro.'!C49/100 -> 0.89 | D49: =+'Data Maestro.'!D49/100 -> 0.52 | E49: =+'Data Maestro.'!E49/100 -> 0.175 | F49: =+'Data Maestro.'!F49/100 -> 0.325 | G49: =+'Data Maestro.'!G49/100 -> 0.5 | H49: =+'Data Maestro.'!H49/100 -> 0.35 | I49: =+'Data Maestro.'!I49/100 -> 0.014 | J49: =+'Data Maestro.'!J49/100 -> 0.0024 | K49: =+'Data Maestro.'!K49/100 -> 0.026 | L49: =+'Data Maestro.'!L49/100 -> 0.67 | M49: =+'Data Maestro.'!M49/100 -> 0.33 | N49: =+'Data Maestro.'!N49/100 -> 0.3 | O49: =+'Data Maestro.'!O49/100 -> 0 | P49: =+'Data Maestro.'!P49/100 -> 0 | Q49: =+'Data Maestro.'!Q49/100 -> 0 | R49: =+'Data Maestro.'!R49/100 -> 0 | S49: =+'Data Maestro.'!S49/100 -> 0 | T49: =+'Data Maestro.'!T49/100 -> 0 | U49: =+'Data Maestro.'!U49/100 -> 0 | V49: =+'Data Maestro.'!V49 -> 0 | W49: =+'Data Maestro.'!W49 -> 0 | X49: =+'Data Maestro.'!X49 -> 0 | Y49: =+'Data Maestro.'!Y49 -> 0 | Z49: =+'Data Maestro.'!Z49 -> 0 | AA49: =+'Data Maestro.'!AA49 -> 0 | AB49: =+'Data Maestro.'!AB49 -> 0 | AC49: =+'Data Maestro.'!AC49 -> 0 | AD49: =+'Data Maestro.'!AD49 -> 0 | AE49: =+'Data Maestro.'!AE49 -> 0
A50: 41 | B50: =+IF(ISBLANK('Data Maestro.'!B50),"",'Data Maestro.'!B50) -> Chala sin choclo | C50: =+'Data Maestro.'!C50/100 -> 0.26 | D50: =+'Data Maestro.'!D50/100 -> 0.49 | E50: =+'Data Maestro.'!E50/100 -> 0.07 | F50: =+'Data Maestro.'!F50/100 -> 0.33 | G50: =+'Data Maestro.'!G50/100 -> 0.57 | H50: =+'Data Maestro.'!H50/100 -> 0.36 | I50: =+'Data Maestro.'!I50/100 -> 0.0025 | J50: =+'Data Maestro.'!J50/100 -> 0.002 | K50: =+'Data Maestro.'!K50/100 -> 0.02 | L50: =+'Data Maestro.'!L50/100 -> 0.5 | M50: =+'Data Maestro.'!M50/100 -> 0.5 | N50: =+'Data Maestro.'!N50/100 -> 0.34 | O50: =+'Data Maestro.'!O50/100 -> 0.0001 | P50: =+'Data Maestro.'!P50/100 -> 0.0019 | Q50: =+'Data Maestro.'!Q50/100 -> 0.016 | R50: =+'Data Maestro.'!R50/100 -> 0.003 | S50: =+'Data Maestro.'!S50/100 -> 0.0011 | T50: =+'Data Maestro.'!T50/100 -> 0 | U50: =+'Data Maestro.'!U50/100 -> 0 | V50: =+'Data Maestro.'!V50 -> 0 | W50: =+'Data Maestro.'!W50 -> 0 | X50: =+'Data Maestro.'!X50 -> 0 | Y50: =+'Data Maestro.'!Y50 -> 0 | Z50: =+'Data Maestro.'!Z50 -> 0 | AA50: =+'Data Maestro.'!AA50 -> 0 | AB50: =+'Data Maestro.'!AB50 -> 0 | AC50: =+'Data Maestro.'!AC50 -> 0 | AD50: =+'Data Maestro.'!AD50 -> 0 | AE50: =+'Data Maestro.'!AE50 -> 0
A51: 42 | B51: =+IF(ISBLANK('Data Maestro.'!B51),"",'Data Maestro.'!B51) -> Esparramel | C51: =+'Data Maestro.'!C51/100 -> 0.82 | D51: =+'Data Maestro.'!D51/100 -> 0.58 | E51: =+'Data Maestro.'!E51/100 -> 0.09 | F51: =+'Data Maestro.'!F51/100 -> 0.264 | G51: =+'Data Maestro.'!G51/100 -> 0.58 | H51: =+'Data Maestro.'!H51/100 -> 0.25 | I51: =+'Data Maestro.'!I51/100 -> 0.005 | J51: =+'Data Maestro.'!J51/100 -> 0.0022 | K51: =+'Data Maestro.'!K51/100 -> 0.01 | L51: =+'Data Maestro.'!L51/100 -> 0.66 | M51: =+'Data Maestro.'!M51/100 -> 0.34 | N51: =+'Data Maestro.'!N51/100 -> 0.32 | O51: =+'Data Maestro.'!O51/100 -> 0 | P51: =+'Data Maestro.'!P51/100 -> 0 | Q51: =+'Data Maestro.'!Q51/100 -> 0 | R51: =+'Data Maestro.'!R51/100 -> 0 | S51: =+'Data Maestro.'!S51/100 -> 0 | T51: =+'Data Maestro.'!T51/100 -> 0 | U51: =+'Data Maestro.'!U51/100 -> 0 | V51: =+'Data Maestro.'!V51 -> 0 | W51: =+'Data Maestro.'!W51 -> 0 | X51: =+'Data Maestro.'!X51 -> 0 | Y51: =+'Data Maestro.'!Y51 -> 0 | Z51: =+'Data Maestro.'!Z51 -> 0 | AA51: =+'Data Maestro.'!AA51 -> 0 | AB51: =+'Data Maestro.'!AB51 -> 0 | AC51: =+'Data Maestro.'!AC51 -> 0 | AD51: =+'Data Maestro.'!AD51 -> 0 | AE51: =+'Data Maestro.'!AE51 -> 0
A52: 43 | B52: =+IF(ISBLANK('Data Maestro.'!B52),"",'Data Maestro.'!B52) -> Pasto camerun | C52: =+'Data Maestro.'!C52/100 -> 0.2 | D52: =+'Data Maestro.'!D52/100 -> 0.55 | E52: =+'Data Maestro.'!E52/100 -> 0.07 | F52: =+'Data Maestro.'!F52/100 -> 0.35 | G52: =+'Data Maestro.'!G52/100 -> 0.6 | H52: =+'Data Maestro.'!H52/100 -> 0.4 | I52: =+'Data Maestro.'!I52/100 -> 0.009 | J52: =+'Data Maestro.'!J52/100 -> 0.0029 | K52: =+'Data Maestro.'!K52/100 -> 0.02 | L52: =+'Data Maestro.'!L52/100 -> 0.25 | M52: =+'Data Maestro.'!M52/100 -> 0.75 | N52: =+'Data Maestro.'!N52/100 -> 0.31 | O52: =+'Data Maestro.'!O52/100 -> 0 | P52: =+'Data Maestro.'!P52/100 -> 0 | Q52: =+'Data Maestro.'!Q52/100 -> 0 | R52: =+'Data Maestro.'!R52/100 -> 0 | S52: =+'Data Maestro.'!S52/100 -> 0 | T52: =+'Data Maestro.'!T52/100 -> 0 | U52: =+'Data Maestro.'!U52/100 -> 0 | V52: =+'Data Maestro.'!V52 -> 0 | W52: =+'Data Maestro.'!W52 -> 0 | X52: =+'Data Maestro.'!X52 -> 0 | Y52: =+'Data Maestro.'!Y52 -> 0 | Z52: =+'Data Maestro.'!Z52 -> 0 | AA52: =+'Data Maestro.'!AA52 -> 0 | AB52: =+'Data Maestro.'!AB52 -> 0 | AC52: =+'Data Maestro.'!AC52 -> 0 | AD52: =+'Data Maestro.'!AD52 -> 0 | AE52: =+'Data Maestro.'!AE52 -> 0
A53: 44 | B53: =+IF(ISBLANK('Data Maestro.'!B53),"",'Data Maestro.'!B53) -> Heno Alfalfa Estandar | C53: =+'Data Maestro.'!C53/100 -> 0.87 | D53: =+'Data Maestro.'!D53/100 -> 0.56 | E53: =+'Data Maestro.'!E53/100 -> 0.17 | F53: =+'Data Maestro.'!F53/100 -> 0.32 | G53: =+'Data Maestro.'!G53/100 -> 0.51 | H53: =+'Data Maestro.'!H53/100 -> 0.34 | I53: =+'Data Maestro.'!I53/100 -> 0.014 | J53: =+'Data Maestro.'!J53/100 -> 0.003 | K53: =+'Data Maestro.'!K53/100 -> 0.012 | L53: =+'Data Maestro.'!L53/100 -> 0.53 | M53: =+'Data Maestro.'!M53/100 -> 0.47 | N53: =+'Data Maestro.'!N53/100 -> 0.3 | O53: =+'Data Maestro.'!O53/100 -> 0 | P53: =+'Data Maestro.'!P53/100 -> 0 | Q53: =+'Data Maestro.'!Q53/100 -> 0 | R53: =+'Data Maestro.'!R53/100 -> 0 | S53: =+'Data Maestro.'!S53/100 -> 0 | T53: =+'Data Maestro.'!T53/100 -> 0 | U53: =+'Data Maestro.'!U53/100 -> 0 | V53: =+'Data Maestro.'!V53 -> 0 | W53: =+'Data Maestro.'!W53 -> 0 | X53: =+'Data Maestro.'!X53 -> 0 | Y53: =+'Data Maestro.'!Y53 -> 0 | Z53: =+'Data Maestro.'!Z53 -> 0 | AA53: =+'Data Maestro.'!AA53 -> 0 | AB53: =+'Data Maestro.'!AB53 -> 0 | AC53: =+'Data Maestro.'!AC53 -> 0 | AD53: =+'Data Maestro.'!AD53 -> 0 | AE53: =+'Data Maestro.'!AE53 -> 0
A54: 45 | B54: =+IF(ISBLANK('Data Maestro.'!B54),"",'Data Maestro.'!B54) -> Pancamel (60panca-40melaza) | C54: =+'Data Maestro.'!C54/100 -> 0.834 | D54: =+'Data Maestro.'!D54/100 -> 0.566 | E54: =+'Data Maestro.'!E54/100 -> 0.059 | F54: =+'Data Maestro.'!F54/100 -> 0.251 | G54: =+'Data Maestro.'!G54/100 -> 0.49 | H54: =+'Data Maestro.'!H54/100 -> 0.285 | I54: =+'Data Maestro.'!I54/100 -> 0.0069 | J54: =+'Data Maestro.'!J54/100 -> 0.001 | K54: =+'Data Maestro.'!K54/100 -> 0.01 | L54: =+'Data Maestro.'!L54/100 -> 0.65 | M54: =+'Data Maestro.'!M54/100 -> 0.35 | N54: =+'Data Maestro.'!N54/100 -> 0.44 | O54: =+'Data Maestro.'!O54/100 -> 0 | P54: =+'Data Maestro.'!P54/100 -> 0 | Q54: =+'Data Maestro.'!Q54/100 -> 0 | R54: =+'Data Maestro.'!R54/100 -> 0 | S54: =+'Data Maestro.'!S54/100 -> 0 | T54: =+'Data Maestro.'!T54/100 -> 0 | U54: =+'Data Maestro.'!U54/100 -> 0 | V54: =+'Data Maestro.'!V54 -> 0 | W54: =+'Data Maestro.'!W54 -> 0 | X54: =+'Data Maestro.'!X54 -> 0 | Y54: =+'Data Maestro.'!Y54 -> 0 | Z54: =+'Data Maestro.'!Z54 -> 0 | AA54: =+'Data Maestro.'!AA54 -> 0 | AB54: =+'Data Maestro.'!AB54 -> 0 | AC54: =+'Data Maestro.'!AC54 -> 0 | AD54: =+'Data Maestro.'!AD54 -> 0 | AE54: =+'Data Maestro.'!AE54 -> 0
A55: 46 | B55: =+IF(ISBLANK('Data Maestro.'!B55),"",'Data Maestro.'!B55) -> Broza Esparrago | C55: =+'Data Maestro.'!C55/100 -> 0.365 | D55: =+'Data Maestro.'!D55/100 -> 0.53 | E55: =+'Data Maestro.'!E55/100 -> 0.14 | F55: =+'Data Maestro.'!F55/100 -> 0.39 | G55: =+'Data Maestro.'!G55/100 -> 0.55 | H55: =+'Data Maestro.'!H55/100 -> 0.28 | I55: =+'Data Maestro.'!I55/100 -> 0.006 | J55: =+'Data Maestro.'!J55/100 -> 0.002 | K55: =+'Data Maestro.'!K55/100 -> 0.02 | L55: =+'Data Maestro.'!L55/100 -> 0.6 | M55: =+'Data Maestro.'!M55/100 -> 0.4 | N55: =+'Data Maestro.'!N55/100 -> 0.29 | O55: =+'Data Maestro.'!O55/100 -> 0 | P55: =+'Data Maestro.'!P55/100 -> 0 | Q55: =+'Data Maestro.'!Q55/100 -> 0 | R55: =+'Data Maestro.'!R55/100 -> 0 | S55: =+'Data Maestro.'!S55/100 -> 0 | T55: =+'Data Maestro.'!T55/100 -> 0 | U55: =+'Data Maestro.'!U55/100 -> 0 | V55: =+'Data Maestro.'!V55 -> 0 | W55: =+'Data Maestro.'!W55 -> 0 | X55: =+'Data Maestro.'!X55 -> 0 | Y55: =+'Data Maestro.'!Y55 -> 0 | Z55: =+'Data Maestro.'!Z55 -> 0 | AA55: =+'Data Maestro.'!AA55 -> 0 | AB55: =+'Data Maestro.'!AB55 -> 0 | AC55: =+'Data Maestro.'!AC55 -> 0 | AD55: =+'Data Maestro.'!AD55 -> 0 | AE55: =+'Data Maestro.'!AE55 -> 0
A56: 47 | B56: =+IF(ISBLANK('Data Maestro.'!B56),"",'Data Maestro.'!B56) -> Camote Tuberculo | C56: =+'Data Maestro.'!C56/100 -> 0.32 | D56: =+'Data Maestro.'!D56/100 -> 0.8 | E56: =+'Data Maestro.'!E56/100 -> 0.04 | F56: =+'Data Maestro.'!F56/100 -> 0.04 | G56: =+'Data Maestro.'!G56/100 -> 0.06 | H56: =+'Data Maestro.'!H56/100 -> 0.01 | I56: =+'Data Maestro.'!I56/100 -> 0.0028 | J56: =+'Data Maestro.'!J56/100 -> 0.0023 | K56: =+'Data Maestro.'!K56/100 -> 0.016 | L56: =+'Data Maestro.'!L56/100 -> 0.2 | M56: =+'Data Maestro.'!M56/100 -> 0.8 | N56: =+'Data Maestro.'!N56/100 -> 0.88 | O56: =+'Data Maestro.'!O56/100 -> 0 | P56: =+'Data Maestro.'!P56/100 -> 0 | Q56: =+'Data Maestro.'!Q56/100 -> 0 | R56: =+'Data Maestro.'!R56/100 -> 0 | S56: =+'Data Maestro.'!S56/100 -> 0 | T56: =+'Data Maestro.'!T56/100 -> 0 | U56: =+'Data Maestro.'!U56/100 -> 0 | V56: =+'Data Maestro.'!V56 -> 0 | W56: =+'Data Maestro.'!W56 -> 0 | X56: =+'Data Maestro.'!X56 -> 0 | Y56: =+'Data Maestro.'!Y56 -> 0 | Z56: =+'Data Maestro.'!Z56 -> 0 | AA56: =+'Data Maestro.'!AA56 -> 0 | AB56: =+'Data Maestro.'!AB56 -> 0 | AC56: =+'Data Maestro.'!AC56 -> 0 | AD56: =+'Data Maestro.'!AD56 -> 0 | AE56: =+'Data Maestro.'!AE56 -> 0
A57: 48 | B57: =+IF(ISBLANK('Data Maestro.'!B57),"",'Data Maestro.'!B57) -> Alfalfa verde preboton | C57: =+'Data Maestro.'!C57/100 -> 0.1812 | D57: =+'Data Maestro.'!D57/100 -> 0.58 | E57: =+'Data Maestro.'!E57/100 -> 0.2512 | F57: =+'Data Maestro.'!F57/100 -> 0 | G57: =+'Data Maestro.'!G57/100 -> 0.331 | H57: =+'Data Maestro.'!H57/100 -> 0.219 | I57: =+'Data Maestro.'!I57/100 -> 0 | J57: =+'Data Maestro.'!J57/100 -> 0 | K57: =+'Data Maestro.'!K57/100 -> 0.0169 | L57: =+'Data Maestro.'!L57/100 -> 0 | M57: =+'Data Maestro.'!M57/100 -> 0 | N57: =+'Data Maestro.'!N57/100 -> 0.2797 | O57: =+'Data Maestro.'!O57/100 -> 0 | P57: =+'Data Maestro.'!P57/100 -> 0 | Q57: =+'Data Maestro.'!Q57/100 -> 0 | R57: =+'Data Maestro.'!R57/100 -> 0 | S57: =+'Data Maestro.'!S57/100 -> 0 | T57: =+'Data Maestro.'!T57/100 -> 0 | U57: =+'Data Maestro.'!U57/100 -> 0 | V57: =+'Data Maestro.'!V57 -> 0 | W57: =+'Data Maestro.'!W57 -> 0 | X57: =+'Data Maestro.'!X57 -> 0 | Y57: =+'Data Maestro.'!Y57 -> 0 | Z57: =+'Data Maestro.'!Z57 -> 0 | AA57: =+'Data Maestro.'!AA57 -> 0 | AB57: =+'Data Maestro.'!AB57 -> 0 | AC57: =+'Data Maestro.'!AC57 -> 0 | AD57: =+'Data Maestro.'!AD57 -> 0 | AE57: =+'Data Maestro.'!AE57 -> 0
A58: 49 | B58: =+IF(ISBLANK('Data Maestro.'!B58),"",'Data Maestro.'!B58) ->  | C58: =+'Data Maestro.'!C58/100 -> 0 | D58: =+'Data Maestro.'!D58/100 -> 0 | E58: =+'Data Maestro.'!E58/100 -> 0 | F58: =+'Data Maestro.'!F58/100 -> 0 | G58: =+'Data Maestro.'!G58/100 -> 0 | H58: =+'Data Maestro.'!H58/100 -> 0 | I58: =+'Data Maestro.'!I58/100 -> 0 | J58: =+'Data Maestro.'!J58/100 -> 0 | K58: =+'Data Maestro.'!K58/100 -> 0 | L58: =+'Data Maestro.'!L58/100 -> 0 | M58: =+'Data Maestro.'!M58/100 -> 0 | N58: =+'Data Maestro.'!N58/100 -> 0 | O58: =+'Data Maestro.'!O58/100 -> 0 | P58: =+'Data Maestro.'!P58/100 -> 0 | Q58: =+'Data Maestro.'!Q58/100 -> 0 | R58: =+'Data Maestro.'!R58/100 -> 0 | S58: =+'Data Maestro.'!S58/100 -> 0 | T58: =+'Data Maestro.'!T58/100 -> 0 | U58: =+'Data Maestro.'!U58/100 -> 0 | V58: =+'Data Maestro.'!V58 -> 0 | W58: =+'Data Maestro.'!W58 -> 0 | X58: =+'Data Maestro.'!X58 -> 0 | Y58: =+'Data Maestro.'!Y58 -> 0 | Z58: =+'Data Maestro.'!Z58 -> 0 | AA58: =+'Data Maestro.'!AA58 -> 0 | AB58: =+'Data Maestro.'!AB58 -> 0 | AC58: =+'Data Maestro.'!AC58 -> 0 | AD58: =+'Data Maestro.'!AD58 -> 0 | AE58: =+'Data Maestro.'!AE58 -> 0
A59: 50 | B59: =+IF(ISBLANK('Data Maestro.'!B59),"",'Data Maestro.'!B59) ->  | C59: =+'Data Maestro.'!C59/100 -> 0 | D59: =+'Data Maestro.'!D59/100 -> 0 | E59: =+'Data Maestro.'!E59/100 -> 0 | F59: =+'Data Maestro.'!F59/100 -> 0 | G59: =+'Data Maestro.'!G59/100 -> 0 | H59: =+'Data Maestro.'!H59/100 -> 0 | I59: =+'Data Maestro.'!I59/100 -> 0 | J59: =+'Data Maestro.'!J59/100 -> 0 | K59: =+'Data Maestro.'!K59/100 -> 0 | L59: =+'Data Maestro.'!L59/100 -> 0 | M59: =+'Data Maestro.'!M59/100 -> 0 | N59: =+'Data Maestro.'!N59/100 -> 0 | O59: =+'Data Maestro.'!O59/100 -> 0 | P59: =+'Data Maestro.'!P59/100 -> 0 | Q59: =+'Data Maestro.'!Q59/100 -> 0 | R59: =+'Data Maestro.'!R59/100 -> 0 | S59: =+'Data Maestro.'!S59/100 -> 0 | T59: =+'Data Maestro.'!T59/100 -> 0 | U59: =+'Data Maestro.'!U59/100 -> 0 | V59: =+'Data Maestro.'!V59 -> 0 | W59: =+'Data Maestro.'!W59 -> 0 | X59: =+'Data Maestro.'!X59 -> 0 | Y59: =+'Data Maestro.'!Y59 -> 0 | Z59: =+'Data Maestro.'!Z59 -> 0 | AA59: =+'Data Maestro.'!AA59 -> 0 | AB59: =+'Data Maestro.'!AB59 -> 0 | AC59: =+'Data Maestro.'!AC59 -> 0 | AD59: =+'Data Maestro.'!AD59 -> 0 | AE59: =+'Data Maestro.'!AE59 -> 0
A60: 51 | B60: =+IF(ISBLANK('Data Maestro.'!B60),"",'Data Maestro.'!B60) ->  | C60: =+'Data Maestro.'!C60/100 -> 0 | D60: =+'Data Maestro.'!D60/100 -> 0 | E60: =+'Data Maestro.'!E60/100 -> 0 | F60: =+'Data Maestro.'!F60/100 -> 0 | G60: =+'Data Maestro.'!G60/100 -> 0 | H60: =+'Data Maestro.'!H60/100 -> 0 | I60: =+'Data Maestro.'!I60/100 -> 0 | J60: =+'Data Maestro.'!J60/100 -> 0 | K60: =+'Data Maestro.'!K60/100 -> 0 | L60: =+'Data Maestro.'!L60/100 -> 0 | M60: =+'Data Maestro.'!M60/100 -> 0 | N60: =+'Data Maestro.'!N60/100 -> 0 | O60: =+'Data Maestro.'!O60/100 -> 0 | P60: =+'Data Maestro.'!P60/100 -> 0 | Q60: =+'Data Maestro.'!Q60/100 -> 0 | R60: =+'Data Maestro.'!R60/100 -> 0 | S60: =+'Data Maestro.'!S60/100 -> 0 | T60: =+'Data Maestro.'!T60/100 -> 0 | U60: =+'Data Maestro.'!U60/100 -> 0 | V60: =+'Data Maestro.'!V60 -> 0 | W60: =+'Data Maestro.'!W60 -> 0 | X60: =+'Data Maestro.'!X60 -> 0 | Y60: =+'Data Maestro.'!Y60 -> 0 | Z60: =+'Data Maestro.'!Z60 -> 0 | AA60: =+'Data Maestro.'!AA60 -> 0 | AB60: =+'Data Maestro.'!AB60 -> 0 | AC60: =+'Data Maestro.'!AC60 -> 0 | AD60: =+'Data Maestro.'!AD60 -> 0 | AE60: =+'Data Maestro.'!AE60 -> 0
A61: 52 | B61: =+IF(ISBLANK('Data Maestro.'!B61),"",'Data Maestro.'!B61) ->  | C61: =+'Data Maestro.'!C61/100 -> 0 | D61: =+'Data Maestro.'!D61/100 -> 0 | E61: =+'Data Maestro.'!E61/100 -> 0 | F61: =+'Data Maestro.'!F61/100 -> 0 | G61: =+'Data Maestro.'!G61/100 -> 0 | H61: =+'Data Maestro.'!H61/100 -> 0 | I61: =+'Data Maestro.'!I61/100 -> 0 | J61: =+'Data Maestro.'!J61/100 -> 0 | K61: =+'Data Maestro.'!K61/100 -> 0 | L61: =+'Data Maestro.'!L61/100 -> 0 | M61: =+'Data Maestro.'!M61/100 -> 0 | N61: =+'Data Maestro.'!N61/100 -> 0 | O61: =+'Data Maestro.'!O61/100 -> 0 | P61: =+'Data Maestro.'!P61/100 -> 0 | Q61: =+'Data Maestro.'!Q61/100 -> 0 | R61: =+'Data Maestro.'!R61/100 -> 0 | S61: =+'Data Maestro.'!S61/100 -> 0 | T61: =+'Data Maestro.'!T61/100 -> 0 | U61: =+'Data Maestro.'!U61/100 -> 0 | V61: =+'Data Maestro.'!V61 -> 0 | W61: =+'Data Maestro.'!W61 -> 0 | X61: =+'Data Maestro.'!X61 -> 0 | Y61: =+'Data Maestro.'!Y61 -> 0 | Z61: =+'Data Maestro.'!Z61 -> 0 | AA61: =+'Data Maestro.'!AA61 -> 0 | AB61: =+'Data Maestro.'!AB61 -> 0 | AC61: =+'Data Maestro.'!AC61 -> 0 | AD61: =+'Data Maestro.'!AD61 -> 0 | AE61: =+'Data Maestro.'!AE61 -> 0
A62: 53 | B62: =+IF(ISBLANK('Data Maestro.'!B62),"",'Data Maestro.'!B62) ->  | C62: =+'Data Maestro.'!C62/100 -> 0 | D62: =+'Data Maestro.'!D62/100 -> 0 | E62: =+'Data Maestro.'!E62/100 -> 0 | F62: =+'Data Maestro.'!F62/100 -> 0 | G62: =+'Data Maestro.'!G62/100 -> 0 | H62: =+'Data Maestro.'!H62/100 -> 0 | I62: =+'Data Maestro.'!I62/100 -> 0 | J62: =+'Data Maestro.'!J62/100 -> 0 | K62: =+'Data Maestro.'!K62/100 -> 0 | L62: =+'Data Maestro.'!L62/100 -> 0 | M62: =+'Data Maestro.'!M62/100 -> 0 | N62: =+'Data Maestro.'!N62/100 -> 0 | O62: =+'Data Maestro.'!O62/100 -> 0 | P62: =+'Data Maestro.'!P62/100 -> 0 | Q62: =+'Data Maestro.'!Q62/100 -> 0 | R62: =+'Data Maestro.'!R62/100 -> 0 | S62: =+'Data Maestro.'!S62/100 -> 0 | T62: =+'Data Maestro.'!T62/100 -> 0 | U62: =+'Data Maestro.'!U62/100 -> 0 | V62: =+'Data Maestro.'!V62 -> 0 | W62: =+'Data Maestro.'!W62 -> 0 | X62: =+'Data Maestro.'!X62 -> 0 | Y62: =+'Data Maestro.'!Y62 -> 0 | Z62: =+'Data Maestro.'!Z62 -> 0 | AA62: =+'Data Maestro.'!AA62 -> 0 | AB62: =+'Data Maestro.'!AB62 -> 0 | AC62: =+'Data Maestro.'!AC62 -> 0 | AD62: =+'Data Maestro.'!AD62 -> 0 | AE62: =+'Data Maestro.'!AE62 -> 0
A63: 54 | B63: =+IF(ISBLANK('Data Maestro.'!B63),"",'Data Maestro.'!B63) ->  | C63: =+'Data Maestro.'!C63/100 -> 0 | D63: =+'Data Maestro.'!D63/100 -> 0 | E63: =+'Data Maestro.'!E63/100 -> 0 | F63: =+'Data Maestro.'!F63/100 -> 0 | G63: =+'Data Maestro.'!G63/100 -> 0 | H63: =+'Data Maestro.'!H63/100 -> 0 | I63: =+'Data Maestro.'!I63/100 -> 0 | J63: =+'Data Maestro.'!J63/100 -> 0 | K63: =+'Data Maestro.'!K63/100 -> 0 | L63: =+'Data Maestro.'!L63/100 -> 0 | M63: =+'Data Maestro.'!M63/100 -> 0 | N63: =+'Data Maestro.'!N63/100 -> 0 | O63: =+'Data Maestro.'!O63/100 -> 0 | P63: =+'Data Maestro.'!P63/100 -> 0 | Q63: =+'Data Maestro.'!Q63/100 -> 0 | R63: =+'Data Maestro.'!R63/100 -> 0 | S63: =+'Data Maestro.'!S63/100 -> 0 | T63: =+'Data Maestro.'!T63/100 -> 0 | U63: =+'Data Maestro.'!U63/100 -> 0 | V63: =+'Data Maestro.'!V63 -> 0 | W63: =+'Data Maestro.'!W63 -> 0 | X63: =+'Data Maestro.'!X63 -> 0 | Y63: =+'Data Maestro.'!Y63 -> 0 | Z63: =+'Data Maestro.'!Z63 -> 0 | AA63: =+'Data Maestro.'!AA63 -> 0 | AB63: =+'Data Maestro.'!AB63 -> 0 | AC63: =+'Data Maestro.'!AC63 -> 0 | AD63: =+'Data Maestro.'!AD63 -> 0 | AE63: =+'Data Maestro.'!AE63 -> 0
A64: 55 | B64: =+IF(ISBLANK('Data Maestro.'!B64),"",'Data Maestro.'!B64) ->  | C64: =+'Data Maestro.'!C64/100 -> 0 | D64: =+'Data Maestro.'!D64/100 -> 0 | E64: =+'Data Maestro.'!E64/100 -> 0 | F64: =+'Data Maestro.'!F64/100 -> 0 | G64: =+'Data Maestro.'!G64/100 -> 0 | H64: =+'Data Maestro.'!H64/100 -> 0 | I64: =+'Data Maestro.'!I64/100 -> 0 | J64: =+'Data Maestro.'!J64/100 -> 0 | K64: =+'Data Maestro.'!K64/100 -> 0 | L64: =+'Data Maestro.'!L64/100 -> 0 | M64: =+'Data Maestro.'!M64/100 -> 0 | N64: =+'Data Maestro.'!N64/100 -> 0 | O64: =+'Data Maestro.'!O64/100 -> 0 | P64: =+'Data Maestro.'!P64/100 -> 0 | Q64: =+'Data Maestro.'!Q64/100 -> 0 | R64: =+'Data Maestro.'!R64/100 -> 0 | S64: =+'Data Maestro.'!S64/100 -> 0 | T64: =+'Data Maestro.'!T64/100 -> 0 | U64: =+'Data Maestro.'!U64/100 -> 0 | V64: =+'Data Maestro.'!V64 -> 0 | W64: =+'Data Maestro.'!W64 -> 0 | X64: =+'Data Maestro.'!X64 -> 0 | Y64: =+'Data Maestro.'!Y64 -> 0 | Z64: =+'Data Maestro.'!Z64 -> 0 | AA64: =+'Data Maestro.'!AA64 -> 0 | AB64: =+'Data Maestro.'!AB64 -> 0 | AC64: =+'Data Maestro.'!AC64 -> 0 | AD64: =+'Data Maestro.'!AD64 -> 0 | AE64: =+'Data Maestro.'!AE64 -> 0
A65: 56 | B65: =+IF(ISBLANK('Data Maestro.'!B65),"",'Data Maestro.'!B65) ->  | C65: =+'Data Maestro.'!C65/100 -> 0 | D65: =+'Data Maestro.'!D65/100 -> 0 | E65: =+'Data Maestro.'!E65/100 -> 0 | F65: =+'Data Maestro.'!F65/100 -> 0 | G65: =+'Data Maestro.'!G65/100 -> 0 | H65: =+'Data Maestro.'!H65/100 -> 0 | I65: =+'Data Maestro.'!I65/100 -> 0 | J65: =+'Data Maestro.'!J65/100 -> 0 | K65: =+'Data Maestro.'!K65/100 -> 0 | L65: =+'Data Maestro.'!L65/100 -> 0 | M65: =+'Data Maestro.'!M65/100 -> 0 | N65: =+'Data Maestro.'!N65/100 -> 0 | O65: =+'Data Maestro.'!O65/100 -> 0 | P65: =+'Data Maestro.'!P65/100 -> 0 | Q65: =+'Data Maestro.'!Q65/100 -> 0 | R65: =+'Data Maestro.'!R65/100 -> 0 | S65: =+'Data Maestro.'!S65/100 -> 0 | T65: =+'Data Maestro.'!T65/100 -> 0 | U65: =+'Data Maestro.'!U65/100 -> 0 | V65: =+'Data Maestro.'!V65 -> 0 | W65: =+'Data Maestro.'!W65 -> 0 | X65: =+'Data Maestro.'!X65 -> 0 | Y65: =+'Data Maestro.'!Y65 -> 0 | Z65: =+'Data Maestro.'!Z65 -> 0 | AA65: =+'Data Maestro.'!AA65 -> 0 | AB65: =+'Data Maestro.'!AB65 -> 0 | AC65: =+'Data Maestro.'!AC65 -> 0 | AD65: =+'Data Maestro.'!AD65 -> 0 | AE65: =+'Data Maestro.'!AE65 -> 0
A66: 57 | B66: =+IF(ISBLANK('Data Maestro.'!B66),"",'Data Maestro.'!B66) ->  | C66: =+'Data Maestro.'!C66/100 -> 0 | D66: =+'Data Maestro.'!D66/100 -> 0 | E66: =+'Data Maestro.'!E66/100 -> 0 | F66: =+'Data Maestro.'!F66/100 -> 0 | G66: =+'Data Maestro.'!G66/100 -> 0 | H66: =+'Data Maestro.'!H66/100 -> 0 | I66: =+'Data Maestro.'!I66/100 -> 0 | J66: =+'Data Maestro.'!J66/100 -> 0 | K66: =+'Data Maestro.'!K66/100 -> 0 | L66: =+'Data Maestro.'!L66/100 -> 0 | M66: =+'Data Maestro.'!M66/100 -> 0 | N66: =+'Data Maestro.'!N66/100 -> 0 | O66: =+'Data Maestro.'!O66/100 -> 0 | P66: =+'Data Maestro.'!P66/100 -> 0 | Q66: =+'Data Maestro.'!Q66/100 -> 0 | R66: =+'Data Maestro.'!R66/100 -> 0 | S66: =+'Data Maestro.'!S66/100 -> 0 | T66: =+'Data Maestro.'!T66/100 -> 0 | U66: =+'Data Maestro.'!U66/100 -> 0 | V66: =+'Data Maestro.'!V66 -> 0 | W66: =+'Data Maestro.'!W66 -> 0 | X66: =+'Data Maestro.'!X66 -> 0 | Y66: =+'Data Maestro.'!Y66 -> 0 | Z66: =+'Data Maestro.'!Z66 -> 0 | AA66: =+'Data Maestro.'!AA66 -> 0 | AB66: =+'Data Maestro.'!AB66 -> 0 | AC66: =+'Data Maestro.'!AC66 -> 0 | AD66: =+'Data Maestro.'!AD66 -> 0 | AE66: =+'Data Maestro.'!AE66 -> 0

Sheet DATA MAESTRO 2
C1: 1 | D1: 2 | E1: 3 | F1: 4 | G1: 5 | H1: 6 | I1: 7 | J1: 8 | K1: 9 | L1: 10 | M1: 11 | N1: 12 | O1: 13 | P1: 14 | Q1: 15 | R1: 16 | S1: 17 | T1: 18 | U1: 19 | V1: 20 | W1: 21 | X1: 22 | Y1: 23 | Z1: 24 | AA1: 25 | AB1: 26 | AC1: 27 | AD1: 28 | AE1: 29 | AF1: 30 | AG1: 31 | AH1: 32 | AI1: 33 | AJ1: 34
B2: NUTRIENTES | C2: VACIO | D2: MS | E2: NDT | F2: Prot. | G2: FC | H2: FDN | I2: FDA | J2: Ca | K2: P | L2: Eng. Met | M2: EN(gan) | N2: EN(lact) | O2: EN(mant) | P2: E.E | Q2: CNF | R2: PDR | S2: Prot. By pass | T2: Sodio | U2: Magnesio | V2: Potasio | W2: Cloro | X2: Azufre | Y2: Gosipol | Z2: Almidon | AA2: Cobalto | AB2: Cobre | AC2: Yodo | AD2: Hierro | AE2: Manganeso | AF2: Selenio | AG2: Zinc | AH2: Vit. A | AI2: Vit. D | AJ2: Vit. E
B3: INGREDIENTES | D3: kg | E3: kg | F3: kg | G3: kg | H3: kg | I3: kg | J3: kg | K3: kg | L3: Mcal/Kg | M3: Mcal/kg | N3: Mcal/Kg | O3: Mcal/kg | P3: kg | Q3: kg | R3: kg | S3: kg | T3: kg | U3: kg | V3: kg | W3: kg | X3: kg | Y3: kg | Z3: kg | AA3: Mg/kg | AB3: Mg/kg | AC3: Mg/kg | AD3: Mg/kg | AE3: Mg/kg | AF3: Mg/kg | AG3: Mg/kg | AH3: 1,000 UI/kg | AI3: 1,000 UI/kg | AJ3: UI/kg
B5: CONCENTRADO
A6: 1 | B6: =+IF(ISBLANK(incog!B8),"",incog!B8) -> PASTA ALGODÓN | D6: =+incog!C8 -> 0.9 | E6: =+incog!D8 -> 0.68 | F6: =+incog!E8 -> 0.35 | G6: =+incog!F8 -> 0.13 | H6: =+incog!G8 -> 0.3 | I6: =+incog!H8 -> 0.18 | J6: =+incog!I8 -> 0.002 | K6: =+incog!J8 -> 0.012 | L6: =+IF(E6=0,0,((E6*0.04409)*0.82))*100 -> 2.4584584 | M6: =+IF(L6=0,0,(1.42*L6)-1.65-((0.174*L6+POWER(,2)+(0.0122*L6+POWER(,3))))) -> 1.383245974 | N6: =+IF(E6=0,0,(E6*2.45)-0.12) -> 1.546 | O6: =+IF(L6=0,0,((L6*1.37-(1.12)-(0.138*L6+POWER(,2)+(0.0105*L6+POWER(,3)))))) -> 1.883006936 | P6: =+incog!K8 -> 0.02 | Q6: =+incog!N8 -> 0.35 | R6: =+incog!L8 -> 0.59 | S6: =+incog!M8 -> 0.41 | T6: =+incog!O8 -> 0.0007 | U6: =+incog!P8 -> 0.0061 | V6: =+incog!Q8 -> 0.015 | W6: =+incog!R8 -> 0.0005 | X6: =+incog!S8 -> 0.004 | Y6: =+incog!T8 -> 0 | Z6: =+incog!U8 -> 0 | AA6: =+incog!V8 -> 0 | AB6: =+incog!W8 -> 0 | AC6: =+incog!X8 -> 0 | AD6: =+incog!Y8 -> 0 | AE6: =+incog!Z8 -> 0 | AF6: =+incog!AA8 -> 0 | AG6: =+incog!AB8 -> 0 | AH6: =+incog!AC8 -> 0 | AI6: =+incog!AD8 -> 0 | AJ6: =+incog!AE8 -> 0
A7: 2 | B7: =+IF(ISBLANK(incog!B9),"",incog!B9) -> SOYA INTEGRAL | D7: =+incog!C9 -> 0.9 | E7: =+incog!D9 -> 0.95 | F7: =+incog!E9 -> 0.35 | G7: =+incog!F9 -> 0.06 | H7: =+incog!G9 -> 0.2 | I7: =+incog!H9 -> 0.1 | J7: =+incog!I9 -> 0.003 | K7: =+incog!J9 -> 0.0063 | L7: 3.434611 | M7: =+IF(L7=0,0,(1.42*L7)-1.65-((0.174*L7+POWER(,2)+(0.0122*L7+POWER(,3))))) -> 2.587623052 | N7: 2.2075 | O7: =+IF(L7=0,0,((L7*1.37-(1.12)-(0.138*L7+POWER(,2)+(0.0105*L7+POWER(,3)))))) -> 3.075377336 | P7: =+incog!K9 -> 0.22 | Q7: =+incog!N9 -> 0.18 | R7: =+incog!L9 -> 0.5 | S7: =+incog!M9 -> 0.5 | T7: =+incog!O9 -> 0.0002 | U7: =+incog!P9 -> 0.0032 | V7: =+incog!Q9 -> 0.0167 | W7: =+incog!R9 -> 0.0002 | X7: =+incog!S9 -> 0.004 | Y7: =+incog!T9 -> 0 | Z7: =+incog!U9 -> 0.067 | AA7: =+incog!V9 -> 0 | AB7: =+incog!W9 -> 0 | AC7: =+incog!X9 -> 0 | AD7: =+incog!Y9 -> 0 | AE7: =+incog!Z9 -> 0 | AF7: =+incog!AA9 -> 0 | AG7: =+incog!AB9 -> 0 | AH7: =+incog!AC9 -> 0 | AI7: =+incog!AD9 -> 0 | AJ7: =+incog!AE9 -> 0
A8: 3 | B8: =+IF(ISBLANK(incog!B10),"",incog!B10) -> UREA | D8: =+incog!C10 -> 0.99 | E8: =+incog!D10 -> 0 | F8: =+incog!E10 -> 2.8 | G8: =+incog!F10 -> 0 | H8: =+incog!G10 -> 0 | I8: =+incog!H10 -> 0 | J8: =+incog!I10 -> 0 | K8: =+incog!J10 -> 0 | L8: 0 | M8: 0 | N8: 0 | O8: 0 | P8: =+incog!K10 -> 0 | Q8: =+incog!N10 -> 0 | R8: =+incog!L10 -> 0 | S8: =+incog!M10 -> 0 | T8: =+incog!O10 -> 0 | U8: =+incog!P10 -> 0 | V8: =+incog!Q10 -> 0 | W8: =+incog!R10 -> 0 | X8: =+incog!S10 -> 0 | Y8: =+incog!T10 -> 0 | Z8: =+incog!U10 -> 0 | AA8: =+incog!V10 -> 0 | AB8: =+incog!W10 -> 0 | AC8: =+incog!X10 -> 0 | AD8: =+incog!Y10 -> 0 | AE8: =+incog!Z10 -> 0 | AF8: =+incog!AA10 -> 0 | AG8: =+incog!AB10 -> 0 | AH8: =+incog!AC10 -> 0 | AI8: =+incog!AD10 -> 0 | AJ8: =+incog!AE10 -> 0
A9: 4 | B9: =+IF(ISBLANK(incog!B11),"",incog!B11) -> MELAZA | D9: =+incog!C11 -> 0.75 | E9: =+incog!D11 -> 0.76 | F9: =+incog!E11 -> 0.05 | G9: =+incog!F11 -> 0 | H9: =+incog!G11 -> 0 | I9: =+incog!H11 -> 0 | J9: =+incog!I11 -> 0.011 | K9: =+incog!J11 -> 0.0015 | L9: 2.7476888 | M9: 1.740098441 | N9: 1.742 | O9: 2.236301869 | P9: =+incog!K11 -> 0 | Q9: =+incog!N11 -> 0.83 | R9: =+incog!L11 -> 0.2 | S9: =+incog!M11 -> 0.8 | T9: =+incog!O11 -> 0.0022 | U9: =+incog!P11 -> 0.0042 | V9: =+incog!Q11 -> 0.04 | W9: =+incog!R11 -> 0.031 | X9: =+incog!S11 -> 0.0046 | Y9: =+incog!T11 -> 0 | Z9: =+incog!U11 -> 0.07 | AA9: =+incog!V11 -> 0 | AB9: =+incog!W11 -> 0 | AC9: =+incog!X11 -> 0 | AD9: =+incog!Y11 -> 0 | AE9: =+incog!Z11 -> 0 | AF9: =+incog!AA11 -> 0 | AG9: =+incog!AB11 -> 0 | AH9: =+incog!AC11 -> 0 | AI9: =+incog!AD11 -> 0 | AJ9: =+incog!AE11 -> 0
A10: 5 | B10: =+IF(ISBLANK(incog!B12),"",incog!B12) -> TORTA DE SOYA | D10: =+incog!C12 -> 0.91 | E10: =+incog!D12 -> 0.81 | F10: =+incog!E12 -> 0.48 | G10: =+incog!F12 -> 0.05 | H10: =+incog!G12 -> 0.1 | I10: =+incog!H12 -> 0.062 | J10: =+incog!I12 -> 0.003 | K10: =+incog!J12 -> 0.007 | L10: 2.9284578 | M10: 1.963131234 | N10: 1.8645 | O10: 2.457111203 | P10: =+incog!K12 -> 0.02 | Q10: =+incog!N12 -> 0.3 | R10: =+incog!L12 -> 0.66 | S10: =+incog!M12 -> 0.34 | T10: =+incog!O12 -> 0.0003 | U10: =+incog!P12 -> 0.0029 | V10: =+incog!Q12 -> 0.024 | W10: =+incog!R12 -> 0.0007 | X10: =+incog!S12 -> 0.0046 | Y10: =+incog!T12 -> 0 | Z10: =+incog!U12 -> 0 | AA10: =+incog!V12 -> 0 | AB10: =+incog!W12 -> 0 | AC10: =+incog!X12 -> 0 | AD10: =+incog!Y12 -> 0 | AE10: =+incog!Z12 -> 0 | AF10: =+incog!AA12 -> 0 | AG10: =+incog!AB12 -> 0 | AH10: =+incog!AC12 -> 0 | AI10: =+incog!AD12 -> 0 | AJ10: =+incog!AE12 -> 0
A11: 6 | B11: =+IF(ISBLANK(incog!B13),"",incog!B13) -> MAIZ MOLIDO | D11: =+incog!C13 -> 0.89 | E11: =+incog!D13 -> 0.91 | F11: =+incog!E13 -> 0.095 | G11: =+incog!F13 -> 0.05 | H11: =+incog!G13 -> 0.095 | I11: =+incog!H13 -> 0.03 | J11: =+incog!I13 -> 0.0002 | K11: =+incog!J13 -> 0.003 | L11: 3.2899958 | M11: 2.409196818 | N11: 2.1095 | O11: 2.89872987 | P11: =+incog!K13 -> 0.04 | Q11: =+incog!N13 -> 0.75 | R11: =+incog!L13 -> 0.5 | S11: =+incog!M13 -> 0.5 | T11: =+incog!O13 -> 0.0002 | U11: =+incog!P13 -> 0.0012 | V11: =+incog!Q13 -> 0.004 | W11: =+incog!R13 -> 0.0005 | X11: =+incog!S13 -> 0.0012 | Y11: =+incog!T13 -> 0 | Z11: =+incog!U13 -> 0.63 | AA11: =+incog!V13 -> 0 | AB11: =+incog!W13 -> 0 | AC11: =+incog!X13 -> 0 | AD11: =+incog!Y13 -> 0 | AE11: =+incog!Z13 -> 0 | AF11: =+incog!AA13 -> 0 | AG11: =+incog!AB13 -> 0 | AH11: =+incog!AC13 -> 0 | AI11: =+incog!AD13 -> 0 | AJ11: =+incog!AE13 -> 0
A12: 7 | B12: =+IF(ISBLANK(incog!B14),"",incog!B14) -> AFRECHO | D12: =+incog!C14 -> 0.89 | E12: =+incog!D14 -> 0.73 | F12: =+incog!E14 -> 0.17 | G12: =+incog!F14 -> 0.12 | H12: =+incog!G14 -> 0.37 | I12: =+incog!H14 -> 0.155 | J12: =+incog!I14 -> 0.0012 | K12: =+incog!J14 -> 0.011 | L12: 2.6392274 | M12: 1.606278766 | N12: 1.6685 | O12: 2.103816269 | P12: =+incog!K14 -> 0.04 | Q12: =+incog!N14 -> 0.42 | R12: =+incog!L14 -> 0.7 | S12: =+incog!M14 -> 0.3 | T12: =+incog!O14 -> 0.0002 | U12: =+incog!P14 -> 0.004 | V12: =+incog!Q14 -> 0.0113 | W12: =+incog!R14 -> 0.0006 | X12: =+incog!S14 -> 0.0021 | Y12: =+incog!T14 -> 0 | Z12: =+incog!U14 -> 0.31 | AA12: =+incog!V14 -> 0 | AB12: =+incog!W14 -> 0 | AC12: =+incog!X14 -> 0 | AD12: =+incog!Y14 -> 0 | AE12: =+incog!Z14 -> 0 | AF12: =+incog!AA14 -> 0 | AG12: =+incog!AB14 -> 0 | AH12: =+incog!AC14 -> 0 | AI12: =+incog!AD14 -> 0 | AJ12: =+incog!AE14 -> 0
A13: 8 | B13: =+IF(ISBLANK(incog!B15),"",incog!B15) -> PEPA ALGODÓN | D13: =+incog!C15 -> 0.9 | E13: =+incog!D15 -> 0.772 | F13: =+incog!E15 -> 0.22 | G13: =+incog!F15 -> 0.26 | H13: =+incog!G15 -> 0.5 | I13: =+incog!H15 -> 0.42 | J13: =+incog!I15 -> 0.002 | K13: =+incog!J15 -> 0.006 | L13: 2.79107336 | M13: 1.793626312 | N13: 1.7714 | O13: 2.289296109 | P13: =+incog!K15 -> 0.19 | Q13: =+incog!N15 -> 0.09 | R13: =+incog!L15 -> 0.61 | S13: =+incog!M15 -> 0.39 | T13: =+incog!O15 -> 0.0002 | U13: =+incog!P15 -> 0.0037 | V13: =+incog!Q15 -> 0.011 | W13: =+incog!R15 -> 0.0002 | X13: =+incog!S15 -> 0.0009 | Y13: =+incog!T15 -> 0 | Z13: =+incog!U15 -> 0 | AA13: =+incog!V15 -> 0 | AB13: =+incog!W15 -> 0 | AC13: =+incog!X15 -> 0 | AD13: =+incog!Y15 -> 0 | AE13: =+incog!Z15 -> 0 | AF13: =+incog!AA15 -> 0 | AG13: =+incog!AB15 -> 0 | AH13: =+incog!AC15 -> 0 | AI13: =+incog!AD15 -> 0 | AJ13: =+incog!AE15 -> 0
A14: 9 | B14: =+IF(ISBLANK(incog!B16),"",incog!B16) -> CONCENTRADO PROTEICO DE ARROZ (CPA) | D14: =+incog!C16 -> 0.5 | E14: =+incog!D16 -> 0.78 | F14: =+incog!E16 -> 0.5014 | G14: =+incog!F16 -> 0.0355 | H14: =+incog!G16 -> 0.08 | I14: =+incog!H16 -> 0 | J14: =+incog!I16 -> 0.0045 | K14: =+incog!J16 -> 0.0077 | L14: 2.8199964 | M14: 1.829311558 | N14: 1.791 | O14: 2.324625603 | P14: =+incog!K16 -> 0.0591 | Q14: =+incog!N16 -> 0.36 | R14: =+incog!L16 -> 0.55 | S14: =+incog!M16 -> 0.45 | T14: =+incog!O16 -> 0 | U14: =+incog!P16 -> 0 | V14: =+incog!Q16 -> 0 | W14: =+incog!R16 -> 0 | X14: =+incog!S16 -> 0 | Y14: =+incog!T16 -> 0 | Z14: =+incog!U16 -> 0 | AA14: =+incog!V16 -> 0 | AB14: =+incog!W16 -> 0 | AC14: =+incog!X16 -> 0 | AD14: =+incog!Y16 -> 0 | AE14: =+incog!Z16 -> 0 | AF14: =+incog!AA16 -> 0 | AG14: =+incog!AB16 -> 0 | AH14: =+incog!AC16 -> 0 | AI14: =+incog!AD16 -> 0 | AJ14: =+incog!AE16 -> 0
A15: 10 | B15: =+IF(ISBLANK(incog!B17),"",incog!B17) -> Hna.Pescad.1ª | D15: =+incog!C17 -> 0.9 | E15: =+incog!D17 -> 0.72 | F15: =+incog!E17 -> 0.6 | G15: =+incog!F17 -> 0.01 | H15: =+incog!G17 -> 0.25 | I15: =+incog!H17 -> 0.02 | J15: =+incog!I17 -> 0.064 | K15: =+incog!J17 -> 0.036 | L15: 2.6030736 | M15: 1.561672208 | N15: 1.644 | O15: 2.059654402 | P15: =+incog!K17 -> 0.08 | Q15: =+incog!N17 -> 0.07 | R15: =+incog!L17 -> 0.37 | S15: =+incog!M17 -> 0.63 | T15: =+incog!O17 -> 0 | U15: =+incog!P17 -> 0 | V15: =+incog!Q17 -> 0 | W15: =+incog!R17 -> 0 | X15: =+incog!S17 -> 0 | Y15: =+incog!T17 -> 0 | Z15: =+incog!U17 -> 0 | AA15: =+incog!V17 -> 0 | AB15: =+incog!W17 -> 0 | AC15: =+incog!X17 -> 0 | AD15: =+incog!Y17 -> 0 | AE15: =+incog!Z17 -> 0 | AF15: =+incog!AA17 -> 0 | AG15: =+incog!AB17 -> 0 | AH15: =+incog!AC17 -> 0 | AI15: =+incog!AD17 -> 0 | AJ15: =+incog!AE17 -> 0
A16: 11 | B16: =+IF(ISBLANK(incog!B18),"",incog!B18) -> BICARBONATO | D16: =+incog!C18 -> 0.99 | E16: =+incog!D18 -> 0 | F16: =+incog!E18 -> 0 | G16: =+incog!F18 -> 0 | H16: =+incog!G18 -> 0 | I16: =+incog!H18 -> 0 | J16: =+incog!I18 -> 0 | K16: =+incog!J18 -> 0 | L16: 0 | M16: 0 | N16: 0 | O16: 0 | P16: =+incog!K18 -> 0 | Q16: =+incog!N18 -> 0 | R16: =+incog!L18 -> 0 | S16: =+incog!M18 -> 0 | T16: =+incog!O18 -> 0 | U16: =+incog!P18 -> 0 | V16: =+incog!Q18 -> 0 | W16: =+incog!R18 -> 0 | X16: =+incog!S18 -> 0 | Y16: =+incog!T18 -> 0 | Z16: =+incog!U18 -> 0 | AA16: =+incog!V18 -> 0 | AB16: =+incog!W18 -> 0 | AC16: =+incog!X18 -> 0 | AD16: =+incog!Y18 -> 0 | AE16: =+incog!Z18 -> 0 | AF16: =+incog!AA18 -> 0 | AG16: =+incog!AB18 -> 0 | AH16: =+incog!AC18 -> 0 | AI16: =+incog!AD18 -> 0 | AJ16: =+incog!AE18 -> 0
A17: 12 | B17: =+IF(ISBLANK(incog!B19),"",incog!B19) -> GRASA PROTEGIDA | D17: =+incog!C19 -> 0.95 | E17: =+incog!D19 -> 1.84 | F17: =+incog!E19 -> 0 | G17: =+incog!F19 -> 0 | H17: =+incog!G19 -> 0 | I17: =+incog!H19 -> 0 | J17: =+incog!I19 -> 0.09 | K17: =+incog!J19 -> 0 | L17: 6.6522992 | M17: 6.557606753 | N17: 4.388 | O17: 7.005783473 | P17: =+incog!K19 -> 0.84 | Q17: =+incog!N19 -> 0 | R17: =+incog!L19 -> 0 | S17: =+incog!M19 -> 0 | T17: =+incog!O19 -> 0 | U17: =+incog!P19 -> 0 | V17: =+incog!Q19 -> 0 | W17: =+incog!R19 -> 0 | X17: =+incog!S19 -> 0 | Y17: =+incog!T19 -> 0 | Z17: =+incog!U19 -> 0 | AA17: =+incog!V19 -> 0 | AB17: =+incog!W19 -> 0 | AC17: =+incog!X19 -> 0 | AD17: =+incog!Y19 -> 0 | AE17: =+incog!Z19 -> 0 | AF17: =+incog!AA19 -> 0 | AG17: =+incog!AB19 -> 0 | AH17: =+incog!AC19 -> 0 | AI17: =+incog!AD19 -> 0 | AJ17: =+incog!AE19 -> 0
A18: 13 | B18: =+IF(ISBLANK(incog!B20),"",incog!B20) -> CARBONATO DE CALCIO | D18: =+incog!C20 -> 0.98 | E18: =+incog!D20 -> 0 | F18: =+incog!E20 -> 0 | G18: =+incog!F20 -> 0 | H18: =+incog!G20 -> 0 | I18: =+incog!H20 -> 0 | J18: =+incog!I20 -> 0.38 | K18: =+incog!J20 -> 0 | L18: 0 | M18: 0 | N18: 0 | O18: 0 | P18: =+incog!K20 -> 0 | Q18: =+incog!N20 -> 0 | R18: =+incog!L20 -> 0 | S18: =+incog!M20 -> 0 | T18: =+incog!O20 -> 0 | U18: =+incog!P20 -> 0 | V18: =+incog!Q20 -> 0 | W18: =+incog!R20 -> 0 | X18: =+incog!S20 -> 0 | Y18: =+incog!T20 -> 0 | Z18: =+incog!U20 -> 0 | AA18: =+incog!V20 -> 0 | AB18: =+incog!W20 -> 0 | AC18: =+incog!X20 -> 0 | AD18: =+incog!Y20 -> 0 | AE18: =+incog!Z20 -> 0 | AF18: =+incog!AA20 -> 0 | AG18: =+incog!AB20 -> 0 | AH18: =+incog!AC20 -> 0 | AI18: =+incog!AD20 -> 0 | AJ18: =+incog!AE20 -> 0
A19: 14 | B19: =+IF(ISBLANK(incog!B21),"",incog!B21) -> SAL | D19: =+incog!C21 -> 0.99 | E19: =+incog!D21 -> 0 | F19: =+incog!E21 -> 0 | G19: =+incog!F21 -> 0 | H19: =+incog!G21 -> 0 | I19: =+incog!H21 -> 0 | J19: =+incog!I21 -> 0 | K19: =+incog!J21 -> 0 | L19: 0 | M19: 0 | N19: 0 | O19: 0 | P19: =+incog!K21 -> 0 | Q19: =+incog!N21 -> 0 | R19: =+incog!L21 -> 0 | S19: =+incog!M21 -> 0 | T19: =+incog!O21 -> 0.39 | U19: =+incog!P21 -> 0 | V19: =+incog!Q21 -> 0 | W19: =+incog!R21 -> 0.6 | X19: =+incog!S21 -> 0 | Y19: =+incog!T21 -> 0 | Z19: =+incog!U21 -> 0 | AA19: =+incog!V21 -> 0 | AB19: =+incog!W21 -> 0 | AC19: =+incog!X21 -> 0 | AD19: =+incog!Y21 -> 0 | AE19: =+incog!Z21 -> 0 | AF19: =+incog!AA21 -> 0 | AG19: =+incog!AB21 -> 0 | AH19: =+incog!AC21 -> 0 | AI19: =+incog!AD21 -> 0 | AJ19: =+incog!AE21 -> 0
A20: 15 | B20: =+IF(ISBLANK(incog!B22),"",incog!B22) -> Custom Pack 940 | D20: =+incog!C22 -> 0.99 | E20: =+incog!D22 -> 0 | F20: =+incog!E22 -> 0 | G20: =+incog!F22 -> 0 | H20: =+incog!G22 -> 0 | I20: =+incog!H22 -> 0 | J20: =+incog!I22 -> 0 | K20: =+incog!J22 -> 0 | L20: 0 | M20: 0 | N20: 0 | O20: 0 | P20: =+incog!K22 -> 0 | Q20: =+incog!N22 -> 0 | R20: =+incog!L22 -> 0 | S20: =+incog!M22 -> 0 | T20: =+incog!O22 -> 0 | U20: =+incog!P22 -> 0 | V20: =+incog!Q22 -> 0 | W20: =+incog!R22 -> 0 | X20: =+incog!S22 -> 0 | Y20: =+incog!T22 -> 0 | Z20: =+incog!U22 -> 0 | AA20: =+incog!V22 -> 0 | AB20: =+incog!W22 -> 0 | AC20: =+incog!X22 -> 0 | AD20: =+incog!Y22 -> 0 | AE20: =+incog!Z22 -> 0 | AF20: =+incog!AA22 -> 0 | AG20: =+incog!AB22 -> 0 | AH20: =+incog!AC22 -> 0 | AI20: =+incog!AD22 -> 0 | AJ20: =+incog!AE22 -> 0
A21: 16 | B21: =+IF(ISBLANK(incog!B23),"",incog!B23) -> DDGS | D21: =+incog!C23 -> 0.88 | E21: =+incog!D23 -> 0.8 | F21: =+incog!E23 -> 0.3 | G21: =+incog!F23 -> 0.33 | H21: =+incog!G23 -> 0.415 | I21: =+incog!H23 -> 0.161 | J21: =+incog!I23 -> 0.0022 | K21: =+incog!J23 -> 0.0083 | L21: 2.892304 | M21: 1.918524675 | N21: 1.84 | O21: 2.412949336 | P21: =+incog!K23 -> 0.1 | Q21: =+incog!N23 -> 0 | R21: =+incog!L23 -> 0.45 | S21: =+incog!M23 -> 0.55 | T21: =+incog!O23 -> 0 | U21: =+incog!P23 -> 0 | V21: =+incog!Q23 -> 0 | W21: =+incog!R23 -> 0 | X21: =+incog!S23 -> 0 | Y21: =+incog!T23 -> 0 | Z21: =+incog!U23 -> 0 | AA21: =+incog!V23 -> 0 | AB21: =+incog!W23 -> 0 | AC21: =+incog!X23 -> 0 | AD21: =+incog!Y23 -> 0 | AE21: =+incog!Z23 -> 0 | AF21: =+incog!AA23 -> 0 | AG21: =+incog!AB23 -> 0 | AH21: =+incog!AC23 -> 0 | AI21: =+incog!AD23 -> 0 | AJ21: =+incog!AE23 -> 0
A22: 17 | B22: =+IF(ISBLANK(incog!B24),"",incog!B24) -> Colina | D22: =+incog!C24 -> 0.99 | E22: =+incog!D24 -> 0 | F22: =+incog!E24 -> 0 | G22: =+incog!F24 -> 0 | H22: =+incog!G24 -> 0 | I22: =+incog!H24 -> 0 | J22: =+incog!I24 -> 0 | K22: =+incog!J24 -> 0 | L22: 0 | M22: 0 | N22: 0 | O22: 0 | P22: =+incog!K24 -> 0 | Q22: =+incog!N24 -> 0 | R22: =+incog!L24 -> 0 | S22: =+incog!M24 -> 0 | T22: =+incog!O24 -> 0 | U22: =+incog!P24 -> 0 | V22: =+incog!Q24 -> 0 | W22: =+incog!R24 -> 0 | X22: =+incog!S24 -> 0 | Y22: =+incog!T24 -> 0 | Z22: =+incog!U24 -> 0 | AA22: =+incog!V24 -> 0 | AB22: =+incog!W24 -> 0 | AC22: =+incog!X24 -> 0 | AD22: =+incog!Y24 -> 0 | AE22: =+incog!Z24 -> 0 | AF22: =+incog!AA24 -> 0 | AG22: =+incog!AB24 -> 0 | AH22: =+incog!AC24 -> 0 | AI22: =+incog!AD24 -> 0 | AJ22: =+incog!AE24 -> 0
A23: 18 | B23: =+IF(ISBLANK(incog!B25),"",incog!B25) -> Optigen | D23: =+incog!C25 -> 0.99 | E23: =+incog!D25 -> 0 | F23: =+incog!E25 -> 2.53 | G23: =+incog!F25 -> 0 | H23: =+incog!G25 -> 0 | I23: =+incog!H25 -> 0 | J23: =+incog!I25 -> 0 | K23: =+incog!J25 -> 0 | L23: 0 | M23: 0 | N23: 0 | O23: 0 | P23: =+incog!K25 -> 0 | Q23: =+incog!N25 -> 0 | R23: =+incog!L25 -> 0 | S23: =+incog!M25 -> 0 | T23: =+incog!O25 -> 0 | U23: =+incog!P25 -> 0 | V23: =+incog!Q25 -> 0 | W23: =+incog!R25 -> 0 | X23: =+incog!S25 -> 0 | Y23: =+incog!T25 -> 0 | Z23: =+incog!U25 -> 0 | AA23: =+incog!V25 -> 0 | AB23: =+incog!W25 -> 0 | AC23: =+incog!X25 -> 0 | AD23: =+incog!Y25 -> 0 | AE23: =+incog!Z25 -> 0 | AF23: =+incog!AA25 -> 0 | AG23: =+incog!AB25 -> 0 | AH23: =+incog!AC25 -> 0 | AI23: =+incog!AD25 -> 0 | AJ23: =+incog!AE25 -> 0
A24: 19 | B24: =+IF(ISBLANK(incog!B26),"",incog!B26) -> Stafac | D24: =+incog!C26 -> 0 | E24: =+incog!D26 -> 0 | F24: =+incog!E26 -> 0 | G24: =+incog!F26 -> 0 | H24: =+incog!G26 -> 0 | I24: =+incog!H26 -> 0 | J24: =+incog!I26 -> 0 | K24: =+incog!J26 -> 0 | L24: 0 | M24: 0 | N24: 0 | O24: 0 | P24: =+incog!K26 -> 0 | Q24: =+incog!N26 -> 0 | R24: =+incog!L26 -> 0 | S24: =+incog!M26 -> 0 | T24: =+incog!O26 -> 0 | U24: =+incog!P26 -> 0 | V24: =+incog!Q26 -> 0 | W24: =+incog!R26 -> 0 | X24: =+incog!S26 -> 0 | Y24: =+incog!T26 -> 0 | Z24: =+incog!U26 -> 0 | AA24: =+incog!V26 -> 0 | AB24: =+incog!W26 -> 0 | AC24: =+incog!X26 -> 0 | AD24: =+incog!Y26 -> 0 | AE24: =+incog!Z26 -> 0 | AF24: =+incog!AA26 -> 0 | AG24: =+incog!AB26 -> 0 | AH24: =+incog!AC26 -> 0 | AI24: =+incog!AD26 -> 0 | AJ24: =+incog!AE26 -> 0
A25: 20 | B25: =+IF(ISBLANK(incog!B27),"",incog!B27) -> Selplex | D25: =+incog!C27 -> 0 | E25: =+incog!D27 -> 0 | F25: =+incog!E27 -> 0 | G25: =+incog!F27 -> 0 | H25: =+incog!G27 -> 0 | I25: =+incog!H27 -> 0 | J25: =+incog!I27 -> 0 | K25: =+incog!J27 -> 0 | L25: 0 | M25: 0 | N25: 0 | O25: 0 | P25: =+incog!K27 -> 0 | Q25: =+incog!N27 -> 0 | R25: =+incog!L27 -> 0 | S25: =+incog!M27 -> 0 | T25: =+incog!O27 -> 0 | U25: =+incog!P27 -> 0 | V25: =+incog!Q27 -> 0 | W25: =+incog!R27 -> 0 | X25: =+incog!S27 -> 0 | Y25: =+incog!T27 -> 0 | Z25: =+incog!U27 -> 0 | AA25: =+incog!V27 -> 0 | AB25: =+incog!W27 -> 0 | AC25: =+incog!X27 -> 0 | AD25: =+incog!Y27 -> 0 | AE25: =+incog!Z27 -> 0 | AF25: =+incog!AA27 -> 0 | AG25: =+incog!AB27 -> 0 | AH25: =+incog!AC27 -> 0 | AI25: =+incog!AD27 -> 0 | AJ25: =+incog!AE27 -> 0
A26: 21 | B26: =+IF(ISBLANK(incog!B28),"",incog!B28) -> Dairy Pack | D26: =+incog!C28 -> 0 | E26: =+incog!D28 -> 0 | F26: =+incog!E28 -> 0 | G26: =+incog!F28 -> 0 | H26: =+incog!G28 -> 0 | I26: =+incog!H28 -> 0 | J26: =+incog!I28 -> 0 | K26: =+incog!J28 -> 0 | L26: 0 | M26: 0 | N26: 0 | O26: 0 | P26: =+incog!K28 -> 0 | Q26: =+incog!N28 -> 0 | R26: =+incog!L28 -> 0 | S26: =+incog!M28 -> 0 | T26: =+incog!O28 -> 0 | U26: =+incog!P28 -> 0 | V26: =+incog!Q28 -> 0 | W26: =+incog!R28 -> 0 | X26: =+incog!S28 -> 0 | Y26: =+incog!T28 -> 0 | Z26: =+incog!U28 -> 0 | AA26: =+incog!V28 -> 0 | AB26: =+incog!W28 -> 0 | AC26: =+incog!X28 -> 0 | AD26: =+incog!Y28 -> 0 | AE26: =+incog!Z28 -> 0 | AF26: =+incog!AA28 -> 0 | AG26: =+incog!AB28 -> 0 | AH26: =+incog!AC28 -> 0 | AI26: =+incog!AD28 -> 0 | AJ26: =+incog!AE28 -> 0
A27: 22 | B27: =+IF(ISBLANK(incog!B29),"",incog!B29) -> Bioplex Cobre | D27: =+incog!C29 -> 0 | E27: =+incog!D29 -> 0 | F27: =+incog!E29 -> 0 | G27: =+incog!F29 -> 0 | H27: =+incog!G29 -> 0 | I27: =+incog!H29 -> 0 | J27: =+incog!I29 -> 0 | K27: =+incog!J29 -> 0 | L27: 0 | M27: 0 | N27: 0 | O27: 0 | P27: =+incog!K29 -> 0 | Q27: =+incog!N29 -> 0 | R27: =+incog!L29 -> 0 | S27: =+incog!M29 -> 0 | T27: =+incog!O29 -> 0 | U27: =+incog!P29 -> 0 | V27: =+incog!Q29 -> 0 | W27: =+incog!R29 -> 0 | X27: =+incog!S29 -> 0 | Y27: =+incog!T29 -> 0 | Z27: =+incog!U29 -> 0 | AA27: =+incog!V29 -> 0 | AB27: =+incog!W29 -> 0 | AC27: =+incog!X29 -> 0 | AD27: =+incog!Y29 -> 0 | AE27: =+incog!Z29 -> 0 | AF27: =+incog!AA29 -> 0 | AG27: =+incog!AB29 -> 0 | AH27: =+incog!AC29 -> 0 | AI27: =+incog!AD29 -> 0 | AJ27: =+incog!AE29 -> 0
A28: 23 | B28: =+IF(ISBLANK(incog!B30),"",incog!B30) -> SUPLAMIN DIFOS | D28: =+incog!C30 -> 0.98 | E28: =+incog!D30 -> 0 | F28: =+incog!E30 -> 0 | G28: =+incog!F30 -> 0 | H28: =+incog!G30 -> 0 | I28: =+incog!H30 -> 0 | J28: =+incog!I30 -> 0.185 | K28: =+incog!J30 -> 0.1506 | L28: 0 | M28: 0 | N28: 0 | O28: 0 | P28: =+incog!K30 -> 0 | Q28: =+incog!N30 -> 0 | R28: =+incog!L30 -> 0 | S28: =+incog!M30 -> 0 | T28: =+incog!O30 -> 0.0235 | U28: =+incog!P30 -> 0.004864 | V28: =+incog!Q30 -> 7e-06 | W28: =+incog!R30 -> 0 | X28: =+incog!S30 -> 0.00094 | Y28: =+incog!T30 -> 0 | Z28: =+incog!U30 -> 0 | AA28: =+incog!V30 -> 0 | AB28: =+incog!W30 -> 0 | AC28: =+incog!X30 -> 0 | AD28: =+incog!Y30 -> 0 | AE28: =+incog!Z30 -> 1209 | AF28: =+incog!AA30 -> 10 | AG28: =+incog!AB30 -> 2500 | AH28: =+incog!AC30 -> 515 | AI28: =+incog!AD30 -> 650 | AJ28: =+incog!AE30 -> 100
A29: 24 | B29: =+IF(ISBLANK(incog!B31),"",incog!B31) -> MONTAFOS | D29: =+incog!C31 -> 0.99 | E29: =+incog!D31 -> 0 | F29: =+incog!E31 -> 0 | G29: =+incog!F31 -> 0 | H29: =+incog!G31 -> 0 | I29: =+incog!H31 -> 0 | J29: =+incog!I31 -> 0.18 | K29: =+incog!J31 -> 0.21 | L29: 0 | M29: 0 | N29: 0 | O29: 0 | P29: =+incog!K31 -> 0 | Q29: =+incog!N31 -> 0 | R29: =+incog!L31 -> 0 | S29: =+incog!M31 -> 0 | T29: =+incog!O31 -> 0 | U29: =+incog!P31 -> 0 | V29: =+incog!Q31 -> 0 | W29: =+incog!R31 -> 0 | X29: =+incog!S31 -> 0 | Y29: =+incog!T31 -> 0 | Z29: =+incog!U31 -> 0 | AA29: =+incog!V31 -> 0 | AB29: =+incog!W31 -> 0 | AC29: =+incog!X31 -> 0 | AD29: =+incog!Y31 -> 0 | AE29: =+incog!Z31 -> 0 | AF29: =+incog!AA31 -> 0 | AG29: =+incog!AB31 -> 0 | AH29: =+incog!AC31 -> 0 | AI29: =+incog!AD31 -> 0 | AJ29: =+incog!AE31 -> 0
A30: 25 | B30: =+IF(ISBLANK(incog!B32),"",incog!B32) ->  | D30: =+incog!C32 -> 0 | E30: =+incog!D32 -> 0 | F30: =+incog!E32 -> 0 | G30: =+incog!F32 -> 0 | H30: =+incog!G32 -> 0 | I30: =+incog!H32 -> 0 | J30: =+incog!I32 -> 0 | K30: =+incog!J32 -> 0 | L30: 0 | M30: =+IF(L30=0,0,(1.42*L30)-1.65-((0.174*L30+POWER(,2)+(0.0122*L30+POWER(,3))))) -> 0 | N30: 0 | O30: =+IF(L30=0,0,((L30*1.37-(1.12)-(0.138*L30+POWER(,2)+(0.0105*L30+POWER(,3)))))) -> 0 | P30: =+incog!K32 -> 0 | Q30: =+incog!N32 -> 0 | R30: =+incog!L32 -> 0 | S30: =+incog!M32 -> 0 | T30: =+incog!O32 -> 0 | U30: =+incog!P32 -> 0 | V30: =+incog!Q32 -> 0 | W30: =+incog!R32 -> 0 | X30: =+incog!S32 -> 0 | Y30: =+incog!T32 -> 0 | Z30: =+incog!U32 -> 0 | AA30: =+incog!V32 -> 0 | AB30: =+incog!W32 -> 0 | AC30: =+incog!X32 -> 0 | AD30: =+incog!Y32 -> 0 | AE30: =+incog!Z32 -> 0 | AF30: =+incog!AA32 -> 0 | AG30: =+incog!AB32 -> 0 | AH30: =+incog!AC32 -> 0 | AI30: =+incog!AD32 -> 0 | AJ30: =+incog!AE32 -> 0
A31: 26 | B31: =+IF(ISBLANK(incog!B33),"",incog!B33) ->  | D31: =+incog!C33 -> 0 | E31: =+incog!D33 -> 0 | F31: =+incog!E33 -> 0 | G31: =+incog!F33 -> 0 | H31: =+incog!G33 -> 0 | I31: =+incog!H33 -> 0 | J31: =+incog!I33 -> 0 | K31: =+incog!J33 -> 0 | L31: 0 | M31: =+IF(L31=0,0,(1.42*L31)-1.65-((0.174*L31+POWER(,2)+(0.0122*L31+POWER(,3))))) -> 0 | N31: 0 | O31: =+IF(L31=0,0,((L31*1.37-(1.12)-(0.138*L31+POWER(,2)+(0.0105*L31+POWER(,3)))))) -> 0 | P31: =+incog!K33 -> 0 | Q31: =+incog!N33 -> 0 | R31: =+incog!L33 -> 0 | S31: =+incog!M33 -> 0 | T31: =+incog!O33 -> 0 | U31: =+incog!P33 -> 0 | V31: =+incog!Q33 -> 0 | W31: =+incog!R33 -> 0 | X31: =+incog!S33 -> 0 | Y31: =+incog!T33 -> 0 | Z31: =+incog!U33 -> 0 | AA31: =+incog!V33 -> 0 | AB31: =+incog!W33 -> 0 | AC31: =+incog!X33 -> 0 | AD31: =+incog!Y33 -> 0 | AE31: =+incog!Z33 -> 0 | AF31: =+incog!AA33 -> 0 | AG31: =+incog!AB33 -> 0 | AH31: =+incog!AC33 -> 0 | AI31: =+incog!AD33 -> 0 | AJ31: =+incog!AE33 -> 0
A32: 27 | B32: =+IF(ISBLANK(incog!B34),"",incog!B34) ->  | D32: =+incog!C34 -> 0 | E32: =+incog!D34 -> 0 | F32: =+incog!E34 -> 0 | G32: =+incog!F34 -> 0 | H32: =+incog!G34 -> 0 | I32: =+incog!H34 -> 0 | J32: =+incog!I34 -> 0 | K32: =+incog!J34 -> 0 | L32: 0 | M32: 0 | N32: 0 | O32: 0 | P32: =+incog!K34 -> 0 | Q32: =+incog!N34 -> 0 | R32: =+incog!L34 -> 0 | S32: =+incog!M34 -> 0 | T32: =+incog!O34 -> 0 | U32: =+incog!P34 -> 0 | V32: =+incog!Q34 -> 0 | W32: =+incog!R34 -> 0 | X32: =+incog!S34 -> 0 | Y32: =+incog!T34 -> 0 | Z32: =+incog!U34 -> 0 | AA32: =+incog!V34 -> 0 | AB32: =+incog!W34 -> 0 | AC32: =+incog!X34 -> 0 | AD32: =+incog!Y34 -> 0 | AE32: =+incog!Z34 -> 0 | AF32: =+incog!AA34 -> 0 | AG32: =+incog!AB34 -> 0 | AH32: =+incog!AC34 -> 0 | AI32: =+incog!AD34 -> 0 | AJ32: =+incog!AE34 -> 0
A33: 28 | B33: =+IF(ISBLANK(incog!B35),"",incog!B35) ->  | D33: =+incog!C35 -> 0 | E33: =+incog!D35 -> 0 | F33: =+incog!E35 -> 0 | G33: =+incog!F35 -> 0 | H33: =+incog!G35 -> 0 | I33: =+incog!H35 -> 0 | J33: =+incog!I35 -> 0 | K33: =+incog!J35 -> 0 | L33: 0 | M33: 0 | N33: 0 | O33: 0 | P33: =+incog!K35 -> 0 | Q33: =+incog!N35 -> 0 | R33: =+incog!L35 -> 0 | S33: =+incog!M35 -> 0 | T33: =+incog!O35 -> 0 | U33: =+incog!P35 -> 0 | V33: =+incog!Q35 -> 0 | W33: =+incog!R35 -> 0 | X33: =+incog!S35 -> 0 | Y33: =+incog!T35 -> 0 | Z33: =+incog!U35 -> 0 | AA33: =+incog!V35 -> 0 | AB33: =+incog!W35 -> 0 | AC33: =+incog!X35 -> 0 | AD33: =+incog!Y35 -> 0 | AE33: =+incog!Z35 -> 0 | AF33: =+incog!AA35 -> 0 | AG33: =+incog!AB35 -> 0 | AH33: =+incog!AC35 -> 0 | AI33: =+incog!AD35 -> 0 | AJ33: =+incog!AE35 -> 0
A34: 29 | B34: =+IF(ISBLANK(incog!B36),"",incog!B36) ->  | D34: =+incog!C36 -> 0 | E34: =+incog!D36 -> 0 | F34: =+incog!E36 -> 0 | G34: =+incog!F36 -> 0 | H34: =+incog!G36 -> 0 | I34: =+incog!H36 -> 0 | J34: =+incog!I36 -> 0 | K34: =+incog!J36 -> 0 | L34: 0 | M34: 0 | N34: 0 | O34: 0 | P34: =+incog!K36 -> 0 | Q34: =+incog!N36 -> 0 | R34: =+incog!L36 -> 0 | S34: =+incog!M36 -> 0 | T34: =+incog!O36 -> 0 | U34: =+incog!P36 -> 0 | V34: =+incog!Q36 -> 0 | W34: =+incog!R36 -> 0 | X34: =+incog!S36 -> 0 | Y34: =+incog!T36 -> 0 | Z34: =+incog!U36 -> 0 | AA34: =+incog!V36 -> 0 | AB34: =+incog!W36 -> 0 | AC34: =+incog!X36 -> 0 | AD34: =+incog!Y36 -> 0 | AE34: =+incog!Z36 -> 0 | AF34: =+incog!AA36 -> 0 | AG34: =+incog!AB36 -> 0 | AH34: =+incog!AC36 -> 0 | AI34: =+incog!AD36 -> 0 | AJ34: =+incog!AE36 -> 0
A35: 30 | B35: =+IF(ISBLANK(incog!B37),"",incog!B37) ->  | D35: =+incog!C37 -> 0 | E35: =+incog!D37 -> 0 | F35: =+incog!E37 -> 0 | G35: =+incog!F37 -> 0 | H35: =+incog!G37 -> 0 | I35: =+incog!H37 -> 0 | J35: =+incog!I37 -> 0 | K35: =+incog!J37 -> 0 | L35: 0 | M35: 0 | N35: 0 | O35: 0 | P35: =+incog!K37 -> 0 | Q35: =+incog!N37 -> 0 | R35: =+incog!L37 -> 0 | S35: =+incog!M37 -> 0 | T35: =+incog!O37 -> 0 | U35: =+incog!P37 -> 0 | V35: =+incog!Q37 -> 0 | W35: =+incog!R37 -> 0 | X35: =+incog!S37 -> 0 | Y35: =+incog!T37 -> 0 | Z35: =+incog!U37 -> 0 | AA35: =+incog!V37 -> 0 | AB35: =+incog!W37 -> 0 | AC35: =+incog!X37 -> 0 | AD35: =+incog!Y37 -> 0 | AE35: =+incog!Z37 -> 0 | AF35: =+incog!AA37 -> 0 | AG35: =+incog!AB37 -> 0 | AH35: =+incog!AC37 -> 0 | AI35: =+incog!AD37 -> 0 | AJ35: =+incog!AE37 -> 0
A36: 31 | B36: =+IF(ISBLANK(incog!B38),"",incog!B38) ->  | D36: =+incog!C38 -> 0 | E36: =+incog!D38 -> 0 | F36: =+incog!E38 -> 0 | G36: =+incog!F38 -> 0 | H36: =+incog!G38 -> 0 | I36: =+incog!H38 -> 0 | J36: =+incog!I38 -> 0 | K36: =+incog!J38 -> 0 | L36: 0 | M36: 0 | N36: 0 | O36: 0 | P36: =+incog!K38 -> 0 | Q36: =+incog!N38 -> 0 | R36: =+incog!L38 -> 0 | S36: =+incog!M38 -> 0 | T36: =+incog!O38 -> 0 | U36: =+incog!P38 -> 0 | V36: =+incog!Q38 -> 0 | W36: =+incog!R38 -> 0 | X36: =+incog!S38 -> 0 | Y36: =+incog!T38 -> 0 | Z36: =+incog!U38 -> 0 | AA36: =+incog!V38 -> 0 | AB36: =+incog!W38 -> 0 | AC36: =+incog!X38 -> 0 | AD36: =+incog!Y38 -> 0 | AE36: =+incog!Z38 -> 0 | AF36: =+incog!AA38 -> 0 | AG36: =+incog!AB38 -> 0 | AH36: =+incog!AC38 -> 0 | AI36: =+incog!AD38 -> 0 | AJ36: =+incog!AE38 -> 0
A37: 32 | B37: =+IF(ISBLANK(incog!B39),"",incog!B39) ->  | D37: =+incog!C39 -> 0 | E37: =+incog!D39 -> 0 | F37: =+incog!E39 -> 0 | G37: =+incog!F39 -> 0 | H37: =+incog!G39 -> 0 | I37: =+incog!H39 -> 0 | J37: =+incog!I39 -> 0 | K37: =+incog!J39 -> 0 | L37: 0 | M37: 0 | N37: 0 | O37: 0 | P37: =+incog!K39 -> 0 | Q37: =+incog!N39 -> 0 | R37: =+incog!L39 -> 0 | S37: =+incog!M39 -> 0 | T37: =+incog!O39 -> 0 | U37: =+incog!P39 -> 0 | V37: =+incog!Q39 -> 0 | W37: =+incog!R39 -> 0 | X37: =+incog!S39 -> 0 | Y37: =+incog!T39 -> 0 | Z37: =+incog!U39 -> 0 | AA37: =+incog!V39 -> 0 | AB37: =+incog!W39 -> 0 | AC37: =+incog!X39 -> 0 | AD37: =+incog!Y39 -> 0 | AE37: =+incog!Z39 -> 0 | AF37: =+incog!AA39 -> 0 | AG37: =+incog!AB39 -> 0 | AH37: =+incog!AC39 -> 0 | AI37: =+incog!AD39 -> 0 | AJ37: =+incog!AE39 -> 0
A38: 33 | B38: =+IF(ISBLANK(incog!B40),"",incog!B40) ->  | D38: =+incog!C40 -> 0 | E38: =+incog!D40 -> 0 | F38: =+incog!E40 -> 0 | G38: =+incog!F40 -> 0 | H38: =+incog!G40 -> 0 | I38: =+incog!H40 -> 0 | J38: =+incog!I40 -> 0 | K38: =+incog!J40 -> 0 | L38: 0 | M38: 0 | N38: 0 | O38: 0 | P38: =+incog!K40 -> 0 | Q38: =+incog!N40 -> 0 | R38: =+incog!L40 -> 0 | S38: =+incog!M40 -> 0 | T38: =+incog!O40 -> 0 | U38: =+incog!P40 -> 0 | V38: =+incog!Q40 -> 0 | W38: =+incog!R40 -> 0 | X38: =+incog!S40 -> 0 | Y38: =+incog!T40 -> 0 | Z38: =+incog!U40 -> 0 | AA38: =+incog!V40 -> 0 | AB38: =+incog!W40 -> 0 | AC38: =+incog!X40 -> 0 | AD38: =+incog!Y40 -> 0 | AE38: =+incog!Z40 -> 0 | AF38: =+incog!AA40 -> 0 | AG38: =+incog!AB40 -> 0 | AH38: =+incog!AC40 -> 0 | AI38: =+incog!AD40 -> 0 | AJ38: =+incog!AE40 -> 0
A39: 34 | B39: =+IF(ISBLANK(incog!B41),"",incog!B41) ->  | D39: =+incog!C41 -> 0 | E39: =+incog!D41 -> 0 | F39: =+incog!E41 -> 0 | G39: =+incog!F41 -> 0 | H39: =+incog!G41 -> 0 | I39: =+incog!H41 -> 0 | J39: =+incog!I41 -> 0 | K39: =+incog!J41 -> 0 | L39: 0 | M39: 0 | N39: 0 | O39: 0 | P39: =+incog!K41 -> 0 | Q39: =+incog!N41 -> 0 | R39: =+incog!L41 -> 0 | S39: =+incog!M41 -> 0 | T39: =+incog!O41 -> 0 | U39: =+incog!P41 -> 0 | V39: =+incog!Q41 -> 0 | W39: =+incog!R41 -> 0 | X39: =+incog!S41 -> 0 | Y39: =+incog!T41 -> 0 | Z39: =+incog!U41 -> 0 | AA39: =+incog!V41 -> 0 | AB39: =+incog!W41 -> 0 | AC39: =+incog!X41 -> 0 | AD39: =+incog!Y41 -> 0 | AE39: =+incog!Z41 -> 0 | AF39: =+incog!AA41 -> 0 | AG39: =+incog!AB41 -> 0 | AH39: =+incog!AC41 -> 0 | AI39: =+incog!AD41 -> 0 | AJ39: =+incog!AE41 -> 0
A40: 35 | B40: =+IF(ISBLANK(incog!B42),"",incog!B42) ->  | D40: =+incog!C42 -> 0 | E40: =+incog!D42 -> 0 | F40: =+incog!E42 -> 0 | G40: =+incog!F42 -> 0 | H40: =+incog!G42 -> 0 | I40: =+incog!H42 -> 0 | J40: =+incog!I42 -> 0 | K40: =+incog!J42 -> 0 | L40: 0 | M40: 0 | N40: 0 | O40: 0 | P40: =+incog!K42 -> 0 | Q40: =+incog!N42 -> 0 | R40: =+incog!L42 -> 0 | S40: =+incog!M42 -> 0 | T40: =+incog!O42 -> 0 | U40: =+incog!P42 -> 0 | V40: =+incog!Q42 -> 0 | W40: =+incog!R42 -> 0 | X40: =+incog!S42 -> 0 | Y40: =+incog!T42 -> 0 | Z40: =+incog!U42 -> 0 | AA40: =+incog!V42 -> 0 | AB40: =+incog!W42 -> 0 | AC40: =+incog!X42 -> 0 | AD40: =+incog!Y42 -> 0 | AE40: =+incog!Z42 -> 0 | AF40: =+incog!AA42 -> 0 | AG40: =+incog!AB42 -> 0 | AH40: =+incog!AC42 -> 0 | AI40: =+incog!AD42 -> 0 | AJ40: =+incog!AE42 -> 0
B41: Vacio | Q41: =IF(AND(H41<>0,F41<>0,P41<>0,incog!N43<>0),1-(H41+F41+P41+incog!N43),0) -> 0
B42: FORRAJES
A43: 1 | B43: =+IF(ISBLANK(incog!B45),"",incog!B45) -> Orujo de ceb. | D43: =+incog!C45 -> 0.18 | E43: =+incog!D45 -> 0.7 | F43: =+incog!E45 -> 0.21 | G43: =+incog!F45 -> 0.17 | H43: =+incog!G45 -> 0.47 | I43: =+incog!H45 -> 0.23 | J43: =+incog!I45 -> 0.0029 | K43: =+incog!J45 -> 0.006 | L43: =+IF(E43=0,0,((E43*0.04409)*0.82))*100 -> 2.530766 | M43: 1.472459091 | N43: =+IF(E43=0,0,(E43*2.45)-0.12) -> 1.595 | O43: 1.971330669 | P43: =+incog!K45 -> 0.066 | Q43: =+incog!N45 -> 0.25 | R43: =+incog!L45 -> 0.45 | S43: =+incog!M45 -> 0.55 | T43: =+incog!O45 -> 0 | U43: =+incog!P45 -> 0 | V43: =+incog!Q45 -> 0 | W43: =+incog!R45 -> 0 | X43: =+incog!S45 -> 0 | Y43: =+incog!T45 -> 0 | Z43: =+incog!U45 -> 0 | AA43: =+incog!V45 -> 0 | AB43: =+incog!W45 -> 0 | AC43: =+incog!X45 -> 0 | AD43: =+incog!Y45 -> 0 | AE43: =+incog!Z45 -> 0 | AF43: =+incog!AA45 -> 0 | AG43: =+incog!AB45 -> 0 | AH43: =+incog!AC45 -> 0 | AI43: =+incog!AD45 -> 0 | AJ43: =+incog!AE45 -> 0
A44: 2 | B44: =+IF(ISBLANK(incog!B46),"",incog!B46) -> Panca picad | D44: =+incog!C46 -> 0.88 | E44: =+incog!D46 -> 0.48 | F44: =+incog!E46 -> 0.0485 | G44: =+incog!F46 -> 0.34 | H44: =+incog!G46 -> 0.65 | I44: =+incog!H46 -> 0.49 | J44: =+incog!I46 -> 0.006 | K44: =+incog!J46 -> 0.0009 | L44: 1.7353824 | M44: 0.4911148051 | N44: 1.056 | O44: 0.9997696016 | P44: =+incog!K46 -> 0.014 | Q44: =+incog!N46 -> 0.28 | R44: =+incog!L46 -> 0.7 | S44: =+incog!M46 -> 0.3 | T44: =+incog!O46 -> 0.0001 | U44: =+incog!P46 -> 0.0019 | V44: =+incog!Q46 -> 0.009 | W44: =+incog!R46 -> 0.002 | X44: =+incog!S46 -> 0.0014 | Y44: =+incog!T46 -> 0 | Z44: =+incog!U46 -> 0 | AA44: =+incog!V46 -> 0 | AB44: =+incog!W46 -> 0 | AC44: =+incog!X46 -> 0 | AD44: =+incog!Y46 -> 0 | AE44: =+incog!Z46 -> 0 | AF44: =+incog!AA46 -> 0 | AG44: =+incog!AB46 -> 0 | AH44: =+incog!AC46 -> 0 | AI44: =+incog!AD46 -> 0 | AJ44: =+incog!AE46 -> 0
A45: 3 | B45: =+IF(ISBLANK(incog!B47),"",incog!B47) -> Chala con choclo | D45: =+incog!C47 -> 0.26 | E45: =+incog!D47 -> 0.65 | F45: =+incog!E47 -> 0.097 | G45: =+incog!F47 -> 0.3 | H45: =+incog!G47 -> 0.52 | I45: =+incog!H47 -> 0.32 | J45: =+incog!I47 -> 0.0025 | K45: =+incog!J47 -> 0.0023 | L45: 2.349997 | M45: 1.249426299 | N45: 1.4725 | O45: 1.750521335 | P45: =+incog!K47 -> 0.02 | Q45: =+incog!N47 -> 0.36 | R45: =+incog!L47 -> 0.7 | S45: =+incog!M47 -> 0.3 | T45: =+incog!O47 -> 0.0001 | U45: =+incog!P47 -> 0.0019 | V45: =+incog!Q47 -> 0.016 | W45: =+incog!R47 -> 0.003 | X45: =+incog!S47 -> 0.0011 | Y45: =+incog!T47 -> 0 | Z45: =+incog!U47 -> 0.6 | AA45: =+incog!V47 -> 0 | AB45: =+incog!W47 -> 0 | AC45: =+incog!X47 -> 0 | AD45: =+incog!Y47 -> 0 | AE45: =+incog!Z47 -> 0 | AF45: =+incog!AA47 -> 0 | AG45: =+incog!AB47 -> 0 | AH45: =+incog!AC47 -> 0 | AI45: =+incog!AD47 -> 0 | AJ45: =+incog!AE47 -> 0
A46: 4 | B46: =+IF(ISBLANK(incog!B48),"",incog!B48) -> Ensilaje chala maiz | D46: =+incog!C48 -> 0.32 | E46: =+incog!D48 -> 0.6 | F46: =+incog!E48 -> 0.09 | G46: =+incog!F48 -> 0.35 | H46: =+incog!G48 -> 0.55 | I46: =+incog!H48 -> 0.35 | J46: =+incog!I48 -> 0.0025 | K46: =+incog!J48 -> 0.0023 | L46: 2.169228 | M46: =+IF(L46=0,0,(1.42*L46)-1.65-((0.174*L46+POWER(,2)+(0.0122*L46+POWER(,3))))) -> 1.026393506 | N46: 1.35 | O46: =+IF(L46=0,0,((L46*1.37-(1.12)-(0.138*L46+POWER(,2)+(0.0105*L46+POWER(,3)))))) -> 1.529712002 | P46: =+incog!K48 -> 0.02 | Q46: =+incog!N48 -> 0.34 | R46: =+incog!L48 -> 0.7 | S46: =+incog!M48 -> 0.3 | T46: =+incog!O48 -> 0 | U46: =+incog!P48 -> 0 | V46: =+incog!Q48 -> 0 | W46: =+incog!R48 -> 0 | X46: =+incog!S48 -> 0 | Y46: =+incog!T48 -> 0 | Z46: =+incog!U48 -> 0 | AA46: =+incog!V48 -> 0 | AB46: =+incog!W48 -> 0 | AC46: =+incog!X48 -> 0 | AD46: =+incog!Y48 -> 0 | AE46: =+incog!Z48 -> 0 | AF46: =+incog!AA48 -> 0 | AG46: =+incog!AB48 -> 0 | AH46: =+incog!AC48 -> 0 | AI46: =+incog!AD48 -> 0 | AJ46: =+incog!AE48 -> 0
A47: 5 | B47: =+IF(ISBLANK(incog!B49),"",incog!B49) -> Alfalfa HENO | D47: =+incog!C49 -> 0.89 | E47: =+incog!D49 -> 0.52 | F47: =+incog!E49 -> 0.175 | G47: =+incog!F49 -> 0.325 | H47: =+incog!G49 -> 0.5 | I47: =+incog!H49 -> 0.35 | J47: =+incog!I49 -> 0.014 | K47: =+incog!J49 -> 0.0024 | L47: 1.8799976 | M47: =+IF(L47=0,0,(1.42*L47)-1.65-((0.174*L47+POWER(,2)+(0.0122*L47+POWER(,3))))) -> 0.6695410389 | N47: 1.154 | O47: =+IF(L47=0,0,((L47*1.37-(1.12)-(0.138*L47+POWER(,2)+(0.0105*L47+POWER(,3)))))) -> 1.176417068 | P47: =+incog!K49 -> 0.026 | Q47: =+incog!N49 -> 0.3 | R47: =+incog!L49 -> 0.67 | S47: =+incog!M49 -> 0.33 | T47: =+incog!O49 -> 0 | U47: =+incog!P49 -> 0 | V47: =+incog!Q49 -> 0 | W47: =+incog!R49 -> 0 | X47: =+incog!S49 -> 0 | Y47: =+incog!T49 -> 0 | Z47: =+incog!U49 -> 0 | AA47: =+incog!V49 -> 0 | AB47: =+incog!W49 -> 0 | AC47: =+incog!X49 -> 0 | AD47: =+incog!Y49 -> 0 | AE47: =+incog!Z49 -> 0 | AF47: =+incog!AA49 -> 0 | AG47: =+incog!AB49 -> 0 | AH47: =+incog!AC49 -> 0 | AI47: =+incog!AD49 -> 0 | AJ47: =+incog!AE49 -> 0
A48: 6 | B48: =+IF(ISBLANK(incog!B50),"",incog!B50) -> Chala sin choclo | D48: =+incog!C50 -> 0.26 | E48: =+incog!D50 -> 0.49 | F48: =+incog!E50 -> 0.07 | G48: =+incog!F50 -> 0.33 | H48: =+incog!G50 -> 0.57 | I48: =+incog!H50 -> 0.36 | J48: =+incog!I50 -> 0.0025 | K48: =+incog!J50 -> 0.002 | L48: 1.7715362 | M48: 0.5357213636 | N48: 1.0805 | O48: 1.043931468 | P48: =+incog!K50 -> 0.02 | Q48: =+incog!N50 -> 0.34 | R48: =+incog!L50 -> 0.5 | S48: =+incog!M50 -> 0.5 | T48: =+incog!O50 -> 0.0001 | U48: =+incog!P50 -> 0.0019 | V48: =+incog!Q50 -> 0.016 | W48: =+incog!R50 -> 0.003 | X48: =+incog!S50 -> 0.0011 | Y48: =+incog!T50 -> 0 | Z48: =+incog!U50 -> 0 | AA48: =+incog!V50 -> 0 | AB48: =+incog!W50 -> 0 | AC48: =+incog!X50 -> 0 | AD48: =+incog!Y50 -> 0 | AE48: =+incog!Z50 -> 0 | AF48: =+incog!AA50 -> 0 | AG48: =+incog!AB50 -> 0 | AH48: =+incog!AC50 -> 0 | AI48: =+incog!AD50 -> 0 | AJ48: =+incog!AE50 -> 0
A49: 7 | B49: =+IF(ISBLANK(incog!B51),"",incog!B51) -> Esparramel | D49: =+incog!C51 -> 0.82 | E49: =+incog!D51 -> 0.58 | F49: =+incog!E51 -> 0.09 | G49: =+incog!F51 -> 0.264 | H49: =+incog!G51 -> 0.58 | I49: =+incog!H51 -> 0.25 | J49: =+incog!I51 -> 0.005 | K49: =+incog!J51 -> 0.0022 | L49: 2.0969204 | M49: 0.9371803895 | N49: 1.301 | O49: 1.441388269 | P49: =+incog!K51 -> 0.01 | Q49: =+incog!N51 -> 0.32 | R49: =+incog!L51 -> 0.66 | S49: =+incog!M51 -> 0.34 | T49: =+incog!O51 -> 0 | U49: =+incog!P51 -> 0 | V49: =+incog!Q51 -> 0 | W49: =+incog!R51 -> 0 | X49: =+incog!S51 -> 0 | Y49: =+incog!T51 -> 0 | Z49: =+incog!U51 -> 0 | AA49: =+incog!V51 -> 0 | AB49: =+incog!W51 -> 0 | AC49: =+incog!X51 -> 0 | AD49: =+incog!Y51 -> 0 | AE49: =+incog!Z51 -> 0 | AF49: =+incog!AA51 -> 0 | AG49: =+incog!AB51 -> 0 | AH49: =+incog!AC51 -> 0 | AI49: =+incog!AD51 -> 0 | AJ49: =+incog!AE51 -> 0
A50: 8 | B50: =+IF(ISBLANK(incog!B52),"",incog!B52) -> Pasto camerun | D50: =+incog!C52 -> 0.2 | E50: =+incog!D52 -> 0.55 | F50: =+incog!E52 -> 0.07 | G50: =+incog!F52 -> 0.35 | H50: =+incog!G52 -> 0.6 | I50: =+incog!H52 -> 0.4 | J50: =+incog!I52 -> 0.009 | K50: =+incog!J52 -> 0.0029 | L50: 1.988459 | M50: 0.8033607142 | N50: 1.2275 | O50: 1.308902669 | P50: =+incog!K52 -> 0.02 | Q50: =+incog!N52 -> 0.31 | R50: =+incog!L52 -> 0.25 | S50: =+incog!M52 -> 0.75 | T50: =+incog!O52 -> 0 | U50: =+incog!P52 -> 0 | V50: =+incog!Q52 -> 0 | W50: =+incog!R52 -> 0 | X50: =+incog!S52 -> 0 | Y50: =+incog!T52 -> 0 | Z50: =+incog!U52 -> 0 | AA50: =+incog!V52 -> 0 | AB50: =+incog!W52 -> 0 | AC50: =+incog!X52 -> 0 | AD50: =+incog!Y52 -> 0 | AE50: =+incog!Z52 -> 0 | AF50: =+incog!AA52 -> 0 | AG50: =+incog!AB52 -> 0 | AH50: =+incog!AC52 -> 0 | AI50: =+incog!AD52 -> 0 | AJ50: =+incog!AE52 -> 0
A51: 9 | B51: =+IF(ISBLANK(incog!B53),"",incog!B53) -> Heno Alfalfa Estandar | D51: =+incog!C53 -> 0.87 | E51: =+incog!D53 -> 0.56 | F51: =+incog!E53 -> 0.17 | G51: =+incog!F53 -> 0.32 | H51: =+incog!G53 -> 0.51 | I51: =+incog!H53 -> 0.34 | J51: =+incog!I53 -> 0.014 | K51: =+incog!J53 -> 0.003 | L51: 2.0246128 | M51: 0.8479672726 | N51: 1.252 | O51: 1.353064535 | P51: =+incog!K53 -> 0.012 | Q51: =+incog!N53 -> 0.3 | R51: =+incog!L53 -> 0.53 | S51: =+incog!M53 -> 0.47 | T51: =+incog!O53 -> 0 | U51: =+incog!P53 -> 0 | V51: =+incog!Q53 -> 0 | W51: =+incog!R53 -> 0 | X51: =+incog!S53 -> 0 | Y51: =+incog!T53 -> 0 | Z51: =+incog!U53 -> 0 | AA51: =+incog!V53 -> 0 | AB51: =+incog!W53 -> 0 | AC51: =+incog!X53 -> 0 | AD51: =+incog!Y53 -> 0 | AE51: =+incog!Z53 -> 0 | AF51: =+incog!AA53 -> 0 | AG51: =+incog!AB53 -> 0 | AH51: =+incog!AC53 -> 0 | AI51: =+incog!AD53 -> 0 | AJ51: =+incog!AE53 -> 0
A52: 10 | B52: =+IF(ISBLANK(incog!B54),"",incog!B54) -> Pancamel (60panca-40melaza) | D52: =+incog!C54 -> 0.834 | E52: =+incog!D54 -> 0.566 | F52: =+incog!E54 -> 0.059 | G52: =+incog!F54 -> 0.251 | H52: =+incog!G54 -> 0.49 | I52: =+incog!H54 -> 0.285 | J52: =+incog!I54 -> 0.0069 | K52: =+incog!J54 -> 0.001 | L52: 2.04630508 | M52: 0.8747312077 | N52: 1.2667 | O52: 1.379561655 | P52: =+incog!K54 -> 0.01 | Q52: =+incog!N54 -> 0.44 | R52: =+incog!L54 -> 0.65 | S52: =+incog!M54 -> 0.35 | T52: =+incog!O54 -> 0 | U52: =+incog!P54 -> 0 | V52: =+incog!Q54 -> 0 | W52: =+incog!R54 -> 0 | X52: =+incog!S54 -> 0 | Y52: =+incog!T54 -> 0 | Z52: =+incog!U54 -> 0 | AA52: =+incog!V54 -> 0 | AB52: =+incog!W54 -> 0 | AC52: =+incog!X54 -> 0 | AD52: =+incog!Y54 -> 0 | AE52: =+incog!Z54 -> 0 | AF52: =+incog!AA54 -> 0 | AG52: =+incog!AB54 -> 0 | AH52: =+incog!AC54 -> 0 | AI52: =+incog!AD54 -> 0 | AJ52: =+incog!AE54 -> 0
A53: 11 | B53: =+IF(ISBLANK(incog!B55),"",incog!B55) -> Broza Esparrago | D53: =+incog!C55 -> 0.365 | E53: =+incog!D55 -> 0.53 | F53: =+incog!E55 -> 0.14 | G53: =+incog!F55 -> 0.39 | H53: =+incog!G55 -> 0.55 | I53: =+incog!H55 -> 0.28 | J53: =+incog!I55 -> 0.006 | K53: =+incog!J55 -> 0.002 | L53: 1.9161514 | M53: 0.7141475973 | N53: 1.1785 | O53: 1.220578935 | P53: =+incog!K55 -> 0.02 | Q53: =+incog!N55 -> 0.29 | R53: =+incog!L55 -> 0.6 | S53: =+incog!M55 -> 0.4 | T53: =+incog!O55 -> 0 | U53: =+incog!P55 -> 0 | V53: =+incog!Q55 -> 0 | W53: =+incog!R55 -> 0 | X53: =+incog!S55 -> 0 | Y53: =+incog!T55 -> 0 | Z53: =+incog!U55 -> 0 | AA53: =+incog!V55 -> 0 | AB53: =+incog!W55 -> 0 | AC53: =+incog!X55 -> 0 | AD53: =+incog!Y55 -> 0 | AE53: =+incog!Z55 -> 0 | AF53: =+incog!AA55 -> 0 | AG53: =+incog!AB55 -> 0 | AH53: =+incog!AC55 -> 0 | AI53: =+incog!AD55 -> 0 | AJ53: =+incog!AE55 -> 0
A54: 12 | B54: =+IF(ISBLANK(incog!B56),"",incog!B56) -> Camote Tuberculo | D54: =+incog!C56 -> 0.32 | E54: =+incog!D56 -> 0.8 | F54: =+incog!E56 -> 0.04 | G54: =+incog!F56 -> 0.04 | H54: =+incog!G56 -> 0.06 | I54: =+incog!H56 -> 0.01 | J54: =+incog!I56 -> 0.0028 | K54: =+incog!J56 -> 0.0023 | L54: 2.892304 | M54: 1.918524675 | N54: 1.84 | O54: 2.412949336 | P54: =+incog!K56 -> 0.016 | Q54: =+incog!N56 -> 0.88 | R54: =+incog!L56 -> 0.2 | S54: =+incog!M56 -> 0.8 | T54: =+incog!O56 -> 0 | U54: =+incog!P56 -> 0 | V54: =+incog!Q56 -> 0 | W54: =+incog!R56 -> 0 | X54: =+incog!S56 -> 0 | Y54: =+incog!T56 -> 0 | Z54: =+incog!U56 -> 0 | AA54: =+incog!V56 -> 0 | AB54: =+incog!W56 -> 0 | AC54: =+incog!X56 -> 0 | AD54: =+incog!Y56 -> 0 | AE54: =+incog!Z56 -> 0 | AF54: =+incog!AA56 -> 0 | AG54: =+incog!AB56 -> 0 | AH54: =+incog!AC56 -> 0 | AI54: =+incog!AD56 -> 0 | AJ54: =+incog!AE56 -> 0
A55: 13 | B55: =+IF(ISBLANK(incog!B57),"",incog!B57) -> Alfalfa verde preboton | D55: =+incog!C57 -> 0.1812 | E55: =+incog!D57 -> 0.58 | F55: =+incog!E57 -> 0.2512 | G55: =+incog!F57 -> 0 | H55: =+incog!G57 -> 0.331 | I55: =+incog!H57 -> 0.219 | J55: =+incog!I57 -> 0 | K55: =+incog!J57 -> 0 | L55: 2.0969204 | M55: 0.9371803895 | N55: 1.301 | O55: 1.441388269 | P55: =+incog!K57 -> 0.0169 | Q55: =+incog!N57 -> 0.2797 | R55: =+incog!L57 -> 0 | S55: =+incog!M57 -> 0 | T55: =+incog!O57 -> 0 | U55: =+incog!P57 -> 0 | V55: =+incog!Q57 -> 0 | W55: =+incog!R57 -> 0 | X55: =+incog!S57 -> 0 | Y55: =+incog!T57 -> 0 | Z55: =+incog!U57 -> 0 | AA55: =+incog!V57 -> 0 | AB55: =+incog!W57 -> 0 | AC55: =+incog!X57 -> 0 | AD55: =+incog!Y57 -> 0 | AE55: =+incog!Z57 -> 0 | AF55: =+incog!AA57 -> 0 | AG55: =+incog!AB57 -> 0 | AH55: =+incog!AC57 -> 0 | AI55: =+incog!AD57 -> 0 | AJ55: =+incog!AE57 -> 0
A56: 14 | B56: =+IF(ISBLANK(incog!B58),"",incog!B58) ->  | D56: =+incog!C58 -> 0 | E56: =+incog!D58 -> 0 | F56: =+incog!E58 -> 0 | G56: =+incog!F58 -> 0 | H56: =+incog!G58 -> 0 | I56: =+incog!H58 -> 0 | J56: =+incog!I58 -> 0 | K56: =+incog!J58 -> 0 | L56: 0 | M56: 0 | N56: 0 | O56: 0 | P56: =+incog!K58 -> 0 | Q56: =+incog!N58 -> 0 | R56: =+incog!L58 -> 0 | S56: =+incog!M58 -> 0 | T56: =+incog!O58 -> 0 | U56: =+incog!P58 -> 0 | V56: =+incog!Q58 -> 0 | W56: =+incog!R58 -> 0 | X56: =+incog!S58 -> 0 | Y56: =+incog!T58 -> 0 | Z56: =+incog!U58 -> 0 | AA56: =+incog!V58 -> 0 | AB56: =+incog!W58 -> 0 | AC56: =+incog!X58 -> 0 | AD56: =+incog!Y58 -> 0 | AE56: =+incog!Z58 -> 0 | AF56: =+incog!AA58 -> 0 | AG56: =+incog!AB58 -> 0 | AH56: =+incog!AC58 -> 0 | AI56: =+incog!AD58 -> 0 | AJ56: =+incog!AE58 -> 0
A57: 15 | B57: =+IF(ISBLANK(incog!B59),"",incog!B59) ->  | D57: =+incog!C59 -> 0 | E57: =+incog!D59 -> 0 | F57: =+incog!E59 -> 0 | G57: =+incog!F59 -> 0 | H57: =+incog!G59 -> 0 | I57: =+incog!H59 -> 0 | J57: =+incog!I59 -> 0 | K57: =+incog!J59 -> 0 | L57: 0 | M57: 0 | N57: 0 | O57: 0 | P57: =+incog!K59 -> 0 | Q57: =+incog!N59 -> 0 | R57: =+incog!L59 -> 0 | S57: =+incog!M59 -> 0 | T57: =+incog!O59 -> 0 | U57: =+incog!P59 -> 0 | V57: =+incog!Q59 -> 0 | W57: =+incog!R59 -> 0 | X57: =+incog!S59 -> 0 | Y57: =+incog!T59 -> 0 | Z57: =+incog!U59 -> 0 | AA57: =+incog!V59 -> 0 | AB57: =+incog!W59 -> 0 | AC57: =+incog!X59 -> 0 | AD57: =+incog!Y59 -> 0 | AE57: =+incog!Z59 -> 0 | AF57: =+incog!AA59 -> 0 | AG57: =+incog!AB59 -> 0 | AH57: =+incog!AC59 -> 0 | AI57: =+incog!AD59 -> 0 | AJ57: =+incog!AE59 -> 0
A58: 16 | B58: =+IF(ISBLANK(incog!B60),"",incog!B60) ->  | D58: =+incog!C60 -> 0 | E58: =+incog!D60 -> 0 | F58: =+incog!E60 -> 0 | G58: =+incog!F60 -> 0 | H58: =+incog!G60 -> 0 | I58: =+incog!H60 -> 0 | J58: =+incog!I60 -> 0 | K58: =+incog!J60 -> 0 | L58: 0 | M58: 0 | N58: 0 | O58: 0 | P58: =+incog!K60 -> 0 | Q58: =+incog!N60 -> 0 | R58: =+incog!L60 -> 0 | S58: =+incog!M60 -> 0 | T58: =+incog!O60 -> 0 | U58: =+incog!P60 -> 0 | V58: =+incog!Q60 -> 0 | W58: =+incog!R60 -> 0 | X58: =+incog!S60 -> 0 | Y58: =+incog!T60 -> 0 | Z58: =+incog!U60 -> 0 | AA58: =+incog!V60 -> 0 | AB58: =+incog!W60 -> 0 | AC58: =+incog!X60 -> 0 | AD58: =+incog!Y60 -> 0 | AE58: =+incog!Z60 -> 0 | AF58: =+incog!AA60 -> 0 | AG58: =+incog!AB60 -> 0 | AH58: =+incog!AC60 -> 0 | AI58: =+incog!AD60 -> 0 | AJ58: =+incog!AE60 -> 0
A59: 17 | B59: =+IF(ISBLANK(incog!B61),"",incog!B61) ->  | D59: =+incog!C61 -> 0 | E59: =+incog!D61 -> 0 | F59: =+incog!E61 -> 0 | G59: =+incog!F61 -> 0 | H59: =+incog!G61 -> 0 | I59: =+incog!H61 -> 0 | J59: =+incog!I61 -> 0 | K59: =+incog!J61 -> 0 | L59: 0 | M59: 0 | N59: 0 | O59: 0 | P59: =+incog!K61 -> 0 | Q59: =+incog!N61 -> 0 | R59: =+incog!L61 -> 0 | S59: =+incog!M61 -> 0 | T59: =+incog!O61 -> 0 | U59: =+incog!P61 -> 0 | V59: =+incog!Q61 -> 0 | W59: =+incog!R61 -> 0 | X59: =+incog!S61 -> 0 | Y59: =+incog!T61 -> 0 | Z59: =+incog!U61 -> 0 | AA59: =+incog!V61 -> 0 | AB59: =+incog!W61 -> 0 | AC59: =+incog!X61 -> 0 | AD59: =+incog!Y61 -> 0 | AE59: =+incog!Z61 -> 0 | AF59: =+incog!AA61 -> 0 | AG59: =+incog!AB61 -> 0 | AH59: =+incog!AC61 -> 0 | AI59: =+incog!AD61 -> 0 | AJ59: =+incog!AE61 -> 0
A60: 18 | B60: =+IF(ISBLANK(incog!B62),"",incog!B62) ->  | D60: =+incog!C62 -> 0 | E60: =+incog!D62 -> 0 | F60: =+incog!E62 -> 0 | G60: =+incog!F62 -> 0 | H60: =+incog!G62 -> 0 | I60: =+incog!H62 -> 0 | J60: =+incog!I62 -> 0 | K60: =+incog!J62 -> 0 | L60: 0 | M60: 0 | N60: 0 | O60: 0 | P60: =+incog!K62 -> 0 | Q60: =+incog!N62 -> 0 | R60: =+incog!L62 -> 0 | S60: =+incog!M62 -> 0 | T60: =+incog!O62 -> 0 | U60: =+incog!P62 -> 0 | V60: =+incog!Q62 -> 0 | W60: =+incog!R62 -> 0 | X60: =+incog!S62 -> 0 | Y60: =+incog!T62 -> 0 | Z60: =+incog!U62 -> 0 | AA60: =+incog!V62 -> 0 | AB60: =+incog!W62 -> 0 | AC60: =+incog!X62 -> 0 | AD60: =+incog!Y62 -> 0 | AE60: =+incog!Z62 -> 0 | AF60: =+incog!AA62 -> 0 | AG60: =+incog!AB62 -> 0 | AH60: =+incog!AC62 -> 0 | AI60: =+incog!AD62 -> 0 | AJ60: =+incog!AE62 -> 0
A61: 19 | B61: =+IF(ISBLANK(incog!B63),"",incog!B63) ->  | D61: =+incog!C63 -> 0 | E61: =+incog!D63 -> 0 | F61: =+incog!E63 -> 0 | G61: =+incog!F63 -> 0 | H61: =+incog!G63 -> 0 | I61: =+incog!H63 -> 0 | J61: =+incog!I63 -> 0 | K61: =+incog!J63 -> 0 | L61: 0 | M61: 0 | N61: 0 | O61: 0 | P61: =+incog!K63 -> 0 | Q61: =+incog!N63 -> 0 | R61: =+incog!L63 -> 0 | S61: =+incog!M63 -> 0 | T61: =+incog!O63 -> 0 | U61: =+incog!P63 -> 0 | V61: =+incog!Q63 -> 0 | W61: =+incog!R63 -> 0 | X61: =+incog!S63 -> 0 | Y61: =+incog!T63 -> 0 | Z61: =+incog!U63 -> 0 | AA61: =+incog!V63 -> 0 | AB61: =+incog!W63 -> 0 | AC61: =+incog!X63 -> 0 | AD61: =+incog!Y63 -> 0 | AE61: =+incog!Z63 -> 0 | AF61: =+incog!AA63 -> 0 | AG61: =+incog!AB63 -> 0 | AH61: =+incog!AC63 -> 0 | AI61: =+incog!AD63 -> 0 | AJ61: =+incog!AE63 -> 0
A62: 20 | B62: =+IF(ISBLANK(incog!B64),"",incog!B64) ->  | D62: =+incog!C64 -> 0 | E62: =+incog!D64 -> 0 | F62: =+incog!E64 -> 0 | G62: =+incog!F64 -> 0 | H62: =+incog!G64 -> 0 | I62: =+incog!H64 -> 0 | J62: =+incog!I64 -> 0 | K62: =+incog!J64 -> 0 | L62: 0 | M62: 0 | N62: 0 | O62: 0 | P62: =+incog!K64 -> 0 | Q62: =+incog!N64 -> 0 | R62: =+incog!L64 -> 0 | S62: =+incog!M64 -> 0 | T62: =+incog!O64 -> 0 | U62: =+incog!P64 -> 0 | V62: =+incog!Q64 -> 0 | W62: =+incog!R64 -> 0 | X62: =+incog!S64 -> 0 | Y62: =+incog!T64 -> 0 | Z62: =+incog!U64 -> 0 | AA62: =+incog!V64 -> 0 | AB62: =+incog!W64 -> 0 | AC62: =+incog!X64 -> 0 | AD62: =+incog!Y64 -> 0 | AE62: =+incog!Z64 -> 0 | AF62: =+incog!AA64 -> 0 | AG62: =+incog!AB64 -> 0 | AH62: =+incog!AC64 -> 0 | AI62: =+incog!AD64 -> 0 | AJ62: =+incog!AE64 -> 0
A63: 21 | B63: =+IF(ISBLANK(incog!B65),"",incog!B65) ->  | D63: =+incog!C65 -> 0 | E63: =+incog!D65 -> 0 | F63: =+incog!E65 -> 0 | G63: =+incog!F65 -> 0 | H63: =+incog!G65 -> 0 | I63: =+incog!H65 -> 0 | J63: =+incog!I65 -> 0 | K63: =+incog!J65 -> 0 | L63: 0 | M63: 0 | N63: 0 | O63: 0 | P63: =+incog!K65 -> 0 | Q63: =+incog!N65 -> 0 | R63: =+incog!L65 -> 0 | S63: =+incog!M65 -> 0 | T63: =+incog!O65 -> 0 | U63: =+incog!P65 -> 0 | V63: =+incog!Q65 -> 0 | W63: =+incog!R65 -> 0 | X63: =+incog!S65 -> 0 | Y63: =+incog!T65 -> 0 | Z63: =+incog!U65 -> 0 | AA63: =+incog!V65 -> 0 | AB63: =+incog!W65 -> 0 | AC63: =+incog!X65 -> 0 | AD63: =+incog!Y65 -> 0 | AE63: =+incog!Z65 -> 0 | AF63: =+incog!AA65 -> 0 | AG63: =+incog!AB65 -> 0 | AH63: =+incog!AC65 -> 0 | AI63: =+incog!AD65 -> 0 | AJ63: =+incog!AE65 -> 0
A64: 22 | B64: =+IF(ISBLANK(incog!B66),"",incog!B66) ->  | D64: =+incog!C66 -> 0 | E64: =+incog!D66 -> 0 | F64: =+incog!E66 -> 0 | G64: =+incog!F66 -> 0 | H64: =+incog!G66 -> 0 | I64: =+incog!H66 -> 0 | J64: =+incog!I66 -> 0 | K64: =+incog!J66 -> 0 | L64: 0 | M64: 0 | N64: 0 | O64: 0 | P64: =+incog!K66 -> 0 | Q64: =+incog!N66 -> 0 | R64: =+incog!L66 -> 0 | S64: =+incog!M66 -> 0 | T64: =+incog!O66 -> 0 | U64: =+incog!P66 -> 0 | V64: =+incog!Q66 -> 0 | W64: =+incog!R66 -> 0 | X64: =+incog!S66 -> 0 | Y64: =+incog!T66 -> 0 | Z64: =+incog!U66 -> 0 | AA64: =+incog!V66 -> 0 | AB64: =+incog!W66 -> 0 | AC64: =+incog!X66 -> 0 | AD64: =+incog!Y66 -> 0 | AE64: =+incog!Z66 -> 0 | AF64: =+incog!AA66 -> 0 | AG64: =+incog!AB66 -> 0 | AH64: =+incog!AC66 -> 0 | AI64: =+incog!AD66 -> 0 | AJ64: =+incog!AE66 -> 0
A65: 23 | B65: Vacio

Sheet Selec. Maestro Ingredientes (hidden)
D1: =+'DATA MAESTRO 2'!C1 -> 1 | E1: =+'DATA MAESTRO 2'!D1 -> 2 | F1: =+'DATA MAESTRO 2'!E1 -> 3 | G1: =+'DATA MAESTRO 2'!F1 -> 4 | H1: =+'DATA MAESTRO 2'!G1 -> 5 | I1: =+'DATA MAESTRO 2'!H1 -> 6 | J1: =+'DATA MAESTRO 2'!I1 -> 7 | K1: =+'DATA MAESTRO 2'!J1 -> 8 | L1: =+'DATA MAESTRO 2'!K1 -> 9 | M1: 1 | N1: 2 | O1: 3 | P1: 4 | Q1: 10 | R1: 11 | S1: 12 | T1: 13 | U1: 14 | V1: 15 | W1: 16 | X1: 17 | Y1: 18 | Z1: 19 | AA1: 20 | AB1: 21 | AC1: 22 | AD1: 23 | AE1: 24 | AF1: 25 | AG1: 26 | AH1: 27 | AI1: 28 | AJ1: 29 | AK1: 30
B2: # | C2: NUTRIENTES | D2: =+'DATA MAESTRO 2'!C2 -> VACIO | E2: =+'DATA MAESTRO 2'!D2 -> MS | F2: =+'DATA MAESTRO 2'!E2 -> NDT | G2: =+'DATA MAESTRO 2'!F2 -> Prot. | H2: =+'DATA MAESTRO 2'!G2 -> FC | I2: =+'DATA MAESTRO 2'!H2 -> FDN | J2: =+'DATA MAESTRO 2'!I2 -> FDA | K2: =+'DATA MAESTRO 2'!J2 -> Ca | L2: =+'DATA MAESTRO 2'!K2 -> P | M2: =+'DATA MAESTRO 2'!L2 -> Eng. Met | N2: =+'DATA MAESTRO 2'!M2 -> EN(gan) | O2: =+'DATA MAESTRO 2'!N2 -> EN(lact) | P2: =+'DATA MAESTRO 2'!O2 -> EN(mant) | Q2: =+'DATA MAESTRO 2'!P2 -> E.E | R2: =+'DATA MAESTRO 2'!Q2 -> CNF | S2: =+'DATA MAESTRO 2'!R2 -> PDR | T2: =+'DATA MAESTRO 2'!S2 -> Prot. By pass | U2: =+'DATA MAESTRO 2'!T2 -> Sodio | V2: =+'DATA MAESTRO 2'!U2 -> Magnesio | W2: =+'DATA MAESTRO 2'!V2 -> Potasio | X2: =+'DATA MAESTRO 2'!W2 -> Cloro | Y2: =+'DATA MAESTRO 2'!X2 -> Azufre | Z2: =+'DATA MAESTRO 2'!Y2 -> Gosipol | AA2: =+'DATA MAESTRO 2'!Z2 -> Almidon | AB2: =+'DATA MAESTRO 2'!AA2 -> Cobalto | AC2: =+'DATA MAESTRO 2'!AB2 -> Cobre | AD2: =+'DATA MAESTRO 2'!AC2 -> Yodo | AE2: =+'DATA MAESTRO 2'!AD2 -> Hierro | AF2: =+'DATA MAESTRO 2'!AE2 -> Manganeso | AG2: =+'DATA MAESTRO 2'!AF2 -> Selenio | AH2: =+'DATA MAESTRO 2'!AG2 -> Zinc | AI2: =+'DATA MAESTRO 2'!AH2 -> Vit. A | AJ2: =+'DATA MAESTRO 2'!AI2 -> Vit. D | AK2: =+'DATA MAESTRO 2'!AJ2 -> Vit. E
A3: 1 | B3: 7 | C3: =+IF(AND(B3>=1,B3<=36),VLOOKUP(B3,'DATA MAESTRO 2'!$A$6:$B$40,2),0) -> AFRECHO | D3: =+CHOOSE($B3,'DATA MAESTRO 2'!C$6,'DATA MAESTRO 2'!C$7,'DATA MAESTRO 2'!C$8,'DATA MAESTRO 2'!C$9,'DATA MAESTRO 2'!C$10,'DATA MAESTRO 2'!C$11,'DATA MAESTRO 2'!C$12,'DATA MAESTRO 2'!C$13,'DATA MAESTRO 2'!C$14,'DATA MAESTRO 2'!C$15,'DATA MAESTRO 2'!C$16,'DATA MAESTRO 2'!C$17,'DATA MAESTRO 2'!C$18,'DATA MAESTRO 2'!C$19,'DATA MAESTRO 2'!C$20,'DATA MAESTRO 2'!C$21,'DATA MAESTRO 2'!C$22,'DATA MAESTRO 2'!C$23,'DATA MAESTRO 2'!C$24,'DATA MAESTRO 2'!C$25,'DATA MAESTRO 2'!C$26,'DATA MAESTRO 2'!C$27,'DATA MAESTRO 2'!C$28,'DATA MAESTRO 2'!C$29,'DATA MAESTRO 2'!C$30,'DATA MAESTRO 2'!C$31,'DATA MAESTRO 2'!C$32,'DATA MAESTRO 2'!C$33,'DATA MAESTRO 2'!C$34,'DATA MAESTRO 2'!C$35,'DATA MAESTRO 2'!C$36,'DATA MAESTRO 2'!C$37,'DATA MAESTRO 2'!C$38,'DATA MAESTRO 2'!C$39,'DATA MAESTRO 2'!C$40,) -> 0 | E3: =CHOOSE($B3,'DATA MAESTRO 2'!D$6,'DATA MAESTRO 2'!D$7,'DATA MAESTRO 2'!D$8,'DATA MAESTRO 2'!D$9,'DATA MAESTRO 2'!D$10,'DATA MAESTRO 2'!D$11,'DATA MAESTRO 2'!D$12,'DATA MAESTRO 2'!D$13,'DATA MAESTRO 2'!D$14,'DATA MAESTRO 2'!D$15,'DATA MAESTRO 2'!D$16,'DATA MAESTRO 2'!D$17,'DATA MAESTRO 2'!D$18,'DATA MAESTRO 2'!D$19,'DATA MAESTRO 2'!D$20,'DATA MAESTRO 2'!D$21,'DATA MAESTRO 2'!D$22,'DATA MAESTRO 2'!D$23,'DATA MAESTRO 2'!D$24,'DATA MAESTRO 2'!D$25,'DATA MAESTRO 2'!D$26,'DATA MAESTRO 2'!D$27,'DATA MAESTRO 2'!D$28,'DATA MAESTRO 2'!D$29,'DATA MAESTRO 2'!D$30,'DATA MAESTRO 2'!D$31,'DATA MAESTRO 2'!D$32,'DATA MAESTRO 2'!D$33,'DATA MAESTRO 2'!D$34,'DATA MAESTRO 2'!D$35,'DATA MAESTRO 2'!D$36,'DATA MAESTRO 2'!D$37,'DATA MAESTRO 2'!D$38,'DATA MAESTRO 2'!D$39,'DATA MAESTRO 2'!D$40,) -> 0.89 | F3: =CHOOSE(B3,'DATA MAESTRO 2'!E$6,'DATA MAESTRO 2'!E$7,'DATA MAESTRO 2'!E$8,'DATA MAESTRO 2'!E$9,'DATA MAESTRO 2'!E$10,'DATA MAESTRO 2'!E$11,'DATA MAESTRO 2'!E$12,'DATA MAESTRO 2'!E$13,'DATA MAESTRO 2'!E$14,'DATA MAESTRO 2'!E$15,'DATA MAESTRO 2'!E$16,'DATA MAESTRO 2'!E$17,'DATA MAESTRO 2'!E$18,'DATA MAESTRO 2'!E$19,'DATA MAESTRO 2'!E$20,'DATA MAESTRO 2'!E$21,'DATA MAESTRO 2'!E$22,'DATA MAESTRO 2'!E$23,'DATA MAESTRO 2'!E$24,'DATA MAESTRO 2'!E$25,'DATA MAESTRO 2'!E$26,'DATA MAESTRO 2'!E$27,'DATA MAESTRO 2'!E$28,'DATA MAESTRO 2'!E$29,'DATA MAESTRO 2'!E$30,'DATA MAESTRO 2'!E$31,'DATA MAESTRO 2'!E$32,'DATA MAESTRO 2'!E$33,'DATA MAESTRO 2'!E$34,'DATA MAESTRO 2'!E$35,'DATA MAESTRO 2'!E$36,'DATA MAESTRO 2'!E$37,'DATA MAESTRO 2'!E$38,'DATA MAESTRO 2'!E$39,'DATA MAESTRO 2'!E$40,) -> 0.73 | G3: =CHOOSE($B3,'DATA MAESTRO 2'!F$6,'DATA MAESTRO 2'!F$7,'DATA MAESTRO 2'!F$8,'DATA MAESTRO 2'!F$9,'DATA MAESTRO 2'!F$10,'DATA MAESTRO 2'!F$11,'DATA MAESTRO 2'!F$12,'DATA MAESTRO 2'!F$13,'DATA MAESTRO 2'!F$14,'DATA MAESTRO 2'!F$15,'DATA MAESTRO 2'!F$16,'DATA MAESTRO 2'!F$17,'DATA MAESTRO 2'!F$18,'DATA MAESTRO 2'!F$19,'DATA MAESTRO 2'!F$20,'DATA MAESTRO 2'!F$21,'DATA MAESTRO 2'!F$22,'DATA MAESTRO 2'!F$23,'DATA MAESTRO 2'!F$24,'DATA MAESTRO 2'!F$25,'DATA MAESTRO 2'!F$26,'DATA MAESTRO 2'!F$27,'DATA MAESTRO 2'!F$28,'DATA MAESTRO 2'!F$29,'DATA MAESTRO 2'!F$30,'DATA MAESTRO 2'!F$31,'DATA MAESTRO 2'!F$32,'DATA MAESTRO 2'!F$33,'DATA MAESTRO 2'!F$34,'DATA MAESTRO 2'!F$35,'DATA MAESTRO 2'!F$36,'DATA MAESTRO 2'!F$37,'DATA MAESTRO 2'!F$38,'DATA MAESTRO 2'!F$39,'DATA MAESTRO 2'!F$40,) -> 0.17 | H3: =CHOOSE($B3,'DATA MAESTRO 2'!G$6,'DATA MAESTRO 2'!G$7,'DATA MAESTRO 2'!G$8,'DATA MAESTRO 2'!G$9,'DATA MAESTRO 2'!G$10,'DATA MAESTRO 2'!G$11,'DATA MAESTRO 2'!G$12,'DATA MAESTRO 2'!G$13,'DATA MAESTRO 2'!G$14,'DATA MAESTRO 2'!G$15,'DATA MAESTRO 2'!G$16,'DATA MAESTRO 2'!G$17,'DATA MAESTRO 2'!G$18,'DATA MAESTRO 2'!G$19,'DATA MAESTRO 2'!G$20,'DATA MAESTRO 2'!G$21,'DATA MAESTRO 2'!G$22,'DATA MAESTRO 2'!G$23,'DATA MAESTRO 2'!G$24,'DATA MAESTRO 2'!G$25,'DATA MAESTRO 2'!G$26,'DATA MAESTRO 2'!G$27,'DATA MAESTRO 2'!G$28,'DATA MAESTRO 2'!G$29,'DATA MAESTRO 2'!G$30,'DATA MAESTRO 2'!G$31,'DATA MAESTRO 2'!G$32,'DATA MAESTRO 2'!G$33,'DATA MAESTRO 2'!G$34,'DATA MAESTRO 2'!G$35,'DATA MAESTRO 2'!G$36,'DATA MAESTRO 2'!G$37,'DATA MAESTRO 2'!G$38,'DATA MAESTRO 2'!G$39,'DATA MAESTRO 2'!G$40,) -> 0.12 | I3: =CHOOSE($B3,'DATA MAESTRO 2'!H$6,'DATA MAESTRO 2'!H$7,'DATA MAESTRO 2'!H$8,'DATA MAESTRO 2'!H$9,'DATA MAESTRO 2'!H$10,'DATA MAESTRO 2'!H$11,'DATA MAESTRO 2'!H$12,'DATA MAESTRO 2'!H$13,'DATA MAESTRO 2'!H$14,'DATA MAESTRO 2'!H$15,'DATA MAESTRO 2'!H$16,'DATA MAESTRO 2'!H$17,'DATA MAESTRO 2'!H$18,'DATA MAESTRO 2'!H$19,'DATA MAESTRO 2'!H$20,'DATA MAESTRO 2'!H$21,'DATA MAESTRO 2'!H$22,'DATA MAESTRO 2'!H$23,'DATA MAESTRO 2'!H$24,'DATA MAESTRO 2'!H$25,'DATA MAESTRO 2'!H$26,'DATA MAESTRO 2'!H$27,'DATA MAESTRO 2'!H$28,'DATA MAESTRO 2'!H$29,'DATA MAESTRO 2'!H$30,'DATA MAESTRO 2'!H$31,'DATA MAESTRO 2'!H$32,'DATA MAESTRO 2'!H$33,'DATA MAESTRO 2'!H$34,'DATA MAESTRO 2'!H$35,'DATA MAESTRO 2'!H$36,'DATA MAESTRO 2'!H$37,'DATA MAESTRO 2'!H$38,'DATA MAESTRO 2'!H$39,'DATA MAESTRO 2'!H$40,) -> 0.37 | J3: =CHOOSE($B3,'DATA MAESTRO 2'!I$6,'DATA MAESTRO 2'!I$7,'DATA MAESTRO 2'!I$8,'DATA MAESTRO 2'!I$9,'DATA MAESTRO 2'!I$10,'DATA MAESTRO 2'!I$11,'DATA MAESTRO 2'!I$12,'DATA MAESTRO 2'!I$13,'DATA MAESTRO 2'!I$14,'DATA MAESTRO 2'!I$15,'DATA MAESTRO 2'!I$16,'DATA MAESTRO 2'!I$17,'DATA MAESTRO 2'!I$18,'DATA MAESTRO 2'!I$19,'DATA MAESTRO 2'!I$20,'DATA MAESTRO 2'!I$21,'DATA MAESTRO 2'!I$22,'DATA MAESTRO 2'!I$23,'DATA MAESTRO 2'!I$24,'DATA MAESTRO 2'!I$25,'DATA MAESTRO 2'!I$26,'DATA MAESTRO 2'!I$27,'DATA MAESTRO 2'!I$28,'DATA MAESTRO 2'!I$29,'DATA MAESTRO 2'!I$30,'DATA MAESTRO 2'!I$31,'DATA MAESTRO 2'!I$32,'DATA MAESTRO 2'!I$33,'DATA MAESTRO 2'!I$34,'DATA MAESTRO 2'!I$35,'DATA MAESTRO 2'!I$36,'DATA MAESTRO 2'!I$37,'DATA MAESTRO 2'!I$38,'DATA MAESTRO 2'!I$39,'DATA MAESTRO 2'!I$40,) -> 0.155 | K3: =CHOOSE($B3,'DATA MAESTRO 2'!J$6,'DATA MAESTRO 2'!J$7,'DATA MAESTRO 2'!J$8,'DATA MAESTRO 2'!J$9,'DATA MAESTRO 2'!J$10,'DATA MAESTRO 2'!J$11,'DATA MAESTRO 2'!J$12,'DATA MAESTRO 2'!J$13,'DATA MAESTRO 2'!J$14,'DATA MAESTRO 2'!J$15,'DATA MAESTRO 2'!J$16,'DATA MAESTRO 2'!J$17,'DATA MAESTRO 2'!J$18,'DATA MAESTRO 2'!J$19,'DATA MAESTRO 2'!J$20,'DATA MAESTRO 2'!J$21,'DATA MAESTRO 2'!J$22,'DATA MAESTRO 2'!J$23,'DATA MAESTRO 2'!J$24,'DATA MAESTRO 2'!J$25,'DATA MAESTRO 2'!J$26,'DATA MAESTRO 2'!J$27,'DATA MAESTRO 2'!J$28,'DATA MAESTRO 2'!J$29,'DATA MAESTRO 2'!J$30,'DATA MAESTRO 2'!J$31,'DATA MAESTRO 2'!J$32,'DATA MAESTRO 2'!J$33,'DATA MAESTRO 2'!J$34,'DATA MAESTRO 2'!J$35,'DATA MAESTRO 2'!J$36,'DATA MAESTRO 2'!J$37,'DATA MAESTRO 2'!J$38,'DATA MAESTRO 2'!J$39,'DATA MAESTRO 2'!J$40,) -> 0.0012 | L3: =CHOOSE($B3,'DATA MAESTRO 2'!K$6,'DATA MAESTRO 2'!K$7,'DATA MAESTRO 2'!K$8,'DATA MAESTRO 2'!K$9,'DATA MAESTRO 2'!K$10,'DATA MAESTRO 2'!K$11,'DATA MAESTRO 2'!K$12,'DATA MAESTRO 2'!K$13,'DATA MAESTRO 2'!K$14,'DATA MAESTRO 2'!K$15,'DATA MAESTRO 2'!K$16,'DATA MAESTRO 2'!K$17,'DATA MAESTRO 2'!K$18,'DATA MAESTRO 2'!K$19,'DATA MAESTRO 2'!K$20,'DATA MAESTRO 2'!K$21,'DATA MAESTRO 2'!K$22,'DATA MAESTRO 2'!K$23,'DATA MAESTRO 2'!K$24,'DATA MAESTRO 2'!K$25,'DATA MAESTRO 2'!K$26,'DATA MAESTRO 2'!K$27,'DATA MAESTRO 2'!K$28,'DATA MAESTRO 2'!K$29,'DATA MAESTRO 2'!K$30,'DATA MAESTRO 2'!K$31,'DATA MAESTRO 2'!K$32,'DATA MAESTRO 2'!K$33,'DATA MAESTRO 2'!K$34,'DATA MAESTRO 2'!K$35,'DATA MAESTRO 2'!K$36,'DATA MAESTRO 2'!K$37,'DATA MAESTRO 2'!K$38,'DATA MAESTRO 2'!K$39,'DATA MAESTRO 2'!K$40,) -> 0.011 | M3: =CHOOSE($B3,'DATA MAESTRO 2'!L$6,'DATA MAESTRO 2'!L$7,'DATA MAESTRO 2'!L$8,'DATA MAESTRO 2'!L$9,'DATA MAESTRO 2'!L$10,'DATA MAESTRO 2'!L$11,'DATA MAESTRO 2'!L$12,'DATA MAESTRO 2'!L$13,'DATA MAESTRO 2'!L$14,'DATA MAESTRO 2'!L$15,'DATA MAESTRO 2'!L$16,'DATA MAESTRO 2'!L$17,'DATA MAESTRO 2'!L$18,'DATA MAESTRO 2'!L$19,'DATA MAESTRO 2'!L$20,'DATA MAESTRO 2'!L$21,'DATA MAESTRO 2'!L$22,'DATA MAESTRO 2'!L$23,'DATA MAESTRO 2'!L$24,'DATA MAESTRO 2'!L$25,'DATA MAESTRO 2'!L$26,'DATA MAESTRO 2'!L$27,'DATA MAESTRO 2'!L$28,'DATA MAESTRO 2'!L$29,'DATA MAESTRO 2'!L$30,'DATA MAESTRO 2'!L$31,'DATA MAESTRO 2'!L$32,'DATA MAESTRO 2'!L$33,'DATA MAESTRO 2'!L$34,'DATA MAESTRO 2'!L$35,'DATA MAESTRO 2'!L$36,'DATA MAESTRO 2'!L$37,'DATA MAESTRO 2'!L$38,'DATA MAESTRO 2'!L$39,'DATA MAESTRO 2'!L$40,) -> 2.6392274 | N3: =CHOOSE($B3,'DATA MAESTRO 2'!M$6,'DATA MAESTRO 2'!M$7,'DATA MAESTRO 2'!M$8,'DATA MAESTRO 2'!M$9,'DATA MAESTRO 2'!M$10,'DATA MAESTRO 2'!M$11,'DATA MAESTRO 2'!M$12,'DATA MAESTRO 2'!M$13,'DATA MAESTRO 2'!M$14,'DATA MAESTRO 2'!M$15,'DATA MAESTRO 2'!M$16,'DATA MAESTRO 2'!M$17,'DATA MAESTRO 2'!M$18,'DATA MAESTRO 2'!M$19,'DATA MAESTRO 2'!M$20,'DATA MAESTRO 2'!M$21,'DATA MAESTRO 2'!M$22,'DATA MAESTRO 2'!M$23,'DATA MAESTRO 2'!M$24,'DATA MAESTRO 2'!M$25,'DATA MAESTRO 2'!M$26,'DATA MAESTRO 2'!M$27,'DATA MAESTRO 2'!M$28,'DATA MAESTRO 2'!M$29,'DATA MAESTRO 2'!M$30,'DATA MAESTRO 2'!M$31,'DATA MAESTRO 2'!M$32,'DATA MAESTRO 2'!M$33,'DATA MAESTRO 2'!M$34,'DATA MAESTRO 2'!M$35,'DATA MAESTRO 2'!M$36,'DATA MAESTRO 2'!M$37,'DATA MAESTRO 2'!M$38,'DATA MAESTRO 2'!M$39,'DATA MAESTRO 2'!M$40,) -> 1.606278766 | O3: =CHOOSE($B3,'DATA MAESTRO 2'!N$6,'DATA MAESTRO 2'!N$7,'DATA MAESTRO 2'!N$8,'DATA MAESTRO 2'!N$9,'DATA MAESTRO 2'!N$10,'DATA MAESTRO 2'!N$11,'DATA MAESTRO 2'!N$12,'DATA MAESTRO 2'!N$13,'DATA MAESTRO 2'!N$14,'DATA MAESTRO 2'!N$15,'DATA MAESTRO 2'!N$16,'DATA MAESTRO 2'!N$17,'DATA MAESTRO 2'!N$18,'DATA MAESTRO 2'!N$19,'DATA MAESTRO 2'!N$20,'DATA MAESTRO 2'!N$21,'DATA MAESTRO 2'!N$22,'DATA MAESTRO 2'!N$23,'DATA MAESTRO 2'!N$24,'DATA MAESTRO 2'!N$25,'DATA MAESTRO 2'!N$26,'DATA MAESTRO 2'!N$27,'DATA MAESTRO 2'!N$28,'DATA MAESTRO 2'!N$29,'DATA MAESTRO 2'!N$30,'DATA MAESTRO 2'!N$31,'DATA MAESTRO 2'!N$32,'DATA MAESTRO 2'!N$33,'DATA MAESTRO 2'!N$34,'DATA MAESTRO 2'!N$35,'DATA MAESTRO 2'!N$36,'DATA MAESTRO 2'!N$37,'DATA MAESTRO 2'!N$38,'DATA MAESTRO 2'!N$39,'DATA MAESTRO 2'!N$40,) -> 1.6685 | P3: =CHOOSE($B3,'DATA MAESTRO 2'!O$6,'DATA MAESTRO 2'!O$7,'DATA MAESTRO 2'!O$8,'DATA MAESTRO 2'!O$9,'DATA MAESTRO 2'!O$10,'DATA MAESTRO 2'!O$11,'DATA MAESTRO 2'!O$12,'DATA MAESTRO 2'!O$13,'DATA MAESTRO 2'!O$14,'DATA MAESTRO 2'!O$15,'DATA MAESTRO 2'!O$16,'DATA MAESTRO 2'!O$17,'DATA MAESTRO 2'!O$18,'DATA MAESTRO 2'!O$19,'DATA MAESTRO 2'!O$20,'DATA MAESTRO 2'!O$21,'DATA MAESTRO 2'!O$22,'DATA MAESTRO 2'!O$23,'DATA MAESTRO 2'!O$24,'DATA MAESTRO 2'!O$25,'DATA MAESTRO 2'!O$26,'DATA MAESTRO 2'!O$27,'DATA MAESTRO 2'!O$28,'DATA MAESTRO 2'!O$29,'DATA MAESTRO 2'!O$30,'DATA MAESTRO 2'!O$31,'DATA MAESTRO 2'!O$32,'DATA MAESTRO 2'!O$33,'DATA MAESTRO 2'!O$34,'DATA MAESTRO 2'!O$35,'DATA MAESTRO 2'!O$36,'DATA MAESTRO 2'!O$37,'DATA MAESTRO 2'!O$38,'DATA MAESTRO 2'!O$39,'DATA MAESTRO 2'!O$40,) -> 2.103816269 | Q3: =CHOOSE($B3,'DATA MAESTRO 2'!P$6,'DATA MAESTRO 2'!P$7,'DATA MAESTRO 2'!P$8,'DATA MAESTRO 2'!P$9,'DATA MAESTRO 2'!P$10,'DATA MAESTRO 2'!P$11,'DATA MAESTRO 2'!P$12,'DATA MAESTRO 2'!P$13,'DATA MAESTRO 2'!P$14,'DATA MAESTRO 2'!P$15,'DATA MAESTRO 2'!P$16,'DATA MAESTRO 2'!P$17,'DATA MAESTRO 2'!P$18,'DATA MAESTRO 2'!P$19,'DATA MAESTRO 2'!P$20,'DATA MAESTRO 2'!P$21,'DATA MAESTRO 2'!P$22,'DATA MAESTRO 2'!P$23,'DATA MAESTRO 2'!P$24,'DATA MAESTRO 2'!P$25,'DATA MAESTRO 2'!P$26,'DATA MAESTRO 2'!P$27,'DATA MAESTRO 2'!P$28,'DATA MAESTRO 2'!P$29,'DATA MAESTRO 2'!P$30,'DATA MAESTRO 2'!P$31,'DATA MAESTRO 2'!P$32,'DATA MAESTRO 2'!P$33,'DATA MAESTRO 2'!P$34,'DATA MAESTRO 2'!P$35,'DATA MAESTRO 2'!P$36,'DATA MAESTRO 2'!P$37,'DATA MAESTRO 2'!P$38,'DATA MAESTRO 2'!P$39,'DATA MAESTRO 2'!P$40,) -> 0.04 | R3: =CHOOSE($B3,'DATA MAESTRO 2'!Q$6,'DATA MAESTRO 2'!Q$7,'DATA MAESTRO 2'!Q$8,'DATA MAESTRO 2'!Q$9,'DATA MAESTRO 2'!Q$10,'DATA MAESTRO 2'!Q$11,'DATA MAESTRO 2'!Q$12,'DATA MAESTRO 2'!Q$13,'DATA MAESTRO 2'!Q$14,'DATA MAESTRO 2'!Q$15,'DATA MAESTRO 2'!Q$16,'DATA MAESTRO 2'!Q$17,'DATA MAESTRO 2'!Q$18,'DATA MAESTRO 2'!Q$19,'DATA MAESTRO 2'!Q$20,'DATA MAESTRO 2'!Q$21,'DATA MAESTRO 2'!Q$22,'DATA MAESTRO 2'!Q$23,'DATA MAESTRO 2'!Q$24,'DATA MAESTRO 2'!Q$25,'DATA MAESTRO 2'!Q$26,'DATA MAESTRO 2'!Q$27,'DATA MAESTRO 2'!Q$28,'DATA MAESTRO 2'!Q$29,'DATA MAESTRO 2'!Q$30,'DATA MAESTRO 2'!Q$31,'DATA MAESTRO 2'!Q$32,'DATA MAESTRO 2'!Q$33,'DATA MAESTRO 2'!Q$34,'DATA MAESTRO 2'!Q$35,'DATA MAESTRO 2'!Q$36,'DATA MAESTRO 2'!Q$37,'DATA MAESTRO 2'!Q$38,'DATA MAESTRO 2'!Q$39,'DATA MAESTRO 2'!Q$40,) -> 0.42 | S3: =CHOOSE($B3,'DATA MAESTRO 2'!R$6,'DATA MAESTRO 2'!R$7,'DATA MAESTRO 2'!R$8,'DATA MAESTRO 2'!R$9,'DATA MAESTRO 2'!R$10,'DATA MAESTRO 2'!R$11,'DATA MAESTRO 2'!R$12,'DATA MAESTRO 2'!R$13,'DATA MAESTRO 2'!R$14,'DATA MAESTRO 2'!R$15,'DATA MAESTRO 2'!R$16,'DATA MAESTRO 2'!R$17,'DATA MAESTRO 2'!R$18,'DATA MAESTRO 2'!R$19,'DATA MAESTRO 2'!R$20,'DATA MAESTRO 2'!R$21,'DATA MAESTRO 2'!R$22,'DATA MAESTRO 2'!R$23,'DATA MAESTRO 2'!R$24,'DATA MAESTRO 2'!R$25,'DATA MAESTRO 2'!R$26,'DATA MAESTRO 2'!R$27,'DATA MAESTRO 2'!R$28,'DATA MAESTRO 2'!R$29,'DATA MAESTRO 2'!R$30,'DATA MAESTRO 2'!R$31,'DATA MAESTRO 2'!R$32,'DATA MAESTRO 2'!R$33,'DATA MAESTRO 2'!R$34,'DATA MAESTRO 2'!R$35,'DATA MAESTRO 2'!R$36,'DATA MAESTRO 2'!R$37,'DATA MAESTRO 2'!R$38,'DATA MAESTRO 2'!R$39,'DATA MAESTRO 2'!R$40,) -> 0.7 | T3: =CHOOSE($B3,'DATA MAESTRO 2'!S$6,'DATA MAESTRO 2'!S$7,'DATA MAESTRO 2'!S$8,'DATA MAESTRO 2'!S$9,'DATA MAESTRO 2'!S$10,'DATA MAESTRO 2'!S$11,'DATA MAESTRO 2'!S$12,'DATA MAESTRO 2'!S$13,'DATA MAESTRO 2'!S$14,'DATA MAESTRO 2'!S$15,'DATA MAESTRO 2'!S$16,'DATA MAESTRO 2'!S$17,'DATA MAESTRO 2'!S$18,'DATA MAESTRO 2'!S$19,'DATA MAESTRO 2'!S$20,'DATA MAESTRO 2'!S$21,'DATA MAESTRO 2'!S$22,'DATA MAESTRO 2'!S$23,'DATA MAESTRO 2'!S$24,'DATA MAESTRO 2'!S$25,'DATA MAESTRO 2'!S$26,'DATA MAESTRO 2'!S$27,'DATA MAESTRO 2'!S$28,'DATA MAESTRO 2'!S$29,'DATA MAESTRO 2'!S$30,'DATA MAESTRO 2'!S$31,'DATA MAESTRO 2'!S$32,'DATA MAESTRO 2'!S$33,'DATA MAESTRO 2'!S$34,'DATA MAESTRO 2'!S$35,'DATA MAESTRO 2'!S$36,'DATA MAESTRO 2'!S$37,'DATA MAESTRO 2'!S$38,'DATA MAESTRO 2'!S$39,'DATA MAESTRO 2'!S$40,) -> 0.3 | U3: =CHOOSE($B3,'DATA MAESTRO 2'!T$6,'DATA MAESTRO 2'!T$7,'DATA MAESTRO 2'!T$8,'DATA MAESTRO 2'!T$9,'DATA MAESTRO 2'!T$10,'DATA MAESTRO 2'!T$11,'DATA MAESTRO 2'!T$12,'DATA MAESTRO 2'!T$13,'DATA MAESTRO 2'!T$14,'DATA MAESTRO 2'!T$15,'DATA MAESTRO 2'!T$16,'DATA MAESTRO 2'!T$17,'DATA MAESTRO 2'!T$18,'DATA MAESTRO 2'!T$19,'DATA MAESTRO 2'!T$20,'DATA MAESTRO 2'!T$21,'DATA MAESTRO 2'!T$22,'DATA MAESTRO 2'!T$23,'DATA MAESTRO 2'!T$24,'DATA MAESTRO 2'!T$25,'DATA MAESTRO 2'!T$26,'DATA MAESTRO 2'!T$27,'DATA MAESTRO 2'!T$28,'DATA MAESTRO 2'!T$29,'DATA MAESTRO 2'!T$30,'DATA MAESTRO 2'!T$31,'DATA MAESTRO 2'!T$32,'DATA MAESTRO 2'!T$33,'DATA MAESTRO 2'!T$34,'DATA MAESTRO 2'!T$35,'DATA MAESTRO 2'!T$36,'DATA MAESTRO 2'!T$37,'DATA MAESTRO 2'!T$38,'DATA MAESTRO 2'!T$39,'DATA MAESTRO 2'!T$40,) -> 0.0002 | V3: =CHOOSE($B3,'DATA MAESTRO 2'!U$6,'DATA MAESTRO 2'!U$7,'DATA MAESTRO 2'!U$8,'DATA MAESTRO 2'!U$9,'DATA MAESTRO 2'!U$10,'DATA MAESTRO 2'!U$11,'DATA MAESTRO 2'!U$12,'DATA MAESTRO 2'!U$13,'DATA MAESTRO 2'!U$14,'DATA MAESTRO 2'!U$15,'DATA MAESTRO 2'!U$16,'DATA MAESTRO 2'!U$17,'DATA MAESTRO 2'!U$18,'DATA MAESTRO 2'!U$19,'DATA MAESTRO 2'!U$20,'DATA MAESTRO 2'!U$21,'DATA MAESTRO 2'!U$22,'DATA MAESTRO 2'!U$23,'DATA MAESTRO 2'!U$24,'DATA MAESTRO 2'!U$25,'DATA MAESTRO 2'!U$26,'DATA MAESTRO 2'!U$27,'DATA MAESTRO 2'!U$28,'DATA MAESTRO 2'!U$29,'DATA MAESTRO 2'!U$30,'DATA MAESTRO 2'!U$31,'DATA MAESTRO 2'!U$32,'DATA MAESTRO 2'!U$33,'DATA MAESTRO 2'!U$34,'DATA MAESTRO 2'!U$35,'DATA MAESTRO 2'!U$36,'DATA MAESTRO 2'!U$37,'DATA MAESTRO 2'!U$38,'DATA MAESTRO 2'!U$39,'DATA MAESTRO 2'!U$40,) -> 0.004 | W3: =CHOOSE($B3,'DATA MAESTRO 2'!V$6,'DATA MAESTRO 2'!V$7,'DATA MAESTRO 2'!V$8,'DATA MAESTRO 2'!V$9,'DATA MAESTRO 2'!V$10,'DATA MAESTRO 2'!V$11,'DATA MAESTRO 2'!V$12,'DATA MAESTRO 2'!V$13,'DATA MAESTRO 2'!V$14,'DATA MAESTRO 2'!V$15,'DATA MAESTRO 2'!V$16,'DATA MAESTRO 2'!V$17,'DATA MAESTRO 2'!V$18,'DATA MAESTRO 2'!V$19,'DATA MAESTRO 2'!V$20,'DATA MAESTRO 2'!V$21,'DATA MAESTRO 2'!V$22,'DATA MAESTRO 2'!V$23,'DATA MAESTRO 2'!V$24,'DATA MAESTRO 2'!V$25,'DATA MAESTRO 2'!V$26,'DATA MAESTRO 2'!V$27,'DATA MAESTRO 2'!V$28,'DATA MAESTRO 2'!V$29,'DATA MAESTRO 2'!V$30,'DATA MAESTRO 2'!V$31,'DATA MAESTRO 2'!V$32,'DATA MAESTRO 2'!V$33,'DATA MAESTRO 2'!V$34,'DATA MAESTRO 2'!V$35,'DATA MAESTRO 2'!V$36,'DATA MAESTRO 2'!V$37,'DATA MAESTRO 2'!V$38,'DATA MAESTRO 2'!V$39,'DATA MAESTRO 2'!V$40,) -> 0.0113 | X3: =CHOOSE($B3,'DATA MAESTRO 2'!W$6,'DATA MAESTRO 2'!W$7,'DATA MAESTRO 2'!W$8,'DATA MAESTRO 2'!W$9,'DATA MAESTRO 2'!W$10,'DATA MAESTRO 2'!W$11,'DATA MAESTRO 2'!W$12,'DATA MAESTRO 2'!W$13,'DATA MAESTRO 2'!W$14,'DATA MAESTRO 2'!W$15,'DATA MAESTRO 2'!W$16,'DATA MAESTRO 2'!W$17,'DATA MAESTRO 2'!W$18,'DATA MAESTRO 2'!W$19,'DATA MAESTRO 2'!W$20,'DATA MAESTRO 2'!W$21,'DATA MAESTRO 2'!W$22,'DATA MAESTRO 2'!W$23,'DATA MAESTRO 2'!W$24,'DATA MAESTRO 2'!W$25,'DATA MAESTRO 2'!W$26,'DATA MAESTRO 2'!W$27,'DATA MAESTRO 2'!W$28,'DATA MAESTRO 2'!W$29,'DATA MAESTRO 2'!W$30,'DATA MAESTRO 2'!W$31,'DATA MAESTRO 2'!W$32,'DATA MAESTRO 2'!W$33,'DATA MAESTRO 2'!W$34,'DATA MAESTRO 2'!W$35,'DATA MAESTRO 2'!W$36,'DATA MAESTRO 2'!W$37,'DATA MAESTRO 2'!W$38,'DATA MAESTRO 2'!W$39,'DATA MAESTRO 2'!W$40,) -> 0.0006 | Y3: =CHOOSE($B3,'DATA MAESTRO 2'!X$6,'DATA MAESTRO 2'!X$7,'DATA MAESTRO 2'!X$8,'DATA MAESTRO 2'!X$9,'DATA MAESTRO 2'!X$10,'DATA MAESTRO 2'!X$11,'DATA MAESTRO 2'!X$12,'DATA MAESTRO 2'!X$13,'DATA MAESTRO 2'!X$14,'DATA MAESTRO 2'!X$15,'DATA MAESTRO 2'!X$16,'DATA MAESTRO 2'!X$17,'DATA MAESTRO 2'!X$18,'DATA MAESTRO 2'!X$19,'DATA MAESTRO 2'!X$20,'DATA MAESTRO 2'!X$21,'DATA MAESTRO 2'!X$22,'DATA MAESTRO 2'!X$23,'DATA MAESTRO 2'!X$24,'DATA MAESTRO 2'!X$25,'DATA MAESTRO 2'!X$26,'DATA MAESTRO 2'!X$27,'DATA MAESTRO 2'!X$28,'DATA MAESTRO 2'!X$29,'DATA MAESTRO 2'!X$30,'DATA MAESTRO 2'!X$31,'DATA MAESTRO 2'!X$32,'DATA MAESTRO 2'!X$33,'DATA MAESTRO 2'!X$34,'DATA MAESTRO 2'!X$35,'DATA MAESTRO 2'!X$36,'DATA MAESTRO 2'!X$37,'DATA MAESTRO 2'!X$38,'DATA MAESTRO 2'!X$39,'DATA MAESTRO 2'!X$40,) -> 0.0021 | Z3: =CHOOSE($B3,'DATA MAESTRO 2'!Y$6,'DATA MAESTRO 2'!Y$7,'DATA MAESTRO 2'!Y$8,'DATA MAESTRO 2'!Y$9,'DATA MAESTRO 2'!Y$10,'DATA MAESTRO 2'!Y$11,'DATA MAESTRO 2'!Y$12,'DATA MAESTRO 2'!Y$13,'DATA MAESTRO 2'!Y$14,'DATA MAESTRO 2'!Y$15,'DATA MAESTRO 2'!Y$16,'DATA MAESTRO 2'!Y$17,'DATA MAESTRO 2'!Y$18,'DATA MAESTRO 2'!Y$19,'DATA MAESTRO 2'!Y$20,'DATA MAESTRO 2'!Y$21,'DATA MAESTRO 2'!Y$22,'DATA MAESTRO 2'!Y$23,'DATA MAESTRO 2'!Y$24,'DATA MAESTRO 2'!Y$25,'DATA MAESTRO 2'!Y$26,'DATA MAESTRO 2'!Y$27,'DATA MAESTRO 2'!Y$28,'DATA MAESTRO 2'!Y$29,'DATA MAESTRO 2'!Y$30,'DATA MAESTRO 2'!Y$31,'DATA MAESTRO 2'!Y$32,'DATA MAESTRO 2'!Y$33,'DATA MAESTRO 2'!Y$34,'DATA MAESTRO 2'!Y$35,'DATA MAESTRO 2'!Y$36,'DATA MAESTRO 2'!Y$37,'DATA MAESTRO 2'!Y$38,'DATA MAESTRO 2'!Y$39,'DATA MAESTRO 2'!Y$40,) -> 0 | AA3: =CHOOSE($B3,'DATA MAESTRO 2'!Z$6,'DATA MAESTRO 2'!Z$7,'DATA MAESTRO 2'!Z$8,'DATA MAESTRO 2'!Z$9,'DATA MAESTRO 2'!Z$10,'DATA MAESTRO 2'!Z$11,'DATA MAESTRO 2'!Z$12,'DATA MAESTRO 2'!Z$13,'DATA MAESTRO 2'!Z$14,'DATA MAESTRO 2'!Z$15,'DATA MAESTRO 2'!Z$16,'DATA MAESTRO 2'!Z$17,'DATA MAESTRO 2'!Z$18,'DATA MAESTRO 2'!Z$19,'DATA MAESTRO 2'!Z$20,'DATA MAESTRO 2'!Z$21,'DATA MAESTRO 2'!Z$22,'DATA MAESTRO 2'!Z$23,'DATA MAESTRO 2'!Z$24,'DATA MAESTRO 2'!Z$25,'DATA MAESTRO 2'!Z$26,'DATA MAESTRO 2'!Z$27,'DATA MAESTRO 2'!Z$28,'DATA MAESTRO 2'!Z$29,'DATA MAESTRO 2'!Z$30,'DATA MAESTRO 2'!Z$31,'DATA MAESTRO 2'!Z$32,'DATA MAESTRO 2'!Z$33,'DATA MAESTRO 2'!Z$34,'DATA MAESTRO 2'!Z$35,'DATA MAESTRO 2'!Z$36,'DATA MAESTRO 2'!Z$37,'DATA MAESTRO 2'!Z$38,'DATA MAESTRO 2'!Z$39,'DATA MAESTRO 2'!Z$40,) -> 0.31 | AB3: =CHOOSE($B3,'DATA MAESTRO 2'!AA$6,'DATA MAESTRO 2'!AA$7,'DATA MAESTRO 2'!AA$8,'DATA MAESTRO 2'!AA$9,'DATA MAESTRO 2'!AA$10,'DATA MAESTRO 2'!AA$11,'DATA MAESTRO 2'!AA$12,'DATA MAESTRO 2'!AA$13,'DATA MAESTRO 2'!AA$14,'DATA MAESTRO 2'!AA$15,'DATA MAESTRO 2'!AA$16,'DATA MAESTRO 2'!AA$17,'DATA MAESTRO 2'!AA$18,'DATA MAESTRO 2'!AA$19,'DATA MAESTRO 2'!AA$20,'DATA MAESTRO 2'!AA$21,'DATA MAESTRO 2'!AA$22,'DATA MAESTRO 2'!AA$23,'DATA MAESTRO 2'!AA$24,'DATA MAESTRO 2'!AA$25,'DATA MAESTRO 2'!AA$26,'DATA MAESTRO 2'!AA$27,'DATA MAESTRO 2'!AA$28,'DATA MAESTRO 2'!AA$29,'DATA MAESTRO 2'!AA$30,'DATA MAESTRO 2'!AA$31,'DATA MAESTRO 2'!AA$32,'DATA MAESTRO 2'!AA$33,'DATA MAESTRO 2'!AA$34,'DATA MAESTRO 2'!AA$35,'DATA MAESTRO 2'!AA$36,'DATA MAESTRO 2'!AA$37,'DATA MAESTRO 2'!AA$38,'DATA MAESTRO 2'!AA$39,'DATA MAESTRO 2'!AA$40,) -> 0 | AC3: =CHOOSE($B3,'DATA MAESTRO 2'!AB$6,'DATA MAESTRO 2'!AB$7,'DATA MAESTRO 2'!AB$8,'DATA MAESTRO 2'!AB$9,'DATA MAESTRO 2'!AB$10,'DATA MAESTRO 2'!AB$11,'DATA MAESTRO 2'!AB$12,'DATA MAESTRO 2'!AB$13,'DATA MAESTRO 2'!AB$14,'DATA MAESTRO 2'!AB$15,'DATA MAESTRO 2'!AB$16,'DATA MAESTRO 2'!AB$17,'DATA MAESTRO 2'!AB$18,'DATA MAESTRO 2'!AB$19,'DATA MAESTRO 2'!AB$20,'DATA MAESTRO 2'!AB$21,'DATA MAESTRO 2'!AB$22,'DATA MAESTRO 2'!AB$23,'DATA MAESTRO 2'!AB$24,'DATA MAESTRO 2'!AB$25,'DATA MAESTRO 2'!AB$26,'DATA MAESTRO 2'!AB$27,'DATA MAESTRO 2'!AB$28,'DATA MAESTRO 2'!AB$29,'DATA MAESTRO 2'!AB$30,'DATA MAESTRO 2'!AB$31,'DATA MAESTRO 2'!AB$32,'DATA MAESTRO 2'!AB$33,'DATA MAESTRO 2'!AB$34,'DATA MAESTRO 2'!AB$35,'DATA MAESTRO 2'!AB$36,'DATA MAESTRO 2'!AB$37,'DATA MAESTRO 2'!AB$38,'DATA MAESTRO 2'!AB$39,'DATA MAESTRO 2'!AB$40,) -> 0 | AD3: =CHOOSE($B3,'DATA MAESTRO 2'!AC$6,'DATA MAESTRO 2'!AC$7,'DATA MAESTRO 2'!AC$8,'DATA MAESTRO 2'!AC$9,'DATA MAESTRO 2'!AC$10,'DATA MAESTRO 2'!AC$11,'DATA MAESTRO 2'!AC$12,'DATA MAESTRO 2'!AC$13,'DATA MAESTRO 2'!AC$14,'DATA MAESTRO 2'!AC$15,'DATA MAESTRO 2'!AC$16,'DATA MAESTRO 2'!AC$17,'DATA MAESTRO 2'!AC$18,'DATA MAESTRO 2'!AC$19,'DATA MAESTRO 2'!AC$20,'DATA MAESTRO 2'!AC$21,'DATA MAESTRO 2'!AC$22,'DATA MAESTRO 2'!AC$23,'DATA MAESTRO 2'!AC$24,'DATA MAESTRO 2'!AC$25,'DATA MAESTRO 2'!AC$26,'DATA MAESTRO 2'!AC$27,'DATA MAESTRO 2'!AC$28,'DATA MAESTRO 2'!AC$29,'DATA MAESTRO 2'!AC$30,'DATA MAESTRO 2'!AC$31,'DATA MAESTRO 2'!AC$32,'DATA MAESTRO 2'!AC$33,'DATA MAESTRO 2'!AC$34,'DATA MAESTRO 2'!AC$35,'DATA MAESTRO 2'!AC$36,'DATA MAESTRO 2'!AC$37,'DATA MAESTRO 2'!AC$38,'DATA MAESTRO 2'!AC$39,'DATA MAESTRO 2'!AC$40,) -> 0 | AE3: =CHOOSE($B3,'DATA MAESTRO 2'!AD$6,'DATA MAESTRO 2'!AD$7,'DATA MAESTRO 2'!AD$8,'DATA MAESTRO 2'!AD$9,'DATA MAESTRO 2'!AD$10,'DATA MAESTRO 2'!AD$11,'DATA MAESTRO 2'!AD$12,'DATA MAESTRO 2'!AD$13,'DATA MAESTRO 2'!AD$14,'DATA MAESTRO 2'!AD$15,'DATA MAESTRO 2'!AD$16,'DATA MAESTRO 2'!AD$17,'DATA MAESTRO 2'!AD$18,'DATA MAESTRO 2'!AD$19,'DATA MAESTRO 2'!AD$20,'DATA MAESTRO 2'!AD$21,'DATA MAESTRO 2'!AD$22,'DATA MAESTRO 2'!AD$23,'DATA MAESTRO 2'!AD$24,'DATA MAESTRO 2'!AD$25,'DATA MAESTRO 2'!AD$26,'DATA MAESTRO 2'!AD$27,'DATA MAESTRO 2'!AD$28,'DATA MAESTRO 2'!AD$29,'DATA MAESTRO 2'!AD$30,'DATA MAESTRO 2'!AD$31,'DATA MAESTRO 2'!AD$32,'DATA MAESTRO 2'!AD$33,'DATA MAESTRO 2'!AD$34,'DATA MAESTRO 2'!AD$35,'DATA MAESTRO 2'!AD$36,'DATA MAESTRO 2'!AD$37,'DATA MAESTRO 2'!AD$38,'DATA MAESTRO 2'!AD$39,'DATA MAESTRO 2'!AD$40,) -> 0 | AF3: =CHOOSE($B3,'DATA MAESTRO 2'!AE$6,'DATA MAESTRO 2'!AE$7,'DATA MAESTRO 2'!AE$8,'DATA MAESTRO 2'!AE$9,'DATA MAESTRO 2'!AE$10,'DATA MAESTRO 2'!AE$11,'DATA MAESTRO 2'!AE$12,'DATA MAESTRO 2'!AE$13,'DATA MAESTRO 2'!AE$14,'DATA MAESTRO 2'!AE$15,'DATA MAESTRO 2'!AE$16,'DATA MAESTRO 2'!AE$17,'DATA MAESTRO 2'!AE$18,'DATA MAESTRO 2'!AE$19,'DATA MAESTRO 2'!AE$20,'DATA MAESTRO 2'!AE$21,'DATA MAESTRO 2'!AE$22,'DATA MAESTRO 2'!AE$23,'DATA MAESTRO 2'!AE$24,'DATA MAESTRO 2'!AE$25,'DATA MAESTRO 2'!AE$26,'DATA MAESTRO 2'!AE$27,'DATA MAESTRO 2'!AE$28,'DATA MAESTRO 2'!AE$29,'DATA MAESTRO 2'!AE$30,'DATA MAESTRO 2'!AE$31,'DATA MAESTRO 2'!AE$32,'DATA MAESTRO 2'!AE$33,'DATA MAESTRO 2'!AE$34,'DATA MAESTRO 2'!AE$35,'DATA MAESTRO 2'!AE$36,'DATA MAESTRO 2'!AE$37,'DATA MAESTRO 2'!AE$38,'DATA MAESTRO 2'!AE$39,'DATA MAESTRO 2'!AE$40,) -> 0 | AG3: =CHOOSE($B3,'DATA MAESTRO 2'!AF$6,'DATA MAESTRO 2'!AF$7,'DATA MAESTRO 2'!AF$8,'DATA MAESTRO 2'!AF$9,'DATA MAESTRO 2'!AF$10,'DATA MAESTRO 2'!AF$11,'DATA MAESTRO 2'!AF$12,'DATA MAESTRO 2'!AF$13,'DATA MAESTRO 2'!AF$14,'DATA MAESTRO 2'!AF$15,'DATA MAESTRO 2'!AF$16,'DATA MAESTRO 2'!AF$17,'DATA MAESTRO 2'!AF$18,'DATA MAESTRO 2'!AF$19,'DATA MAESTRO 2'!AF$20,'DATA MAESTRO 2'!AF$21,'DATA MAESTRO 2'!AF$22,'DATA MAESTRO 2'!AF$23,'DATA MAESTRO 2'!AF$24,'DATA MAESTRO 2'!AF$25,'DATA MAESTRO 2'!AF$26,'DATA MAESTRO 2'!AF$27,'DATA MAESTRO 2'!AF$28,'DATA MAESTRO 2'!AF$29,'DATA MAESTRO 2'!AF$30,'DATA MAESTRO 2'!AF$31,'DATA MAESTRO 2'!AF$32,'DATA MAESTRO 2'!AF$33,'DATA MAESTRO 2'!AF$34,'DATA MAESTRO 2'!AF$35,'DATA MAESTRO 2'!AF$36,'DATA MAESTRO 2'!AF$37,'DATA MAESTRO 2'!AF$38,'DATA MAESTRO 2'!AF$39,'DATA MAESTRO 2'!AF$40,) -> 0 | AH3: =CHOOSE($B3,'DATA MAESTRO 2'!AG$6,'DATA MAESTRO 2'!AG$7,'DATA MAESTRO 2'!AG$8,'DATA MAESTRO 2'!AG$9,'DATA MAESTRO 2'!AG$10,'DATA MAESTRO 2'!AG$11,'DATA MAESTRO 2'!AG$12,'DATA MAESTRO 2'!AG$13,'DATA MAESTRO 2'!AG$14,'DATA MAESTRO 2'!AG$15,'DATA MAESTRO 2'!AG$16,'DATA MAESTRO 2'!AG$17,'DATA MAESTRO 2'!AG$18,'DATA MAESTRO 2'!AG$19,'DATA MAESTRO 2'!AG$20,'DATA MAESTRO 2'!AG$21,'DATA MAESTRO 2'!AG$22,'DATA MAESTRO 2'!AG$23,'DATA MAESTRO 2'!AG$24,'DATA MAESTRO 2'!AG$25,'DATA MAESTRO 2'!AG$26,'DATA MAESTRO 2'!AG$27,'DATA MAESTRO 2'!AG$28,'DATA MAESTRO 2'!AG$29,'DATA MAESTRO 2'!AG$30,'DATA MAESTRO 2'!AG$31,'DATA MAESTRO 2'!AG$32,'DATA MAESTRO 2'!AG$33,'DATA MAESTRO 2'!AG$34,'DATA MAESTRO 2'!AG$35,'DATA MAESTRO 2'!AG$36,'DATA MAESTRO 2'!AG$37,'DATA MAESTRO 2'!AG$38,'DATA MAESTRO 2'!AG$39,'DATA MAESTRO 2'!AG$40,) -> 0 | AI3: =CHOOSE($B3,'DATA MAESTRO 2'!AH$6,'DATA MAESTRO 2'!AH$7,'DATA MAESTRO 2'!AH$8,'DATA MAESTRO 2'!AH$9,'DATA MAESTRO 2'!AH$10,'DATA MAESTRO 2'!AH$11,'DATA MAESTRO 2'!AH$12,'DATA MAESTRO 2'!AH$13,'DATA MAESTRO 2'!AH$14,'DATA MAESTRO 2'!AH$15,'DATA MAESTRO 2'!AH$16,'DATA MAESTRO 2'!AH$17,'DATA MAESTRO 2'!AH$18,'DATA MAESTRO 2'!AH$19,'DATA MAESTRO 2'!AH$20,'DATA MAESTRO 2'!AH$21,'DATA MAESTRO 2'!AH$22,'DATA MAESTRO 2'!AH$23,'DATA MAESTRO 2'!AH$24,'DATA MAESTRO 2'!AH$25,'DATA MAESTRO 2'!AH$26,'DATA MAESTRO 2'!AH$27,'DATA MAESTRO 2'!AH$28,'DATA MAESTRO 2'!AH$29,'DATA MAESTRO 2'!AH$30,'DATA MAESTRO 2'!AH$31,'DATA MAESTRO 2'!AH$32,'DATA MAESTRO 2'!AH$33,'DATA MAESTRO 2'!AH$34,'DATA MAESTRO 2'!AH$35,'DATA MAESTRO 2'!AH$36,'DATA MAESTRO 2'!AH$37,'DATA MAESTRO 2'!AH$38,'DATA MAESTRO 2'!AH$39,'DATA MAESTRO 2'!AH$40,) -> 0 | AJ3: =CHOOSE($B3,'DATA MAESTRO 2'!AI$6,'DATA MAESTRO 2'!AI$7,'DATA MAESTRO 2'!AI$8,'DATA MAESTRO 2'!AI$9,'DATA MAESTRO 2'!AI$10,'DATA MAESTRO 2'!AI$11,'DATA MAESTRO 2'!AI$12,'DATA MAESTRO 2'!AI$13,'DATA MAESTRO 2'!AI$14,'DATA MAESTRO 2'!AI$15,'DATA MAESTRO 2'!AI$16,'DATA MAESTRO 2'!AI$17,'DATA MAESTRO 2'!AI$18,'DATA MAESTRO 2'!AI$19,'DATA MAESTRO 2'!AI$20,'DATA MAESTRO 2'!AI$21,'DATA MAESTRO 2'!AI$22,'DATA MAESTRO 2'!AI$23,'DATA MAESTRO 2'!AI$24,'DATA MAESTRO 2'!AI$25,'DATA MAESTRO 2'!AI$26,'DATA MAESTRO 2'!AI$27,'DATA MAESTRO 2'!AI$28,'DATA MAESTRO 2'!AI$29,'DATA MAESTRO 2'!AI$30,'DATA MAESTRO 2'!AI$31,'DATA MAESTRO 2'!AI$32,'DATA MAESTRO 2'!AI$33,'DATA MAESTRO 2'!AI$34,'DATA MAESTRO 2'!AI$35,'DATA MAESTRO 2'!AI$36,'DATA MAESTRO 2'!AI$37,'DATA MAESTRO 2'!AI$38,'DATA MAESTRO 2'!AI$39,'DATA MAESTRO 2'!AI$40,) -> 0 | AK3: =CHOOSE($B3,'DATA MAESTRO 2'!AJ$6,'DATA MAESTRO 2'!AJ$7,'DATA MAESTRO 2'!AJ$8,'DATA MAESTRO 2'!AJ$9,'DATA MAESTRO 2'!AJ$10,'DATA MAESTRO 2'!AJ$11,'DATA MAESTRO 2'!AJ$12,'DATA MAESTRO 2'!AJ$13,'DATA MAESTRO 2'!AJ$14,'DATA MAESTRO 2'!AJ$15,'DATA MAESTRO 2'!AJ$16,'DATA MAESTRO 2'!AJ$17,'DATA MAESTRO 2'!AJ$18,'DATA MAESTRO 2'!AJ$19,'DATA MAESTRO 2'!AJ$20,'DATA MAESTRO 2'!AJ$21,'DATA MAESTRO 2'!AJ$22,'DATA MAESTRO 2'!AJ$23,'DATA MAESTRO 2'!AJ$24,'DATA MAESTRO 2'!AJ$25,'DATA MAESTRO 2'!AJ$26,'DATA MAESTRO 2'!AJ$27,'DATA MAESTRO 2'!AJ$28,'DATA MAESTRO 2'!AJ$29,'DATA MAESTRO 2'!AJ$30,'DATA MAESTRO 2'!AJ$31,'DATA MAESTRO 2'!AJ$32,'DATA MAESTRO 2'!AJ$33,'DATA MAESTRO 2'!AJ$34,'DATA MAESTRO 2'!AJ$35,'DATA MAESTRO 2'!AJ$36,'DATA MAESTRO 2'!AJ$37,'DATA MAESTRO 2'!AJ$38,'DATA MAESTRO 2'!AJ$39,'DATA MAESTRO 2'!AJ$40,) -> 0
A4: 2 | B4: 5 | C4: =+IF(AND(B4>=1,B4<=36),VLOOKUP(B4,'DATA MAESTRO 2'!$A$6:$B$40,2),0) -> TORTA DE SOYA | D4: =+CHOOSE($B4,'DATA MAESTRO 2'!C$6,'DATA MAESTRO 2'!C$7,'DATA MAESTRO 2'!C$8,'DATA MAESTRO 2'!C$9,'DATA MAESTRO 2'!C$10,'DATA MAESTRO 2'!C$11,'DATA MAESTRO 2'!C$12,'DATA MAESTRO 2'!C$13,'DATA MAESTRO 2'!C$14,'DATA MAESTRO 2'!C$15,'DATA MAESTRO 2'!C$16,'DATA MAESTRO 2'!C$17,'DATA MAESTRO 2'!C$18,'DATA MAESTRO 2'!C$19,'DATA MAESTRO 2'!C$20,'DATA MAESTRO 2'!C$21,'DATA MAESTRO 2'!C$22,'DATA MAESTRO 2'!C$23,'DATA MAESTRO 2'!C$24,'DATA MAESTRO 2'!C$25,'DATA MAESTRO 2'!C$26,'DATA MAESTRO 2'!C$27,'DATA MAESTRO 2'!C$28,'DATA MAESTRO 2'!C$29,'DATA MAESTRO 2'!C$30,'DATA MAESTRO 2'!C$31,'DATA MAESTRO 2'!C$32,'DATA MAESTRO 2'!C$33,'DATA MAESTRO 2'!C$34,'DATA MAESTRO 2'!C$35,'DATA MAESTRO 2'!C$36,'DATA MAESTRO 2'!C$37,'DATA MAESTRO 2'!C$38,'DATA MAESTRO 2'!C$39,'DATA MAESTRO 2'!C$40,) -> 0 | E4: =CHOOSE($B4,'DATA MAESTRO 2'!D$6,'DATA MAESTRO 2'!D$7,'DATA MAESTRO 2'!D$8,'DATA MAESTRO 2'!D$9,'DATA MAESTRO 2'!D$10,'DATA MAESTRO 2'!D$11,'DATA MAESTRO 2'!D$12,'DATA MAESTRO 2'!D$13,'DATA MAESTRO 2'!D$14,'DATA MAESTRO 2'!D$15,'DATA MAESTRO 2'!D$16,'DATA MAESTRO 2'!D$17,'DATA MAESTRO 2'!D$18,'DATA MAESTRO 2'!D$19,'DATA MAESTRO 2'!D$20,'DATA MAESTRO 2'!D$21,'DATA MAESTRO 2'!D$22,'DATA MAESTRO 2'!D$23,'DATA MAESTRO 2'!D$24,'DATA MAESTRO 2'!D$25,'DATA MAESTRO 2'!D$26,'DATA MAESTRO 2'!D$27,'DATA MAESTRO 2'!D$28,'DATA MAESTRO 2'!D$29,'DATA MAESTRO 2'!D$30,'DATA MAESTRO 2'!D$31,'DATA MAESTRO 2'!D$32,'DATA MAESTRO 2'!D$33,'DATA MAESTRO 2'!D$34,'DATA MAESTRO 2'!D$35,'DATA MAESTRO 2'!D$36,'DATA MAESTRO 2'!D$37,'DATA MAESTRO 2'!D$38,'DATA MAESTRO 2'!D$39,'DATA MAESTRO 2'!D$40,) -> 0.91 | F4: =CHOOSE(B4,'DATA MAESTRO 2'!E$6,'DATA MAESTRO 2'!E$7,'DATA MAESTRO 2'!E$8,'DATA MAESTRO 2'!E$9,'DATA MAESTRO 2'!E$10,'DATA MAESTRO 2'!E$11,'DATA MAESTRO 2'!E$12,'DATA MAESTRO 2'!E$13,'DATA MAESTRO 2'!E$14,'DATA MAESTRO 2'!E$15,'DATA MAESTRO 2'!E$16,'DATA MAESTRO 2'!E$17,'DATA MAESTRO 2'!E$18,'DATA MAESTRO 2'!E$19,'DATA MAESTRO 2'!E$20,'DATA MAESTRO 2'!E$21,'DATA MAESTRO 2'!E$22,'DATA MAESTRO 2'!E$23,'DATA MAESTRO 2'!E$24,'DATA MAESTRO 2'!E$25,'DATA MAESTRO 2'!E$26,'DATA MAESTRO 2'!E$27,'DATA MAESTRO 2'!E$28,'DATA MAESTRO 2'!E$29,'DATA MAESTRO 2'!E$30,'DATA MAESTRO 2'!E$31,'DATA MAESTRO 2'!E$32,'DATA MAESTRO 2'!E$33,'DATA MAESTRO 2'!E$34,'DATA MAESTRO 2'!E$35,'DATA MAESTRO 2'!E$36,'DATA MAESTRO 2'!E$37,'DATA MAESTRO 2'!E$38,'DATA MAESTRO 2'!E$39,'DATA MAESTRO 2'!E$40,) -> 0.81 | G4: =CHOOSE($B4,'DATA MAESTRO 2'!F$6,'DATA MAESTRO 2'!F$7,'DATA MAESTRO 2'!F$8,'DATA MAESTRO 2'!F$9,'DATA MAESTRO 2'!F$10,'DATA MAESTRO 2'!F$11,'DATA MAESTRO 2'!F$12,'DATA MAESTRO 2'!F$13,'DATA MAESTRO 2'!F$14,'DATA MAESTRO 2'!F$15,'DATA MAESTRO 2'!F$16,'DATA MAESTRO 2'!F$17,'DATA MAESTRO 2'!F$18,'DATA MAESTRO 2'!F$19,'DATA MAESTRO 2'!F$20,'DATA MAESTRO 2'!F$21,'DATA MAESTRO 2'!F$22,'DATA MAESTRO 2'!F$23,'DATA MAESTRO 2'!F$24,'DATA MAESTRO 2'!F$25,'DATA MAESTRO 2'!F$26,'DATA MAESTRO 2'!F$27,'DATA MAESTRO 2'!F$28,'DATA MAESTRO 2'!F$29,'DATA MAESTRO 2'!F$30,'DATA MAESTRO 2'!F$31,'DATA MAESTRO 2'!F$32,'DATA MAESTRO 2'!F$33,'DATA MAESTRO 2'!F$34,'DATA MAESTRO 2'!F$35,'DATA MAESTRO 2'!F$36,'DATA MAESTRO 2'!F$37,'DATA MAESTRO 2'!F$38,'DATA MAESTRO 2'!F$39,'DATA MAESTRO 2'!F$40,) -> 0.48 | H4: =CHOOSE($B4,'DATA MAESTRO 2'!G$6,'DATA MAESTRO 2'!G$7,'DATA MAESTRO 2'!G$8,'DATA MAESTRO 2'!G$9,'DATA MAESTRO 2'!G$10,'DATA MAESTRO 2'!G$11,'DATA MAESTRO 2'!G$12,'DATA MAESTRO 2'!G$13,'DATA MAESTRO 2'!G$14,'DATA MAESTRO 2'!G$15,'DATA MAESTRO 2'!G$16,'DATA MAESTRO 2'!G$17,'DATA MAESTRO 2'!G$18,'DATA MAESTRO 2'!G$19,'DATA MAESTRO 2'!G$20,'DATA MAESTRO 2'!G$21,'DATA MAESTRO 2'!G$22,'DATA MAESTRO 2'!G$23,'DATA MAESTRO 2'!G$24,'DATA MAESTRO 2'!G$25,'DATA MAESTRO 2'!G$26,'DATA MAESTRO 2'!G$27,'DATA MAESTRO 2'!G$28,'DATA MAESTRO 2'!G$29,'DATA MAESTRO 2'!G$30,'DATA MAESTRO 2'!G$31,'DATA MAESTRO 2'!G$32,'DATA MAESTRO 2'!G$33,'DATA MAESTRO 2'!G$34,'DATA MAESTRO 2'!G$35,'DATA MAESTRO 2'!G$36,'DATA MAESTRO 2'!G$37,'DATA MAESTRO 2'!G$38,'DATA MAESTRO 2'!G$39,'DATA MAESTRO 2'!G$40,) -> 0.05 | I4: =CHOOSE($B4,'DATA MAESTRO 2'!H$6,'DATA MAESTRO 2'!H$7,'DATA MAESTRO 2'!H$8,'DATA MAESTRO 2'!H$9,'DATA MAESTRO 2'!H$10,'DATA MAESTRO 2'!H$11,'DATA MAESTRO 2'!H$12,'DATA MAESTRO 2'!H$13,'DATA MAESTRO 2'!H$14,'DATA MAESTRO 2'!H$15,'DATA MAESTRO 2'!H$16,'DATA MAESTRO 2'!H$17,'DATA MAESTRO 2'!H$18,'DATA MAESTRO 2'!H$19,'DATA MAESTRO 2'!H$20,'DATA MAESTRO 2'!H$21,'DATA MAESTRO 2'!H$22,'DATA MAESTRO 2'!H$23,'DATA MAESTRO 2'!H$24,'DATA MAESTRO 2'!H$25,'DATA MAESTRO 2'!H$26,'DATA MAESTRO 2'!H$27,'DATA MAESTRO 2'!H$28,'DATA MAESTRO 2'!H$29,'DATA MAESTRO 2'!H$30,'DATA MAESTRO 2'!H$31,'DATA MAESTRO 2'!H$32,'DATA MAESTRO 2'!H$33,'DATA MAESTRO 2'!H$34,'DATA MAESTRO 2'!H$35,'DATA MAESTRO 2'!H$36,'DATA MAESTRO 2'!H$37,'DATA MAESTRO 2'!H$38,'DATA MAESTRO 2'!H$39,'DATA MAESTRO 2'!H$40,) -> 0.1 | J4: =CHOOSE($B4,'DATA MAESTRO 2'!I$6,'DATA MAESTRO 2'!I$7,'DATA MAESTRO 2'!I$8,'DATA MAESTRO 2'!I$9,'DATA MAESTRO 2'!I$10,'DATA MAESTRO 2'!I$11,'DATA MAESTRO 2'!I$12,'DATA MAESTRO 2'!I$13,'DATA MAESTRO 2'!I$14,'DATA MAESTRO 2'!I$15,'DATA MAESTRO 2'!I$16,'DATA MAESTRO 2'!I$17,'DATA MAESTRO 2'!I$18,'DATA MAESTRO 2'!I$19,'DATA MAESTRO 2'!I$20,'DATA MAESTRO 2'!I$21,'DATA MAESTRO 2'!I$22,'DATA MAESTRO 2'!I$23,'DATA MAESTRO 2'!I$24,'DATA MAESTRO 2'!I$25,'DATA MAESTRO 2'!I$26,'DATA MAESTRO 2'!I$27,'DATA MAESTRO 2'!I$28,'DATA MAESTRO 2'!I$29,'DATA MAESTRO 2'!I$30,'DATA MAESTRO 2'!I$31,'DATA MAESTRO 2'!I$32,'DATA MAESTRO 2'!I$33,'DATA MAESTRO 2'!I$34,'DATA MAESTRO 2'!I$35,'DATA MAESTRO 2'!I$36,'DATA MAESTRO 2'!I$37,'DATA MAESTRO 2'!I$38,'DATA MAESTRO 2'!I$39,'DATA MAESTRO 2'!I$40,) -> 0.062 | K4: =CHOOSE($B4,'DATA MAESTRO 2'!J$6,'DATA MAESTRO 2'!J$7,'DATA MAESTRO 2'!J$8,'DATA MAESTRO 2'!J$9,'DATA MAESTRO 2'!J$10,'DATA MAESTRO 2'!J$11,'DATA MAESTRO 2'!J$12,'DATA MAESTRO 2'!J$13,'DATA MAESTRO 2'!J$14,'DATA MAESTRO 2'!J$15,'DATA MAESTRO 2'!J$16,'DATA MAESTRO 2'!J$17,'DATA MAESTRO 2'!J$18,'DATA MAESTRO 2'!J$19,'DATA MAESTRO 2'!J$20,'DATA MAESTRO 2'!J$21,'DATA MAESTRO 2'!J$22,'DATA MAESTRO 2'!J$23,'DATA MAESTRO 2'!J$24,'DATA MAESTRO 2'!J$25,'DATA MAESTRO 2'!J$26,'DATA MAESTRO 2'!J$27,'DATA MAESTRO 2'!J$28,'DATA MAESTRO 2'!J$29,'DATA MAESTRO 2'!J$30,'DATA MAESTRO 2'!J$31,'DATA MAESTRO 2'!J$32,'DATA MAESTRO 2'!J$33,'DATA MAESTRO 2'!J$34,'DATA MAESTRO 2'!J$35,'DATA MAESTRO 2'!J$36,'DATA MAESTRO 2'!J$37,'DATA MAESTRO 2'!J$38,'DATA MAESTRO 2'!J$39,'DATA MAESTRO 2'!J$40,) -> 0.003 | L4: =CHOOSE($B4,'DATA MAESTRO 2'!K$6,'DATA MAESTRO 2'!K$7,'DATA MAESTRO 2'!K$8,'DATA MAESTRO 2'!K$9,'DATA MAESTRO 2'!K$10,'DATA MAESTRO 2'!K$11,'DATA MAESTRO 2'!K$12,'DATA MAESTRO 2'!K$13,'DATA MAESTRO 2'!K$14,'DATA MAESTRO 2'!K$15,'DATA MAESTRO 2'!K$16,'DATA MAESTRO 2'!K$17,'DATA MAESTRO 2'!K$18,'DATA MAESTRO 2'!K$19,'DATA MAESTRO 2'!K$20,'DATA MAESTRO 2'!K$21,'DATA MAESTRO 2'!K$22,'DATA MAESTRO 2'!K$23,'DATA MAESTRO 2'!K$24,'DATA MAESTRO 2'!K$25,'DATA MAESTRO 2'!K$26,'DATA MAESTRO 2'!K$27,'DATA MAESTRO 2'!K$28,'DATA MAESTRO 2'!K$29,'DATA MAESTRO 2'!K$30,'DATA MAESTRO 2'!K$31,'DATA MAESTRO 2'!K$32,'DATA MAESTRO 2'!K$33,'DATA MAESTRO 2'!K$34,'DATA MAESTRO 2'!K$35,'DATA MAESTRO 2'!K$36,'DATA MAESTRO 2'!K$37,'DATA MAESTRO 2'!K$38,'DATA MAESTRO 2'!K$39,'DATA MAESTRO 2'!K$40,) -> 0.007 | M4: =CHOOSE($B4,'DATA MAESTRO 2'!L$6,'DATA MAESTRO 2'!L$7,'DATA MAESTRO 2'!L$8,'DATA MAESTRO 2'!L$9,'DATA MAESTRO 2'!L$10,'DATA MAESTRO 2'!L$11,'DATA MAESTRO 2'!L$12,'DATA MAESTRO 2'!L$13,'DATA MAESTRO 2'!L$14,'DATA MAESTRO 2'!L$15,'DATA MAESTRO 2'!L$16,'DATA MAESTRO 2'!L$17,'DATA MAESTRO 2'!L$18,'DATA MAESTRO 2'!L$19,'DATA MAESTRO 2'!L$20,'DATA MAESTRO 2'!L$21,'DATA MAESTRO 2'!L$22,'DATA MAESTRO 2'!L$23,'DATA MAESTRO 2'!L$24,'DATA MAESTRO 2'!L$25,'DATA MAESTRO 2'!L$26,'DATA MAESTRO 2'!L$27,'DATA MAESTRO 2'!L$28,'DATA MAESTRO 2'!L$29,'DATA MAESTRO 2'!L$30,'DATA MAESTRO 2'!L$31,'DATA MAESTRO 2'!L$32,'DATA MAESTRO 2'!L$33,'DATA MAESTRO 2'!L$34,'DATA MAESTRO 2'!L$35,'DATA MAESTRO 2'!L$36,'DATA MAESTRO 2'!L$37,'DATA MAESTRO 2'!L$38,'DATA MAESTRO 2'!L$39,'DATA MAESTRO 2'!L$40,) -> 2.9284578 | N4: =CHOOSE($B4,'DATA MAESTRO 2'!M$6,'DATA MAESTRO 2'!M$7,'DATA MAESTRO 2'!M$8,'DATA MAESTRO 2'!M$9,'DATA MAESTRO 2'!M$10,'DATA MAESTRO 2'!M$11,'DATA MAESTRO 2'!M$12,'DATA MAESTRO 2'!M$13,'DATA MAESTRO 2'!M$14,'DATA MAESTRO 2'!M$15,'DATA MAESTRO 2'!M$16,'DATA MAESTRO 2'!M$17,'DATA MAESTRO 2'!M$18,'DATA MAESTRO 2'!M$19,'DATA MAESTRO 2'!M$20,'DATA MAESTRO 2'!M$21,'DATA MAESTRO 2'!M$22,'DATA MAESTRO 2'!M$23,'DATA MAESTRO 2'!M$24,'DATA MAESTRO 2'!M$25,'DATA MAESTRO 2'!M$26,'DATA MAESTRO 2'!M$27,'DATA MAESTRO 2'!M$28,'DATA MAESTRO 2'!M$29,'DATA MAESTRO 2'!M$30,'DATA MAESTRO 2'!M$31,'DATA MAESTRO 2'!M$32,'DATA MAESTRO 2'!M$33,'DATA MAESTRO 2'!M$34,'DATA MAESTRO 2'!M$35,'DATA MAESTRO 2'!M$36,'DATA MAESTRO 2'!M$37,'DATA MAESTRO 2'!M$38,'DATA MAESTRO 2'!M$39,'DATA MAESTRO 2'!M$40,) -> 1.963131234 | O4: =CHOOSE($B4,'DATA MAESTRO 2'!N$6,'DATA MAESTRO 2'!N$7,'DATA MAESTRO 2'!N$8,'DATA MAESTRO 2'!N$9,'DATA MAESTRO 2'!N$10,'DATA MAESTRO 2'!N$11,'DATA MAESTRO 2'!N$12,'DATA MAESTRO 2'!N$13,'DATA MAESTRO 2'!N$14,'DATA MAESTRO 2'!N$15,'DATA MAESTRO 2'!N$16,'DATA MAESTRO 2'!N$17,'DATA MAESTRO 2'!N$18,'DATA MAESTRO 2'!N$19,'DATA MAESTRO 2'!N$20,'DATA MAESTRO 2'!N$21,'DATA MAESTRO 2'!N$22,'DATA MAESTRO 2'!N$23,'DATA MAESTRO 2'!N$24,'DATA MAESTRO 2'!N$25,'DATA MAESTRO 2'!N$26,'DATA MAESTRO 2'!N$27,'DATA MAESTRO 2'!N$28,'DATA MAESTRO 2'!N$29,'DATA MAESTRO 2'!N$30,'DATA MAESTRO 2'!N$31,'DATA MAESTRO 2'!N$32,'DATA MAESTRO 2'!N$33,'DATA MAESTRO 2'!N$34,'DATA MAESTRO 2'!N$35,'DATA MAESTRO 2'!N$36,'DATA MAESTRO 2'!N$37,'DATA MAESTRO 2'!N$38,'DATA MAESTRO 2'!N$39,'DATA MAESTRO 2'!N$40,) -> 1.8645 | P4: =CHOOSE($B4,'DATA MAESTRO 2'!O$6,'DATA MAESTRO 2'!O$7,'DATA MAESTRO 2'!O$8,'DATA MAESTRO 2'!O$9,'DATA MAESTRO 2'!O$10,'DATA MAESTRO 2'!O$11,'DATA MAESTRO 2'!O$12,'DATA MAESTRO 2'!O$13,'DATA MAESTRO 2'!O$14,'DATA MAESTRO 2'!O$15,'DATA MAESTRO 2'!O$16,'DATA MAESTRO 2'!O$17,'DATA MAESTRO 2'!O$18,'DATA MAESTRO 2'!O$19,'DATA MAESTRO 2'!O$20,'DATA MAESTRO 2'!O$21,'DATA MAESTRO 2'!O$22,'DATA MAESTRO 2'!O$23,'DATA MAESTRO 2'!O$24,'DATA MAESTRO 2'!O$25,'DATA MAESTRO 2'!O$26,'DATA MAESTRO 2'!O$27,'DATA MAESTRO 2'!O$28,'DATA MAESTRO 2'!O$29,'DATA MAESTRO 2'!O$30,'DATA MAESTRO 2'!O$31,'DATA MAESTRO 2'!O$32,'DATA MAESTRO 2'!O$33,'DATA MAESTRO 2'!O$34,'DATA MAESTRO 2'!O$35,'DATA MAESTRO 2'!O$36,'DATA MAESTRO 2'!O$37,'DATA MAESTRO 2'!O$38,'DATA MAESTRO 2'!O$39,'DATA MAESTRO 2'!O$40,) -> 2.457111203 | Q4: =CHOOSE($B4,'DATA MAESTRO 2'!P$6,'DATA MAESTRO 2'!P$7,'DATA MAESTRO 2'!P$8,'DATA MAESTRO 2'!P$9,'DATA MAESTRO 2'!P$10,'DATA MAESTRO 2'!P$11,'DATA MAESTRO 2'!P$12,'DATA MAESTRO 2'!P$13,'DATA MAESTRO 2'!P$14,'DATA MAESTRO 2'!P$15,'DATA MAESTRO 2'!P$16,'DATA MAESTRO 2'!P$17,'DATA MAESTRO 2'!P$18,'DATA MAESTRO 2'!P$19,'DATA MAESTRO 2'!P$20,'DATA MAESTRO 2'!P$21,'DATA MAESTRO 2'!P$22,'DATA MAESTRO 2'!P$23,'DATA MAESTRO 2'!P$24,'DATA MAESTRO 2'!P$25,'DATA MAESTRO 2'!P$26,'DATA MAESTRO 2'!P$27,'DATA MAESTRO 2'!P$28,'DATA MAESTRO 2'!P$29,'DATA MAESTRO 2'!P$30,'DATA MAESTRO 2'!P$31,'DATA MAESTRO 2'!P$32,'DATA MAESTRO 2'!P$33,'DATA MAESTRO 2'!P$34,'DATA MAESTRO 2'!P$35,'DATA MAESTRO 2'!P$36,'DATA MAESTRO 2'!P$37,'DATA MAESTRO 2'!P$38,'DATA MAESTRO 2'!P$39,'DATA MAESTRO 2'!P$40,) -> 0.02 | R4: =CHOOSE($B4,'DATA MAESTRO 2'!Q$6,'DATA MAESTRO 2'!Q$7,'DATA MAESTRO 2'!Q$8,'DATA MAESTRO 2'!Q$9,'DATA MAESTRO 2'!Q$10,'DATA MAESTRO 2'!Q$11,'DATA MAESTRO 2'!Q$12,'DATA MAESTRO 2'!Q$13,'DATA MAESTRO 2'!Q$14,'DATA MAESTRO 2'!Q$15,'DATA MAESTRO 2'!Q$16,'DATA MAESTRO 2'!Q$17,'DATA MAESTRO 2'!Q$18,'DATA MAESTRO 2'!Q$19,'DATA MAESTRO 2'!Q$20,'DATA MAESTRO 2'!Q$21,'DATA MAESTRO 2'!Q$22,'DATA MAESTRO 2'!Q$23,'DATA MAESTRO 2'!Q$24,'DATA MAESTRO 2'!Q$25,'DATA MAESTRO 2'!Q$26,'DATA MAESTRO 2'!Q$27,'DATA MAESTRO 2'!Q$28,'DATA MAESTRO 2'!Q$29,'DATA MAESTRO 2'!Q$30,'DATA MAESTRO 2'!Q$31,'DATA MAESTRO 2'!Q$32,'DATA MAESTRO 2'!Q$33,'DATA MAESTRO 2'!Q$34,'DATA MAESTRO 2'!Q$35,'DATA MAESTRO 2'!Q$36,'DATA MAESTRO 2'!Q$37,'DATA MAESTRO 2'!Q$38,'DATA MAESTRO 2'!Q$39,'DATA MAESTRO 2'!Q$40,) -> 0.3 | S4: =CHOOSE($B4,'DATA MAESTRO 2'!R$6,'DATA MAESTRO 2'!R$7,'DATA MAESTRO 2'!R$8,'DATA MAESTRO 2'!R$9,'DATA MAESTRO 2'!R$10,'DATA MAESTRO 2'!R$11,'DATA MAESTRO 2'!R$12,'DATA MAESTRO 2'!R$13,'DATA MAESTRO 2'!R$14,'DATA MAESTRO 2'!R$15,'DATA MAESTRO 2'!R$16,'DATA MAESTRO 2'!R$17,'DATA MAESTRO 2'!R$18,'DATA MAESTRO 2'!R$19,'DATA MAESTRO 2'!R$20,'DATA MAESTRO 2'!R$21,'DATA MAESTRO 2'!R$22,'DATA MAESTRO 2'!R$23,'DATA MAESTRO 2'!R$24,'DATA MAESTRO 2'!R$25,'DATA MAESTRO 2'!R$26,'DATA MAESTRO 2'!R$27,'DATA MAESTRO 2'!R$28,'DATA MAESTRO 2'!R$29,'DATA MAESTRO 2'!R$30,'DATA MAESTRO 2'!R$31,'DATA MAESTRO 2'!R$32,'DATA MAESTRO 2'!R$33,'DATA MAESTRO 2'!R$34,'DATA MAESTRO 2'!R$35,'DATA MAESTRO 2'!R$36,'DATA MAESTRO 2'!R$37,'DATA MAESTRO 2'!R$38,'DATA MAESTRO 2'!R$39,'DATA MAESTRO 2'!R$40,) -> 0.66 | T4: =CHOOSE($B4,'DATA MAESTRO 2'!S$6,'DATA MAESTRO 2'!S$7,'DATA MAESTRO 2'!S$8,'DATA MAESTRO 2'!S$9,'DATA MAESTRO 2'!S$10,'DATA MAESTRO 2'!S$11,'DATA MAESTRO 2'!S$12,'DATA MAESTRO 2'!S$13,'DATA MAESTRO 2'!S$14,'DATA MAESTRO 2'!S$15,'DATA MAESTRO 2'!S$16,'DATA MAESTRO 2'!S$17,'DATA MAESTRO 2'!S$18,'DATA MAESTRO 2'!S$19,'DATA MAESTRO 2'!S$20,'DATA MAESTRO 2'!S$21,'DATA MAESTRO 2'!S$22,'DATA MAESTRO 2'!S$23,'DATA MAESTRO 2'!S$24,'DATA MAESTRO 2'!S$25,'DATA MAESTRO 2'!S$26,'DATA MAESTRO 2'!S$27,'DATA MAESTRO 2'!S$28,'DATA MAESTRO 2'!S$29,'DATA MAESTRO 2'!S$30,'DATA MAESTRO 2'!S$31,'DATA MAESTRO 2'!S$32,'DATA MAESTRO 2'!S$33,'DATA MAESTRO 2'!S$34,'DATA MAESTRO 2'!S$35,'DATA MAESTRO 2'!S$36,'DATA MAESTRO 2'!S$37,'DATA MAESTRO 2'!S$38,'DATA MAESTRO 2'!S$39,'DATA MAESTRO 2'!S$40,) -> 0.34 | U4: =CHOOSE($B4,'DATA MAESTRO 2'!T$6,'DATA MAESTRO 2'!T$7,'DATA MAESTRO 2'!T$8,'DATA MAESTRO 2'!T$9,'DATA MAESTRO 2'!T$10,'DATA MAESTRO 2'!T$11,'DATA MAESTRO 2'!T$12,'DATA MAESTRO 2'!T$13,'DATA MAESTRO 2'!T$14,'DATA MAESTRO 2'!T$15,'DATA MAESTRO 2'!T$16,'DATA MAESTRO 2'!T$17,'DATA MAESTRO 2'!T$18,'DATA MAESTRO 2'!T$19,'DATA MAESTRO 2'!T$20,'DATA MAESTRO 2'!T$21,'DATA MAESTRO 2'!T$22,'DATA MAESTRO 2'!T$23,'DATA MAESTRO 2'!T$24,'DATA MAESTRO 2'!T$25,'DATA MAESTRO 2'!T$26,'DATA MAESTRO 2'!T$27,'DATA MAESTRO 2'!T$28,'DATA MAESTRO 2'!T$29,'DATA MAESTRO 2'!T$30,'DATA MAESTRO 2'!T$31,'DATA MAESTRO 2'!T$32,'DATA MAESTRO 2'!T$33,'DATA MAESTRO 2'!T$34,'DATA MAESTRO 2'!T$35,'DATA MAESTRO 2'!T$36,'DATA MAESTRO 2'!T$37,'DATA MAESTRO 2'!T$38,'DATA MAESTRO 2'!T$39,'DATA MAESTRO 2'!T$40,) -> 0.0003 | V4: =CHOOSE($B4,'DATA MAESTRO 2'!U$6,'DATA MAESTRO 2'!U$7,'DATA MAESTRO 2'!U$8,'DATA MAESTRO 2'!U$9,'DATA MAESTRO 2'!U$10,'DATA MAESTRO 2'!U$11,'DATA MAESTRO 2'!U$12,'DATA MAESTRO 2'!U$13,'DATA MAESTRO 2'!U$14,'DATA MAESTRO 2'!U$15,'DATA MAESTRO 2'!U$16,'DATA MAESTRO 2'!U$17,'DATA MAESTRO 2'!U$18,'DATA MAESTRO 2'!U$19,'DATA MAESTRO 2'!U$20,'DATA MAESTRO 2'!U$21,'DATA MAESTRO 2'!U$22,'DATA MAESTRO 2'!U$23,'DATA MAESTRO 2'!U$24,'DATA MAESTRO 2'!U$25,'DATA MAESTRO 2'!U$26,'DATA MAESTRO 2'!U$27,'DATA MAESTRO 2'!U$28,'DATA MAESTRO 2'!U$29,'DATA MAESTRO 2'!U$30,'DATA MAESTRO 2'!U$31,'DATA MAESTRO 2'!U$32,'DATA MAESTRO 2'!U$33,'DATA MAESTRO 2'!U$34,'DATA MAESTRO 2'!U$35,'DATA MAESTRO 2'!U$36,'DATA MAESTRO 2'!U$37,'DATA MAESTRO 2'!U$38,'DATA MAESTRO 2'!U$39,'DATA MAESTRO 2'!U$40,) -> 0.0029 | W4: =CHOOSE($B4,'DATA MAESTRO 2'!V$6,'DATA MAESTRO 2'!V$7,'DATA MAESTRO 2'!V$8,'DATA MAESTRO 2'!V$9,'DATA MAESTRO 2'!V$10,'DATA MAESTRO 2'!V$11,'DATA MAESTRO 2'!V$12,'DATA MAESTRO 2'!V$13,'DATA MAESTRO 2'!V$14,'DATA MAESTRO 2'!V$15,'DATA MAESTRO 2'!V$16,'DATA MAESTRO 2'!V$17,'DATA MAESTRO 2'!V$18,'DATA MAESTRO 2'!V$19,'DATA MAESTRO 2'!V$20,'DATA MAESTRO 2'!V$21,'DATA MAESTRO 2'!V$22,'DATA MAESTRO 2'!V$23,'DATA MAESTRO 2'!V$24,'DATA MAESTRO 2'!V$25,'DATA MAESTRO 2'!V$26,'DATA MAESTRO 2'!V$27,'DATA MAESTRO 2'!V$28,'DATA MAESTRO 2'!V$29,'DATA MAESTRO 2'!V$30,'DATA MAESTRO 2'!V$31,'DATA MAESTRO 2'!V$32,'DATA MAESTRO 2'!V$33,'DATA MAESTRO 2'!V$34,'DATA MAESTRO 2'!V$35,'DATA MAESTRO 2'!V$36,'DATA MAESTRO 2'!V$37,'DATA MAESTRO 2'!V$38,'DATA MAESTRO 2'!V$39,'DATA MAESTRO 2'!V$40,) -> 0.024 | X4: =CHOOSE($B4,'DATA MAESTRO 2'!W$6,'DATA MAESTRO 2'!W$7,'DATA MAESTRO 2'!W$8,'DATA MAESTRO 2'!W$9,'DATA MAESTRO 2'!W$10,'DATA MAESTRO 2'!W$11,'DATA MAESTRO 2'!W$12,'DATA MAESTRO 2'!W$13,'DATA MAESTRO 2'!W$14,'DATA MAESTRO 2'!W$15,'DATA MAESTRO 2'!W$16,'DATA MAESTRO 2'!W$17,'DATA MAESTRO 2'!W$18,'DATA MAESTRO 2'!W$19,'DATA MAESTRO 2'!W$20,'DATA MAESTRO 2'!W$21,'DATA MAESTRO 2'!W$22,'DATA MAESTRO 2'!W$23,'DATA MAESTRO 2'!W$24,'DATA MAESTRO 2'!W$25,'DATA MAESTRO 2'!W$26,'DATA MAESTRO 2'!W$27,'DATA MAESTRO 2'!W$28,'DATA MAESTRO 2'!W$29,'DATA MAESTRO 2'!W$30,'DATA MAESTRO 2'!W$31,'DATA MAESTRO 2'!W$32,'DATA MAESTRO 2'!W$33,'DATA MAESTRO 2'!W$34,'DATA MAESTRO 2'!W$35,'DATA MAESTRO 2'!W$36,'DATA MAESTRO 2'!W$37,'DATA MAESTRO 2'!W$38,'DATA MAESTRO 2'!W$39,'DATA MAESTRO 2'!W$40,) -> 0.0007 | Y4: =CHOOSE($B4,'DATA MAESTRO 2'!X$6,'DATA MAESTRO 2'!X$7,'DATA MAESTRO 2'!X$8,'DATA MAESTRO 2'!X$9,'DATA MAESTRO 2'!X$10,'DATA MAESTRO 2'!X$11,'DATA MAESTRO 2'!X$12,'DATA MAESTRO 2'!X$13,'DATA MAESTRO 2'!X$14,'DATA MAESTRO 2'!X$15,'DATA MAESTRO 2'!X$16,'DATA MAESTRO 2'!X$17,'DATA MAESTRO 2'!X$18,'DATA MAESTRO 2'!X$19,'DATA MAESTRO 2'!X$20,'DATA MAESTRO 2'!X$21,'DATA MAESTRO 2'!X$22,'DATA MAESTRO 2'!X$23,'DATA MAESTRO 2'!X$24,'DATA MAESTRO 2'!X$25,'DATA MAESTRO 2'!X$26,'DATA MAESTRO 2'!X$27,'DATA MAESTRO 2'!X$28,'DATA MAESTRO 2'!X$29,'DATA MAESTRO 2'!X$30,'DATA MAESTRO 2'!X$31,'DATA MAESTRO 2'!X$32,'DATA MAESTRO 2'!X$33,'DATA MAESTRO 2'!X$34,'DATA MAESTRO 2'!X$35,'DATA MAESTRO 2'!X$36,'DATA MAESTRO 2'!X$37,'DATA MAESTRO 2'!X$38,'DATA MAESTRO 2'!X$39,'DATA MAESTRO 2'!X$40,) -> 0.0046 | Z4: =CHOOSE($B4,'DATA MAESTRO 2'!Y$6,'DATA MAESTRO 2'!Y$7,'DATA MAESTRO 2'!Y$8,'DATA MAESTRO 2'!Y$9,'DATA MAESTRO 2'!Y$10,'DATA MAESTRO 2'!Y$11,'DATA MAESTRO 2'!Y$12,'DATA MAESTRO 2'!Y$13,'DATA MAESTRO 2'!Y$14,'DATA MAESTRO 2'!Y$15,'DATA MAESTRO 2'!Y$16,'DATA MAESTRO 2'!Y$17,'DATA MAESTRO 2'!Y$18,'DATA MAESTRO 2'!Y$19,'DATA MAESTRO 2'!Y$20,'DATA MAESTRO 2'!Y$21,'DATA MAESTRO 2'!Y$22,'DATA MAESTRO 2'!Y$23,'DATA MAESTRO 2'!Y$24,'DATA MAESTRO 2'!Y$25,'DATA MAESTRO 2'!Y$26,'DATA MAESTRO 2'!Y$27,'DATA MAESTRO 2'!Y$28,'DATA MAESTRO 2'!Y$29,'DATA MAESTRO 2'!Y$30,'DATA MAESTRO 2'!Y$31,'DATA MAESTRO 2'!Y$32,'DATA MAESTRO 2'!Y$33,'DATA MAESTRO 2'!Y$34,'DATA MAESTRO 2'!Y$35,'DATA MAESTRO 2'!Y$36,'DATA MAESTRO 2'!Y$37,'DATA MAESTRO 2'!Y$38,'DATA MAESTRO 2'!Y$39,'DATA MAESTRO 2'!Y$40,) -> 0 | AA4: =CHOOSE($B4,'DATA MAESTRO 2'!Z$6,'DATA MAESTRO 2'!Z$7,'DATA MAESTRO 2'!Z$8,'DATA MAESTRO 2'!Z$9,'DATA MAESTRO 2'!Z$10,'DATA MAESTRO 2'!Z$11,'DATA MAESTRO 2'!Z$12,'DATA MAESTRO 2'!Z$13,'DATA MAESTRO 2'!Z$14,'DATA MAESTRO 2'!Z$15,'DATA MAESTRO 2'!Z$16,'DATA MAESTRO 2'!Z$17,'DATA MAESTRO 2'!Z$18,'DATA MAESTRO 2'!Z$19,'DATA MAESTRO 2'!Z$20,'DATA MAESTRO 2'!Z$21,'DATA MAESTRO 2'!Z$22,'DATA MAESTRO 2'!Z$23,'DATA MAESTRO 2'!Z$24,'DATA MAESTRO 2'!Z$25,'DATA MAESTRO 2'!Z$26,'DATA MAESTRO 2'!Z$27,'DATA MAESTRO 2'!Z$28,'DATA MAESTRO 2'!Z$29,'DATA MAESTRO 2'!Z$30,'DATA MAESTRO 2'!Z$31,'DATA MAESTRO 2'!Z$32,'DATA MAESTRO 2'!Z$33,'DATA MAESTRO 2'!Z$34,'DATA MAESTRO 2'!Z$35,'DATA MAESTRO 2'!Z$36,'DATA MAESTRO 2'!Z$37,'DATA MAESTRO 2'!Z$38,'DATA MAESTRO 2'!Z$39,'DATA MAESTRO 2'!Z$40,) -> 0 | AB4: =CHOOSE($B4,'DATA MAESTRO 2'!AA$6,'DATA MAESTRO 2'!AA$7,'DATA MAESTRO 2'!AA$8,'DATA MAESTRO 2'!AA$9,'DATA MAESTRO 2'!AA$10,'DATA MAESTRO 2'!AA$11,'DATA MAESTRO 2'!AA$12,'DATA MAESTRO 2'!AA$13,'DATA MAESTRO 2'!AA$14,'DATA MAESTRO 2'!AA$15,'DATA MAESTRO 2'!AA$16,'DATA MAESTRO 2'!AA$17,'DATA MAESTRO 2'!AA$18,'DATA MAESTRO 2'!AA$19,'DATA MAESTRO 2'!AA$20,'DATA MAESTRO 2'!AA$21,'DATA MAESTRO 2'!AA$22,'DATA MAESTRO 2'!AA$23,'DATA MAESTRO 2'!AA$24,'DATA MAESTRO 2'!AA$25,'DATA MAESTRO 2'!AA$26,'DATA MAESTRO 2'!AA$27,'DATA MAESTRO 2'!AA$28,'DATA MAESTRO 2'!AA$29,'DATA MAESTRO 2'!AA$30,'DATA MAESTRO 2'!AA$31,'DATA MAESTRO 2'!AA$32,'DATA MAESTRO 2'!AA$33,'DATA MAESTRO 2'!AA$34,'DATA MAESTRO 2'!AA$35,'DATA MAESTRO 2'!AA$36,'DATA MAESTRO 2'!AA$37,'DATA MAESTRO 2'!AA$38,'DATA MAESTRO 2'!AA$39,'DATA MAESTRO 2'!AA$40,) -> 0 | AC4: =CHOOSE($B4,'DATA MAESTRO 2'!AB$6,'DATA MAESTRO 2'!AB$7,'DATA MAESTRO 2'!AB$8,'DATA MAESTRO 2'!AB$9,'DATA MAESTRO 2'!AB$10,'DATA MAESTRO 2'!AB$11,'DATA MAESTRO 2'!AB$12,'DATA MAESTRO 2'!AB$13,'DATA MAESTRO 2'!AB$14,'DATA MAESTRO 2'!AB$15,'DATA MAESTRO 2'!AB$16,'DATA MAESTRO 2'!AB$17,'DATA MAESTRO 2'!AB$18,'DATA MAESTRO 2'!AB$19,'DATA MAESTRO 2'!AB$20,'DATA MAESTRO 2'!AB$21,'DATA MAESTRO 2'!AB$22,'DATA MAESTRO 2'!AB$23,'DATA MAESTRO 2'!AB$24,'DATA MAESTRO 2'!AB$25,'DATA MAESTRO 2'!AB$26,'DATA MAESTRO 2'!AB$27,'DATA MAESTRO 2'!AB$28,'DATA MAESTRO 2'!AB$29,'DATA MAESTRO 2'!AB$30,'DATA MAESTRO 2'!AB$31,'DATA MAESTRO 2'!AB$32,'DATA MAESTRO 2'!AB$33,'DATA MAESTRO 2'!AB$34,'DATA MAESTRO 2'!AB$35,'DATA MAESTRO 2'!AB$36,'DATA MAESTRO 2'!AB$37,'DATA MAESTRO 2'!AB$38,'DATA MAESTRO 2'!AB$39,'DATA MAESTRO 2'!AB$40,) -> 0 | AD4: =CHOOSE($B4,'DATA MAESTRO 2'!AC$6,'DATA MAESTRO 2'!AC$7,'DATA MAESTRO 2'!AC$8,'DATA MAESTRO 2'!AC$9,'DATA MAESTRO 2'!AC$10,'DATA MAESTRO 2'!AC$11,'DATA MAESTRO 2'!AC$12,'DATA MAESTRO 2'!AC$13,'DATA MAESTRO 2'!AC$14,'DATA MAESTRO 2'!AC$15,'DATA MAESTRO 2'!AC$16,'DATA MAESTRO 2'!AC$17,'DATA MAESTRO 2'!AC$18,'DATA MAESTRO 2'!AC$19,'DATA MAESTRO 2'!AC$20,'DATA MAESTRO 2'!AC$21,'DATA MAESTRO 2'!AC$22,'DATA MAESTRO 2'!AC$23,'DATA MAESTRO 2'!AC$24,'DATA MAESTRO 2'!AC$25,'DATA MAESTRO 2'!AC$26,'DATA MAESTRO 2'!AC$27,'DATA MAESTRO 2'!AC$28,'DATA MAESTRO 2'!AC$29,'DATA MAESTRO 2'!AC$30,'DATA MAESTRO 2'!AC$31,'DATA MAESTRO 2'!AC$32,'DATA MAESTRO 2'!AC$33,'DATA MAESTRO 2'!AC$34,'DATA MAESTRO 2'!AC$35,'DATA MAESTRO 2'!AC$36,'DATA MAESTRO 2'!AC$37,'DATA MAESTRO 2'!AC$38,'DATA MAESTRO 2'!AC$39,'DATA MAESTRO 2'!AC$40,) -> 0 | AE4: =CHOOSE($B4,'DATA MAESTRO 2'!AD$6,'DATA MAESTRO 2'!AD$7,'DATA MAESTRO 2'!AD$8,'DATA MAESTRO 2'!AD$9,'DATA MAESTRO 2'!AD$10,'DATA MAESTRO 2'!AD$11,'DATA MAESTRO 2'!AD$12,'DATA MAESTRO 2'!AD$13,'DATA MAESTRO 2'!AD$14,'DATA MAESTRO 2'!AD$15,'DATA MAESTRO 2'!AD$16,'DATA MAESTRO 2'!AD$17,'DATA MAESTRO 2'!AD$18,'DATA MAESTRO 2'!AD$19,'DATA MAESTRO 2'!AD$20,'DATA MAESTRO 2'!AD$21,'DATA MAESTRO 2'!AD$22,'DATA MAESTRO 2'!AD$23,'DATA MAESTRO 2'!AD$24,'DATA MAESTRO 2'!AD$25,'DATA MAESTRO 2'!AD$26,'DATA MAESTRO 2'!AD$27,'DATA MAESTRO 2'!AD$28,'DATA MAESTRO 2'!AD$29,'DATA MAESTRO 2'!AD$30,'DATA MAESTRO 2'!AD$31,'DATA MAESTRO 2'!AD$32,'DATA MAESTRO 2'!AD$33,'DATA MAESTRO 2'!AD$34,'DATA MAESTRO 2'!AD$35,'DATA MAESTRO 2'!AD$36,'DATA MAESTRO 2'!AD$37,'DATA MAESTRO 2'!AD$38,'DATA MAESTRO 2'!AD$39,'DATA MAESTRO 2'!AD$40,) -> 0 | AF4: =CHOOSE($B4,'DATA MAESTRO 2'!AE$6,'DATA MAESTRO 2'!AE$7,'DATA MAESTRO 2'!AE$8,'DATA MAESTRO 2'!AE$9,'DATA MAESTRO 2'!AE$10,'DATA MAESTRO 2'!AE$11,'DATA MAESTRO 2'!AE$12,'DATA MAESTRO 2'!AE$13,'DATA MAESTRO 2'!AE$14,'DATA MAESTRO 2'!AE$15,'DATA MAESTRO 2'!AE$16,'DATA MAESTRO 2'!AE$17,'DATA MAESTRO 2'!AE$18,'DATA MAESTRO 2'!AE$19,'DATA MAESTRO 2'!AE$20,'DATA MAESTRO 2'!AE$21,'DATA MAESTRO 2'!AE$22,'DATA MAESTRO 2'!AE$23,'DATA MAESTRO 2'!AE$24,'DATA MAESTRO 2'!AE$25,'DATA MAESTRO 2'!AE$26,'DATA MAESTRO 2'!AE$27,'DATA MAESTRO 2'!AE$28,'DATA MAESTRO 2'!AE$29,'DATA MAESTRO 2'!AE$30,'DATA MAESTRO 2'!AE$31,'DATA MAESTRO 2'!AE$32,'DATA MAESTRO 2'!AE$33,'DATA MAESTRO 2'!AE$34,'DATA MAESTRO 2'!AE$35,'DATA MAESTRO 2'!AE$36,'DATA MAESTRO 2'!AE$37,'DATA MAESTRO 2'!AE$38,'DATA MAESTRO 2'!AE$39,'DATA MAESTRO 2'!AE$40,) -> 0 | AG4: =CHOOSE($B4,'DATA MAESTRO 2'!AF$6,'DATA MAESTRO 2'!AF$7,'DATA MAESTRO 2'!AF$8,'DATA MAESTRO 2'!AF$9,'DATA MAESTRO 2'!AF$10,'DATA MAESTRO 2'!AF$11,'DATA MAESTRO 2'!AF$12,'DATA MAESTRO 2'!AF$13,'DATA MAESTRO 2'!AF$14,'DATA MAESTRO 2'!AF$15,'DATA MAESTRO 2'!AF$16,'DATA MAESTRO 2'!AF$17,'DATA MAESTRO 2'!AF$18,'DATA MAESTRO 2'!AF$19,'DATA MAESTRO 2'!AF$20,'DATA MAESTRO 2'!AF$21,'DATA MAESTRO 2'!AF$22,'DATA MAESTRO 2'!AF$23,'DATA MAESTRO 2'!AF$24,'DATA MAESTRO 2'!AF$25,'DATA MAESTRO 2'!AF$26,'DATA MAESTRO 2'!AF$27,'DATA MAESTRO 2'!AF$28,'DATA MAESTRO 2'!AF$29,'DATA MAESTRO 2'!AF$30,'DATA MAESTRO 2'!AF$31,'DATA MAESTRO 2'!AF$32,'DATA MAESTRO 2'!AF$33,'DATA MAESTRO 2'!AF$34,'DATA MAESTRO 2'!AF$35,'DATA MAESTRO 2'!AF$36,'DATA MAESTRO 2'!AF$37,'DATA MAESTRO 2'!AF$38,'DATA MAESTRO 2'!AF$39,'DATA MAESTRO 2'!AF$40,) -> 0 | AH4: =CHOOSE($B4,'DATA MAESTRO 2'!AG$6,'DATA MAESTRO 2'!AG$7,'DATA MAESTRO 2'!AG$8,'DATA MAESTRO 2'!AG$9,'DATA MAESTRO 2'!AG$10,'DATA MAESTRO 2'!AG$11,'DATA MAESTRO 2'!AG$12,'DATA MAESTRO 2'!AG$13,'DATA MAESTRO 2'!AG$14,'DATA MAESTRO 2'!AG$15,'DATA MAESTRO 2'!AG$16,'DATA MAESTRO 2'!AG$17,'DATA MAESTRO 2'!AG$18,'DATA MAESTRO 2'!AG$19,'DATA MAESTRO 2'!AG$20,'DATA MAESTRO 2'!AG$21,'DATA MAESTRO 2'!AG$22,'DATA MAESTRO 2'!AG$23,'DATA MAESTRO 2'!AG$24,'DATA MAESTRO 2'!AG$25,'DATA MAESTRO 2'!AG$26,'DATA MAESTRO 2'!AG$27,'DATA MAESTRO 2'!AG$28,'DATA MAESTRO 2'!AG$29,'DATA MAESTRO 2'!AG$30,'DATA MAESTRO 2'!AG$31,'DATA MAESTRO 2'!AG$32,'DATA MAESTRO 2'!AG$33,'DATA MAESTRO 2'!AG$34,'DATA MAESTRO 2'!AG$35,'DATA MAESTRO 2'!AG$36,'DATA MAESTRO 2'!AG$37,'DATA MAESTRO 2'!AG$38,'DATA MAESTRO 2'!AG$39,'DATA MAESTRO 2'!AG$40,) -> 0 | AI4: =CHOOSE($B4,'DATA MAESTRO 2'!AH$6,'DATA MAESTRO 2'!AH$7,'DATA MAESTRO 2'!AH$8,'DATA MAESTRO 2'!AH$9,'DATA MAESTRO 2'!AH$10,'DATA MAESTRO 2'!AH$11,'DATA MAESTRO 2'!AH$12,'DATA MAESTRO 2'!AH$13,'DATA MAESTRO 2'!AH$14,'DATA MAESTRO 2'!AH$15,'DATA MAESTRO 2'!AH$16,'DATA MAESTRO 2'!AH$17,'DATA MAESTRO 2'!AH$18,'DATA MAESTRO 2'!AH$19,'DATA MAESTRO 2'!AH$20,'DATA MAESTRO 2'!AH$21,'DATA MAESTRO 2'!AH$22,'DATA MAESTRO 2'!AH$23,'DATA MAESTRO 2'!AH$24,'DATA MAESTRO 2'!AH$25,'DATA MAESTRO 2'!AH$26,'DATA MAESTRO 2'!AH$27,'DATA MAESTRO 2'!AH$28,'DATA MAESTRO 2'!AH$29,'DATA MAESTRO 2'!AH$30,'DATA MAESTRO 2'!AH$31,'DATA MAESTRO 2'!AH$32,'DATA MAESTRO 2'!AH$33,'DATA MAESTRO 2'!AH$34,'DATA MAESTRO 2'!AH$35,'DATA MAESTRO 2'!AH$36,'DATA MAESTRO 2'!AH$37,'DATA MAESTRO 2'!AH$38,'DATA MAESTRO 2'!AH$39,'DATA MAESTRO 2'!AH$40,) -> 0 | AJ4: =CHOOSE($B4,'DATA MAESTRO 2'!AI$6,'DATA MAESTRO 2'!AI$7,'DATA MAESTRO 2'!AI$8,'DATA MAESTRO 2'!AI$9,'DATA MAESTRO 2'!AI$10,'DATA MAESTRO 2'!AI$11,'DATA MAESTRO 2'!AI$12,'DATA MAESTRO 2'!AI$13,'DATA MAESTRO 2'!AI$14,'DATA MAESTRO 2'!AI$15,'DATA MAESTRO 2'!AI$16,'DATA MAESTRO 2'!AI$17,'DATA MAESTRO 2'!AI$18,'DATA MAESTRO 2'!AI$19,'DATA MAESTRO 2'!AI$20,'DATA MAESTRO 2'!AI$21,'DATA MAESTRO 2'!AI$22,'DATA MAESTRO 2'!AI$23,'DATA MAESTRO 2'!AI$24,'DATA MAESTRO 2'!AI$25,'DATA MAESTRO 2'!AI$26,'DATA MAESTRO 2'!AI$27,'DATA MAESTRO 2'!AI$28,'DATA MAESTRO 2'!AI$29,'DATA MAESTRO 2'!AI$30,'DATA MAESTRO 2'!AI$31,'DATA MAESTRO 2'!AI$32,'DATA MAESTRO 2'!AI$33,'DATA MAESTRO 2'!AI$34,'DATA MAESTRO 2'!AI$35,'DATA MAESTRO 2'!AI$36,'DATA MAESTRO 2'!AI$37,'DATA MAESTRO 2'!AI$38,'DATA MAESTRO 2'!AI$39,'DATA MAESTRO 2'!AI$40,) -> 0 | AK4: =CHOOSE($B4,'DATA MAESTRO 2'!AJ$6,'DATA MAESTRO 2'!AJ$7,'DATA MAESTRO 2'!AJ$8,'DATA MAESTRO 2'!AJ$9,'DATA MAESTRO 2'!AJ$10,'DATA MAESTRO 2'!AJ$11,'DATA MAESTRO 2'!AJ$12,'DATA MAESTRO 2'!AJ$13,'DATA MAESTRO 2'!AJ$14,'DATA MAESTRO 2'!AJ$15,'DATA MAESTRO 2'!AJ$16,'DATA MAESTRO 2'!AJ$17,'DATA MAESTRO 2'!AJ$18,'DATA MAESTRO 2'!AJ$19,'DATA MAESTRO 2'!AJ$20,'DATA MAESTRO 2'!AJ$21,'DATA MAESTRO 2'!AJ$22,'DATA MAESTRO 2'!AJ$23,'DATA MAESTRO 2'!AJ$24,'DATA MAESTRO 2'!AJ$25,'DATA MAESTRO 2'!AJ$26,'DATA MAESTRO 2'!AJ$27,'DATA MAESTRO 2'!AJ$28,'DATA MAESTRO 2'!AJ$29,'DATA MAESTRO 2'!AJ$30,'DATA MAESTRO 2'!AJ$31,'DATA MAESTRO 2'!AJ$32,'DATA MAESTRO 2'!AJ$33,'DATA MAESTRO 2'!AJ$34,'DATA MAESTRO 2'!AJ$35,'DATA MAESTRO 2'!AJ$36,'DATA MAESTRO 2'!AJ$37,'DATA MAESTRO 2'!AJ$38,'DATA MAESTRO 2'!AJ$39,'DATA MAESTRO 2'!AJ$40,) -> 0
A5: 3 | B5: 6 | C5: =+IF(AND(B5>=1,B5<=36),VLOOKUP(B5,'DATA MAESTRO 2'!$A$6:$B$40,2),0) -> MAIZ MOLIDO | D5: =+CHOOSE($B5,'DATA MAESTRO 2'!C$6,'DATA MAESTRO 2'!C$7,'DATA MAESTRO 2'!C$8,'DATA MAESTRO 2'!C$9,'DATA MAESTRO 2'!C$10,'DATA MAESTRO 2'!C$11,'DATA MAESTRO 2'!C$12,'DATA MAESTRO 2'!C$13,'DATA MAESTRO 2'!C$14,'DATA MAESTRO 2'!C$15,'DATA MAESTRO 2'!C$16,'DATA MAESTRO 2'!C$17,'DATA MAESTRO 2'!C$18,'DATA MAESTRO 2'!C$19,'DATA MAESTRO 2'!C$20,'DATA MAESTRO 2'!C$21,'DATA MAESTRO 2'!C$22,'DATA MAESTRO 2'!C$23,'DATA MAESTRO 2'!C$24,'DATA MAESTRO 2'!C$25,'DATA MAESTRO 2'!C$26,'DATA MAESTRO 2'!C$27,'DATA MAESTRO 2'!C$28,'DATA MAESTRO 2'!C$29,'DATA MAESTRO 2'!C$30,'DATA MAESTRO 2'!C$31,'DATA MAESTRO 2'!C$32,'DATA MAESTRO 2'!C$33,'DATA MAESTRO 2'!C$34,'DATA MAESTRO 2'!C$35,'DATA MAESTRO 2'!C$36,'DATA MAESTRO 2'!C$37,'DATA MAESTRO 2'!C$38,'DATA MAESTRO 2'!C$39,'DATA MAESTRO 2'!C$40,) -> 0 | E5: =CHOOSE($B5,'DATA MAESTRO 2'!D$6,'DATA MAESTRO 2'!D$7,'DATA MAESTRO 2'!D$8,'DATA MAESTRO 2'!D$9,'DATA MAESTRO 2'!D$10,'DATA MAESTRO 2'!D$11,'DATA MAESTRO 2'!D$12,'DATA MAESTRO 2'!D$13,'DATA MAESTRO 2'!D$14,'DATA MAESTRO 2'!D$15,'DATA MAESTRO 2'!D$16,'DATA MAESTRO 2'!D$17,'DATA MAESTRO 2'!D$18,'DATA MAESTRO 2'!D$19,'DATA MAESTRO 2'!D$20,'DATA MAESTRO 2'!D$21,'DATA MAESTRO 2'!D$22,'DATA MAESTRO 2'!D$23,'DATA MAESTRO 2'!D$24,'DATA MAESTRO 2'!D$25,'DATA MAESTRO 2'!D$26,'DATA MAESTRO 2'!D$27,'DATA MAESTRO 2'!D$28,'DATA MAESTRO 2'!D$29,'DATA MAESTRO 2'!D$30,'DATA MAESTRO 2'!D$31,'DATA MAESTRO 2'!D$32,'DATA MAESTRO 2'!D$33,'DATA MAESTRO 2'!D$34,'DATA MAESTRO 2'!D$35,'DATA MAESTRO 2'!D$36,'DATA MAESTRO 2'!D$37,'DATA MAESTRO 2'!D$38,'DATA MAESTRO 2'!D$39,'DATA MAESTRO 2'!D$40,) -> 0.89 | F5: =CHOOSE(B5,'DATA MAESTRO 2'!E$6,'DATA MAESTRO 2'!E$7,'DATA MAESTRO 2'!E$8,'DATA MAESTRO 2'!E$9,'DATA MAESTRO 2'!E$10,'DATA MAESTRO 2'!E$11,'DATA MAESTRO 2'!E$12,'DATA MAESTRO 2'!E$13,'DATA MAESTRO 2'!E$14,'DATA MAESTRO 2'!E$15,'DATA MAESTRO 2'!E$16,'DATA MAESTRO 2'!E$17,'DATA MAESTRO 2'!E$18,'DATA MAESTRO 2'!E$19,'DATA MAESTRO 2'!E$20,'DATA MAESTRO 2'!E$21,'DATA MAESTRO 2'!E$22,'DATA MAESTRO 2'!E$23,'DATA MAESTRO 2'!E$24,'DATA MAESTRO 2'!E$25,'DATA MAESTRO 2'!E$26,'DATA MAESTRO 2'!E$27,'DATA MAESTRO 2'!E$28,'DATA MAESTRO 2'!E$29,'DATA MAESTRO 2'!E$30,'DATA MAESTRO 2'!E$31,'DATA MAESTRO 2'!E$32,'DATA MAESTRO 2'!E$33,'DATA MAESTRO 2'!E$34,'DATA MAESTRO 2'!E$35,'DATA MAESTRO 2'!E$36,'DATA MAESTRO 2'!E$37,'DATA MAESTRO 2'!E$38,'DATA MAESTRO 2'!E$39,'DATA MAESTRO 2'!E$40,) -> 0.91 | G5: =CHOOSE($B5,'DATA MAESTRO 2'!F$6,'DATA MAESTRO 2'!F$7,'DATA MAESTRO 2'!F$8,'DATA MAESTRO 2'!F$9,'DATA MAESTRO 2'!F$10,'DATA MAESTRO 2'!F$11,'DATA MAESTRO 2'!F$12,'DATA MAESTRO 2'!F$13,'DATA MAESTRO 2'!F$14,'DATA MAESTRO 2'!F$15,'DATA MAESTRO 2'!F$16,'DATA MAESTRO 2'!F$17,'DATA MAESTRO 2'!F$18,'DATA MAESTRO 2'!F$19,'DATA MAESTRO 2'!F$20,'DATA MAESTRO 2'!F$21,'DATA MAESTRO 2'!F$22,'DATA MAESTRO 2'!F$23,'DATA MAESTRO 2'!F$24,'DATA MAESTRO 2'!F$25,'DATA MAESTRO 2'!F$26,'DATA MAESTRO 2'!F$27,'DATA MAESTRO 2'!F$28,'DATA MAESTRO 2'!F$29,'DATA MAESTRO 2'!F$30,'DATA MAESTRO 2'!F$31,'DATA MAESTRO 2'!F$32,'DATA MAESTRO 2'!F$33,'DATA MAESTRO 2'!F$34,'DATA MAESTRO 2'!F$35,'DATA MAESTRO 2'!F$36,'DATA MAESTRO 2'!F$37,'DATA MAESTRO 2'!F$38,'DATA MAESTRO 2'!F$39,'DATA MAESTRO 2'!F$40,) -> 0.095 | H5: =CHOOSE($B5,'DATA MAESTRO 2'!G$6,'DATA MAESTRO 2'!G$7,'DATA MAESTRO 2'!G$8,'DATA MAESTRO 2'!G$9,'DATA MAESTRO 2'!G$10,'DATA MAESTRO 2'!G$11,'DATA MAESTRO 2'!G$12,'DATA MAESTRO 2'!G$13,'DATA MAESTRO 2'!G$14,'DATA MAESTRO 2'!G$15,'DATA MAESTRO 2'!G$16,'DATA MAESTRO 2'!G$17,'DATA MAESTRO 2'!G$18,'DATA MAESTRO 2'!G$19,'DATA MAESTRO 2'!G$20,'DATA MAESTRO 2'!G$21,'DATA MAESTRO 2'!G$22,'DATA MAESTRO 2'!G$23,'DATA MAESTRO 2'!G$24,'DATA MAESTRO 2'!G$25,'DATA MAESTRO 2'!G$26,'DATA MAESTRO 2'!G$27,'DATA MAESTRO 2'!G$28,'DATA MAESTRO 2'!G$29,'DATA MAESTRO 2'!G$30,'DATA MAESTRO 2'!G$31,'DATA MAESTRO 2'!G$32,'DATA MAESTRO 2'!G$33,'DATA MAESTRO 2'!G$34,'DATA MAESTRO 2'!G$35,'DATA MAESTRO 2'!G$36,'DATA MAESTRO 2'!G$37,'DATA MAESTRO 2'!G$38,'DATA MAESTRO 2'!G$39,'DATA MAESTRO 2'!G$40,) -> 0.05 | I5: =CHOOSE($B5,'DATA MAESTRO 2'!H$6,'DATA MAESTRO 2'!H$7,'DATA MAESTRO 2'!H$8,'DATA MAESTRO 2'!H$9,'DATA MAESTRO 2'!H$10,'DATA MAESTRO 2'!H$11,'DATA MAESTRO 2'!H$12,'DATA MAESTRO 2'!H$13,'DATA MAESTRO 2'!H$14,'DATA MAESTRO 2'!H$15,'DATA MAESTRO 2'!H$16,'DATA MAESTRO 2'!H$17,'DATA MAESTRO 2'!H$18,'DATA MAESTRO 2'!H$19,'DATA MAESTRO 2'!H$20,'DATA MAESTRO 2'!H$21,'DATA MAESTRO 2'!H$22,'DATA MAESTRO 2'!H$23,'DATA MAESTRO 2'!H$24,'DATA MAESTRO 2'!H$25,'DATA MAESTRO 2'!H$26,'DATA MAESTRO 2'!H$27,'DATA MAESTRO 2'!H$28,'DATA MAESTRO 2'!H$29,'DATA MAESTRO 2'!H$30,'DATA MAESTRO 2'!H$31,'DATA MAESTRO 2'!H$32,'DATA MAESTRO 2'!H$33,'DATA MAESTRO 2'!H$34,'DATA MAESTRO 2'!H$35,'DATA MAESTRO 2'!H$36,'DATA MAESTRO 2'!H$37,'DATA MAESTRO 2'!H$38,'DATA MAESTRO 2'!H$39,'DATA MAESTRO 2'!H$40,) -> 0.095 | J5: =CHOOSE($B5,'DATA MAESTRO 2'!I$6,'DATA MAESTRO 2'!I$7,'DATA MAESTRO 2'!I$8,'DATA MAESTRO 2'!I$9,'DATA MAESTRO 2'!I$10,'DATA MAESTRO 2'!I$11,'DATA MAESTRO 2'!I$12,'DATA MAESTRO 2'!I$13,'DATA MAESTRO 2'!I$14,'DATA MAESTRO 2'!I$15,'DATA MAESTRO 2'!I$16,'DATA MAESTRO 2'!I$17,'DATA MAESTRO 2'!I$18,'DATA MAESTRO 2'!I$19,'DATA MAESTRO 2'!I$20,'DATA MAESTRO 2'!I$21,'DATA MAESTRO 2'!I$22,'DATA MAESTRO 2'!I$23,'DATA MAESTRO 2'!I$24,'DATA MAESTRO 2'!I$25,'DATA MAESTRO 2'!I$26,'DATA MAESTRO 2'!I$27,'DATA MAESTRO 2'!I$28,'DATA MAESTRO 2'!I$29,'DATA MAESTRO 2'!I$30,'DATA MAESTRO 2'!I$31,'DATA MAESTRO 2'!I$32,'DATA MAESTRO 2'!I$33,'DATA MAESTRO 2'!I$34,'DATA MAESTRO 2'!I$35,'DATA MAESTRO 2'!I$36,'DATA MAESTRO 2'!I$37,'DATA MAESTRO 2'!I$38,'DATA MAESTRO 2'!I$39,'DATA MAESTRO 2'!I$40,) -> 0.03 | K5: =CHOOSE($B5,'DATA MAESTRO 2'!J$6,'DATA MAESTRO 2'!J$7,'DATA MAESTRO 2'!J$8,'DATA MAESTRO 2'!J$9,'DATA MAESTRO 2'!J$10,'DATA MAESTRO 2'!J$11,'DATA MAESTRO 2'!J$12,'DATA MAESTRO 2'!J$13,'DATA MAESTRO 2'!J$14,'DATA MAESTRO 2'!J$15,'DATA MAESTRO 2'!J$16,'DATA MAESTRO 2'!J$17,'DATA MAESTRO 2'!J$18,'DATA MAESTRO 2'!J$19,'DATA MAESTRO 2'!J$20,'DATA MAESTRO 2'!J$21,'DATA MAESTRO 2'!J$22,'DATA MAESTRO 2'!J$23,'DATA MAESTRO 2'!J$24,'DATA MAESTRO 2'!J$25,'DATA MAESTRO 2'!J$26,'DATA MAESTRO 2'!J$27,'DATA MAESTRO 2'!J$28,'DATA MAESTRO 2'!J$29,'DATA MAESTRO 2'!J$30,'DATA MAESTRO 2'!J$31,'DATA MAESTRO 2'!J$32,'DATA MAESTRO 2'!J$33,'DATA MAESTRO 2'!J$34,'DATA MAESTRO 2'!J$35,'DATA MAESTRO 2'!J$36,'DATA MAESTRO 2'!J$37,'DATA MAESTRO 2'!J$38,'DATA MAESTRO 2'!J$39,'DATA MAESTRO 2'!J$40,) -> 0.0002 | L5: =CHOOSE($B5,'DATA MAESTRO 2'!K$6,'DATA MAESTRO 2'!K$7,'DATA MAESTRO 2'!K$8,'DATA MAESTRO 2'!K$9,'DATA MAESTRO 2'!K$10,'DATA MAESTRO 2'!K$11,'DATA MAESTRO 2'!K$12,'DATA MAESTRO 2'!K$13,'DATA MAESTRO 2'!K$14,'DATA MAESTRO 2'!K$15,'DATA MAESTRO 2'!K$16,'DATA MAESTRO 2'!K$17,'DATA MAESTRO 2'!K$18,'DATA MAESTRO 2'!K$19,'DATA MAESTRO 2'!K$20,'DATA MAESTRO 2'!K$21,'DATA MAESTRO 2'!K$22,'DATA MAESTRO 2'!K$23,'DATA MAESTRO 2'!K$24,'DATA MAESTRO 2'!K$25,'DATA MAESTRO 2'!K$26,'DATA MAESTRO 2'!K$27,'DATA MAESTRO 2'!K$28,'DATA MAESTRO 2'!K$29,'DATA MAESTRO 2'!K$30,'DATA MAESTRO 2'!K$31,'DATA MAESTRO 2'!K$32,'DATA MAESTRO 2'!K$33,'DATA MAESTRO 2'!K$34,'DATA MAESTRO 2'!K$35,'DATA MAESTRO 2'!K$36,'DATA MAESTRO 2'!K$37,'DATA MAESTRO 2'!K$38,'DATA MAESTRO 2'!K$39,'DATA MAESTRO 2'!K$40,) -> 0.003 | M5: =CHOOSE($B5,'DATA MAESTRO 2'!L$6,'DATA MAESTRO 2'!L$7,'DATA MAESTRO 2'!L$8,'DATA MAESTRO 2'!L$9,'DATA MAESTRO 2'!L$10,'DATA MAESTRO 2'!L$11,'DATA MAESTRO 2'!L$12,'DATA MAESTRO 2'!L$13,'DATA MAESTRO 2'!L$14,'DATA MAESTRO 2'!L$15,'DATA MAESTRO 2'!L$16,'DATA MAESTRO 2'!L$17,'DATA MAESTRO 2'!L$18,'DATA MAESTRO 2'!L$19,'DATA MAESTRO 2'!L$20,'DATA MAESTRO 2'!L$21,'DATA MAESTRO 2'!L$22,'DATA MAESTRO 2'!L$23,'DATA MAESTRO 2'!L$24,'DATA MAESTRO 2'!L$25,'DATA MAESTRO 2'!L$26,'DATA MAESTRO 2'!L$27,'DATA MAESTRO 2'!L$28,'DATA MAESTRO 2'!L$29,'DATA MAESTRO 2'!L$30,'DATA MAESTRO 2'!L$31,'DATA MAESTRO 2'!L$32,'DATA MAESTRO 2'!L$33,'DATA MAESTRO 2'!L$34,'DATA MAESTRO 2'!L$35,'DATA MAESTRO 2'!L$36,'DATA MAESTRO 2'!L$37,'DATA MAESTRO 2'!L$38,'DATA MAESTRO 2'!L$39,'DATA MAESTRO 2'!L$40,) -> 3.2899958 | N5: =CHOOSE($B5,'DATA MAESTRO 2'!M$6,'DATA MAESTRO 2'!M$7,'DATA MAESTRO 2'!M$8,'DATA MAESTRO 2'!M$9,'DATA MAESTRO 2'!M$10,'DATA MAESTRO 2'!M$11,'DATA MAESTRO 2'!M$12,'DATA MAESTRO 2'!M$13,'DATA MAESTRO 2'!M$14,'DATA MAESTRO 2'!M$15,'DATA MAESTRO 2'!M$16,'DATA MAESTRO 2'!M$17,'DATA MAESTRO 2'!M$18,'DATA MAESTRO 2'!M$19,'DATA MAESTRO 2'!M$20,'DATA MAESTRO 2'!M$21,'DATA MAESTRO 2'!M$22,'DATA MAESTRO 2'!M$23,'DATA MAESTRO 2'!M$24,'DATA MAESTRO 2'!M$25,'DATA MAESTRO 2'!M$26,'DATA MAESTRO 2'!M$27,'DATA MAESTRO 2'!M$28,'DATA MAESTRO 2'!M$29,'DATA MAESTRO 2'!M$30,'DATA MAESTRO 2'!M$31,'DATA MAESTRO 2'!M$32,'DATA MAESTRO 2'!M$33,'DATA MAESTRO 2'!M$34,'DATA MAESTRO 2'!M$35,'DATA MAESTRO 2'!M$36,'DATA MAESTRO 2'!M$37,'DATA MAESTRO 2'!M$38,'DATA MAESTRO 2'!M$39,'DATA MAESTRO 2'!M$40,) -> 2.409196818 | O5: =CHOOSE($B5,'DATA MAESTRO 2'!N$6,'DATA MAESTRO 2'!N$7,'DATA MAESTRO 2'!N$8,'DATA MAESTRO 2'!N$9,'DATA MAESTRO 2'!N$10,'DATA MAESTRO 2'!N$11,'DATA MAESTRO 2'!N$12,'DATA MAESTRO 2'!N$13,'DATA MAESTRO 2'!N$14,'DATA MAESTRO 2'!N$15,'DATA MAESTRO 2'!N$16,'DATA MAESTRO 2'!N$17,'DATA MAESTRO 2'!N$18,'DATA MAESTRO 2'!N$19,'DATA MAESTRO 2'!N$20,'DATA MAESTRO 2'!N$21,'DATA MAESTRO 2'!N$22,'DATA MAESTRO 2'!N$23,'DATA MAESTRO 2'!N$24,'DATA MAESTRO 2'!N$25,'DATA MAESTRO 2'!N$26,'DATA MAESTRO 2'!N$27,'DATA MAESTRO 2'!N$28,'DATA MAESTRO 2'!N$29,'DATA MAESTRO 2'!N$30,'DATA MAESTRO 2'!N$31,'DATA MAESTRO 2'!N$32,'DATA MAESTRO 2'!N$33,'DATA MAESTRO 2'!N$34,'DATA MAESTRO 2'!N$35,'DATA MAESTRO 2'!N$36,'DATA MAESTRO 2'!N$37,'DATA MAESTRO 2'!N$38,'DATA MAESTRO 2'!N$39,'DATA MAESTRO 2'!N$40,) -> 2.1095 | P5: =CHOOSE($B5,'DATA MAESTRO 2'!O$6,'DATA MAESTRO 2'!O$7,'DATA MAESTRO 2'!O$8,'DATA MAESTRO 2'!O$9,'DATA MAESTRO 2'!O$10,'DATA MAESTRO 2'!O$11,'DATA MAESTRO 2'!O$12,'DATA MAESTRO 2'!O$13,'DATA MAESTRO 2'!O$14,'DATA MAESTRO 2'!O$15,'DATA MAESTRO 2'!O$16,'DATA MAESTRO 2'!O$17,'DATA MAESTRO 2'!O$18,'DATA MAESTRO 2'!O$19,'DATA MAESTRO 2'!O$20,'DATA MAESTRO 2'!O$21,'DATA MAESTRO 2'!O$22,'DATA MAESTRO 2'!O$23,'DATA MAESTRO 2'!O$24,'DATA MAESTRO 2'!O$25,'DATA MAESTRO 2'!O$26,'DATA MAESTRO 2'!O$27,'DATA MAESTRO 2'!O$28,'DATA MAESTRO 2'!O$29,'DATA MAESTRO 2'!O$30,'DATA MAESTRO 2'!O$31,'DATA MAESTRO 2'!O$32,'DATA MAESTRO 2'!O$33,'DATA MAESTRO 2'!O$34,'DATA MAESTRO 2'!O$35,'DATA MAESTRO 2'!O$36,'DATA MAESTRO 2'!O$37,'DATA MAESTRO 2'!O$38,'DATA MAESTRO 2'!O$39,'DATA MAESTRO 2'!O$40,) -> 2.89872987 | Q5: =CHOOSE($B5,'DATA MAESTRO 2'!P$6,'DATA MAESTRO 2'!P$7,'DATA MAESTRO 2'!P$8,'DATA MAESTRO 2'!P$9,'DATA MAESTRO 2'!P$10,'DATA MAESTRO 2'!P$11,'DATA MAESTRO 2'!P$12,'DATA MAESTRO 2'!P$13,'DATA MAESTRO 2'!P$14,'DATA MAESTRO 2'!P$15,'DATA MAESTRO 2'!P$16,'DATA MAESTRO 2'!P$17,'DATA MAESTRO 2'!P$18,'DATA MAESTRO 2'!P$19,'DATA MAESTRO 2'!P$20,'DATA MAESTRO 2'!P$21,'DATA MAESTRO 2'!P$22,'DATA MAESTRO 2'!P$23,'DATA MAESTRO 2'!P$24,'DATA MAESTRO 2'!P$25,'DATA MAESTRO 2'!P$26,'DATA MAESTRO 2'!P$27,'DATA MAESTRO 2'!P$28,'DATA MAESTRO 2'!P$29,'DATA MAESTRO 2'!P$30,'DATA MAESTRO 2'!P$31,'DATA MAESTRO 2'!P$32,'DATA MAESTRO 2'!P$33,'DATA MAESTRO 2'!P$34,'DATA MAESTRO 2'!P$35,'DATA MAESTRO 2'!P$36,'DATA MAESTRO 2'!P$37,'DATA MAESTRO 2'!P$38,'DATA MAESTRO 2'!P$39,'DATA MAESTRO 2'!P$40,) -> 0.04 | R5: =CHOOSE($B5,'DATA MAESTRO 2'!Q$6,'DATA MAESTRO 2'!Q$7,'DATA MAESTRO 2'!Q$8,'DATA MAESTRO 2'!Q$9,'DATA MAESTRO 2'!Q$10,'DATA MAESTRO 2'!Q$11,'DATA MAESTRO 2'!Q$12,'DATA MAESTRO 2'!Q$13,'DATA MAESTRO 2'!Q$14,'DATA MAESTRO 2'!Q$15,'DATA MAESTRO 2'!Q$16,'DATA MAESTRO 2'!Q$17,'DATA MAESTRO 2'!Q$18,'DATA MAESTRO 2'!Q$19,'DATA MAESTRO 2'!Q$20,'DATA MAESTRO 2'!Q$21,'DATA MAESTRO 2'!Q$22,'DATA MAESTRO 2'!Q$23,'DATA MAESTRO 2'!Q$24,'DATA MAESTRO 2'!Q$25,'DATA MAESTRO 2'!Q$26,'DATA MAESTRO 2'!Q$27,'DATA MAESTRO 2'!Q$28,'DATA MAESTRO 2'!Q$29,'DATA MAESTRO 2'!Q$30,'DATA MAESTRO 2'!Q$31,'DATA MAESTRO 2'!Q$32,'DATA MAESTRO 2'!Q$33,'DATA MAESTRO 2'!Q$34,'DATA MAESTRO 2'!Q$35,'DATA MAESTRO 2'!Q$36,'DATA MAESTRO 2'!Q$37,'DATA MAESTRO 2'!Q$38,'DATA MAESTRO 2'!Q$39,'DATA MAESTRO 2'!Q$40,) -> 0.75 | S5: =CHOOSE($B5,'DATA MAESTRO 2'!R$6,'DATA MAESTRO 2'!R$7,'DATA MAESTRO 2'!R$8,'DATA MAESTRO 2'!R$9,'DATA MAESTRO 2'!R$10,'DATA MAESTRO 2'!R$11,'DATA MAESTRO 2'!R$12,'DATA MAESTRO 2'!R$13,'DATA MAESTRO 2'!R$14,'DATA MAESTRO 2'!R$15,'DATA MAESTRO 2'!R$16,'DATA MAESTRO 2'!R$17,'DATA MAESTRO 2'!R$18,'DATA MAESTRO 2'!R$19,'DATA MAESTRO 2'!R$20,'DATA MAESTRO 2'!R$21,'DATA MAESTRO 2'!R$22,'DATA MAESTRO 2'!R$23,'DATA MAESTRO 2'!R$24,'DATA MAESTRO 2'!R$25,'DATA MAESTRO 2'!R$26,'DATA MAESTRO 2'!R$27,'DATA MAESTRO 2'!R$28,'DATA MAESTRO 2'!R$29,'DATA MAESTRO 2'!R$30,'DATA MAESTRO 2'!R$31,'DATA MAESTRO 2'!R$32,'DATA MAESTRO 2'!R$33,'DATA MAESTRO 2'!R$34,'DATA MAESTRO 2'!R$35,'DATA MAESTRO 2'!R$36,'DATA MAESTRO 2'!R$37,'DATA MAESTRO 2'!R$38,'DATA MAESTRO 2'!R$39,'DATA MAESTRO 2'!R$40,) -> 0.5 | T5: =CHOOSE($B5,'DATA MAESTRO 2'!S$6,'DATA MAESTRO 2'!S$7,'DATA MAESTRO 2'!S$8,'DATA MAESTRO 2'!S$9,'DATA MAESTRO 2'!S$10,'DATA MAESTRO 2'!S$11,'DATA MAESTRO 2'!S$12,'DATA MAESTRO 2'!S$13,'DATA MAESTRO 2'!S$14,'DATA MAESTRO 2'!S$15,'DATA MAESTRO 2'!S$16,'DATA MAESTRO 2'!S$17,'DATA MAESTRO 2'!S$18,'DATA MAESTRO 2'!S$19,'DATA MAESTRO 2'!S$20,'DATA MAESTRO 2'!S$21,'DATA MAESTRO 2'!S$22,'DATA MAESTRO 2'!S$23,'DATA MAESTRO 2'!S$24,'DATA MAESTRO 2'!S$25,'DATA MAESTRO 2'!S$26,'DATA MAESTRO 2'!S$27,'DATA MAESTRO 2'!S$28,'DATA MAESTRO 2'!S$29,'DATA MAESTRO 2'!S$30,'DATA MAESTRO 2'!S$31,'DATA MAESTRO 2'!S$32,'DATA MAESTRO 2'!S$33,'DATA MAESTRO 2'!S$34,'DATA MAESTRO 2'!S$35,'DATA MAESTRO 2'!S$36,'DATA MAESTRO 2'!S$37,'DATA MAESTRO 2'!S$38,'DATA MAESTRO 2'!S$39,'DATA MAESTRO 2'!S$40,) -> 0.5 | U5: =CHOOSE($B5,'DATA MAESTRO 2'!T$6,'DATA MAESTRO 2'!T$7,'DATA MAESTRO 2'!T$8,'DATA MAESTRO 2'!T$9,'DATA MAESTRO 2'!T$10,'DATA MAESTRO 2'!T$11,'DATA MAESTRO 2'!T$12,'DATA MAESTRO 2'!T$13,'DATA MAESTRO 2'!T$14,'DATA MAESTRO 2'!T$15,'DATA MAESTRO 2'!T$16,'DATA MAESTRO 2'!T$17,'DATA MAESTRO 2'!T$18,'DATA MAESTRO 2'!T$19,'DATA MAESTRO 2'!T$20,'DATA MAESTRO 2'!T$21,'DATA MAESTRO 2'!T$22,'DATA MAESTRO 2'!T$23,'DATA MAESTRO 2'!T$24,'DATA MAESTRO 2'!T$25,'DATA MAESTRO 2'!T$26,'DATA MAESTRO 2'!T$27,'DATA MAESTRO 2'!T$28,'DATA MAESTRO 2'!T$29,'DATA MAESTRO 2'!T$30,'DATA MAESTRO 2'!T$31,'DATA MAESTRO 2'!T$32,'DATA MAESTRO 2'!T$33,'DATA MAESTRO 2'!T$34,'DATA MAESTRO 2'!T$35,'DATA MAESTRO 2'!T$36,'DATA MAESTRO 2'!T$37,'DATA MAESTRO 2'!T$38,'DATA MAESTRO 2'!T$39,'DATA MAESTRO 2'!T$40,) -> 0.0002 | V5: =CHOOSE($B5,'DATA MAESTRO 2'!U$6,'DATA MAESTRO 2'!U$7,'DATA MAESTRO 2'!U$8,'DATA MAESTRO 2'!U$9,'DATA MAESTRO 2'!U$10,'DATA MAESTRO 2'!U$11,'DATA MAESTRO 2'!U$12,'DATA MAESTRO 2'!U$13,'DATA MAESTRO 2'!U$14,'DATA MAESTRO 2'!U$15,'DATA MAESTRO 2'!U$16,'DATA MAESTRO 2'!U$17,'DATA MAESTRO 2'!U$18,'DATA MAESTRO 2'!U$19,'DATA MAESTRO 2'!U$20,'DATA MAESTRO 2'!U$21,'DATA MAESTRO 2'!U$22,'DATA MAESTRO 2'!U$23,'DATA MAESTRO 2'!U$24,'DATA MAESTRO 2'!U$25,'DATA MAESTRO 2'!U$26,'DATA MAESTRO 2'!U$27,'DATA MAESTRO 2'!U$28,'DATA MAESTRO 2'!U$29,'DATA MAESTRO 2'!U$30,'DATA MAESTRO 2'!U$31,'DATA MAESTRO 2'!U$32,'DATA MAESTRO 2'!U$33,'DATA MAESTRO 2'!U$34,'DATA MAESTRO 2'!U$35,'DATA MAESTRO 2'!U$36,'DATA MAESTRO 2'!U$37,'DATA MAESTRO 2'!U$38,'DATA MAESTRO 2'!U$39,'DATA MAESTRO 2'!U$40,) -> 0.0012 | W5: =CHOOSE($B5,'DATA MAESTRO 2'!V$6,'DATA MAESTRO 2'!V$7,'DATA MAESTRO 2'!V$8,'DATA MAESTRO 2'!V$9,'DATA MAESTRO 2'!V$10,'DATA MAESTRO 2'!V$11,'DATA MAESTRO 2'!V$12,'DATA MAESTRO 2'!V$13,'DATA MAESTRO 2'!V$14,'DATA MAESTRO 2'!V$15,'DATA MAESTRO 2'!V$16,'DATA MAESTRO 2'!V$17,'DATA MAESTRO 2'!V$18,'DATA MAESTRO 2'!V$19,'DATA MAESTRO 2'!V$20,'DATA MAESTRO 2'!V$21,'DATA MAESTRO 2'!V$22,'DATA MAESTRO 2'!V$23,'DATA MAESTRO 2'!V$24,'DATA MAESTRO 2'!V$25,'DATA MAESTRO 2'!V$26,'DATA MAESTRO 2'!V$27,'DATA MAESTRO 2'!V$28,'DATA MAESTRO 2'!V$29,'DATA MAESTRO 2'!V$30,'DATA MAESTRO 2'!V$31,'DATA MAESTRO 2'!V$32,'DATA MAESTRO 2'!V$33,'DATA MAESTRO 2'!V$34,'DATA MAESTRO 2'!V$35,'DATA MAESTRO 2'!V$36,'DATA MAESTRO 2'!V$37,'DATA MAESTRO 2'!V$38,'DATA MAESTRO 2'!V$39,'DATA MAESTRO 2'!V$40,) -> 0.004 | X5: =CHOOSE($B5,'DATA MAESTRO 2'!W$6,'DATA MAESTRO 2'!W$7,'DATA MAESTRO 2'!W$8,'DATA MAESTRO 2'!W$9,'DATA MAESTRO 2'!W$10,'DATA MAESTRO 2'!W$11,'DATA MAESTRO 2'!W$12,'DATA MAESTRO 2'!W$13,'DATA MAESTRO 2'!W$14,'DATA MAESTRO 2'!W$15,'DATA MAESTRO 2'!W$16,'DATA MAESTRO 2'!W$17,'DATA MAESTRO 2'!W$18,'DATA MAESTRO 2'!W$19,'DATA MAESTRO 2'!W$20,'DATA MAESTRO 2'!W$21,'DATA MAESTRO 2'!W$22,'DATA MAESTRO 2'!W$23,'DATA MAESTRO 2'!W$24,'DATA MAESTRO 2'!W$25,'DATA MAESTRO 2'!W$26,'DATA MAESTRO 2'!W$27,'DATA MAESTRO 2'!W$28,'DATA MAESTRO 2'!W$29,'DATA MAESTRO 2'!W$30,'DATA MAESTRO 2'!W$31,'DATA MAESTRO 2'!W$32,'DATA MAESTRO 2'!W$33,'DATA MAESTRO 2'!W$34,'DATA MAESTRO 2'!W$35,'DATA MAESTRO 2'!W$36,'DATA MAESTRO 2'!W$37,'DATA MAESTRO 2'!W$38,'DATA MAESTRO 2'!W$39,'DATA MAESTRO 2'!W$40,) -> 0.0005 | Y5: =CHOOSE($B5,'DATA MAESTRO 2'!X$6,'DATA MAESTRO 2'!X$7,'DATA MAESTRO 2'!X$8,'DATA MAESTRO 2'!X$9,'DATA MAESTRO 2'!X$10,'DATA MAESTRO 2'!X$11,'DATA MAESTRO 2'!X$12,'DATA MAESTRO 2'!X$13,'DATA MAESTRO 2'!X$14,'DATA MAESTRO 2'!X$15,'DATA MAESTRO 2'!X$16,'DATA MAESTRO 2'!X$17,'DATA MAESTRO 2'!X$18,'DATA MAESTRO 2'!X$19,'DATA MAESTRO 2'!X$20,'DATA MAESTRO 2'!X$21,'DATA MAESTRO 2'!X$22,'DATA MAESTRO 2'!X$23,'DATA MAESTRO 2'!X$24,'DATA MAESTRO 2'!X$25,'DATA MAESTRO 2'!X$26,'DATA MAESTRO 2'!X$27,'DATA MAESTRO 2'!X$28,'DATA MAESTRO 2'!X$29,'DATA MAESTRO 2'!X$30,'DATA MAESTRO 2'!X$31,'DATA MAESTRO 2'!X$32,'DATA MAESTRO 2'!X$33,'DATA MAESTRO 2'!X$34,'DATA MAESTRO 2'!X$35,'DATA MAESTRO 2'!X$36,'DATA MAESTRO 2'!X$37,'DATA MAESTRO 2'!X$38,'DATA MAESTRO 2'!X$39,'DATA MAESTRO 2'!X$40,) -> 0.0012 | Z5: =CHOOSE($B5,'DATA MAESTRO 2'!Y$6,'DATA MAESTRO 2'!Y$7,'DATA MAESTRO 2'!Y$8,'DATA MAESTRO 2'!Y$9,'DATA MAESTRO 2'!Y$10,'DATA MAESTRO 2'!Y$11,'DATA MAESTRO 2'!Y$12,'DATA MAESTRO 2'!Y$13,'DATA MAESTRO 2'!Y$14,'DATA MAESTRO 2'!Y$15,'DATA MAESTRO 2'!Y$16,'DATA MAESTRO 2'!Y$17,'DATA MAESTRO 2'!Y$18,'DATA MAESTRO 2'!Y$19,'DATA MAESTRO 2'!Y$20,'DATA MAESTRO 2'!Y$21,'DATA MAESTRO 2'!Y$22,'DATA MAESTRO 2'!Y$23,'DATA MAESTRO 2'!Y$24,'DATA MAESTRO 2'!Y$25,'DATA MAESTRO 2'!Y$26,'DATA MAESTRO 2'!Y$27,'DATA MAESTRO 2'!Y$28,'DATA MAESTRO 2'!Y$29,'DATA MAESTRO 2'!Y$30,'DATA MAESTRO 2'!Y$31,'DATA MAESTRO 2'!Y$32,'DATA MAESTRO 2'!Y$33,'DATA MAESTRO 2'!Y$34,'DATA MAESTRO 2'!Y$35,'DATA MAESTRO 2'!Y$36,'DATA MAESTRO 2'!Y$37,'DATA MAESTRO 2'!Y$38,'DATA MAESTRO 2'!Y$39,'DATA MAESTRO 2'!Y$40,) -> 0 | AA5: =CHOOSE($B5,'DATA MAESTRO 2'!Z$6,'DATA MAESTRO 2'!Z$7,'DATA MAESTRO 2'!Z$8,'DATA MAESTRO 2'!Z$9,'DATA MAESTRO 2'!Z$10,'DATA MAESTRO 2'!Z$11,'DATA MAESTRO 2'!Z$12,'DATA MAESTRO 2'!Z$13,'DATA MAESTRO 2'!Z$14,'DATA MAESTRO 2'!Z$15,'DATA MAESTRO 2'!Z$16,'DATA MAESTRO 2'!Z$17,'DATA MAESTRO 2'!Z$18,'DATA MAESTRO 2'!Z$19,'DATA MAESTRO 2'!Z$20,'DATA MAESTRO 2'!Z$21,'DATA MAESTRO 2'!Z$22,'DATA MAESTRO 2'!Z$23,'DATA MAESTRO 2'!Z$24,'DATA MAESTRO 2'!Z$25,'DATA MAESTRO 2'!Z$26,'DATA MAESTRO 2'!Z$27,'DATA MAESTRO 2'!Z$28,'DATA MAESTRO 2'!Z$29,'DATA MAESTRO 2'!Z$30,'DATA MAESTRO 2'!Z$31,'DATA MAESTRO 2'!Z$32,'DATA MAESTRO 2'!Z$33,'DATA MAESTRO 2'!Z$34,'DATA MAESTRO 2'!Z$35,'DATA MAESTRO 2'!Z$36,'DATA MAESTRO 2'!Z$37,'DATA MAESTRO 2'!Z$38,'DATA MAESTRO 2'!Z$39,'DATA MAESTRO 2'!Z$40,) -> 0.63 | AB5: =CHOOSE($B5,'DATA MAESTRO 2'!AA$6,'DATA MAESTRO 2'!AA$7,'DATA MAESTRO 2'!AA$8,'DATA MAESTRO 2'!AA$9,'DATA MAESTRO 2'!AA$10,'DATA MAESTRO 2'!AA$11,'DATA MAESTRO 2'!AA$12,'DATA MAESTRO 2'!AA$13,'DATA MAESTRO 2'!AA$14,'DATA MAESTRO 2'!AA$15,'DATA MAESTRO 2'!AA$16,'DATA MAESTRO 2'!AA$17,'DATA MAESTRO 2'!AA$18,'DATA MAESTRO 2'!AA$19,'DATA MAESTRO 2'!AA$20,'DATA MAESTRO 2'!AA$21,'DATA MAESTRO 2'!AA$22,'DATA MAESTRO 2'!AA$23,'DATA MAESTRO 2'!AA$24,'DATA MAESTRO 2'!AA$25,'DATA MAESTRO 2'!AA$26,'DATA MAESTRO 2'!AA$27,'DATA MAESTRO 2'!AA$28,'DATA MAESTRO 2'!AA$29,'DATA MAESTRO 2'!AA$30,'DATA MAESTRO 2'!AA$31,'DATA MAESTRO 2'!AA$32,'DATA MAESTRO 2'!AA$33,'DATA MAESTRO 2'!AA$34,'DATA MAESTRO 2'!AA$35,'DATA MAESTRO 2'!AA$36,'DATA MAESTRO 2'!AA$37,'DATA MAESTRO 2'!AA$38,'DATA MAESTRO 2'!AA$39,'DATA MAESTRO 2'!AA$40,) -> 0 | AC5: =CHOOSE($B5,'DATA MAESTRO 2'!AB$6,'DATA MAESTRO 2'!AB$7,'DATA MAESTRO 2'!AB$8,'DATA MAESTRO 2'!AB$9,'DATA MAESTRO 2'!AB$10,'DATA MAESTRO 2'!AB$11,'DATA MAESTRO 2'!AB$12,'DATA MAESTRO 2'!AB$13,'DATA MAESTRO 2'!AB$14,'DATA MAESTRO 2'!AB$15,'DATA MAESTRO 2'!AB$16,'DATA MAESTRO 2'!AB$17,'DATA MAESTRO 2'!AB$18,'DATA MAESTRO 2'!AB$19,'DATA MAESTRO 2'!AB$20,'DATA MAESTRO 2'!AB$21,'DATA MAESTRO 2'!AB$22,'DATA MAESTRO 2'!AB$23,'DATA MAESTRO 2'!AB$24,'DATA MAESTRO 2'!AB$25,'DATA MAESTRO 2'!AB$26,'DATA MAESTRO 2'!AB$27,'DATA MAESTRO 2'!AB$28,'DATA MAESTRO 2'!AB$29,'DATA MAESTRO 2'!AB$30,'DATA MAESTRO 2'!AB$31,'DATA MAESTRO 2'!AB$32,'DATA MAESTRO 2'!AB$33,'DATA MAESTRO 2'!AB$34,'DATA MAESTRO 2'!AB$35,'DATA MAESTRO 2'!AB$36,'DATA MAESTRO 2'!AB$37,'DATA MAESTRO 2'!AB$38,'DATA MAESTRO 2'!AB$39,'DATA MAESTRO 2'!AB$40,) -> 0 | AD5: =CHOOSE($B5,'DATA MAESTRO 2'!AC$6,'DATA MAESTRO 2'!AC$7,'DATA MAESTRO 2'!AC$8,'DATA MAESTRO 2'!AC$9,'DATA MAESTRO 2'!AC$10,'DATA MAESTRO 2'!AC$11,'DATA MAESTRO 2'!AC$12,'DATA MAESTRO 2'!AC$13,'DATA MAESTRO 2'!AC$14,'DATA MAESTRO 2'!AC$15,'DATA MAESTRO 2'!AC$16,'DATA MAESTRO 2'!AC$17,'DATA MAESTRO 2'!AC$18,'DATA MAESTRO 2'!AC$19,'DATA MAESTRO 2'!AC$20,'DATA MAESTRO 2'!AC$21,'DATA MAESTRO 2'!AC$22,'DATA MAESTRO 2'!AC$23,'DATA MAESTRO 2'!AC$24,'DATA MAESTRO 2'!AC$25,'DATA MAESTRO 2'!AC$26,'DATA MAESTRO 2'!AC$27,'DATA MAESTRO 2'!AC$28,'DATA MAESTRO 2'!AC$29,'DATA MAESTRO 2'!AC$30,'DATA MAESTRO 2'!AC$31,'DATA MAESTRO 2'!AC$32,'DATA MAESTRO 2'!AC$33,'DATA MAESTRO 2'!AC$34,'DATA MAESTRO 2'!AC$35,'DATA MAESTRO 2'!AC$36,'DATA MAESTRO 2'!AC$37,'DATA MAESTRO 2'!AC$38,'DATA MAESTRO 2'!AC$39,'DATA MAESTRO 2'!AC$40,) -> 0 | AE5: =CHOOSE($B5,'DATA MAESTRO 2'!AD$6,'DATA MAESTRO 2'!AD$7,'DATA MAESTRO 2'!AD$8,'DATA MAESTRO 2'!AD$9,'DATA MAESTRO 2'!AD$10,'DATA MAESTRO 2'!AD$11,'DATA MAESTRO 2'!AD$12,'DATA MAESTRO 2'!AD$13,'DATA MAESTRO 2'!AD$14,'DATA MAESTRO 2'!AD$15,'DATA MAESTRO 2'!AD$16,'DATA MAESTRO 2'!AD$17,'DATA MAESTRO 2'!AD$18,'DATA MAESTRO 2'!AD$19,'DATA MAESTRO 2'!AD$20,'DATA MAESTRO 2'!AD$21,'DATA MAESTRO 2'!AD$22,'DATA MAESTRO 2'!AD$23,'DATA MAESTRO 2'!AD$24,'DATA MAESTRO 2'!AD$25,'DATA MAESTRO 2'!AD$26,'DATA MAESTRO 2'!AD$27,'DATA MAESTRO 2'!AD$28,'DATA MAESTRO 2'!AD$29,'DATA MAESTRO 2'!AD$30,'DATA MAESTRO 2'!AD$31,'DATA MAESTRO 2'!AD$32,'DATA MAESTRO 2'!AD$33,'DATA MAESTRO 2'!AD$34,'DATA MAESTRO 2'!AD$35,'DATA MAESTRO 2'!AD$36,'DATA MAESTRO 2'!AD$37,'DATA MAESTRO 2'!AD$38,'DATA MAESTRO 2'!AD$39,'DATA MAESTRO 2'!AD$40,) -> 0 | AF5: =CHOOSE($B5,'DATA MAESTRO 2'!AE$6,'DATA MAESTRO 2'!AE$7,'DATA MAESTRO 2'!AE$8,'DATA MAESTRO 2'!AE$9,'DATA MAESTRO 2'!AE$10,'DATA MAESTRO 2'!AE$11,'DATA MAESTRO 2'!AE$12,'DATA MAESTRO 2'!AE$13,'DATA MAESTRO 2'!AE$14,'DATA MAESTRO 2'!AE$15,'DATA MAESTRO 2'!AE$16,'DATA MAESTRO 2'!AE$17,'DATA MAESTRO 2'!AE$18,'DATA MAESTRO 2'!AE$19,'DATA MAESTRO 2'!AE$20,'DATA MAESTRO 2'!AE$21,'DATA MAESTRO 2'!AE$22,'DATA MAESTRO 2'!AE$23,'DATA MAESTRO 2'!AE$24,'DATA MAESTRO 2'!AE$25,'DATA MAESTRO 2'!AE$26,'DATA MAESTRO 2'!AE$27,'DATA MAESTRO 2'!AE$28,'DATA MAESTRO 2'!AE$29,'DATA MAESTRO 2'!AE$30,'DATA MAESTRO 2'!AE$31,'DATA MAESTRO 2'!AE$32,'DATA MAESTRO 2'!AE$33,'DATA MAESTRO 2'!AE$34,'DATA MAESTRO 2'!AE$35,'DATA MAESTRO 2'!AE$36,'DATA MAESTRO 2'!AE$37,'DATA MAESTRO 2'!AE$38,'DATA MAESTRO 2'!AE$39,'DATA MAESTRO 2'!AE$40,) -> 0 | AG5: =CHOOSE($B5,'DATA MAESTRO 2'!AF$6,'DATA MAESTRO 2'!AF$7,'DATA MAESTRO 2'!AF$8,'DATA MAESTRO 2'!AF$9,'DATA MAESTRO 2'!AF$10,'DATA MAESTRO 2'!AF$11,'DATA MAESTRO 2'!AF$12,'DATA MAESTRO 2'!AF$13,'DATA MAESTRO 2'!AF$14,'DATA MAESTRO 2'!AF$15,'DATA MAESTRO 2'!AF$16,'DATA MAESTRO 2'!AF$17,'DATA MAESTRO 2'!AF$18,'DATA MAESTRO 2'!AF$19,'DATA MAESTRO 2'!AF$20,'DATA MAESTRO 2'!AF$21,'DATA MAESTRO 2'!AF$22,'DATA MAESTRO 2'!AF$23,'DATA MAESTRO 2'!AF$24,'DATA MAESTRO 2'!AF$25,'DATA MAESTRO 2'!AF$26,'DATA MAESTRO 2'!AF$27,'DATA MAESTRO 2'!AF$28,'DATA MAESTRO 2'!AF$29,'DATA MAESTRO 2'!AF$30,'DATA MAESTRO 2'!AF$31,'DATA MAESTRO 2'!AF$32,'DATA MAESTRO 2'!AF$33,'DATA MAESTRO 2'!AF$34,'DATA MAESTRO 2'!AF$35,'DATA MAESTRO 2'!AF$36,'DATA MAESTRO 2'!AF$37,'DATA MAESTRO 2'!AF$38,'DATA MAESTRO 2'!AF$39,'DATA MAESTRO 2'!AF$40,) -> 0 | AH5: =CHOOSE($B5,'DATA MAESTRO 2'!AG$6,'DATA MAESTRO 2'!AG$7,'DATA MAESTRO 2'!AG$8,'DATA MAESTRO 2'!AG$9,'DATA MAESTRO 2'!AG$10,'DATA MAESTRO 2'!AG$11,'DATA MAESTRO 2'!AG$12,'DATA MAESTRO 2'!AG$13,'DATA MAESTRO 2'!AG$14,'DATA MAESTRO 2'!AG$15,'DATA MAESTRO 2'!AG$16,'DATA MAESTRO 2'!AG$17,'DATA MAESTRO 2'!AG$18,'DATA MAESTRO 2'!AG$19,'DATA MAESTRO 2'!AG$20,'DATA MAESTRO 2'!AG$21,'DATA MAESTRO 2'!AG$22,'DATA MAESTRO 2'!AG$23,'DATA MAESTRO 2'!AG$24,'DATA MAESTRO 2'!AG$25,'DATA MAESTRO 2'!AG$26,'DATA MAESTRO 2'!AG$27,'DATA MAESTRO 2'!AG$28,'DATA MAESTRO 2'!AG$29,'DATA MAESTRO 2'!AG$30,'DATA MAESTRO 2'!AG$31,'DATA MAESTRO 2'!AG$32,'DATA MAESTRO 2'!AG$33,'DATA MAESTRO 2'!AG$34,'DATA MAESTRO 2'!AG$35,'DATA MAESTRO 2'!AG$36,'DATA MAESTRO 2'!AG$37,'DATA MAESTRO 2'!AG$38,'DATA MAESTRO 2'!AG$39,'DATA MAESTRO 2'!AG$40,) -> 0 | AI5: =CHOOSE($B5,'DATA MAESTRO 2'!AH$6,'DATA MAESTRO 2'!AH$7,'DATA MAESTRO 2'!AH$8,'DATA MAESTRO 2'!AH$9,'DATA MAESTRO 2'!AH$10,'DATA MAESTRO 2'!AH$11,'DATA MAESTRO 2'!AH$12,'DATA MAESTRO 2'!AH$13,'DATA MAESTRO 2'!AH$14,'DATA MAESTRO 2'!AH$15,'DATA MAESTRO 2'!AH$16,'DATA MAESTRO 2'!AH$17,'DATA MAESTRO 2'!AH$18,'DATA MAESTRO 2'!AH$19,'DATA MAESTRO 2'!AH$20,'DATA MAESTRO 2'!AH$21,'DATA MAESTRO 2'!AH$22,'DATA MAESTRO 2'!AH$23,'DATA MAESTRO 2'!AH$24,'DATA MAESTRO 2'!AH$25,'DATA MAESTRO 2'!AH$26,'DATA MAESTRO 2'!AH$27,'DATA MAESTRO 2'!AH$28,'DATA MAESTRO 2'!AH$29,'DATA MAESTRO 2'!AH$30,'DATA MAESTRO 2'!AH$31,'DATA MAESTRO 2'!AH$32,'DATA MAESTRO 2'!AH$33,'DATA MAESTRO 2'!AH$34,'DATA MAESTRO 2'!AH$35,'DATA MAESTRO 2'!AH$36,'DATA MAESTRO 2'!AH$37,'DATA MAESTRO 2'!AH$38,'DATA MAESTRO 2'!AH$39,'DATA MAESTRO 2'!AH$40,) -> 0 | AJ5: =CHOOSE($B5,'DATA MAESTRO 2'!AI$6,'DATA MAESTRO 2'!AI$7,'DATA MAESTRO 2'!AI$8,'DATA MAESTRO 2'!AI$9,'DATA MAESTRO 2'!AI$10,'DATA MAESTRO 2'!AI$11,'DATA MAESTRO 2'!AI$12,'DATA MAESTRO 2'!AI$13,'DATA MAESTRO 2'!AI$14,'DATA MAESTRO 2'!AI$15,'DATA MAESTRO 2'!AI$16,'DATA MAESTRO 2'!AI$17,'DATA MAESTRO 2'!AI$18,'DATA MAESTRO 2'!AI$19,'DATA MAESTRO 2'!AI$20,'DATA MAESTRO 2'!AI$21,'DATA MAESTRO 2'!AI$22,'DATA MAESTRO 2'!AI$23,'DATA MAESTRO 2'!AI$24,'DATA MAESTRO 2'!AI$25,'DATA MAESTRO 2'!AI$26,'DATA MAESTRO 2'!AI$27,'DATA MAESTRO 2'!AI$28,'DATA MAESTRO 2'!AI$29,'DATA MAESTRO 2'!AI$30,'DATA MAESTRO 2'!AI$31,'DATA MAESTRO 2'!AI$32,'DATA MAESTRO 2'!AI$33,'DATA MAESTRO 2'!AI$34,'DATA MAESTRO 2'!AI$35,'DATA MAESTRO 2'!AI$36,'DATA MAESTRO 2'!AI$37,'DATA MAESTRO 2'!AI$38,'DATA MAESTRO 2'!AI$39,'DATA MAESTRO 2'!AI$40,) -> 0 | AK5: =CHOOSE($B5,'DATA MAESTRO 2'!AJ$6,'DATA MAESTRO 2'!AJ$7,'DATA MAESTRO 2'!AJ$8,'DATA MAESTRO 2'!AJ$9,'DATA MAESTRO 2'!AJ$10,'DATA MAESTRO 2'!AJ$11,'DATA MAESTRO 2'!AJ$12,'DATA MAESTRO 2'!AJ$13,'DATA MAESTRO 2'!AJ$14,'DATA MAESTRO 2'!AJ$15,'DATA MAESTRO 2'!AJ$16,'DATA MAESTRO 2'!AJ$17,'DATA MAESTRO 2'!AJ$18,'DATA MAESTRO 2'!AJ$19,'DATA MAESTRO 2'!AJ$20,'DATA MAESTRO 2'!AJ$21,'DATA MAESTRO 2'!AJ$22,'DATA MAESTRO 2'!AJ$23,'DATA MAESTRO 2'!AJ$24,'DATA MAESTRO 2'!AJ$25,'DATA MAESTRO 2'!AJ$26,'DATA MAESTRO 2'!AJ$27,'DATA MAESTRO 2'!AJ$28,'DATA MAESTRO 2'!AJ$29,'DATA MAESTRO 2'!AJ$30,'DATA MAESTRO 2'!AJ$31,'DATA MAESTRO 2'!AJ$32,'DATA MAESTRO 2'!AJ$33,'DATA MAESTRO 2'!AJ$34,'DATA MAESTRO 2'!AJ$35,'DATA MAESTRO 2'!AJ$36,'DATA MAESTRO 2'!AJ$37,'DATA MAESTRO 2'!AJ$38,'DATA MAESTRO 2'!AJ$39,'DATA MAESTRO 2'!AJ$40,) -> 0
A6: 4 | B6: 2 | C6: =+IF(AND(B6>=1,B6<=36),VLOOKUP(B6,'DATA MAESTRO 2'!$A$6:$B$40,2),0) -> SOYA INTEGRAL | D6: =+CHOOSE($B6,'DATA MAESTRO 2'!C$6,'DATA MAESTRO 2'!C$7,'DATA MAESTRO 2'!C$8,'DATA MAESTRO 2'!C$9,'DATA MAESTRO 2'!C$10,'DATA MAESTRO 2'!C$11,'DATA MAESTRO 2'!C$12,'DATA MAESTRO 2'!C$13,'DATA MAESTRO 2'!C$14,'DATA MAESTRO 2'!C$15,'DATA MAESTRO 2'!C$16,'DATA MAESTRO 2'!C$17,'DATA MAESTRO 2'!C$18,'DATA MAESTRO 2'!C$19,'DATA MAESTRO 2'!C$20,'DATA MAESTRO 2'!C$21,'DATA MAESTRO 2'!C$22,'DATA MAESTRO 2'!C$23,'DATA MAESTRO 2'!C$24,'DATA MAESTRO 2'!C$25,'DATA MAESTRO 2'!C$26,'DATA MAESTRO 2'!C$27,'DATA MAESTRO 2'!C$28,'DATA MAESTRO 2'!C$29,'DATA MAESTRO 2'!C$30,'DATA MAESTRO 2'!C$31,'DATA MAESTRO 2'!C$32,'DATA MAESTRO 2'!C$33,'DATA MAESTRO 2'!C$34,'DATA MAESTRO 2'!C$35,'DATA MAESTRO 2'!C$36,'DATA MAESTRO 2'!C$37,'DATA MAESTRO 2'!C$38,'DATA MAESTRO 2'!C$39,'DATA MAESTRO 2'!C$40,) -> 0 | E6: =CHOOSE($B6,'DATA MAESTRO 2'!D$6,'DATA MAESTRO 2'!D$7,'DATA MAESTRO 2'!D$8,'DATA MAESTRO 2'!D$9,'DATA MAESTRO 2'!D$10,'DATA MAESTRO 2'!D$11,'DATA MAESTRO 2'!D$12,'DATA MAESTRO 2'!D$13,'DATA MAESTRO 2'!D$14,'DATA MAESTRO 2'!D$15,'DATA MAESTRO 2'!D$16,'DATA MAESTRO 2'!D$17,'DATA MAESTRO 2'!D$18,'DATA MAESTRO 2'!D$19,'DATA MAESTRO 2'!D$20,'DATA MAESTRO 2'!D$21,'DATA MAESTRO 2'!D$22,'DATA MAESTRO 2'!D$23,'DATA MAESTRO 2'!D$24,'DATA MAESTRO 2'!D$25,'DATA MAESTRO 2'!D$26,'DATA MAESTRO 2'!D$27,'DATA MAESTRO 2'!D$28,'DATA MAESTRO 2'!D$29,'DATA MAESTRO 2'!D$30,'DATA MAESTRO 2'!D$31,'DATA MAESTRO 2'!D$32,'DATA MAESTRO 2'!D$33,'DATA MAESTRO 2'!D$34,'DATA MAESTRO 2'!D$35,'DATA MAESTRO 2'!D$36,'DATA MAESTRO 2'!D$37,'DATA MAESTRO 2'!D$38,'DATA MAESTRO 2'!D$39,'DATA MAESTRO 2'!D$40,) -> 0.9 | F6: =CHOOSE(B6,'DATA MAESTRO 2'!E$6,'DATA MAESTRO 2'!E$7,'DATA MAESTRO 2'!E$8,'DATA MAESTRO 2'!E$9,'DATA MAESTRO 2'!E$10,'DATA MAESTRO 2'!E$11,'DATA MAESTRO 2'!E$12,'DATA MAESTRO 2'!E$13,'DATA MAESTRO 2'!E$14,'DATA MAESTRO 2'!E$15,'DATA MAESTRO 2'!E$16,'DATA MAESTRO 2'!E$17,'DATA MAESTRO 2'!E$18,'DATA MAESTRO 2'!E$19,'DATA MAESTRO 2'!E$20,'DATA MAESTRO 2'!E$21,'DATA MAESTRO 2'!E$22,'DATA MAESTRO 2'!E$23,'DATA MAESTRO 2'!E$24,'DATA MAESTRO 2'!E$25,'DATA MAESTRO 2'!E$26,'DATA MAESTRO 2'!E$27,'DATA MAESTRO 2'!E$28,'DATA MAESTRO 2'!E$29,'DATA MAESTRO 2'!E$30,'DATA MAESTRO 2'!E$31,'DATA MAESTRO 2'!E$32,'DATA MAESTRO 2'!E$33,'DATA MAESTRO 2'!E$34,'DATA MAESTRO 2'!E$35,'DATA MAESTRO 2'!E$36,'DATA MAESTRO 2'!E$37,'DATA MAESTRO 2'!E$38,'DATA MAESTRO 2'!E$39,'DATA MAESTRO 2'!E$40,) -> 0.95 | G6: =CHOOSE($B6,'DATA MAESTRO 2'!F$6,'DATA MAESTRO 2'!F$7,'DATA MAESTRO 2'!F$8,'DATA MAESTRO 2'!F$9,'DATA MAESTRO 2'!F$10,'DATA MAESTRO 2'!F$11,'DATA MAESTRO 2'!F$12,'DATA MAESTRO 2'!F$13,'DATA MAESTRO 2'!F$14,'DATA MAESTRO 2'!F$15,'DATA MAESTRO 2'!F$16,'DATA MAESTRO 2'!F$17,'DATA MAESTRO 2'!F$18,'DATA MAESTRO 2'!F$19,'DATA MAESTRO 2'!F$20,'DATA MAESTRO 2'!F$21,'DATA MAESTRO 2'!F$22,'DATA MAESTRO 2'!F$23,'DATA MAESTRO 2'!F$24,'DATA MAESTRO 2'!F$25,'DATA MAESTRO 2'!F$26,'DATA MAESTRO 2'!F$27,'DATA MAESTRO 2'!F$28,'DATA MAESTRO 2'!F$29,'DATA MAESTRO 2'!F$30,'DATA MAESTRO 2'!F$31,'DATA MAESTRO 2'!F$32,'DATA MAESTRO 2'!F$33,'DATA MAESTRO 2'!F$34,'DATA MAESTRO 2'!F$35,'DATA MAESTRO 2'!F$36,'DATA MAESTRO 2'!F$37,'DATA MAESTRO 2'!F$38,'DATA MAESTRO 2'!F$39,'DATA MAESTRO 2'!F$40,) -> 0.35 | H6: =CHOOSE($B6,'DATA MAESTRO 2'!G$6,'DATA MAESTRO 2'!G$7,'DATA MAESTRO 2'!G$8,'DATA MAESTRO 2'!G$9,'DATA MAESTRO 2'!G$10,'DATA MAESTRO 2'!G$11,'DATA MAESTRO 2'!G$12,'DATA MAESTRO 2'!G$13,'DATA MAESTRO 2'!G$14,'DATA MAESTRO 2'!G$15,'DATA MAESTRO 2'!G$16,'DATA MAESTRO 2'!G$17,'DATA MAESTRO 2'!G$18,'DATA MAESTRO 2'!G$19,'DATA MAESTRO 2'!G$20,'DATA MAESTRO 2'!G$21,'DATA MAESTRO 2'!G$22,'DATA MAESTRO 2'!G$23,'DATA MAESTRO 2'!G$24,'DATA MAESTRO 2'!G$25,'DATA MAESTRO 2'!G$26,'DATA MAESTRO 2'!G$27,'DATA MAESTRO 2'!G$28,'DATA MAESTRO 2'!G$29,'DATA MAESTRO 2'!G$30,'DATA MAESTRO 2'!G$31,'DATA MAESTRO 2'!G$32,'DATA MAESTRO 2'!G$33,'DATA MAESTRO 2'!G$34,'DATA MAESTRO 2'!G$35,'DATA MAESTRO 2'!G$36,'DATA MAESTRO 2'!G$37,'DATA MAESTRO 2'!G$38,'DATA MAESTRO 2'!G$39,'DATA MAESTRO 2'!G$40,) -> 0.06 | I6: =CHOOSE($B6,'DATA MAESTRO 2'!H$6,'DATA MAESTRO 2'!H$7,'DATA MAESTRO 2'!H$8,'DATA MAESTRO 2'!H$9,'DATA MAESTRO 2'!H$10,'DATA MAESTRO 2'!H$11,'DATA MAESTRO 2'!H$12,'DATA MAESTRO 2'!H$13,'DATA MAESTRO 2'!H$14,'DATA MAESTRO 2'!H$15,'DATA MAESTRO 2'!H$16,'DATA MAESTRO 2'!H$17,'DATA MAESTRO 2'!H$18,'DATA MAESTRO 2'!H$19,'DATA MAESTRO 2'!H$20,'DATA MAESTRO 2'!H$21,'DATA MAESTRO 2'!H$22,'DATA MAESTRO 2'!H$23,'DATA MAESTRO 2'!H$24,'DATA MAESTRO 2'!H$25,'DATA MAESTRO 2'!H$26,'DATA MAESTRO 2'!H$27,'DATA MAESTRO 2'!H$28,'DATA MAESTRO 2'!H$29,'DATA MAESTRO 2'!H$30,'DATA MAESTRO 2'!H$31,'DATA MAESTRO 2'!H$32,'DATA MAESTRO 2'!H$33,'DATA MAESTRO 2'!H$34,'DATA MAESTRO 2'!H$35,'DATA MAESTRO 2'!H$36,'DATA MAESTRO 2'!H$37,'DATA MAESTRO 2'!H$38,'DATA MAESTRO 2'!H$39,'DATA MAESTRO 2'!H$40,) -> 0.2 | J6: =CHOOSE($B6,'DATA MAESTRO 2'!I$6,'DATA MAESTRO 2'!I$7,'DATA MAESTRO 2'!I$8,'DATA MAESTRO 2'!I$9,'DATA MAESTRO 2'!I$10,'DATA MAESTRO 2'!I$11,'DATA MAESTRO 2'!I$12,'DATA MAESTRO 2'!I$13,'DATA MAESTRO 2'!I$14,'DATA MAESTRO 2'!I$15,'DATA MAESTRO 2'!I$16,'DATA MAESTRO 2'!I$17,'DATA MAESTRO 2'!I$18,'DATA MAESTRO 2'!I$19,'DATA MAESTRO 2'!I$20,'DATA MAESTRO 2'!I$21,'DATA MAESTRO 2'!I$22,'DATA MAESTRO 2'!I$23,'DATA MAESTRO 2'!I$24,'DATA MAESTRO 2'!I$25,'DATA MAESTRO 2'!I$26,'DATA MAESTRO 2'!I$27,'DATA MAESTRO 2'!I$28,'DATA MAESTRO 2'!I$29,'DATA MAESTRO 2'!I$30,'DATA MAESTRO 2'!I$31,'DATA MAESTRO 2'!I$32,'DATA MAESTRO 2'!I$33,'DATA MAESTRO 2'!I$34,'DATA MAESTRO 2'!I$35,'DATA MAESTRO 2'!I$36,'DATA MAESTRO 2'!I$37,'DATA MAESTRO 2'!I$38,'DATA MAESTRO 2'!I$39,'DATA MAESTRO 2'!I$40,) -> 0.1 | K6: =CHOOSE($B6,'DATA MAESTRO 2'!J$6,'DATA MAESTRO 2'!J$7,'DATA MAESTRO 2'!J$8,'DATA MAESTRO 2'!J$9,'DATA MAESTRO 2'!J$10,'DATA MAESTRO 2'!J$11,'DATA MAESTRO 2'!J$12,'DATA MAESTRO 2'!J$13,'DATA MAESTRO 2'!J$14,'DATA MAESTRO 2'!J$15,'DATA MAESTRO 2'!J$16,'DATA MAESTRO 2'!J$17,'DATA MAESTRO 2'!J$18,'DATA MAESTRO 2'!J$19,'DATA MAESTRO 2'!J$20,'DATA MAESTRO 2'!J$21,'DATA MAESTRO 2'!J$22,'DATA MAESTRO 2'!J$23,'DATA MAESTRO 2'!J$24,'DATA MAESTRO 2'!J$25,'DATA MAESTRO 2'!J$26,'DATA MAESTRO 2'!J$27,'DATA MAESTRO 2'!J$28,'DATA MAESTRO 2'!J$29,'DATA MAESTRO 2'!J$30,'DATA MAESTRO 2'!J$31,'DATA MAESTRO 2'!J$32,'DATA MAESTRO 2'!J$33,'DATA MAESTRO 2'!J$34,'DATA MAESTRO 2'!J$35,'DATA MAESTRO 2'!J$36,'DATA MAESTRO 2'!J$37,'DATA MAESTRO 2'!J$38,'DATA MAESTRO 2'!J$39,'DATA MAESTRO 2'!J$40,) -> 0.003 | L6: =CHOOSE($B6,'DATA MAESTRO 2'!K$6,'DATA MAESTRO 2'!K$7,'DATA MAESTRO 2'!K$8,'DATA MAESTRO 2'!K$9,'DATA MAESTRO 2'!K$10,'DATA MAESTRO 2'!K$11,'DATA MAESTRO 2'!K$12,'DATA MAESTRO 2'!K$13,'DATA MAESTRO 2'!K$14,'DATA MAESTRO 2'!K$15,'DATA MAESTRO 2'!K$16,'DATA MAESTRO 2'!K$17,'DATA MAESTRO 2'!K$18,'DATA MAESTRO 2'!K$19,'DATA MAESTRO 2'!K$20,'DATA MAESTRO 2'!K$21,'DATA MAESTRO 2'!K$22,'DATA MAESTRO 2'!K$23,'DATA MAESTRO 2'!K$24,'DATA MAESTRO 2'!K$25,'DATA MAESTRO 2'!K$26,'DATA MAESTRO 2'!K$27,'DATA MAESTRO 2'!K$28,'DATA MAESTRO 2'!K$29,'DATA MAESTRO 2'!K$30,'DATA MAESTRO 2'!K$31,'DATA MAESTRO 2'!K$32,'DATA MAESTRO 2'!K$33,'DATA MAESTRO 2'!K$34,'DATA MAESTRO 2'!K$35,'DATA MAESTRO 2'!K$36,'DATA MAESTRO 2'!K$37,'DATA MAESTRO 2'!K$38,'DATA MAESTRO 2'!K$39,'DATA MAESTRO 2'!K$40,) -> 0.0063 | M6: =CHOOSE($B6,'DATA MAESTRO 2'!L$6,'DATA MAESTRO 2'!L$7,'DATA MAESTRO 2'!L$8,'DATA MAESTRO 2'!L$9,'DATA MAESTRO 2'!L$10,'DATA MAESTRO 2'!L$11,'DATA MAESTRO 2'!L$12,'DATA MAESTRO 2'!L$13,'DATA MAESTRO 2'!L$14,'DATA MAESTRO 2'!L$15,'DATA MAESTRO 2'!L$16,'DATA MAESTRO 2'!L$17,'DATA MAESTRO 2'!L$18,'DATA MAESTRO 2'!L$19,'DATA MAESTRO 2'!L$20,'DATA MAESTRO 2'!L$21,'DATA MAESTRO 2'!L$22,'DATA MAESTRO 2'!L$23,'DATA MAESTRO 2'!L$24,'DATA MAESTRO 2'!L$25,'DATA MAESTRO 2'!L$26,'DATA MAESTRO 2'!L$27,'DATA MAESTRO 2'!L$28,'DATA MAESTRO 2'!L$29,'DATA MAESTRO 2'!L$30,'DATA MAESTRO 2'!L$31,'DATA MAESTRO 2'!L$32,'DATA MAESTRO 2'!L$33,'DATA MAESTRO 2'!L$34,'DATA MAESTRO 2'!L$35,'DATA MAESTRO 2'!L$36,'DATA MAESTRO 2'!L$37,'DATA MAESTRO 2'!L$38,'DATA MAESTRO 2'!L$39,'DATA MAESTRO 2'!L$40,) -> 3.434611 | N6: =CHOOSE($B6,'DATA MAESTRO 2'!M$6,'DATA MAESTRO 2'!M$7,'DATA MAESTRO 2'!M$8,'DATA MAESTRO 2'!M$9,'DATA MAESTRO 2'!M$10,'DATA MAESTRO 2'!M$11,'DATA MAESTRO 2'!M$12,'DATA MAESTRO 2'!M$13,'DATA MAESTRO 2'!M$14,'DATA MAESTRO 2'!M$15,'DATA MAESTRO 2'!M$16,'DATA MAESTRO 2'!M$17,'DATA MAESTRO 2'!M$18,'DATA MAESTRO 2'!M$19,'DATA MAESTRO 2'!M$20,'DATA MAESTRO 2'!M$21,'DATA MAESTRO 2'!M$22,'DATA MAESTRO 2'!M$23,'DATA MAESTRO 2'!M$24,'DATA MAESTRO 2'!M$25,'DATA MAESTRO 2'!M$26,'DATA MAESTRO 2'!M$27,'DATA MAESTRO 2'!M$28,'DATA MAESTRO 2'!M$29,'DATA MAESTRO 2'!M$30,'DATA MAESTRO 2'!M$31,'DATA MAESTRO 2'!M$32,'DATA MAESTRO 2'!M$33,'DATA MAESTRO 2'!M$34,'DATA MAESTRO 2'!M$35,'DATA MAESTRO 2'!M$36,'DATA MAESTRO 2'!M$37,'DATA MAESTRO 2'!M$38,'DATA MAESTRO 2'!M$39,'DATA MAESTRO 2'!M$40,) -> 2.587623052 | O6: =CHOOSE($B6,'DATA MAESTRO 2'!N$6,'DATA MAESTRO 2'!N$7,'DATA MAESTRO 2'!N$8,'DATA MAESTRO 2'!N$9,'DATA MAESTRO 2'!N$10,'DATA MAESTRO 2'!N$11,'DATA MAESTRO 2'!N$12,'DATA MAESTRO 2'!N$13,'DATA MAESTRO 2'!N$14,'DATA MAESTRO 2'!N$15,'DATA MAESTRO 2'!N$16,'DATA MAESTRO 2'!N$17,'DATA MAESTRO 2'!N$18,'DATA MAESTRO 2'!N$19,'DATA MAESTRO 2'!N$20,'DATA MAESTRO 2'!N$21,'DATA MAESTRO 2'!N$22,'DATA MAESTRO 2'!N$23,'DATA MAESTRO 2'!N$24,'DATA MAESTRO 2'!N$25,'DATA MAESTRO 2'!N$26,'DATA MAESTRO 2'!N$27,'DATA MAESTRO 2'!N$28,'DATA MAESTRO 2'!N$29,'DATA MAESTRO 2'!N$30,'DATA MAESTRO 2'!N$31,'DATA MAESTRO 2'!N$32,'DATA MAESTRO 2'!N$33,'DATA MAESTRO 2'!N$34,'DATA MAESTRO 2'!N$35,'DATA MAESTRO 2'!N$36,'DATA MAESTRO 2'!N$37,'DATA MAESTRO 2'!N$38,'DATA MAESTRO 2'!N$39,'DATA MAESTRO 2'!N$40,) -> 2.2075 | P6: =CHOOSE($B6,'DATA MAESTRO 2'!O$6,'DATA MAESTRO 2'!O$7,'DATA MAESTRO 2'!O$8,'DATA MAESTRO 2'!O$9,'DATA MAESTRO 2'!O$10,'DATA MAESTRO 2'!O$11,'DATA MAESTRO 2'!O$12,'DATA MAESTRO 2'!O$13,'DATA MAESTRO 2'!O$14,'DATA MAESTRO 2'!O$15,'DATA MAESTRO 2'!O$16,'DATA MAESTRO 2'!O$17,'DATA MAESTRO 2'!O$18,'DATA MAESTRO 2'!O$19,'DATA MAESTRO 2'!O$20,'DATA MAESTRO 2'!O$21,'DATA MAESTRO 2'!O$22,'DATA MAESTRO 2'!O$23,'DATA MAESTRO 2'!O$24,'DATA MAESTRO 2'!O$25,'DATA MAESTRO 2'!O$26,'DATA MAESTRO 2'!O$27,'DATA MAESTRO 2'!O$28,'DATA MAESTRO 2'!O$29,'DATA MAESTRO 2'!O$30,'DATA MAESTRO 2'!O$31,'DATA MAESTRO 2'!O$32,'DATA MAESTRO 2'!O$33,'DATA MAESTRO 2'!O$34,'DATA MAESTRO 2'!O$35,'DATA MAESTRO 2'!O$36,'DATA MAESTRO 2'!O$37,'DATA MAESTRO 2'!O$38,'DATA MAESTRO 2'!O$39,'DATA MAESTRO 2'!O$40,) -> 3.075377336 | Q6: =CHOOSE($B6,'DATA MAESTRO 2'!P$6,'DATA MAESTRO 2'!P$7,'DATA MAESTRO 2'!P$8,'DATA MAESTRO 2'!P$9,'DATA MAESTRO 2'!P$10,'DATA MAESTRO 2'!P$11,'DATA MAESTRO 2'!P$12,'DATA MAESTRO 2'!P$13,'DATA MAESTRO 2'!P$14,'DATA MAESTRO 2'!P$15,'DATA MAESTRO 2'!P$16,'DATA MAESTRO 2'!P$17,'DATA MAESTRO 2'!P$18,'DATA MAESTRO 2'!P$19,'DATA MAESTRO 2'!P$20,'DATA MAESTRO 2'!P$21,'DATA MAESTRO 2'!P$22,'DATA MAESTRO 2'!P$23,'DATA MAESTRO 2'!P$24,'DATA MAESTRO 2'!P$25,'DATA MAESTRO 2'!P$26,'DATA MAESTRO 2'!P$27,'DATA MAESTRO 2'!P$28,'DATA MAESTRO 2'!P$29,'DATA MAESTRO 2'!P$30,'DATA MAESTRO 2'!P$31,'DATA MAESTRO 2'!P$32,'DATA MAESTRO 2'!P$33,'DATA MAESTRO 2'!P$34,'DATA MAESTRO 2'!P$35,'DATA MAESTRO 2'!P$36,'DATA MAESTRO 2'!P$37,'DATA MAESTRO 2'!P$38,'DATA MAESTRO 2'!P$39,'DATA MAESTRO 2'!P$40,) -> 0.22 | R6: =CHOOSE($B6,'DATA MAESTRO 2'!Q$6,'DATA MAESTRO 2'!Q$7,'DATA MAESTRO 2'!Q$8,'DATA MAESTRO 2'!Q$9,'DATA MAESTRO 2'!Q$10,'DATA MAESTRO 2'!Q$11,'DATA MAESTRO 2'!Q$12,'DATA MAESTRO 2'!Q$13,'DATA MAESTRO 2'!Q$14,'DATA MAESTRO 2'!Q$15,'DATA MAESTRO 2'!Q$16,'DATA MAESTRO 2'!Q$17,'DATA MAESTRO 2'!Q$18,'DATA MAESTRO 2'!Q$19,'DATA MAESTRO 2'!Q$20,'DATA MAESTRO 2'!Q$21,'DATA MAESTRO 2'!Q$22,'DATA MAESTRO 2'!Q$23,'DATA MAESTRO 2'!Q$24,'DATA MAESTRO 2'!Q$25,'DATA MAESTRO 2'!Q$26,'DATA MAESTRO 2'!Q$27,'DATA MAESTRO 2'!Q$28,'DATA MAESTRO 2'!Q$29,'DATA MAESTRO 2'!Q$30,'DATA MAESTRO 2'!Q$31,'DATA MAESTRO 2'!Q$32,'DATA MAESTRO 2'!Q$33,'DATA MAESTRO 2'!Q$34,'DATA MAESTRO 2'!Q$35,'DATA MAESTRO 2'!Q$36,'DATA MAESTRO 2'!Q$37,'DATA MAESTRO 2'!Q$38,'DATA MAESTRO 2'!Q$39,'DATA MAESTRO 2'!Q$40,) -> 0.18 | S6: =CHOOSE($B6,'DATA MAESTRO 2'!R$6,'DATA MAESTRO 2'!R$7,'DATA MAESTRO 2'!R$8,'DATA MAESTRO 2'!R$9,'DATA MAESTRO 2'!R$10,'DATA MAESTRO 2'!R$11,'DATA MAESTRO 2'!R$12,'DATA MAESTRO 2'!R$13,'DATA MAESTRO 2'!R$14,'DATA MAESTRO 2'!R$15,'DATA MAESTRO 2'!R$16,'DATA MAESTRO 2'!R$17,'DATA MAESTRO 2'!R$18,'DATA MAESTRO 2'!R$19,'DATA MAESTRO 2'!R$20,'DATA MAESTRO 2'!R$21,'DATA MAESTRO 2'!R$22,'DATA MAESTRO 2'!R$23,'DATA MAESTRO 2'!R$24,'DATA MAESTRO 2'!R$25,'DATA MAESTRO 2'!R$26,'DATA MAESTRO 2'!R$27,'DATA MAESTRO 2'!R$28,'DATA MAESTRO 2'!R$29,'DATA MAESTRO 2'!R$30,'DATA MAESTRO 2'!R$31,'DATA MAESTRO 2'!R$32,'DATA MAESTRO 2'!R$33,'DATA MAESTRO 2'!R$34,'DATA MAESTRO 2'!R$35,'DATA MAESTRO 2'!R$36,'DATA MAESTRO 2'!R$37,'DATA MAESTRO 2'!R$38,'DATA MAESTRO 2'!R$39,'DATA MAESTRO 2'!R$40,) -> 0.5 | T6: =CHOOSE($B6,'DATA MAESTRO 2'!S$6,'DATA MAESTRO 2'!S$7,'DATA MAESTRO 2'!S$8,'DATA MAESTRO 2'!S$9,'DATA MAESTRO 2'!S$10,'DATA MAESTRO 2'!S$11,'DATA MAESTRO 2'!S$12,'DATA MAESTRO 2'!S$13,'DATA MAESTRO 2'!S$14,'DATA MAESTRO 2'!S$15,'DATA MAESTRO 2'!S$16,'DATA MAESTRO 2'!S$17,'DATA MAESTRO 2'!S$18,'DATA MAESTRO 2'!S$19,'DATA MAESTRO 2'!S$20,'DATA MAESTRO 2'!S$21,'DATA MAESTRO 2'!S$22,'DATA MAESTRO 2'!S$23,'DATA MAESTRO 2'!S$24,'DATA MAESTRO 2'!S$25,'DATA MAESTRO 2'!S$26,'DATA MAESTRO 2'!S$27,'DATA MAESTRO 2'!S$28,'DATA MAESTRO 2'!S$29,'DATA MAESTRO 2'!S$30,'DATA MAESTRO 2'!S$31,'DATA MAESTRO 2'!S$32,'DATA MAESTRO 2'!S$33,'DATA MAESTRO 2'!S$34,'DATA MAESTRO 2'!S$35,'DATA MAESTRO 2'!S$36,'DATA MAESTRO 2'!S$37,'DATA MAESTRO 2'!S$38,'DATA MAESTRO 2'!S$39,'DATA MAESTRO 2'!S$40,) -> 0.5 | U6: =CHOOSE($B6,'DATA MAESTRO 2'!T$6,'DATA MAESTRO 2'!T$7,'DATA MAESTRO 2'!T$8,'DATA MAESTRO 2'!T$9,'DATA MAESTRO 2'!T$10,'DATA MAESTRO 2'!T$11,'DATA MAESTRO 2'!T$12,'DATA MAESTRO 2'!T$13,'DATA MAESTRO 2'!T$14,'DATA MAESTRO 2'!T$15,'DATA MAESTRO 2'!T$16,'DATA MAESTRO 2'!T$17,'DATA MAESTRO 2'!T$18,'DATA MAESTRO 2'!T$19,'DATA MAESTRO 2'!T$20,'DATA MAESTRO 2'!T$21,'DATA MAESTRO 2'!T$22,'DATA MAESTRO 2'!T$23,'DATA MAESTRO 2'!T$24,'DATA MAESTRO 2'!T$25,'DATA MAESTRO 2'!T$26,'DATA MAESTRO 2'!T$27,'DATA MAESTRO 2'!T$28,'DATA MAESTRO 2'!T$29,'DATA MAESTRO 2'!T$30,'DATA MAESTRO 2'!T$31,'DATA MAESTRO 2'!T$32,'DATA MAESTRO 2'!T$33,'DATA MAESTRO 2'!T$34,'DATA MAESTRO 2'!T$35,'DATA MAESTRO 2'!T$36,'DATA MAESTRO 2'!T$37,'DATA MAESTRO 2'!T$38,'DATA MAESTRO 2'!T$39,'DATA MAESTRO 2'!T$40,) -> 0.0002 | V6: =CHOOSE($B6,'DATA MAESTRO 2'!U$6,'DATA MAESTRO 2'!U$7,'DATA MAESTRO 2'!U$8,'DATA MAESTRO 2'!U$9,'DATA MAESTRO 2'!U$10,'DATA MAESTRO 2'!U$11,'DATA MAESTRO 2'!U$12,'DATA MAESTRO 2'!U$13,'DATA MAESTRO 2'!U$14,'DATA MAESTRO 2'!U$15,'DATA MAESTRO 2'!U$16,'DATA MAESTRO 2'!U$17,'DATA MAESTRO 2'!U$18,'DATA MAESTRO 2'!U$19,'DATA MAESTRO 2'!U$20,'DATA MAESTRO 2'!U$21,'DATA MAESTRO 2'!U$22,'DATA MAESTRO 2'!U$23,'DATA MAESTRO 2'!U$24,'DATA MAESTRO 2'!U$25,'DATA MAESTRO 2'!U$26,'DATA MAESTRO 2'!U$27,'DATA MAESTRO 2'!U$28,'DATA MAESTRO 2'!U$29,'DATA MAESTRO 2'!U$30,'DATA MAESTRO 2'!U$31,'DATA MAESTRO 2'!U$32,'DATA MAESTRO 2'!U$33,'DATA MAESTRO 2'!U$34,'DATA MAESTRO 2'!U$35,'DATA MAESTRO 2'!U$36,'DATA MAESTRO 2'!U$37,'DATA MAESTRO 2'!U$38,'DATA MAESTRO 2'!U$39,'DATA MAESTRO 2'!U$40,) -> 0.0032 | W6: =CHOOSE($B6,'DATA MAESTRO 2'!V$6,'DATA MAESTRO 2'!V$7,'DATA MAESTRO 2'!V$8,'DATA MAESTRO 2'!V$9,'DATA MAESTRO 2'!V$10,'DATA MAESTRO 2'!V$11,'DATA MAESTRO 2'!V$12,'DATA MAESTRO 2'!V$13,'DATA MAESTRO 2'!V$14,'DATA MAESTRO 2'!V$15,'DATA MAESTRO 2'!V$16,'DATA MAESTRO 2'!V$17,'DATA MAESTRO 2'!V$18,'DATA MAESTRO 2'!V$19,'DATA MAESTRO 2'!V$20,'DATA MAESTRO 2'!V$21,'DATA MAESTRO 2'!V$22,'DATA MAESTRO 2'!V$23,'DATA MAESTRO 2'!V$24,'DATA MAESTRO 2'!V$25,'DATA MAESTRO 2'!V$26,'DATA MAESTRO 2'!V$27,'DATA MAESTRO 2'!V$28,'DATA MAESTRO 2'!V$29,'DATA MAESTRO 2'!V$30,'DATA MAESTRO 2'!V$31,'DATA MAESTRO 2'!V$32,'DATA MAESTRO 2'!V$33,'DATA MAESTRO 2'!V$34,'DATA MAESTRO 2'!V$35,'DATA MAESTRO 2'!V$36,'DATA MAESTRO 2'!V$37,'DATA MAESTRO 2'!V$38,'DATA MAESTRO 2'!V$39,'DATA MAESTRO 2'!V$40,) -> 0.0167 | X6: =CHOOSE($B6,'DATA MAESTRO 2'!W$6,'DATA MAESTRO 2'!W$7,'DATA MAESTRO 2'!W$8,'DATA MAESTRO 2'!W$9,'DATA MAESTRO 2'!W$10,'DATA MAESTRO 2'!W$11,'DATA MAESTRO 2'!W$12,'DATA MAESTRO 2'!W$13,'DATA MAESTRO 2'!W$14,'DATA MAESTRO 2'!W$15,'DATA MAESTRO 2'!W$16,'DATA MAESTRO 2'!W$17,'DATA MAESTRO 2'!W$18,'DATA MAESTRO 2'!W$19,'DATA MAESTRO 2'!W$20,'DATA MAESTRO 2'!W$21,'DATA MAESTRO 2'!W$22,'DATA MAESTRO 2'!W$23,'DATA MAESTRO 2'!W$24,'DATA MAESTRO 2'!W$25,'DATA MAESTRO 2'!W$26,'DATA MAESTRO 2'!W$27,'DATA MAESTRO 2'!W$28,'DATA MAESTRO 2'!W$29,'DATA MAESTRO 2'!W$30,'DATA MAESTRO 2'!W$31,'DATA MAESTRO 2'!W$32,'DATA MAESTRO 2'!W$33,'DATA MAESTRO 2'!W$34,'DATA MAESTRO 2'!W$35,'DATA MAESTRO 2'!W$36,'DATA MAESTRO 2'!W$37,'DATA MAESTRO 2'!W$38,'DATA MAESTRO 2'!W$39,'DATA MAESTRO 2'!W$40,) -> 0.0002 | Y6: =CHOOSE($B6,'DATA MAESTRO 2'!X$6,'DATA MAESTRO 2'!X$7,'DATA MAESTRO 2'!X$8,'DATA MAESTRO 2'!X$9,'DATA MAESTRO 2'!X$10,'DATA MAESTRO 2'!X$11,'DATA MAESTRO 2'!X$12,'DATA MAESTRO 2'!X$13,'DATA MAESTRO 2'!X$14,'DATA MAESTRO 2'!X$15,'DATA MAESTRO 2'!X$16,'DATA MAESTRO 2'!X$17,'DATA MAESTRO 2'!X$18,'DATA MAESTRO 2'!X$19,'DATA MAESTRO 2'!X$20,'DATA MAESTRO 2'!X$21,'DATA MAESTRO 2'!X$22,'DATA MAESTRO 2'!X$23,'DATA MAESTRO 2'!X$24,'DATA MAESTRO 2'!X$25,'DATA MAESTRO 2'!X$26,'DATA MAESTRO 2'!X$27,'DATA MAESTRO 2'!X$28,'DATA MAESTRO 2'!X$29,'DATA MAESTRO 2'!X$30,'DATA MAESTRO 2'!X$31,'DATA MAESTRO 2'!X$32,'DATA MAESTRO 2'!X$33,'DATA MAESTRO 2'!X$34,'DATA MAESTRO 2'!X$35,'DATA MAESTRO 2'!X$36,'DATA MAESTRO 2'!X$37,'DATA MAESTRO 2'!X$38,'DATA MAESTRO 2'!X$39,'DATA MAESTRO 2'!X$40,) -> 0.004 | Z6: =CHOOSE($B6,'DATA MAESTRO 2'!Y$6,'DATA MAESTRO 2'!Y$7,'DATA MAESTRO 2'!Y$8,'DATA MAESTRO 2'!Y$9,'DATA MAESTRO 2'!Y$10,'DATA MAESTRO 2'!Y$11,'DATA MAESTRO 2'!Y$12,'DATA MAESTRO 2'!Y$13,'DATA MAESTRO 2'!Y$14,'DATA MAESTRO 2'!Y$15,'DATA MAESTRO 2'!Y$16,'DATA MAESTRO 2'!Y$17,'DATA MAESTRO 2'!Y$18,'DATA MAESTRO 2'!Y$19,'DATA MAESTRO 2'!Y$20,'DATA MAESTRO 2'!Y$21,'DATA MAESTRO 2'!Y$22,'DATA MAESTRO 2'!Y$23,'DATA MAESTRO 2'!Y$24,'DATA MAESTRO 2'!Y$25,'DATA MAESTRO 2'!Y$26,'DATA MAESTRO 2'!Y$27,'DATA MAESTRO 2'!Y$28,'DATA MAESTRO 2'!Y$29,'DATA MAESTRO 2'!Y$30,'DATA MAESTRO 2'!Y$31,'DATA MAESTRO 2'!Y$32,'DATA MAESTRO 2'!Y$33,'DATA MAESTRO 2'!Y$34,'DATA MAESTRO 2'!Y$35,'DATA MAESTRO 2'!Y$36,'DATA MAESTRO 2'!Y$37,'DATA MAESTRO 2'!Y$38,'DATA MAESTRO 2'!Y$39,'DATA MAESTRO 2'!Y$40,) -> 0 | AA6: =CHOOSE($B6,'DATA MAESTRO 2'!Z$6,'DATA MAESTRO 2'!Z$7,'DATA MAESTRO 2'!Z$8,'DATA MAESTRO 2'!Z$9,'DATA MAESTRO 2'!Z$10,'DATA MAESTRO 2'!Z$11,'DATA MAESTRO 2'!Z$12,'DATA MAESTRO 2'!Z$13,'DATA MAESTRO 2'!Z$14,'DATA MAESTRO 2'!Z$15,'DATA MAESTRO 2'!Z$16,'DATA MAESTRO 2'!Z$17,'DATA MAESTRO 2'!Z$18,'DATA MAESTRO 2'!Z$19,'DATA MAESTRO 2'!Z$20,'DATA MAESTRO 2'!Z$21,'DATA MAESTRO 2'!Z$22,'DATA MAESTRO 2'!Z$23,'DATA MAESTRO 2'!Z$24,'DATA MAESTRO 2'!Z$25,'DATA MAESTRO 2'!Z$26,'DATA MAESTRO 2'!Z$27,'DATA MAESTRO 2'!Z$28,'DATA MAESTRO 2'!Z$29,'DATA MAESTRO 2'!Z$30,'DATA MAESTRO 2'!Z$31,'DATA MAESTRO 2'!Z$32,'DATA MAESTRO 2'!Z$33,'DATA MAESTRO 2'!Z$34,'DATA MAESTRO 2'!Z$35,'DATA MAESTRO 2'!Z$36,'DATA MAESTRO 2'!Z$37,'DATA MAESTRO 2'!Z$38,'DATA MAESTRO 2'!Z$39,'DATA MAESTRO 2'!Z$40,) -> 0.067 | AB6: =CHOOSE($B6,'DATA MAESTRO 2'!AA$6,'DATA MAESTRO 2'!AA$7,'DATA MAESTRO 2'!AA$8,'DATA MAESTRO 2'!AA$9,'DATA MAESTRO 2'!AA$10,'DATA MAESTRO 2'!AA$11,'DATA MAESTRO 2'!AA$12,'DATA MAESTRO 2'!AA$13,'DATA MAESTRO 2'!AA$14,'DATA MAESTRO 2'!AA$15,'DATA MAESTRO 2'!AA$16,'DATA MAESTRO 2'!AA$17,'DATA MAESTRO 2'!AA$18,'DATA MAESTRO 2'!AA$19,'DATA MAESTRO 2'!AA$20,'DATA MAESTRO 2'!AA$21,'DATA MAESTRO 2'!AA$22,'DATA MAESTRO 2'!AA$23,'DATA MAESTRO 2'!AA$24,'DATA MAESTRO 2'!AA$25,'DATA MAESTRO 2'!AA$26,'DATA MAESTRO 2'!AA$27,'DATA MAESTRO 2'!AA$28,'DATA MAESTRO 2'!AA$29,'DATA MAESTRO 2'!AA$30,'DATA MAESTRO 2'!AA$31,'DATA MAESTRO 2'!AA$32,'DATA MAESTRO 2'!AA$33,'DATA MAESTRO 2'!AA$34,'DATA MAESTRO 2'!AA$35,'DATA MAESTRO 2'!AA$36,'DATA MAESTRO 2'!AA$37,'DATA MAESTRO 2'!AA$38,'DATA MAESTRO 2'!AA$39,'DATA MAESTRO 2'!AA$40,) -> 0 | AC6: =CHOOSE($B6,'DATA MAESTRO 2'!AB$6,'DATA MAESTRO 2'!AB$7,'DATA MAESTRO 2'!AB$8,'DATA MAESTRO 2'!AB$9,'DATA MAESTRO 2'!AB$10,'DATA MAESTRO 2'!AB$11,'DATA MAESTRO 2'!AB$12,'DATA MAESTRO 2'!AB$13,'DATA MAESTRO 2'!AB$14,'DATA MAESTRO 2'!AB$15,'DATA MAESTRO 2'!AB$16,'DATA MAESTRO 2'!AB$17,'DATA MAESTRO 2'!AB$18,'DATA MAESTRO 2'!AB$19,'DATA MAESTRO 2'!AB$20,'DATA MAESTRO 2'!AB$21,'DATA MAESTRO 2'!AB$22,'DATA MAESTRO 2'!AB$23,'DATA MAESTRO 2'!AB$24,'DATA MAESTRO 2'!AB$25,'DATA MAESTRO 2'!AB$26,'DATA MAESTRO 2'!AB$27,'DATA MAESTRO 2'!AB$28,'DATA MAESTRO 2'!AB$29,'DATA MAESTRO 2'!AB$30,'DATA MAESTRO 2'!AB$31,'DATA MAESTRO 2'!AB$32,'DATA MAESTRO 2'!AB$33,'DATA MAESTRO 2'!AB$34,'DATA MAESTRO 2'!AB$35,'DATA MAESTRO 2'!AB$36,'DATA MAESTRO 2'!AB$37,'DATA MAESTRO 2'!AB$38,'DATA MAESTRO 2'!AB$39,'DATA MAESTRO 2'!AB$40,) -> 0 | AD6: =CHOOSE($B6,'DATA MAESTRO 2'!AC$6,'DATA MAESTRO 2'!AC$7,'DATA MAESTRO 2'!AC$8,'DATA MAESTRO 2'!AC$9,'DATA MAESTRO 2'!AC$10,'DATA MAESTRO 2'!AC$11,'DATA MAESTRO 2'!AC$12,'DATA MAESTRO 2'!AC$13,'DATA MAESTRO 2'!AC$14,'DATA MAESTRO 2'!AC$15,'DATA MAESTRO 2'!AC$16,'DATA MAESTRO 2'!AC$17,'DATA MAESTRO 2'!AC$18,'DATA MAESTRO 2'!AC$19,'DATA MAESTRO 2'!AC$20,'DATA MAESTRO 2'!AC$21,'DATA MAESTRO 2'!AC$22,'DATA MAESTRO 2'!AC$23,'DATA MAESTRO 2'!AC$24,'DATA MAESTRO 2'!AC$25,'DATA MAESTRO 2'!AC$26,'DATA MAESTRO 2'!AC$27,'DATA MAESTRO 2'!AC$28,'DATA MAESTRO 2'!AC$29,'DATA MAESTRO 2'!AC$30,'DATA MAESTRO 2'!AC$31,'DATA MAESTRO 2'!AC$32,'DATA MAESTRO 2'!AC$33,'DATA MAESTRO 2'!AC$34,'DATA MAESTRO 2'!AC$35,'DATA MAESTRO 2'!AC$36,'DATA MAESTRO 2'!AC$37,'DATA MAESTRO 2'!AC$38,'DATA MAESTRO 2'!AC$39,'DATA MAESTRO 2'!AC$40,) -> 0 | AE6: =CHOOSE($B6,'DATA MAESTRO 2'!AD$6,'DATA MAESTRO 2'!AD$7,'DATA MAESTRO 2'!AD$8,'DATA MAESTRO 2'!AD$9,'DATA MAESTRO 2'!AD$10,'DATA MAESTRO 2'!AD$11,'DATA MAESTRO 2'!AD$12,'DATA MAESTRO 2'!AD$13,'DATA MAESTRO 2'!AD$14,'DATA MAESTRO 2'!AD$15,'DATA MAESTRO 2'!AD$16,'DATA MAESTRO 2'!AD$17,'DATA MAESTRO 2'!AD$18,'DATA MAESTRO 2'!AD$19,'DATA MAESTRO 2'!AD$20,'DATA MAESTRO 2'!AD$21,'DATA MAESTRO 2'!AD$22,'DATA MAESTRO 2'!AD$23,'DATA MAESTRO 2'!AD$24,'DATA MAESTRO 2'!AD$25,'DATA MAESTRO 2'!AD$26,'DATA MAESTRO 2'!AD$27,'DATA MAESTRO 2'!AD$28,'DATA MAESTRO 2'!AD$29,'DATA MAESTRO 2'!AD$30,'DATA MAESTRO 2'!AD$31,'DATA MAESTRO 2'!AD$32,'DATA MAESTRO 2'!AD$33,'DATA MAESTRO 2'!AD$34,'DATA MAESTRO 2'!AD$35,'DATA MAESTRO 2'!AD$36,'DATA MAESTRO 2'!AD$37,'DATA MAESTRO 2'!AD$38,'DATA MAESTRO 2'!AD$39,'DATA MAESTRO 2'!AD$40,) -> 0 | AF6: =CHOOSE($B6,'DATA MAESTRO 2'!AE$6,'DATA MAESTRO 2'!AE$7,'DATA MAESTRO 2'!AE$8,'DATA MAESTRO 2'!AE$9,'DATA MAESTRO 2'!AE$10,'DATA MAESTRO 2'!AE$11,'DATA MAESTRO 2'!AE$12,'DATA MAESTRO 2'!AE$13,'DATA MAESTRO 2'!AE$14,'DATA MAESTRO 2'!AE$15,'DATA MAESTRO 2'!AE$16,'DATA MAESTRO 2'!AE$17,'DATA MAESTRO 2'!AE$18,'DATA MAESTRO 2'!AE$19,'DATA MAESTRO 2'!AE$20,'DATA MAESTRO 2'!AE$21,'DATA MAESTRO 2'!AE$22,'DATA MAESTRO 2'!AE$23,'DATA MAESTRO 2'!AE$24,'DATA MAESTRO 2'!AE$25,'DATA MAESTRO 2'!AE$26,'DATA MAESTRO 2'!AE$27,'DATA MAESTRO 2'!AE$28,'DATA MAESTRO 2'!AE$29,'DATA MAESTRO 2'!AE$30,'DATA MAESTRO 2'!AE$31,'DATA MAESTRO 2'!AE$32,'DATA MAESTRO 2'!AE$33,'DATA MAESTRO 2'!AE$34,'DATA MAESTRO 2'!AE$35,'DATA MAESTRO 2'!AE$36,'DATA MAESTRO 2'!AE$37,'DATA MAESTRO 2'!AE$38,'DATA MAESTRO 2'!AE$39,'DATA MAESTRO 2'!AE$40,) -> 0 | AG6: =CHOOSE($B6,'DATA MAESTRO 2'!AF$6,'DATA MAESTRO 2'!AF$7,'DATA MAESTRO 2'!AF$8,'DATA MAESTRO 2'!AF$9,'DATA MAESTRO 2'!AF$10,'DATA MAESTRO 2'!AF$11,'DATA MAESTRO 2'!AF$12,'DATA MAESTRO 2'!AF$13,'DATA MAESTRO 2'!AF$14,'DATA MAESTRO 2'!AF$15,'DATA MAESTRO 2'!AF$16,'DATA MAESTRO 2'!AF$17,'DATA MAESTRO 2'!AF$18,'DATA MAESTRO 2'!AF$19,'DATA MAESTRO 2'!AF$20,'DATA MAESTRO 2'!AF$21,'DATA MAESTRO 2'!AF$22,'DATA MAESTRO 2'!AF$23,'DATA MAESTRO 2'!AF$24,'DATA MAESTRO 2'!AF$25,'DATA MAESTRO 2'!AF$26,'DATA MAESTRO 2'!AF$27,'DATA MAESTRO 2'!AF$28,'DATA MAESTRO 2'!AF$29,'DATA MAESTRO 2'!AF$30,'DATA MAESTRO 2'!AF$31,'DATA MAESTRO 2'!AF$32,'DATA MAESTRO 2'!AF$33,'DATA MAESTRO 2'!AF$34,'DATA MAESTRO 2'!AF$35,'DATA MAESTRO 2'!AF$36,'DATA MAESTRO 2'!AF$37,'DATA MAESTRO 2'!AF$38,'DATA MAESTRO 2'!AF$39,'DATA MAESTRO 2'!AF$40,) -> 0 | AH6: =CHOOSE($B6,'DATA MAESTRO 2'!AG$6,'DATA MAESTRO 2'!AG$7,'DATA MAESTRO 2'!AG$8,'DATA MAESTRO 2'!AG$9,'DATA MAESTRO 2'!AG$10,'DATA MAESTRO 2'!AG$11,'DATA MAESTRO 2'!AG$12,'DATA MAESTRO 2'!AG$13,'DATA MAESTRO 2'!AG$14,'DATA MAESTRO 2'!AG$15,'DATA MAESTRO 2'!AG$16,'DATA MAESTRO 2'!AG$17,'DATA MAESTRO 2'!AG$18,'DATA MAESTRO 2'!AG$19,'DATA MAESTRO 2'!AG$20,'DATA MAESTRO 2'!AG$21,'DATA MAESTRO 2'!AG$22,'DATA MAESTRO 2'!AG$23,'DATA MAESTRO 2'!AG$24,'DATA MAESTRO 2'!AG$25,'DATA MAESTRO 2'!AG$26,'DATA MAESTRO 2'!AG$27,'DATA MAESTRO 2'!AG$28,'DATA MAESTRO 2'!AG$29,'DATA MAESTRO 2'!AG$30,'DATA MAESTRO 2'!AG$31,'DATA MAESTRO 2'!AG$32,'DATA MAESTRO 2'!AG$33,'DATA MAESTRO 2'!AG$34,'DATA MAESTRO 2'!AG$35,'DATA MAESTRO 2'!AG$36,'DATA MAESTRO 2'!AG$37,'DATA MAESTRO 2'!AG$38,'DATA MAESTRO 2'!AG$39,'DATA MAESTRO 2'!AG$40,) -> 0 | AI6: =CHOOSE($B6,'DATA MAESTRO 2'!AH$6,'DATA MAESTRO 2'!AH$7,'DATA MAESTRO 2'!AH$8,'DATA MAESTRO 2'!AH$9,'DATA MAESTRO 2'!AH$10,'DATA MAESTRO 2'!AH$11,'DATA MAESTRO 2'!AH$12,'DATA MAESTRO 2'!AH$13,'DATA MAESTRO 2'!AH$14,'DATA MAESTRO 2'!AH$15,'DATA MAESTRO 2'!AH$16,'DATA MAESTRO 2'!AH$17,'DATA MAESTRO 2'!AH$18,'DATA MAESTRO 2'!AH$19,'DATA MAESTRO 2'!AH$20,'DATA MAESTRO 2'!AH$21,'DATA MAESTRO 2'!AH$22,'DATA MAESTRO 2'!AH$23,'DATA MAESTRO 2'!AH$24,'DATA MAESTRO 2'!AH$25,'DATA MAESTRO 2'!AH$26,'DATA MAESTRO 2'!AH$27,'DATA MAESTRO 2'!AH$28,'DATA MAESTRO 2'!AH$29,'DATA MAESTRO 2'!AH$30,'DATA MAESTRO 2'!AH$31,'DATA MAESTRO 2'!AH$32,'DATA MAESTRO 2'!AH$33,'DATA MAESTRO 2'!AH$34,'DATA MAESTRO 2'!AH$35,'DATA MAESTRO 2'!AH$36,'DATA MAESTRO 2'!AH$37,'DATA MAESTRO 2'!AH$38,'DATA MAESTRO 2'!AH$39,'DATA MAESTRO 2'!AH$40,) -> 0 | AJ6: =CHOOSE($B6,'DATA MAESTRO 2'!AI$6,'DATA MAESTRO 2'!AI$7,'DATA MAESTRO 2'!AI$8,'DATA MAESTRO 2'!AI$9,'DATA MAESTRO 2'!AI$10,'DATA MAESTRO 2'!AI$11,'DATA MAESTRO 2'!AI$12,'DATA MAESTRO 2'!AI$13,'DATA MAESTRO 2'!AI$14,'DATA MAESTRO 2'!AI$15,'DATA MAESTRO 2'!AI$16,'DATA MAESTRO 2'!AI$17,'DATA MAESTRO 2'!AI$18,'DATA MAESTRO 2'!AI$19,'DATA MAESTRO 2'!AI$20,'DATA MAESTRO 2'!AI$21,'DATA MAESTRO 2'!AI$22,'DATA MAESTRO 2'!AI$23,'DATA MAESTRO 2'!AI$24,'DATA MAESTRO 2'!AI$25,'DATA MAESTRO 2'!AI$26,'DATA MAESTRO 2'!AI$27,'DATA MAESTRO 2'!AI$28,'DATA MAESTRO 2'!AI$29,'DATA MAESTRO 2'!AI$30,'DATA MAESTRO 2'!AI$31,'DATA MAESTRO 2'!AI$32,'DATA MAESTRO 2'!AI$33,'DATA MAESTRO 2'!AI$34,'DATA MAESTRO 2'!AI$35,'DATA MAESTRO 2'!AI$36,'DATA MAESTRO 2'!AI$37,'DATA MAESTRO 2'!AI$38,'DATA MAESTRO 2'!AI$39,'DATA MAESTRO 2'!AI$40,) -> 0 | AK6: =CHOOSE($B6,'DATA MAESTRO 2'!AJ$6,'DATA MAESTRO 2'!AJ$7,'DATA MAESTRO 2'!AJ$8,'DATA MAESTRO 2'!AJ$9,'DATA MAESTRO 2'!AJ$10,'DATA MAESTRO 2'!AJ$11,'DATA MAESTRO 2'!AJ$12,'DATA MAESTRO 2'!AJ$13,'DATA MAESTRO 2'!AJ$14,'DATA MAESTRO 2'!AJ$15,'DATA MAESTRO 2'!AJ$16,'DATA MAESTRO 2'!AJ$17,'DATA MAESTRO 2'!AJ$18,'DATA MAESTRO 2'!AJ$19,'DATA MAESTRO 2'!AJ$20,'DATA MAESTRO 2'!AJ$21,'DATA MAESTRO 2'!AJ$22,'DATA MAESTRO 2'!AJ$23,'DATA MAESTRO 2'!AJ$24,'DATA MAESTRO 2'!AJ$25,'DATA MAESTRO 2'!AJ$26,'DATA MAESTRO 2'!AJ$27,'DATA MAESTRO 2'!AJ$28,'DATA MAESTRO 2'!AJ$29,'DATA MAESTRO 2'!AJ$30,'DATA MAESTRO 2'!AJ$31,'DATA MAESTRO 2'!AJ$32,'DATA MAESTRO 2'!AJ$33,'DATA MAESTRO 2'!AJ$34,'DATA MAESTRO 2'!AJ$35,'DATA MAESTRO 2'!AJ$36,'DATA MAESTRO 2'!AJ$37,'DATA MAESTRO 2'!AJ$38,'DATA MAESTRO 2'!AJ$39,'DATA MAESTRO 2'!AJ$40,) -> 0
A7: 5 | B7: 13 | C7: =+IF(AND(B7>=1,B7<=36),VLOOKUP(B7,'DATA MAESTRO 2'!$A$6:$B$40,2),0) -> CARBONATO DE CALCIO | D7: =+CHOOSE($B7,'DATA MAESTRO 2'!C$6,'DATA MAESTRO 2'!C$7,'DATA MAESTRO 2'!C$8,'DATA MAESTRO 2'!C$9,'DATA MAESTRO 2'!C$10,'DATA MAESTRO 2'!C$11,'DATA MAESTRO 2'!C$12,'DATA MAESTRO 2'!C$13,'DATA MAESTRO 2'!C$14,'DATA MAESTRO 2'!C$15,'DATA MAESTRO 2'!C$16,'DATA MAESTRO 2'!C$17,'DATA MAESTRO 2'!C$18,'DATA MAESTRO 2'!C$19,'DATA MAESTRO 2'!C$20,'DATA MAESTRO 2'!C$21,'DATA MAESTRO 2'!C$22,'DATA MAESTRO 2'!C$23,'DATA MAESTRO 2'!C$24,'DATA MAESTRO 2'!C$25,'DATA MAESTRO 2'!C$26,'DATA MAESTRO 2'!C$27,'DATA MAESTRO 2'!C$28,'DATA MAESTRO 2'!C$29,'DATA MAESTRO 2'!C$30,'DATA MAESTRO 2'!C$31,'DATA MAESTRO 2'!C$32,'DATA MAESTRO 2'!C$33,'DATA MAESTRO 2'!C$34,'DATA MAESTRO 2'!C$35,'DATA MAESTRO 2'!C$36,'DATA MAESTRO 2'!C$37,'DATA MAESTRO 2'!C$38,'DATA MAESTRO 2'!C$39,'DATA MAESTRO 2'!C$40,) -> 0 | E7: =CHOOSE($B7,'DATA MAESTRO 2'!D$6,'DATA MAESTRO 2'!D$7,'DATA MAESTRO 2'!D$8,'DATA MAESTRO 2'!D$9,'DATA MAESTRO 2'!D$10,'DATA MAESTRO 2'!D$11,'DATA MAESTRO 2'!D$12,'DATA MAESTRO 2'!D$13,'DATA MAESTRO 2'!D$14,'DATA MAESTRO 2'!D$15,'DATA MAESTRO 2'!D$16,'DATA MAESTRO 2'!D$17,'DATA MAESTRO 2'!D$18,'DATA MAESTRO 2'!D$19,'DATA MAESTRO 2'!D$20,'DATA MAESTRO 2'!D$21,'DATA MAESTRO 2'!D$22,'DATA MAESTRO 2'!D$23,'DATA MAESTRO 2'!D$24,'DATA MAESTRO 2'!D$25,'DATA MAESTRO 2'!D$26,'DATA MAESTRO 2'!D$27,'DATA MAESTRO 2'!D$28,'DATA MAESTRO 2'!D$29,'DATA MAESTRO 2'!D$30,'DATA MAESTRO 2'!D$31,'DATA MAESTRO 2'!D$32,'DATA MAESTRO 2'!D$33,'DATA MAESTRO 2'!D$34,'DATA MAESTRO 2'!D$35,'DATA MAESTRO 2'!D$36,'DATA MAESTRO 2'!D$37,'DATA MAESTRO 2'!D$38,'DATA MAESTRO 2'!D$39,'DATA MAESTRO 2'!D$40,) -> 0.98 | F7: =CHOOSE(B7,'DATA MAESTRO 2'!E$6,'DATA MAESTRO 2'!E$7,'DATA MAESTRO 2'!E$8,'DATA MAESTRO 2'!E$9,'DATA MAESTRO 2'!E$10,'DATA MAESTRO 2'!E$11,'DATA MAESTRO 2'!E$12,'DATA MAESTRO 2'!E$13,'DATA MAESTRO 2'!E$14,'DATA MAESTRO 2'!E$15,'DATA MAESTRO 2'!E$16,'DATA MAESTRO 2'!E$17,'DATA MAESTRO 2'!E$18,'DATA MAESTRO 2'!E$19,'DATA MAESTRO 2'!E$20,'DATA MAESTRO 2'!E$21,'DATA MAESTRO 2'!E$22,'DATA MAESTRO 2'!E$23,'DATA MAESTRO 2'!E$24,'DATA MAESTRO 2'!E$25,'DATA MAESTRO 2'!E$26,'DATA MAESTRO 2'!E$27,'DATA MAESTRO 2'!E$28,'DATA MAESTRO 2'!E$29,'DATA MAESTRO 2'!E$30,'DATA MAESTRO 2'!E$31,'DATA MAESTRO 2'!E$32,'DATA MAESTRO 2'!E$33,'DATA MAESTRO 2'!E$34,'DATA MAESTRO 2'!E$35,'DATA MAESTRO 2'!E$36,'DATA MAESTRO 2'!E$37,'DATA MAESTRO 2'!E$38,'DATA MAESTRO 2'!E$39,'DATA MAESTRO 2'!E$40,) -> 0 | G7: =CHOOSE($B7,'DATA MAESTRO 2'!F$6,'DATA MAESTRO 2'!F$7,'DATA MAESTRO 2'!F$8,'DATA MAESTRO 2'!F$9,'DATA MAESTRO 2'!F$10,'DATA MAESTRO 2'!F$11,'DATA MAESTRO 2'!F$12,'DATA MAESTRO 2'!F$13,'DATA MAESTRO 2'!F$14,'DATA MAESTRO 2'!F$15,'DATA MAESTRO 2'!F$16,'DATA MAESTRO 2'!F$17,'DATA MAESTRO 2'!F$18,'DATA MAESTRO 2'!F$19,'DATA MAESTRO 2'!F$20,'DATA MAESTRO 2'!F$21,'DATA MAESTRO 2'!F$22,'DATA MAESTRO 2'!F$23,'DATA MAESTRO 2'!F$24,'DATA MAESTRO 2'!F$25,'DATA MAESTRO 2'!F$26,'DATA MAESTRO 2'!F$27,'DATA MAESTRO 2'!F$28,'DATA MAESTRO 2'!F$29,'DATA MAESTRO 2'!F$30,'DATA MAESTRO 2'!F$31,'DATA MAESTRO 2'!F$32,'DATA MAESTRO 2'!F$33,'DATA MAESTRO 2'!F$34,'DATA MAESTRO 2'!F$35,'DATA MAESTRO 2'!F$36,'DATA MAESTRO 2'!F$37,'DATA MAESTRO 2'!F$38,'DATA MAESTRO 2'!F$39,'DATA MAESTRO 2'!F$40,) -> 0 | H7: =CHOOSE($B7,'DATA MAESTRO 2'!G$6,'DATA MAESTRO 2'!G$7,'DATA MAESTRO 2'!G$8,'DATA MAESTRO 2'!G$9,'DATA MAESTRO 2'!G$10,'DATA MAESTRO 2'!G$11,'DATA MAESTRO 2'!G$12,'DATA MAESTRO 2'!G$13,'DATA MAESTRO 2'!G$14,'DATA MAESTRO 2'!G$15,'DATA MAESTRO 2'!G$16,'DATA MAESTRO 2'!G$17,'DATA MAESTRO 2'!G$18,'DATA MAESTRO 2'!G$19,'DATA MAESTRO 2'!G$20,'DATA MAESTRO 2'!G$21,'DATA MAESTRO 2'!G$22,'DATA MAESTRO 2'!G$23,'DATA MAESTRO 2'!G$24,'DATA MAESTRO 2'!G$25,'DATA MAESTRO 2'!G$26,'DATA MAESTRO 2'!G$27,'DATA MAESTRO 2'!G$28,'DATA MAESTRO 2'!G$29,'DATA MAESTRO 2'!G$30,'DATA MAESTRO 2'!G$31,'DATA MAESTRO 2'!G$32,'DATA MAESTRO 2'!G$33,'DATA MAESTRO 2'!G$34,'DATA MAESTRO 2'!G$35,'DATA MAESTRO 2'!G$36,'DATA MAESTRO 2'!G$37,'DATA MAESTRO 2'!G$38,'DATA MAESTRO 2'!G$39,'DATA MAESTRO 2'!G$40,) -> 0 | I7: =CHOOSE($B7,'DATA MAESTRO 2'!H$6,'DATA MAESTRO 2'!H$7,'DATA MAESTRO 2'!H$8,'DATA MAESTRO 2'!H$9,'DATA MAESTRO 2'!H$10,'DATA MAESTRO 2'!H$11,'DATA MAESTRO 2'!H$12,'DATA MAESTRO 2'!H$13,'DATA MAESTRO 2'!H$14,'DATA MAESTRO 2'!H$15,'DATA MAESTRO 2'!H$16,'DATA MAESTRO 2'!H$17,'DATA MAESTRO 2'!H$18,'DATA MAESTRO 2'!H$19,'DATA MAESTRO 2'!H$20,'DATA MAESTRO 2'!H$21,'DATA MAESTRO 2'!H$22,'DATA MAESTRO 2'!H$23,'DATA MAESTRO 2'!H$24,'DATA MAESTRO 2'!H$25,'DATA MAESTRO 2'!H$26,'DATA MAESTRO 2'!H$27,'DATA MAESTRO 2'!H$28,'DATA MAESTRO 2'!H$29,'DATA MAESTRO 2'!H$30,'DATA MAESTRO 2'!H$31,'DATA MAESTRO 2'!H$32,'DATA MAESTRO 2'!H$33,'DATA MAESTRO 2'!H$34,'DATA MAESTRO 2'!H$35,'DATA MAESTRO 2'!H$36,'DATA MAESTRO 2'!H$37,'DATA MAESTRO 2'!H$38,'DATA MAESTRO 2'!H$39,'DATA MAESTRO 2'!H$40,) -> 0 | J7: =CHOOSE($B7,'DATA MAESTRO 2'!I$6,'DATA MAESTRO 2'!I$7,'DATA MAESTRO 2'!I$8,'DATA MAESTRO 2'!I$9,'DATA MAESTRO 2'!I$10,'DATA MAESTRO 2'!I$11,'DATA MAESTRO 2'!I$12,'DATA MAESTRO 2'!I$13,'DATA MAESTRO 2'!I$14,'DATA MAESTRO 2'!I$15,'DATA MAESTRO 2'!I$16,'DATA MAESTRO 2'!I$17,'DATA MAESTRO 2'!I$18,'DATA MAESTRO 2'!I$19,'DATA MAESTRO 2'!I$20,'DATA MAESTRO 2'!I$21,'DATA MAESTRO 2'!I$22,'DATA MAESTRO 2'!I$23,'DATA MAESTRO 2'!I$24,'DATA MAESTRO 2'!I$25,'DATA MAESTRO 2'!I$26,'DATA MAESTRO 2'!I$27,'DATA MAESTRO 2'!I$28,'DATA MAESTRO 2'!I$29,'DATA MAESTRO 2'!I$30,'DATA MAESTRO 2'!I$31,'DATA MAESTRO 2'!I$32,'DATA MAESTRO 2'!I$33,'DATA MAESTRO 2'!I$34,'DATA MAESTRO 2'!I$35,'DATA MAESTRO 2'!I$36,'DATA MAESTRO 2'!I$37,'DATA MAESTRO 2'!I$38,'DATA MAESTRO 2'!I$39,'DATA MAESTRO 2'!I$40,) -> 0 | K7: =CHOOSE($B7,'DATA MAESTRO 2'!J$6,'DATA MAESTRO 2'!J$7,'DATA MAESTRO 2'!J$8,'DATA MAESTRO 2'!J$9,'DATA MAESTRO 2'!J$10,'DATA MAESTRO 2'!J$11,'DATA MAESTRO 2'!J$12,'DATA MAESTRO 2'!J$13,'DATA MAESTRO 2'!J$14,'DATA MAESTRO 2'!J$15,'DATA MAESTRO 2'!J$16,'DATA MAESTRO 2'!J$17,'DATA MAESTRO 2'!J$18,'DATA MAESTRO 2'!J$19,'DATA MAESTRO 2'!J$20,'DATA MAESTRO 2'!J$21,'DATA MAESTRO 2'!J$22,'DATA MAESTRO 2'!J$23,'DATA MAESTRO 2'!J$24,'DATA MAESTRO 2'!J$25,'DATA MAESTRO 2'!J$26,'DATA MAESTRO 2'!J$27,'DATA MAESTRO 2'!J$28,'DATA MAESTRO 2'!J$29,'DATA MAESTRO 2'!J$30,'DATA MAESTRO 2'!J$31,'DATA MAESTRO 2'!J$32,'DATA MAESTRO 2'!J$33,'DATA MAESTRO 2'!J$34,'DATA MAESTRO 2'!J$35,'DATA MAESTRO 2'!J$36,'DATA MAESTRO 2'!J$37,'DATA MAESTRO 2'!J$38,'DATA MAESTRO 2'!J$39,'DATA MAESTRO 2'!J$40,) -> 0.38 | L7: =CHOOSE($B7,'DATA MAESTRO 2'!K$6,'DATA MAESTRO 2'!K$7,'DATA MAESTRO 2'!K$8,'DATA MAESTRO 2'!K$9,'DATA MAESTRO 2'!K$10,'DATA MAESTRO 2'!K$11,'DATA MAESTRO 2'!K$12,'DATA MAESTRO 2'!K$13,'DATA MAESTRO 2'!K$14,'DATA MAESTRO 2'!K$15,'DATA MAESTRO 2'!K$16,'DATA MAESTRO 2'!K$17,'DATA MAESTRO 2'!K$18,'DATA MAESTRO 2'!K$19,'DATA MAESTRO 2'!K$20,'DATA MAESTRO 2'!K$21,'DATA MAESTRO 2'!K$22,'DATA MAESTRO 2'!K$23,'DATA MAESTRO 2'!K$24,'DATA MAESTRO 2'!K$25,'DATA MAESTRO 2'!K$26,'DATA MAESTRO 2'!K$27,'DATA MAESTRO 2'!K$28,'DATA MAESTRO 2'!K$29,'DATA MAESTRO 2'!K$30,'DATA MAESTRO 2'!K$31,'DATA MAESTRO 2'!K$32,'DATA MAESTRO 2'!K$33,'DATA MAESTRO 2'!K$34,'DATA MAESTRO 2'!K$35,'DATA MAESTRO 2'!K$36,'DATA MAESTRO 2'!K$37,'DATA MAESTRO 2'!K$38,'DATA MAESTRO 2'!K$39,'DATA MAESTRO 2'!K$40,) -> 0 | M7: =CHOOSE($B7,'DATA MAESTRO 2'!L$6,'DATA MAESTRO 2'!L$7,'DATA MAESTRO 2'!L$8,'DATA MAESTRO 2'!L$9,'DATA MAESTRO 2'!L$10,'DATA MAESTRO 2'!L$11,'DATA MAESTRO 2'!L$12,'DATA MAESTRO 2'!L$13,'DATA MAESTRO 2'!L$14,'DATA MAESTRO 2'!L$15,'DATA MAESTRO 2'!L$16,'DATA MAESTRO 2'!L$17,'DATA MAESTRO 2'!L$18,'DATA MAESTRO 2'!L$19,'DATA MAESTRO 2'!L$20,'DATA MAESTRO 2'!L$21,'DATA MAESTRO 2'!L$22,'DATA MAESTRO 2'!L$23,'DATA MAESTRO 2'!L$24,'DATA MAESTRO 2'!L$25,'DATA MAESTRO 2'!L$26,'DATA MAESTRO 2'!L$27,'DATA MAESTRO 2'!L$28,'DATA MAESTRO 2'!L$29,'DATA MAESTRO 2'!L$30,'DATA MAESTRO 2'!L$31,'DATA MAESTRO 2'!L$32,'DATA MAESTRO 2'!L$33,'DATA MAESTRO 2'!L$34,'DATA MAESTRO 2'!L$35,'DATA MAESTRO 2'!L$36,'DATA MAESTRO 2'!L$37,'DATA MAESTRO 2'!L$38,'DATA MAESTRO 2'!L$39,'DATA MAESTRO 2'!L$40,) -> 0 | N7: =CHOOSE($B7,'DATA MAESTRO 2'!M$6,'DATA MAESTRO 2'!M$7,'DATA MAESTRO 2'!M$8,'DATA MAESTRO 2'!M$9,'DATA MAESTRO 2'!M$10,'DATA MAESTRO 2'!M$11,'DATA MAESTRO 2'!M$12,'DATA MAESTRO 2'!M$13,'DATA MAESTRO 2'!M$14,'DATA MAESTRO 2'!M$15,'DATA MAESTRO 2'!M$16,'DATA MAESTRO 2'!M$17,'DATA MAESTRO 2'!M$18,'DATA MAESTRO 2'!M$19,'DATA MAESTRO 2'!M$20,'DATA MAESTRO 2'!M$21,'DATA MAESTRO 2'!M$22,'DATA MAESTRO 2'!M$23,'DATA MAESTRO 2'!M$24,'DATA MAESTRO 2'!M$25,'DATA MAESTRO 2'!M$26,'DATA MAESTRO 2'!M$27,'DATA MAESTRO 2'!M$28,'DATA MAESTRO 2'!M$29,'DATA MAESTRO 2'!M$30,'DATA MAESTRO 2'!M$31,'DATA MAESTRO 2'!M$32,'DATA MAESTRO 2'!M$33,'DATA MAESTRO 2'!M$34,'DATA MAESTRO 2'!M$35,'DATA MAESTRO 2'!M$36,'DATA MAESTRO 2'!M$37,'DATA MAESTRO 2'!M$38,'DATA MAESTRO 2'!M$39,'DATA MAESTRO 2'!M$40,) -> 0 | O7: =CHOOSE($B7,'DATA MAESTRO 2'!N$6,'DATA MAESTRO 2'!N$7,'DATA MAESTRO 2'!N$8,'DATA MAESTRO 2'!N$9,'DATA MAESTRO 2'!N$10,'DATA MAESTRO 2'!N$11,'DATA MAESTRO 2'!N$12,'DATA MAESTRO 2'!N$13,'DATA MAESTRO 2'!N$14,'DATA MAESTRO 2'!N$15,'DATA MAESTRO 2'!N$16,'DATA MAESTRO 2'!N$17,'DATA MAESTRO 2'!N$18,'DATA MAESTRO 2'!N$19,'DATA MAESTRO 2'!N$20,'DATA MAESTRO 2'!N$21,'DATA MAESTRO 2'!N$22,'DATA MAESTRO 2'!N$23,'DATA MAESTRO 2'!N$24,'DATA MAESTRO 2'!N$25,'DATA MAESTRO 2'!N$26,'DATA MAESTRO 2'!N$27,'DATA MAESTRO 2'!N$28,'DATA MAESTRO 2'!N$29,'DATA MAESTRO 2'!N$30,'DATA MAESTRO 2'!N$31,'DATA MAESTRO 2'!N$32,'DATA MAESTRO 2'!N$33,'DATA MAESTRO 2'!N$34,'DATA MAESTRO 2'!N$35,'DATA MAESTRO 2'!N$36,'DATA MAESTRO 2'!N$37,'DATA MAESTRO 2'!N$38,'DATA MAESTRO 2'!N$39,'DATA MAESTRO 2'!N$40,) -> 0 | P7: =CHOOSE($B7,'DATA MAESTRO 2'!O$6,'DATA MAESTRO 2'!O$7,'DATA MAESTRO 2'!O$8,'DATA MAESTRO 2'!O$9,'DATA MAESTRO 2'!O$10,'DATA MAESTRO 2'!O$11,'DATA MAESTRO 2'!O$12,'DATA MAESTRO 2'!O$13,'DATA MAESTRO 2'!O$14,'DATA MAESTRO 2'!O$15,'DATA MAESTRO 2'!O$16,'DATA MAESTRO 2'!O$17,'DATA MAESTRO 2'!O$18,'DATA MAESTRO 2'!O$19,'DATA MAESTRO 2'!O$20,'DATA MAESTRO 2'!O$21,'DATA MAESTRO 2'!O$22,'DATA MAESTRO 2'!O$23,'DATA MAESTRO 2'!O$24,'DATA MAESTRO 2'!O$25,'DATA MAESTRO 2'!O$26,'DATA MAESTRO 2'!O$27,'DATA MAESTRO 2'!O$28,'DATA MAESTRO 2'!O$29,'DATA MAESTRO 2'!O$30,'DATA MAESTRO 2'!O$31,'DATA MAESTRO 2'!O$32,'DATA MAESTRO 2'!O$33,'DATA MAESTRO 2'!O$34,'DATA MAESTRO 2'!O$35,'DATA MAESTRO 2'!O$36,'DATA MAESTRO 2'!O$37,'DATA MAESTRO 2'!O$38,'DATA MAESTRO 2'!O$39,'DATA MAESTRO 2'!O$40,) -> 0 | Q7: =CHOOSE($B7,'DATA MAESTRO 2'!P$6,'DATA MAESTRO 2'!P$7,'DATA MAESTRO 2'!P$8,'DATA MAESTRO 2'!P$9,'DATA MAESTRO 2'!P$10,'DATA MAESTRO 2'!P$11,'DATA MAESTRO 2'!P$12,'DATA MAESTRO 2'!P$13,'DATA MAESTRO 2'!P$14,'DATA MAESTRO 2'!P$15,'DATA MAESTRO 2'!P$16,'DATA MAESTRO 2'!P$17,'DATA MAESTRO 2'!P$18,'DATA MAESTRO 2'!P$19,'DATA MAESTRO 2'!P$20,'DATA MAESTRO 2'!P$21,'DATA MAESTRO 2'!P$22,'DATA MAESTRO 2'!P$23,'DATA MAESTRO 2'!P$24,'DATA MAESTRO 2'!P$25,'DATA MAESTRO 2'!P$26,'DATA MAESTRO 2'!P$27,'DATA MAESTRO 2'!P$28,'DATA MAESTRO 2'!P$29,'DATA MAESTRO 2'!P$30,'DATA MAESTRO 2'!P$31,'DATA MAESTRO 2'!P$32,'DATA MAESTRO 2'!P$33,'DATA MAESTRO 2'!P$34,'DATA MAESTRO 2'!P$35,'DATA MAESTRO 2'!P$36,'DATA MAESTRO 2'!P$37,'DATA MAESTRO 2'!P$38,'DATA MAESTRO 2'!P$39,'DATA MAESTRO 2'!P$40,) -> 0 | R7: =CHOOSE($B7,'DATA MAESTRO 2'!Q$6,'DATA MAESTRO 2'!Q$7,'DATA MAESTRO 2'!Q$8,'DATA MAESTRO 2'!Q$9,'DATA MAESTRO 2'!Q$10,'DATA MAESTRO 2'!Q$11,'DATA MAESTRO 2'!Q$12,'DATA MAESTRO 2'!Q$13,'DATA MAESTRO 2'!Q$14,'DATA MAESTRO 2'!Q$15,'DATA MAESTRO 2'!Q$16,'DATA MAESTRO 2'!Q$17,'DATA MAESTRO 2'!Q$18,'DATA MAESTRO 2'!Q$19,'DATA MAESTRO 2'!Q$20,'DATA MAESTRO 2'!Q$21,'DATA MAESTRO 2'!Q$22,'DATA MAESTRO 2'!Q$23,'DATA MAESTRO 2'!Q$24,'DATA MAESTRO 2'!Q$25,'DATA MAESTRO 2'!Q$26,'DATA MAESTRO 2'!Q$27,'DATA MAESTRO 2'!Q$28,'DATA MAESTRO 2'!Q$29,'DATA MAESTRO 2'!Q$30,'DATA MAESTRO 2'!Q$31,'DATA MAESTRO 2'!Q$32,'DATA MAESTRO 2'!Q$33,'DATA MAESTRO 2'!Q$34,'DATA MAESTRO 2'!Q$35,'DATA MAESTRO 2'!Q$36,'DATA MAESTRO 2'!Q$37,'DATA MAESTRO 2'!Q$38,'DATA MAESTRO 2'!Q$39,'DATA MAESTRO 2'!Q$40,) -> 0 | S7: =CHOOSE($B7,'DATA MAESTRO 2'!R$6,'DATA MAESTRO 2'!R$7,'DATA MAESTRO 2'!R$8,'DATA MAESTRO 2'!R$9,'DATA MAESTRO 2'!R$10,'DATA MAESTRO 2'!R$11,'DATA MAESTRO 2'!R$12,'DATA MAESTRO 2'!R$13,'DATA MAESTRO 2'!R$14,'DATA MAESTRO 2'!R$15,'DATA MAESTRO 2'!R$16,'DATA MAESTRO 2'!R$17,'DATA MAESTRO 2'!R$18,'DATA MAESTRO 2'!R$19,'DATA MAESTRO 2'!R$20,'DATA MAESTRO 2'!R$21,'DATA MAESTRO 2'!R$22,'DATA MAESTRO 2'!R$23,'DATA MAESTRO 2'!R$24,'DATA MAESTRO 2'!R$25,'DATA MAESTRO 2'!R$26,'DATA MAESTRO 2'!R$27,'DATA MAESTRO 2'!R$28,'DATA MAESTRO 2'!R$29,'DATA MAESTRO 2'!R$30,'DATA MAESTRO 2'!R$31,'DATA MAESTRO 2'!R$32,'DATA MAESTRO 2'!R$33,'DATA MAESTRO 2'!R$34,'DATA MAESTRO 2'!R$35,'DATA MAESTRO 2'!R$36,'DATA MAESTRO 2'!R$37,'DATA MAESTRO 2'!R$38,'DATA MAESTRO 2'!R$39,'DATA MAESTRO 2'!R$40,) -> 0 | T7: =CHOOSE($B7,'DATA MAESTRO 2'!S$6,'DATA MAESTRO 2'!S$7,'DATA MAESTRO 2'!S$8,'DATA MAESTRO 2'!S$9,'DATA MAESTRO 2'!S$10,'DATA MAESTRO 2'!S$11,'DATA MAESTRO 2'!S$12,'DATA MAESTRO 2'!S$13,'DATA MAESTRO 2'!S$14,'DATA MAESTRO 2'!S$15,'DATA MAESTRO 2'!S$16,'DATA MAESTRO 2'!S$17,'DATA MAESTRO 2'!S$18,'DATA MAESTRO 2'!S$19,'DATA MAESTRO 2'!S$20,'DATA MAESTRO 2'!S$21,'DATA MAESTRO 2'!S$22,'DATA MAESTRO 2'!S$23,'DATA MAESTRO 2'!S$24,'DATA MAESTRO 2'!S$25,'DATA MAESTRO 2'!S$26,'DATA MAESTRO 2'!S$27,'DATA MAESTRO 2'!S$28,'DATA MAESTRO 2'!S$29,'DATA MAESTRO 2'!S$30,'DATA MAESTRO 2'!S$31,'DATA MAESTRO 2'!S$32,'DATA MAESTRO 2'!S$33,'DATA MAESTRO 2'!S$34,'DATA MAESTRO 2'!S$35,'DATA MAESTRO 2'!S$36,'DATA MAESTRO 2'!S$37,'DATA MAESTRO 2'!S$38,'DATA MAESTRO 2'!S$39,'DATA MAESTRO 2'!S$40,) -> 0 | U7: =CHOOSE($B7,'DATA MAESTRO 2'!T$6,'DATA MAESTRO 2'!T$7,'DATA MAESTRO 2'!T$8,'DATA MAESTRO 2'!T$9,'DATA MAESTRO 2'!T$10,'DATA MAESTRO 2'!T$11,'DATA MAESTRO 2'!T$12,'DATA MAESTRO 2'!T$13,'DATA MAESTRO 2'!T$14,'DATA MAESTRO 2'!T$15,'DATA MAESTRO 2'!T$16,'DATA MAESTRO 2'!T$17,'DATA MAESTRO 2'!T$18,'DATA MAESTRO 2'!T$19,'DATA MAESTRO 2'!T$20,'DATA MAESTRO 2'!T$21,'DATA MAESTRO 2'!T$22,'DATA MAESTRO 2'!T$23,'DATA MAESTRO 2'!T$24,'DATA MAESTRO 2'!T$25,'DATA MAESTRO 2'!T$26,'DATA MAESTRO 2'!T$27,'DATA MAESTRO 2'!T$28,'DATA MAESTRO 2'!T$29,'DATA MAESTRO 2'!T$30,'DATA MAESTRO 2'!T$31,'DATA MAESTRO 2'!T$32,'DATA MAESTRO 2'!T$33,'DATA MAESTRO 2'!T$34,'DATA MAESTRO 2'!T$35,'DATA MAESTRO 2'!T$36,'DATA MAESTRO 2'!T$37,'DATA MAESTRO 2'!T$38,'DATA MAESTRO 2'!T$39,'DATA MAESTRO 2'!T$40,) -> 0 | V7: =CHOOSE($B7,'DATA MAESTRO 2'!U$6,'DATA MAESTRO 2'!U$7,'DATA MAESTRO 2'!U$8,'DATA MAESTRO 2'!U$9,'DATA MAESTRO 2'!U$10,'DATA MAESTRO 2'!U$11,'DATA MAESTRO 2'!U$12,'DATA MAESTRO 2'!U$13,'DATA MAESTRO 2'!U$14,'DATA MAESTRO 2'!U$15,'DATA MAESTRO 2'!U$16,'DATA MAESTRO 2'!U$17,'DATA MAESTRO 2'!U$18,'DATA MAESTRO 2'!U$19,'DATA MAESTRO 2'!U$20,'DATA MAESTRO 2'!U$21,'DATA MAESTRO 2'!U$22,'DATA MAESTRO 2'!U$23,'DATA MAESTRO 2'!U$24,'DATA MAESTRO 2'!U$25,'DATA MAESTRO 2'!U$26,'DATA MAESTRO 2'!U$27,'DATA MAESTRO 2'!U$28,'DATA MAESTRO 2'!U$29,'DATA MAESTRO 2'!U$30,'DATA MAESTRO 2'!U$31,'DATA MAESTRO 2'!U$32,'DATA MAESTRO 2'!U$33,'DATA MAESTRO 2'!U$34,'DATA MAESTRO 2'!U$35,'DATA MAESTRO 2'!U$36,'DATA MAESTRO 2'!U$37,'DATA MAESTRO 2'!U$38,'DATA MAESTRO 2'!U$39,'DATA MAESTRO 2'!U$40,) -> 0 | W7: =CHOOSE($B7,'DATA MAESTRO 2'!V$6,'DATA MAESTRO 2'!V$7,'DATA MAESTRO 2'!V$8,'DATA MAESTRO 2'!V$9,'DATA MAESTRO 2'!V$10,'DATA MAESTRO 2'!V$11,'DATA MAESTRO 2'!V$12,'DATA MAESTRO 2'!V$13,'DATA MAESTRO 2'!V$14,'DATA MAESTRO 2'!V$15,'DATA MAESTRO 2'!V$16,'DATA MAESTRO 2'!V$17,'DATA MAESTRO 2'!V$18,'DATA MAESTRO 2'!V$19,'DATA MAESTRO 2'!V$20,'DATA MAESTRO 2'!V$21,'DATA MAESTRO 2'!V$22,'DATA MAESTRO 2'!V$23,'DATA MAESTRO 2'!V$24,'DATA MAESTRO 2'!V$25,'DATA MAESTRO 2'!V$26,'DATA MAESTRO 2'!V$27,'DATA MAESTRO 2'!V$28,'DATA MAESTRO 2'!V$29,'DATA MAESTRO 2'!V$30,'DATA MAESTRO 2'!V$31,'DATA MAESTRO 2'!V$32,'DATA MAESTRO 2'!V$33,'DATA MAESTRO 2'!V$34,'DATA MAESTRO 2'!V$35,'DATA MAESTRO 2'!V$36,'DATA MAESTRO 2'!V$37,'DATA MAESTRO 2'!V$38,'DATA MAESTRO 2'!V$39,'DATA MAESTRO 2'!V$40,) -> 0 | X7: =CHOOSE($B7,'DATA MAESTRO 2'!W$6,'DATA MAESTRO 2'!W$7,'DATA MAESTRO 2'!W$8,'DATA MAESTRO 2'!W$9,'DATA MAESTRO 2'!W$10,'DATA MAESTRO 2'!W$11,'DATA MAESTRO 2'!W$12,'DATA MAESTRO 2'!W$13,'DATA MAESTRO 2'!W$14,'DATA MAESTRO 2'!W$15,'DATA MAESTRO 2'!W$16,'DATA MAESTRO 2'!W$17,'DATA MAESTRO 2'!W$18,'DATA MAESTRO 2'!W$19,'DATA MAESTRO 2'!W$20,'DATA MAESTRO 2'!W$21,'DATA MAESTRO 2'!W$22,'DATA MAESTRO 2'!W$23,'DATA MAESTRO 2'!W$24,'DATA MAESTRO 2'!W$25,'DATA MAESTRO 2'!W$26,'DATA MAESTRO 2'!W$27,'DATA MAESTRO 2'!W$28,'DATA MAESTRO 2'!W$29,'DATA MAESTRO 2'!W$30,'DATA MAESTRO 2'!W$31,'DATA MAESTRO 2'!W$32,'DATA MAESTRO 2'!W$33,'DATA MAESTRO 2'!W$34,'DATA MAESTRO 2'!W$35,'DATA MAESTRO 2'!W$36,'DATA MAESTRO 2'!W$37,'DATA MAESTRO 2'!W$38,'DATA MAESTRO 2'!W$39,'DATA MAESTRO 2'!W$40,) -> 0 | Y7: =CHOOSE($B7,'DATA MAESTRO 2'!X$6,'DATA MAESTRO 2'!X$7,'DATA MAESTRO 2'!X$8,'DATA MAESTRO 2'!X$9,'DATA MAESTRO 2'!X$10,'DATA MAESTRO 2'!X$11,'DATA MAESTRO 2'!X$12,'DATA MAESTRO 2'!X$13,'DATA MAESTRO 2'!X$14,'DATA MAESTRO 2'!X$15,'DATA MAESTRO 2'!X$16,'DATA MAESTRO 2'!X$17,'DATA MAESTRO 2'!X$18,'DATA MAESTRO 2'!X$19,'DATA MAESTRO 2'!X$20,'DATA MAESTRO 2'!X$21,'DATA MAESTRO 2'!X$22,'DATA MAESTRO 2'!X$23,'DATA MAESTRO 2'!X$24,'DATA MAESTRO 2'!X$25,'DATA MAESTRO 2'!X$26,'DATA MAESTRO 2'!X$27,'DATA MAESTRO 2'!X$28,'DATA MAESTRO 2'!X$29,'DATA MAESTRO 2'!X$30,'DATA MAESTRO 2'!X$31,'DATA MAESTRO 2'!X$32,'DATA MAESTRO 2'!X$33,'DATA MAESTRO 2'!X$34,'DATA MAESTRO 2'!X$35,'DATA MAESTRO 2'!X$36,'DATA MAESTRO 2'!X$37,'DATA MAESTRO 2'!X$38,'DATA MAESTRO 2'!X$39,'DATA MAESTRO 2'!X$40,) -> 0 | Z7: =CHOOSE($B7,'DATA MAESTRO 2'!Y$6,'DATA MAESTRO 2'!Y$7,'DATA MAESTRO 2'!Y$8,'DATA MAESTRO 2'!Y$9,'DATA MAESTRO 2'!Y$10,'DATA MAESTRO 2'!Y$11,'DATA MAESTRO 2'!Y$12,'DATA MAESTRO 2'!Y$13,'DATA MAESTRO 2'!Y$14,'DATA MAESTRO 2'!Y$15,'DATA MAESTRO 2'!Y$16,'DATA MAESTRO 2'!Y$17,'DATA MAESTRO 2'!Y$18,'DATA MAESTRO 2'!Y$19,'DATA MAESTRO 2'!Y$20,'DATA MAESTRO 2'!Y$21,'DATA MAESTRO 2'!Y$22,'DATA MAESTRO 2'!Y$23,'DATA MAESTRO 2'!Y$24,'DATA MAESTRO 2'!Y$25,'DATA MAESTRO 2'!Y$26,'DATA MAESTRO 2'!Y$27,'DATA MAESTRO 2'!Y$28,'DATA MAESTRO 2'!Y$29,'DATA MAESTRO 2'!Y$30,'DATA MAESTRO 2'!Y$31,'DATA MAESTRO 2'!Y$32,'DATA MAESTRO 2'!Y$33,'DATA MAESTRO 2'!Y$34,'DATA MAESTRO 2'!Y$35,'DATA MAESTRO 2'!Y$36,'DATA MAESTRO 2'!Y$37,'DATA MAESTRO 2'!Y$38,'DATA MAESTRO 2'!Y$39,'DATA MAESTRO 2'!Y$40,) -> 0 | AA7: =CHOOSE($B7,'DATA MAESTRO 2'!Z$6,'DATA MAESTRO 2'!Z$7,'DATA MAESTRO 2'!Z$8,'DATA MAESTRO 2'!Z$9,'DATA MAESTRO 2'!Z$10,'DATA MAESTRO 2'!Z$11,'DATA MAESTRO 2'!Z$12,'DATA MAESTRO 2'!Z$13,'DATA MAESTRO 2'!Z$14,'DATA MAESTRO 2'!Z$15,'DATA MAESTRO 2'!Z$16,'DATA MAESTRO 2'!Z$17,'DATA MAESTRO 2'!Z$18,'DATA MAESTRO 2'!Z$19,'DATA MAESTRO 2'!Z$20,'DATA MAESTRO 2'!Z$21,'DATA MAESTRO 2'!Z$22,'DATA MAESTRO 2'!Z$23,'DATA MAESTRO 2'!Z$24,'DATA MAESTRO 2'!Z$25,'DATA MAESTRO 2'!Z$26,'DATA MAESTRO 2'!Z$27,'DATA MAESTRO 2'!Z$28,'DATA MAESTRO 2'!Z$29,'DATA MAESTRO 2'!Z$30,'DATA MAESTRO 2'!Z$31,'DATA MAESTRO 2'!Z$32,'DATA MAESTRO 2'!Z$33,'DATA MAESTRO 2'!Z$34,'DATA MAESTRO 2'!Z$35,'DATA MAESTRO 2'!Z$36,'DATA MAESTRO 2'!Z$37,'DATA MAESTRO 2'!Z$38,'DATA MAESTRO 2'!Z$39,'DATA MAESTRO 2'!Z$40,) -> 0 | AB7: =CHOOSE($B7,'DATA MAESTRO 2'!AA$6,'DATA MAESTRO 2'!AA$7,'DATA MAESTRO 2'!AA$8,'DATA MAESTRO 2'!AA$9,'DATA MAESTRO 2'!AA$10,'DATA MAESTRO 2'!AA$11,'DATA MAESTRO 2'!AA$12,'DATA MAESTRO 2'!AA$13,'DATA MAESTRO 2'!AA$14,'DATA MAESTRO 2'!AA$15,'DATA MAESTRO 2'!AA$16,'DATA MAESTRO 2'!AA$17,'DATA MAESTRO 2'!AA$18,'DATA MAESTRO 2'!AA$19,'DATA MAESTRO 2'!AA$20,'DATA MAESTRO 2'!AA$21,'DATA MAESTRO 2'!AA$22,'DATA MAESTRO 2'!AA$23,'DATA MAESTRO 2'!AA$24,'DATA MAESTRO 2'!AA$25,'DATA MAESTRO 2'!AA$26,'DATA MAESTRO 2'!AA$27,'DATA MAESTRO 2'!AA$28,'DATA MAESTRO 2'!AA$29,'DATA MAESTRO 2'!AA$30,'DATA MAESTRO 2'!AA$31,'DATA MAESTRO 2'!AA$32,'DATA MAESTRO 2'!AA$33,'DATA MAESTRO 2'!AA$34,'DATA MAESTRO 2'!AA$35,'DATA MAESTRO 2'!AA$36,'DATA MAESTRO 2'!AA$37,'DATA MAESTRO 2'!AA$38,'DATA MAESTRO 2'!AA$39,'DATA MAESTRO 2'!AA$40,) -> 0 | AC7: =CHOOSE($B7,'DATA MAESTRO 2'!AB$6,'DATA MAESTRO 2'!AB$7,'DATA MAESTRO 2'!AB$8,'DATA MAESTRO 2'!AB$9,'DATA MAESTRO 2'!AB$10,'DATA MAESTRO 2'!AB$11,'DATA MAESTRO 2'!AB$12,'DATA MAESTRO 2'!AB$13,'DATA MAESTRO 2'!AB$14,'DATA MAESTRO 2'!AB$15,'DATA MAESTRO 2'!AB$16,'DATA MAESTRO 2'!AB$17,'DATA MAESTRO 2'!AB$18,'DATA MAESTRO 2'!AB$19,'DATA MAESTRO 2'!AB$20,'DATA MAESTRO 2'!AB$21,'DATA MAESTRO 2'!AB$22,'DATA MAESTRO 2'!AB$23,'DATA MAESTRO 2'!AB$24,'DATA MAESTRO 2'!AB$25,'DATA MAESTRO 2'!AB$26,'DATA MAESTRO 2'!AB$27,'DATA MAESTRO 2'!AB$28,'DATA MAESTRO 2'!AB$29,'DATA MAESTRO 2'!AB$30,'DATA MAESTRO 2'!AB$31,'DATA MAESTRO 2'!AB$32,'DATA MAESTRO 2'!AB$33,'DATA MAESTRO 2'!AB$34,'DATA MAESTRO 2'!AB$35,'DATA MAESTRO 2'!AB$36,'DATA MAESTRO 2'!AB$37,'DATA MAESTRO 2'!AB$38,'DATA MAESTRO 2'!AB$39,'DATA MAESTRO 2'!AB$40,) -> 0 | AD7: =CHOOSE($B7,'DATA MAESTRO 2'!AC$6,'DATA MAESTRO 2'!AC$7,'DATA MAESTRO 2'!AC$8,'DATA MAESTRO 2'!AC$9,'DATA MAESTRO 2'!AC$10,'DATA MAESTRO 2'!AC$11,'DATA MAESTRO 2'!AC$12,'DATA MAESTRO 2'!AC$13,'DATA MAESTRO 2'!AC$14,'DATA MAESTRO 2'!AC$15,'DATA MAESTRO 2'!AC$16,'DATA MAESTRO 2'!AC$17,'DATA MAESTRO 2'!AC$18,'DATA MAESTRO 2'!AC$19,'DATA MAESTRO 2'!AC$20,'DATA MAESTRO 2'!AC$21,'DATA MAESTRO 2'!AC$22,'DATA MAESTRO 2'!AC$23,'DATA MAESTRO 2'!AC$24,'DATA MAESTRO 2'!AC$25,'DATA MAESTRO 2'!AC$26,'DATA MAESTRO 2'!AC$27,'DATA MAESTRO 2'!AC$28,'DATA MAESTRO 2'!AC$29,'DATA MAESTRO 2'!AC$30,'DATA MAESTRO 2'!AC$31,'DATA MAESTRO 2'!AC$32,'DATA MAESTRO 2'!AC$33,'DATA MAESTRO 2'!AC$34,'DATA MAESTRO 2'!AC$35,'DATA MAESTRO 2'!AC$36,'DATA MAESTRO 2'!AC$37,'DATA MAESTRO 2'!AC$38,'DATA MAESTRO 2'!AC$39,'DATA MAESTRO 2'!AC$40,) -> 0 | AE7: =CHOOSE($B7,'DATA MAESTRO 2'!AD$6,'DATA MAESTRO 2'!AD$7,'DATA MAESTRO 2'!AD$8,'DATA MAESTRO 2'!AD$9,'DATA MAESTRO 2'!AD$10,'DATA MAESTRO 2'!AD$11,'DATA MAESTRO 2'!AD$12,'DATA MAESTRO 2'!AD$13,'DATA MAESTRO 2'!AD$14,'DATA MAESTRO 2'!AD$15,'DATA MAESTRO 2'!AD$16,'DATA MAESTRO 2'!AD$17,'DATA MAESTRO 2'!AD$18,'DATA MAESTRO 2'!AD$19,'DATA MAESTRO 2'!AD$20,'DATA MAESTRO 2'!AD$21,'DATA MAESTRO 2'!AD$22,'DATA MAESTRO 2'!AD$23,'DATA MAESTRO 2'!AD$24,'DATA MAESTRO 2'!AD$25,'DATA MAESTRO 2'!AD$26,'DATA MAESTRO 2'!AD$27,'DATA MAESTRO 2'!AD$28,'DATA MAESTRO 2'!AD$29,'DATA MAESTRO 2'!AD$30,'DATA MAESTRO 2'!AD$31,'DATA MAESTRO 2'!AD$32,'DATA MAESTRO 2'!AD$33,'DATA MAESTRO 2'!AD$34,'DATA MAESTRO 2'!AD$35,'DATA MAESTRO 2'!AD$36,'DATA MAESTRO 2'!AD$37,'DATA MAESTRO 2'!AD$38,'DATA MAESTRO 2'!AD$39,'DATA MAESTRO 2'!AD$40,) -> 0 | AF7: =CHOOSE($B7,'DATA MAESTRO 2'!AE$6,'DATA MAESTRO 2'!AE$7,'DATA MAESTRO 2'!AE$8,'DATA MAESTRO 2'!AE$9,'DATA MAESTRO 2'!AE$10,'DATA MAESTRO 2'!AE$11,'DATA MAESTRO 2'!AE$12,'DATA MAESTRO 2'!AE$13,'DATA MAESTRO 2'!AE$14,'DATA MAESTRO 2'!AE$15,'DATA MAESTRO 2'!AE$16,'DATA MAESTRO 2'!AE$17,'DATA MAESTRO 2'!AE$18,'DATA MAESTRO 2'!AE$19,'DATA MAESTRO 2'!AE$20,'DATA MAESTRO 2'!AE$21,'DATA MAESTRO 2'!AE$22,'DATA MAESTRO 2'!AE$23,'DATA MAESTRO 2'!AE$24,'DATA MAESTRO 2'!AE$25,'DATA MAESTRO 2'!AE$26,'DATA MAESTRO 2'!AE$27,'DATA MAESTRO 2'!AE$28,'DATA MAESTRO 2'!AE$29,'DATA MAESTRO 2'!AE$30,'DATA MAESTRO 2'!AE$31,'DATA MAESTRO 2'!AE$32,'DATA MAESTRO 2'!AE$33,'DATA MAESTRO 2'!AE$34,'DATA MAESTRO 2'!AE$35,'DATA MAESTRO 2'!AE$36,'DATA MAESTRO 2'!AE$37,'DATA MAESTRO 2'!AE$38,'DATA MAESTRO 2'!AE$39,'DATA MAESTRO 2'!AE$40,) -> 0 | AG7: =CHOOSE($B7,'DATA MAESTRO 2'!AF$6,'DATA MAESTRO 2'!AF$7,'DATA MAESTRO 2'!AF$8,'DATA MAESTRO 2'!AF$9,'DATA MAESTRO 2'!AF$10,'DATA MAESTRO 2'!AF$11,'DATA MAESTRO 2'!AF$12,'DATA MAESTRO 2'!AF$13,'DATA MAESTRO 2'!AF$14,'DATA MAESTRO 2'!AF$15,'DATA MAESTRO 2'!AF$16,'DATA MAESTRO 2'!AF$17,'DATA MAESTRO 2'!AF$18,'DATA MAESTRO 2'!AF$19,'DATA MAESTRO 2'!AF$20,'DATA MAESTRO 2'!AF$21,'DATA MAESTRO 2'!AF$22,'DATA MAESTRO 2'!AF$23,'DATA MAESTRO 2'!AF$24,'DATA MAESTRO 2'!AF$25,'DATA MAESTRO 2'!AF$26,'DATA MAESTRO 2'!AF$27,'DATA MAESTRO 2'!AF$28,'DATA MAESTRO 2'!AF$29,'DATA MAESTRO 2'!AF$30,'DATA MAESTRO 2'!AF$31,'DATA MAESTRO 2'!AF$32,'DATA MAESTRO 2'!AF$33,'DATA MAESTRO 2'!AF$34,'DATA MAESTRO 2'!AF$35,'DATA MAESTRO 2'!AF$36,'DATA MAESTRO 2'!AF$37,'DATA MAESTRO 2'!AF$38,'DATA MAESTRO 2'!AF$39,'DATA MAESTRO 2'!AF$40,) -> 0 | AH7: =CHOOSE($B7,'DATA MAESTRO 2'!AG$6,'DATA MAESTRO 2'!AG$7,'DATA MAESTRO 2'!AG$8,'DATA MAESTRO 2'!AG$9,'DATA MAESTRO 2'!AG$10,'DATA MAESTRO 2'!AG$11,'DATA MAESTRO 2'!AG$12,'DATA MAESTRO 2'!AG$13,'DATA MAESTRO 2'!AG$14,'DATA MAESTRO 2'!AG$15,'DATA MAESTRO 2'!AG$16,'DATA MAESTRO 2'!AG$17,'DATA MAESTRO 2'!AG$18,'DATA MAESTRO 2'!AG$19,'DATA MAESTRO 2'!AG$20,'DATA MAESTRO 2'!AG$21,'DATA MAESTRO 2'!AG$22,'DATA MAESTRO 2'!AG$23,'DATA MAESTRO 2'!AG$24,'DATA MAESTRO 2'!AG$25,'DATA MAESTRO 2'!AG$26,'DATA MAESTRO 2'!AG$27,'DATA MAESTRO 2'!AG$28,'DATA MAESTRO 2'!AG$29,'DATA MAESTRO 2'!AG$30,'DATA MAESTRO 2'!AG$31,'DATA MAESTRO 2'!AG$32,'DATA MAESTRO 2'!AG$33,'DATA MAESTRO 2'!AG$34,'DATA MAESTRO 2'!AG$35,'DATA MAESTRO 2'!AG$36,'DATA MAESTRO 2'!AG$37,'DATA MAESTRO 2'!AG$38,'DATA MAESTRO 2'!AG$39,'DATA MAESTRO 2'!AG$40,) -> 0 | AI7: =CHOOSE($B7,'DATA MAESTRO 2'!AH$6,'DATA MAESTRO 2'!AH$7,'DATA MAESTRO 2'!AH$8,'DATA MAESTRO 2'!AH$9,'DATA MAESTRO 2'!AH$10,'DATA MAESTRO 2'!AH$11,'DATA MAESTRO 2'!AH$12,'DATA MAESTRO 2'!AH$13,'DATA MAESTRO 2'!AH$14,'DATA MAESTRO 2'!AH$15,'DATA MAESTRO 2'!AH$16,'DATA MAESTRO 2'!AH$17,'DATA MAESTRO 2'!AH$18,'DATA MAESTRO 2'!AH$19,'DATA MAESTRO 2'!AH$20,'DATA MAESTRO 2'!AH$21,'DATA MAESTRO 2'!AH$22,'DATA MAESTRO 2'!AH$23,'DATA MAESTRO 2'!AH$24,'DATA MAESTRO 2'!AH$25,'DATA MAESTRO 2'!AH$26,'DATA MAESTRO 2'!AH$27,'DATA MAESTRO 2'!AH$28,'DATA MAESTRO 2'!AH$29,'DATA MAESTRO 2'!AH$30,'DATA MAESTRO 2'!AH$31,'DATA MAESTRO 2'!AH$32,'DATA MAESTRO 2'!AH$33,'DATA MAESTRO 2'!AH$34,'DATA MAESTRO 2'!AH$35,'DATA MAESTRO 2'!AH$36,'DATA MAESTRO 2'!AH$37,'DATA MAESTRO 2'!AH$38,'DATA MAESTRO 2'!AH$39,'DATA MAESTRO 2'!AH$40,) -> 0 | AJ7: =CHOOSE($B7,'DATA MAESTRO 2'!AI$6,'DATA MAESTRO 2'!AI$7,'DATA MAESTRO 2'!AI$8,'DATA MAESTRO 2'!AI$9,'DATA MAESTRO 2'!AI$10,'DATA MAESTRO 2'!AI$11,'DATA MAESTRO 2'!AI$12,'DATA MAESTRO 2'!AI$13,'DATA MAESTRO 2'!AI$14,'DATA MAESTRO 2'!AI$15,'DATA MAESTRO 2'!AI$16,'DATA MAESTRO 2'!AI$17,'DATA MAESTRO 2'!AI$18,'DATA MAESTRO 2'!AI$19,'DATA MAESTRO 2'!AI$20,'DATA MAESTRO 2'!AI$21,'DATA MAESTRO 2'!AI$22,'DATA MAESTRO 2'!AI$23,'DATA MAESTRO 2'!AI$24,'DATA MAESTRO 2'!AI$25,'DATA MAESTRO 2'!AI$26,'DATA MAESTRO 2'!AI$27,'DATA MAESTRO 2'!AI$28,'DATA MAESTRO 2'!AI$29,'DATA MAESTRO 2'!AI$30,'DATA MAESTRO 2'!AI$31,'DATA MAESTRO 2'!AI$32,'DATA MAESTRO 2'!AI$33,'DATA MAESTRO 2'!AI$34,'DATA MAESTRO 2'!AI$35,'DATA MAESTRO 2'!AI$36,'DATA MAESTRO 2'!AI$37,'DATA MAESTRO 2'!AI$38,'DATA MAESTRO 2'!AI$39,'DATA MAESTRO 2'!AI$40,) -> 0 | AK7: =CHOOSE($B7,'DATA MAESTRO 2'!AJ$6,'DATA MAESTRO 2'!AJ$7,'DATA MAESTRO 2'!AJ$8,'DATA MAESTRO 2'!AJ$9,'DATA MAESTRO 2'!AJ$10,'DATA MAESTRO 2'!AJ$11,'DATA MAESTRO 2'!AJ$12,'DATA MAESTRO 2'!AJ$13,'DATA MAESTRO 2'!AJ$14,'DATA MAESTRO 2'!AJ$15,'DATA MAESTRO 2'!AJ$16,'DATA MAESTRO 2'!AJ$17,'DATA MAESTRO 2'!AJ$18,'DATA MAESTRO 2'!AJ$19,'DATA MAESTRO 2'!AJ$20,'DATA MAESTRO 2'!AJ$21,'DATA MAESTRO 2'!AJ$22,'DATA MAESTRO 2'!AJ$23,'DATA MAESTRO 2'!AJ$24,'DATA MAESTRO 2'!AJ$25,'DATA MAESTRO 2'!AJ$26,'DATA MAESTRO 2'!AJ$27,'DATA MAESTRO 2'!AJ$28,'DATA MAESTRO 2'!AJ$29,'DATA MAESTRO 2'!AJ$30,'DATA MAESTRO 2'!AJ$31,'DATA MAESTRO 2'!AJ$32,'DATA MAESTRO 2'!AJ$33,'DATA MAESTRO 2'!AJ$34,'DATA MAESTRO 2'!AJ$35,'DATA MAESTRO 2'!AJ$36,'DATA MAESTRO 2'!AJ$37,'DATA MAESTRO 2'!AJ$38,'DATA MAESTRO 2'!AJ$39,'DATA MAESTRO 2'!AJ$40,) -> 0
A8: 6 | B8: 14 | C8: =+IF(AND(B8>=1,B8<=36),VLOOKUP(B8,'DATA MAESTRO 2'!$A$6:$B$40,2),0) -> SAL | D8: =+CHOOSE($B8,'DATA MAESTRO 2'!C$6,'DATA MAESTRO 2'!C$7,'DATA MAESTRO 2'!C$8,'DATA MAESTRO 2'!C$9,'DATA MAESTRO 2'!C$10,'DATA MAESTRO 2'!C$11,'DATA MAESTRO 2'!C$12,'DATA MAESTRO 2'!C$13,'DATA MAESTRO 2'!C$14,'DATA MAESTRO 2'!C$15,'DATA MAESTRO 2'!C$16,'DATA MAESTRO 2'!C$17,'DATA MAESTRO 2'!C$18,'DATA MAESTRO 2'!C$19,'DATA MAESTRO 2'!C$20,'DATA MAESTRO 2'!C$21,'DATA MAESTRO 2'!C$22,'DATA MAESTRO 2'!C$23,'DATA MAESTRO 2'!C$24,'DATA MAESTRO 2'!C$25,'DATA MAESTRO 2'!C$26,'DATA MAESTRO 2'!C$27,'DATA MAESTRO 2'!C$28,'DATA MAESTRO 2'!C$29,'DATA MAESTRO 2'!C$30,'DATA MAESTRO 2'!C$31,'DATA MAESTRO 2'!C$32,'DATA MAESTRO 2'!C$33,'DATA MAESTRO 2'!C$34,'DATA MAESTRO 2'!C$35,'DATA MAESTRO 2'!C$36,'DATA MAESTRO 2'!C$37,'DATA MAESTRO 2'!C$38,'DATA MAESTRO 2'!C$39,'DATA MAESTRO 2'!C$40,) -> 0 | E8: =CHOOSE($B8,'DATA MAESTRO 2'!D$6,'DATA MAESTRO 2'!D$7,'DATA MAESTRO 2'!D$8,'DATA MAESTRO 2'!D$9,'DATA MAESTRO 2'!D$10,'DATA MAESTRO 2'!D$11,'DATA MAESTRO 2'!D$12,'DATA MAESTRO 2'!D$13,'DATA MAESTRO 2'!D$14,'DATA MAESTRO 2'!D$15,'DATA MAESTRO 2'!D$16,'DATA MAESTRO 2'!D$17,'DATA MAESTRO 2'!D$18,'DATA MAESTRO 2'!D$19,'DATA MAESTRO 2'!D$20,'DATA MAESTRO 2'!D$21,'DATA MAESTRO 2'!D$22,'DATA MAESTRO 2'!D$23,'DATA MAESTRO 2'!D$24,'DATA MAESTRO 2'!D$25,'DATA MAESTRO 2'!D$26,'DATA MAESTRO 2'!D$27,'DATA MAESTRO 2'!D$28,'DATA MAESTRO 2'!D$29,'DATA MAESTRO 2'!D$30,'DATA MAESTRO 2'!D$31,'DATA MAESTRO 2'!D$32,'DATA MAESTRO 2'!D$33,'DATA MAESTRO 2'!D$34,'DATA MAESTRO 2'!D$35,'DATA MAESTRO 2'!D$36,'DATA MAESTRO 2'!D$37,'DATA MAESTRO 2'!D$38,'DATA MAESTRO 2'!D$39,'DATA MAESTRO 2'!D$40,) -> 0.99 | F8: =CHOOSE(B8,'DATA MAESTRO 2'!E$6,'DATA MAESTRO 2'!E$7,'DATA MAESTRO 2'!E$8,'DATA MAESTRO 2'!E$9,'DATA MAESTRO 2'!E$10,'DATA MAESTRO 2'!E$11,'DATA MAESTRO 2'!E$12,'DATA MAESTRO 2'!E$13,'DATA MAESTRO 2'!E$14,'DATA MAESTRO 2'!E$15,'DATA MAESTRO 2'!E$16,'DATA MAESTRO 2'!E$17,'DATA MAESTRO 2'!E$18,'DATA MAESTRO 2'!E$19,'DATA MAESTRO 2'!E$20,'DATA MAESTRO 2'!E$21,'DATA MAESTRO 2'!E$22,'DATA MAESTRO 2'!E$23,'DATA MAESTRO 2'!E$24,'DATA MAESTRO 2'!E$25,'DATA MAESTRO 2'!E$26,'DATA MAESTRO 2'!E$27,'DATA MAESTRO 2'!E$28,'DATA MAESTRO 2'!E$29,'DATA MAESTRO 2'!E$30,'DATA MAESTRO 2'!E$31,'DATA MAESTRO 2'!E$32,'DATA MAESTRO 2'!E$33,'DATA MAESTRO 2'!E$34,'DATA MAESTRO 2'!E$35,'DATA MAESTRO 2'!E$36,'DATA MAESTRO 2'!E$37,'DATA MAESTRO 2'!E$38,'DATA MAESTRO 2'!E$39,'DATA MAESTRO 2'!E$40,) -> 0 | G8: =CHOOSE($B8,'DATA MAESTRO 2'!F$6,'DATA MAESTRO 2'!F$7,'DATA MAESTRO 2'!F$8,'DATA MAESTRO 2'!F$9,'DATA MAESTRO 2'!F$10,'DATA MAESTRO 2'!F$11,'DATA MAESTRO 2'!F$12,'DATA MAESTRO 2'!F$13,'DATA MAESTRO 2'!F$14,'DATA MAESTRO 2'!F$15,'DATA MAESTRO 2'!F$16,'DATA MAESTRO 2'!F$17,'DATA MAESTRO 2'!F$18,'DATA MAESTRO 2'!F$19,'DATA MAESTRO 2'!F$20,'DATA MAESTRO 2'!F$21,'DATA MAESTRO 2'!F$22,'DATA MAESTRO 2'!F$23,'DATA MAESTRO 2'!F$24,'DATA MAESTRO 2'!F$25,'DATA MAESTRO 2'!F$26,'DATA MAESTRO 2'!F$27,'DATA MAESTRO 2'!F$28,'DATA MAESTRO 2'!F$29,'DATA MAESTRO 2'!F$30,'DATA MAESTRO 2'!F$31,'DATA MAESTRO 2'!F$32,'DATA MAESTRO 2'!F$33,'DATA MAESTRO 2'!F$34,'DATA MAESTRO 2'!F$35,'DATA MAESTRO 2'!F$36,'DATA MAESTRO 2'!F$37,'DATA MAESTRO 2'!F$38,'DATA MAESTRO 2'!F$39,'DATA MAESTRO 2'!F$40,) -> 0 | H8: =CHOOSE($B8,'DATA MAESTRO 2'!G$6,'DATA MAESTRO 2'!G$7,'DATA MAESTRO 2'!G$8,'DATA MAESTRO 2'!G$9,'DATA MAESTRO 2'!G$10,'DATA MAESTRO 2'!G$11,'DATA MAESTRO 2'!G$12,'DATA MAESTRO 2'!G$13,'DATA MAESTRO 2'!G$14,'DATA MAESTRO 2'!G$15,'DATA MAESTRO 2'!G$16,'DATA MAESTRO 2'!G$17,'DATA MAESTRO 2'!G$18,'DATA MAESTRO 2'!G$19,'DATA MAESTRO 2'!G$20,'DATA MAESTRO 2'!G$21,'DATA MAESTRO 2'!G$22,'DATA MAESTRO 2'!G$23,'DATA MAESTRO 2'!G$24,'DATA MAESTRO 2'!G$25,'DATA MAESTRO 2'!G$26,'DATA MAESTRO 2'!G$27,'DATA MAESTRO 2'!G$28,'DATA MAESTRO 2'!G$29,'DATA MAESTRO 2'!G$30,'DATA MAESTRO 2'!G$31,'DATA MAESTRO 2'!G$32,'DATA MAESTRO 2'!G$33,'DATA MAESTRO 2'!G$34,'DATA MAESTRO 2'!G$35,'DATA MAESTRO 2'!G$36,'DATA MAESTRO 2'!G$37,'DATA MAESTRO 2'!G$38,'DATA MAESTRO 2'!G$39,'DATA MAESTRO 2'!G$40,) -> 0 | I8: =CHOOSE($B8,'DATA MAESTRO 2'!H$6,'DATA MAESTRO 2'!H$7,'DATA MAESTRO 2'!H$8,'DATA MAESTRO 2'!H$9,'DATA MAESTRO 2'!H$10,'DATA MAESTRO 2'!H$11,'DATA MAESTRO 2'!H$12,'DATA MAESTRO 2'!H$13,'DATA MAESTRO 2'!H$14,'DATA MAESTRO 2'!H$15,'DATA MAESTRO 2'!H$16,'DATA MAESTRO 2'!H$17,'DATA MAESTRO 2'!H$18,'DATA MAESTRO 2'!H$19,'DATA MAESTRO 2'!H$20,'DATA MAESTRO 2'!H$21,'DATA MAESTRO 2'!H$22,'DATA MAESTRO 2'!H$23,'DATA MAESTRO 2'!H$24,'DATA MAESTRO 2'!H$25,'DATA MAESTRO 2'!H$26,'DATA MAESTRO 2'!H$27,'DATA MAESTRO 2'!H$28,'DATA MAESTRO 2'!H$29,'DATA MAESTRO 2'!H$30,'DATA MAESTRO 2'!H$31,'DATA MAESTRO 2'!H$32,'DATA MAESTRO 2'!H$33,'DATA MAESTRO 2'!H$34,'DATA MAESTRO 2'!H$35,'DATA MAESTRO 2'!H$36,'DATA MAESTRO 2'!H$37,'DATA MAESTRO 2'!H$38,'DATA MAESTRO 2'!H$39,'DATA MAESTRO 2'!H$40,) -> 0 | J8: =CHOOSE($B8,'DATA MAESTRO 2'!I$6,'DATA MAESTRO 2'!I$7,'DATA MAESTRO 2'!I$8,'DATA MAESTRO 2'!I$9,'DATA MAESTRO 2'!I$10,'DATA MAESTRO 2'!I$11,'DATA MAESTRO 2'!I$12,'DATA MAESTRO 2'!I$13,'DATA MAESTRO 2'!I$14,'DATA MAESTRO 2'!I$15,'DATA MAESTRO 2'!I$16,'DATA MAESTRO 2'!I$17,'DATA MAESTRO 2'!I$18,'DATA MAESTRO 2'!I$19,'DATA MAESTRO 2'!I$20,'DATA MAESTRO 2'!I$21,'DATA MAESTRO 2'!I$22,'DATA MAESTRO 2'!I$23,'DATA MAESTRO 2'!I$24,'DATA MAESTRO 2'!I$25,'DATA MAESTRO 2'!I$26,'DATA MAESTRO 2'!I$27,'DATA MAESTRO 2'!I$28,'DATA MAESTRO 2'!I$29,'DATA MAESTRO 2'!I$30,'DATA MAESTRO 2'!I$31,'DATA MAESTRO 2'!I$32,'DATA MAESTRO 2'!I$33,'DATA MAESTRO 2'!I$34,'DATA MAESTRO 2'!I$35,'DATA MAESTRO 2'!I$36,'DATA MAESTRO 2'!I$37,'DATA MAESTRO 2'!I$38,'DATA MAESTRO 2'!I$39,'DATA MAESTRO 2'!I$40,) -> 0 | K8: =CHOOSE($B8,'DATA MAESTRO 2'!J$6,'DATA MAESTRO 2'!J$7,'DATA MAESTRO 2'!J$8,'DATA MAESTRO 2'!J$9,'DATA MAESTRO 2'!J$10,'DATA MAESTRO 2'!J$11,'DATA MAESTRO 2'!J$12,'DATA MAESTRO 2'!J$13,'DATA MAESTRO 2'!J$14,'DATA MAESTRO 2'!J$15,'DATA MAESTRO 2'!J$16,'DATA MAESTRO 2'!J$17,'DATA MAESTRO 2'!J$18,'DATA MAESTRO 2'!J$19,'DATA MAESTRO 2'!J$20,'DATA MAESTRO 2'!J$21,'DATA MAESTRO 2'!J$22,'DATA MAESTRO 2'!J$23,'DATA MAESTRO 2'!J$24,'DATA MAESTRO 2'!J$25,'DATA MAESTRO 2'!J$26,'DATA MAESTRO 2'!J$27,'DATA MAESTRO 2'!J$28,'DATA MAESTRO 2'!J$29,'DATA MAESTRO 2'!J$30,'DATA MAESTRO 2'!J$31,'DATA MAESTRO 2'!J$32,'DATA MAESTRO 2'!J$33,'DATA MAESTRO 2'!J$34,'DATA MAESTRO 2'!J$35,'DATA MAESTRO 2'!J$36,'DATA MAESTRO 2'!J$37,'DATA MAESTRO 2'!J$38,'DATA MAESTRO 2'!J$39,'DATA MAESTRO 2'!J$40,) -> 0 | L8: =CHOOSE($B8,'DATA MAESTRO 2'!K$6,'DATA MAESTRO 2'!K$7,'DATA MAESTRO 2'!K$8,'DATA MAESTRO 2'!K$9,'DATA MAESTRO 2'!K$10,'DATA MAESTRO 2'!K$11,'DATA MAESTRO 2'!K$12,'DATA MAESTRO 2'!K$13,'DATA MAESTRO 2'!K$14,'DATA MAESTRO 2'!K$15,'DATA MAESTRO 2'!K$16,'DATA MAESTRO 2'!K$17,'DATA MAESTRO 2'!K$18,'DATA MAESTRO 2'!K$19,'DATA MAESTRO 2'!K$20,'DATA MAESTRO 2'!K$21,'DATA MAESTRO 2'!K$22,'DATA MAESTRO 2'!K$23,'DATA MAESTRO 2'!K$24,'DATA MAESTRO 2'!K$25,'DATA MAESTRO 2'!K$26,'DATA MAESTRO 2'!K$27,'DATA MAESTRO 2'!K$28,'DATA MAESTRO 2'!K$29,'DATA MAESTRO 2'!K$30,'DATA MAESTRO 2'!K$31,'DATA MAESTRO 2'!K$32,'DATA MAESTRO 2'!K$33,'DATA MAESTRO 2'!K$34,'DATA MAESTRO 2'!K$35,'DATA MAESTRO 2'!K$36,'DATA MAESTRO 2'!K$37,'DATA MAESTRO 2'!K$38,'DATA MAESTRO 2'!K$39,'DATA MAESTRO 2'!K$40,) -> 0 | M8: =CHOOSE($B8,'DATA MAESTRO 2'!L$6,'DATA MAESTRO 2'!L$7,'DATA MAESTRO 2'!L$8,'DATA MAESTRO 2'!L$9,'DATA MAESTRO 2'!L$10,'DATA MAESTRO 2'!L$11,'DATA MAESTRO 2'!L$12,'DATA MAESTRO 2'!L$13,'DATA MAESTRO 2'!L$14,'DATA MAESTRO 2'!L$15,'DATA MAESTRO 2'!L$16,'DATA MAESTRO 2'!L$17,'DATA MAESTRO 2'!L$18,'DATA MAESTRO 2'!L$19,'DATA MAESTRO 2'!L$20,'DATA MAESTRO 2'!L$21,'DATA MAESTRO 2'!L$22,'DATA MAESTRO 2'!L$23,'DATA MAESTRO 2'!L$24,'DATA MAESTRO 2'!L$25,'DATA MAESTRO 2'!L$26,'DATA MAESTRO 2'!L$27,'DATA MAESTRO 2'!L$28,'DATA MAESTRO 2'!L$29,'DATA MAESTRO 2'!L$30,'DATA MAESTRO 2'!L$31,'DATA MAESTRO 2'!L$32,'DATA MAESTRO 2'!L$33,'DATA MAESTRO 2'!L$34,'DATA MAESTRO 2'!L$35,'DATA MAESTRO 2'!L$36,'DATA MAESTRO 2'!L$37,'DATA MAESTRO 2'!L$38,'DATA MAESTRO 2'!L$39,'DATA MAESTRO 2'!L$40,) -> 0 | N8: =CHOOSE($B8,'DATA MAESTRO 2'!M$6,'DATA MAESTRO 2'!M$7,'DATA MAESTRO 2'!M$8,'DATA MAESTRO 2'!M$9,'DATA MAESTRO 2'!M$10,'DATA MAESTRO 2'!M$11,'DATA MAESTRO 2'!M$12,'DATA MAESTRO 2'!M$13,'DATA MAESTRO 2'!M$14,'DATA MAESTRO 2'!M$15,'DATA MAESTRO 2'!M$16,'DATA MAESTRO 2'!M$17,'DATA MAESTRO 2'!M$18,'DATA MAESTRO 2'!M$19,'DATA MAESTRO 2'!M$20,'DATA MAESTRO 2'!M$21,'DATA MAESTRO 2'!M$22,'DATA MAESTRO 2'!M$23,'DATA MAESTRO 2'!M$24,'DATA MAESTRO 2'!M$25,'DATA MAESTRO 2'!M$26,'DATA MAESTRO 2'!M$27,'DATA MAESTRO 2'!M$28,'DATA MAESTRO 2'!M$29,'DATA MAESTRO 2'!M$30,'DATA MAESTRO 2'!M$31,'DATA MAESTRO 2'!M$32,'DATA MAESTRO 2'!M$33,'DATA MAESTRO 2'!M$34,'DATA MAESTRO 2'!M$35,'DATA MAESTRO 2'!M$36,'DATA MAESTRO 2'!M$37,'DATA MAESTRO 2'!M$38,'DATA MAESTRO 2'!M$39,'DATA MAESTRO 2'!M$40,) -> 0 | O8: =CHOOSE($B8,'DATA MAESTRO 2'!N$6,'DATA MAESTRO 2'!N$7,'DATA MAESTRO 2'!N$8,'DATA MAESTRO 2'!N$9,'DATA MAESTRO 2'!N$10,'DATA MAESTRO 2'!N$11,'DATA MAESTRO 2'!N$12,'DATA MAESTRO 2'!N$13,'DATA MAESTRO 2'!N$14,'DATA MAESTRO 2'!N$15,'DATA MAESTRO 2'!N$16,'DATA MAESTRO 2'!N$17,'DATA MAESTRO 2'!N$18,'DATA MAESTRO 2'!N$19,'DATA MAESTRO 2'!N$20,'DATA MAESTRO 2'!N$21,'DATA MAESTRO 2'!N$22,'DATA MAESTRO 2'!N$23,'DATA MAESTRO 2'!N$24,'DATA MAESTRO 2'!N$25,'DATA MAESTRO 2'!N$26,'DATA MAESTRO 2'!N$27,'DATA MAESTRO 2'!N$28,'DATA MAESTRO 2'!N$29,'DATA MAESTRO 2'!N$30,'DATA MAESTRO 2'!N$31,'DATA MAESTRO 2'!N$32,'DATA MAESTRO 2'!N$33,'DATA MAESTRO 2'!N$34,'DATA MAESTRO 2'!N$35,'DATA MAESTRO 2'!N$36,'DATA MAESTRO 2'!N$37,'DATA MAESTRO 2'!N$38,'DATA MAESTRO 2'!N$39,'DATA MAESTRO 2'!N$40,) -> 0 | P8: =CHOOSE($B8,'DATA MAESTRO 2'!O$6,'DATA MAESTRO 2'!O$7,'DATA MAESTRO 2'!O$8,'DATA MAESTRO 2'!O$9,'DATA MAESTRO 2'!O$10,'DATA MAESTRO 2'!O$11,'DATA MAESTRO 2'!O$12,'DATA MAESTRO 2'!O$13,'DATA MAESTRO 2'!O$14,'DATA MAESTRO 2'!O$15,'DATA MAESTRO 2'!O$16,'DATA MAESTRO 2'!O$17,'DATA MAESTRO 2'!O$18,'DATA MAESTRO 2'!O$19,'DATA MAESTRO 2'!O$20,'DATA MAESTRO 2'!O$21,'DATA MAESTRO 2'!O$22,'DATA MAESTRO 2'!O$23,'DATA MAESTRO 2'!O$24,'DATA MAESTRO 2'!O$25,'DATA MAESTRO 2'!O$26,'DATA MAESTRO 2'!O$27,'DATA MAESTRO 2'!O$28,'DATA MAESTRO 2'!O$29,'DATA MAESTRO 2'!O$30,'DATA MAESTRO 2'!O$31,'DATA MAESTRO 2'!O$32,'DATA MAESTRO 2'!O$33,'DATA MAESTRO 2'!O$34,'DATA MAESTRO 2'!O$35,'DATA MAESTRO 2'!O$36,'DATA MAESTRO 2'!O$37,'DATA MAESTRO 2'!O$38,'DATA MAESTRO 2'!O$39,'DATA MAESTRO 2'!O$40,) -> 0 | Q8: =CHOOSE($B8,'DATA MAESTRO 2'!P$6,'DATA MAESTRO 2'!P$7,'DATA MAESTRO 2'!P$8,'DATA MAESTRO 2'!P$9,'DATA MAESTRO 2'!P$10,'DATA MAESTRO 2'!P$11,'DATA MAESTRO 2'!P$12,'DATA MAESTRO 2'!P$13,'DATA MAESTRO 2'!P$14,'DATA MAESTRO 2'!P$15,'DATA MAESTRO 2'!P$16,'DATA MAESTRO 2'!P$17,'DATA MAESTRO 2'!P$18,'DATA MAESTRO 2'!P$19,'DATA MAESTRO 2'!P$20,'DATA MAESTRO 2'!P$21,'DATA MAESTRO 2'!P$22,'DATA MAESTRO 2'!P$23,'DATA MAESTRO 2'!P$24,'DATA MAESTRO 2'!P$25,'DATA MAESTRO 2'!P$26,'DATA MAESTRO 2'!P$27,'DATA MAESTRO 2'!P$28,'DATA MAESTRO 2'!P$29,'DATA MAESTRO 2'!P$30,'DATA MAESTRO 2'!P$31,'DATA MAESTRO 2'!P$32,'DATA MAESTRO 2'!P$33,'DATA MAESTRO 2'!P$34,'DATA MAESTRO 2'!P$35,'DATA MAESTRO 2'!P$36,'DATA MAESTRO 2'!P$37,'DATA MAESTRO 2'!P$38,'DATA MAESTRO 2'!P$39,'DATA MAESTRO 2'!P$40,) -> 0 | R8: =CHOOSE($B8,'DATA MAESTRO 2'!Q$6,'DATA MAESTRO 2'!Q$7,'DATA MAESTRO 2'!Q$8,'DATA MAESTRO 2'!Q$9,'DATA MAESTRO 2'!Q$10,'DATA MAESTRO 2'!Q$11,'DATA MAESTRO 2'!Q$12,'DATA MAESTRO 2'!Q$13,'DATA MAESTRO 2'!Q$14,'DATA MAESTRO 2'!Q$15,'DATA MAESTRO 2'!Q$16,'DATA MAESTRO 2'!Q$17,'DATA MAESTRO 2'!Q$18,'DATA MAESTRO 2'!Q$19,'DATA MAESTRO 2'!Q$20,'DATA MAESTRO 2'!Q$21,'DATA MAESTRO 2'!Q$22,'DATA MAESTRO 2'!Q$23,'DATA MAESTRO 2'!Q$24,'DATA MAESTRO 2'!Q$25,'DATA MAESTRO 2'!Q$26,'DATA MAESTRO 2'!Q$27,'DATA MAESTRO 2'!Q$28,'DATA MAESTRO 2'!Q$29,'DATA MAESTRO 2'!Q$30,'DATA MAESTRO 2'!Q$31,'DATA MAESTRO 2'!Q$32,'DATA MAESTRO 2'!Q$33,'DATA MAESTRO 2'!Q$34,'DATA MAESTRO 2'!Q$35,'DATA MAESTRO 2'!Q$36,'DATA MAESTRO 2'!Q$37,'DATA MAESTRO 2'!Q$38,'DATA MAESTRO 2'!Q$39,'DATA MAESTRO 2'!Q$40,) -> 0 | S8: =CHOOSE($B8,'DATA MAESTRO 2'!R$6,'DATA MAESTRO 2'!R$7,'DATA MAESTRO 2'!R$8,'DATA MAESTRO 2'!R$9,'DATA MAESTRO 2'!R$10,'DATA MAESTRO 2'!R$11,'DATA MAESTRO 2'!R$12,'DATA MAESTRO 2'!R$13,'DATA MAESTRO 2'!R$14,'DATA MAESTRO 2'!R$15,'DATA MAESTRO 2'!R$16,'DATA MAESTRO 2'!R$17,'DATA MAESTRO 2'!R$18,'DATA MAESTRO 2'!R$19,'DATA MAESTRO 2'!R$20,'DATA MAESTRO 2'!R$21,'DATA MAESTRO 2'!R$22,'DATA MAESTRO 2'!R$23,'DATA MAESTRO 2'!R$24,'DATA MAESTRO 2'!R$25,'DATA MAESTRO 2'!R$26,'DATA MAESTRO 2'!R$27,'DATA MAESTRO 2'!R$28,'DATA MAESTRO 2'!R$29,'DATA MAESTRO 2'!R$30,'DATA MAESTRO 2'!R$31,'DATA MAESTRO 2'!R$32,'DATA MAESTRO 2'!R$33,'DATA MAESTRO 2'!R$34,'DATA MAESTRO 2'!R$35,'DATA MAESTRO 2'!R$36,'DATA MAESTRO 2'!R$37,'DATA MAESTRO 2'!R$38,'DATA MAESTRO 2'!R$39,'DATA MAESTRO 2'!R$40,) -> 0 | T8: =CHOOSE($B8,'DATA MAESTRO 2'!S$6,'DATA MAESTRO 2'!S$7,'DATA MAESTRO 2'!S$8,'DATA MAESTRO 2'!S$9,'DATA MAESTRO 2'!S$10,'DATA MAESTRO 2'!S$11,'DATA MAESTRO 2'!S$12,'DATA MAESTRO 2'!S$13,'DATA MAESTRO 2'!S$14,'DATA MAESTRO 2'!S$15,'DATA MAESTRO 2'!S$16,'DATA MAESTRO 2'!S$17,'DATA MAESTRO 2'!S$18,'DATA MAESTRO 2'!S$19,'DATA MAESTRO 2'!S$20,'DATA MAESTRO 2'!S$21,'DATA MAESTRO 2'!S$22,'DATA MAESTRO 2'!S$23,'DATA MAESTRO 2'!S$24,'DATA MAESTRO 2'!S$25,'DATA MAESTRO 2'!S$26,'DATA MAESTRO 2'!S$27,'DATA MAESTRO 2'!S$28,'DATA MAESTRO 2'!S$29,'DATA MAESTRO 2'!S$30,'DATA MAESTRO 2'!S$31,'DATA MAESTRO 2'!S$32,'DATA MAESTRO 2'!S$33,'DATA MAESTRO 2'!S$34,'DATA MAESTRO 2'!S$35,'DATA MAESTRO 2'!S$36,'DATA MAESTRO 2'!S$37,'DATA MAESTRO 2'!S$38,'DATA MAESTRO 2'!S$39,'DATA MAESTRO 2'!S$40,) -> 0 | U8: =CHOOSE($B8,'DATA MAESTRO 2'!T$6,'DATA MAESTRO 2'!T$7,'DATA MAESTRO 2'!T$8,'DATA MAESTRO 2'!T$9,'DATA MAESTRO 2'!T$10,'DATA MAESTRO 2'!T$11,'DATA MAESTRO 2'!T$12,'DATA MAESTRO 2'!T$13,'DATA MAESTRO 2'!T$14,'DATA MAESTRO 2'!T$15,'DATA MAESTRO 2'!T$16,'DATA MAESTRO 2'!T$17,'DATA MAESTRO 2'!T$18,'DATA MAESTRO 2'!T$19,'DATA MAESTRO 2'!T$20,'DATA MAESTRO 2'!T$21,'DATA MAESTRO 2'!T$22,'DATA MAESTRO 2'!T$23,'DATA MAESTRO 2'!T$24,'DATA MAESTRO 2'!T$25,'DATA MAESTRO 2'!T$26,'DATA MAESTRO 2'!T$27,'DATA MAESTRO 2'!T$28,'DATA MAESTRO 2'!T$29,'DATA MAESTRO 2'!T$30,'DATA MAESTRO 2'!T$31,'DATA MAESTRO 2'!T$32,'DATA MAESTRO 2'!T$33,'DATA MAESTRO 2'!T$34,'DATA MAESTRO 2'!T$35,'DATA MAESTRO 2'!T$36,'DATA MAESTRO 2'!T$37,'DATA MAESTRO 2'!T$38,'DATA MAESTRO 2'!T$39,'DATA MAESTRO 2'!T$40,) -> 0.39 | V8: =CHOOSE($B8,'DATA MAESTRO 2'!U$6,'DATA MAESTRO 2'!U$7,'DATA MAESTRO 2'!U$8,'DATA MAESTRO 2'!U$9,'DATA MAESTRO 2'!U$10,'DATA MAESTRO 2'!U$11,'DATA MAESTRO 2'!U$12,'DATA MAESTRO 2'!U$13,'DATA MAESTRO 2'!U$14,'DATA MAESTRO 2'!U$15,'DATA MAESTRO 2'!U$16,'DATA MAESTRO 2'!U$17,'DATA MAESTRO 2'!U$18,'DATA MAESTRO 2'!U$19,'DATA MAESTRO 2'!U$20,'DATA MAESTRO 2'!U$21,'DATA MAESTRO 2'!U$22,'DATA MAESTRO 2'!U$23,'DATA MAESTRO 2'!U$24,'DATA MAESTRO 2'!U$25,'DATA MAESTRO 2'!U$26,'DATA MAESTRO 2'!U$27,'DATA MAESTRO 2'!U$28,'DATA MAESTRO 2'!U$29,'DATA MAESTRO 2'!U$30,'DATA MAESTRO 2'!U$31,'DATA MAESTRO 2'!U$32,'DATA MAESTRO 2'!U$33,'DATA MAESTRO 2'!U$34,'DATA MAESTRO 2'!U$35,'DATA MAESTRO 2'!U$36,'DATA MAESTRO 2'!U$37,'DATA MAESTRO 2'!U$38,'DATA MAESTRO 2'!U$39,'DATA MAESTRO 2'!U$40,) -> 0 | W8: =CHOOSE($B8,'DATA MAESTRO 2'!V$6,'DATA MAESTRO 2'!V$7,'DATA MAESTRO 2'!V$8,'DATA MAESTRO 2'!V$9,'DATA MAESTRO 2'!V$10,'DATA MAESTRO 2'!V$11,'DATA MAESTRO 2'!V$12,'DATA MAESTRO 2'!V$13,'DATA MAESTRO 2'!V$14,'DATA MAESTRO 2'!V$15,'DATA MAESTRO 2'!V$16,'DATA MAESTRO 2'!V$17,'DATA MAESTRO 2'!V$18,'DATA MAESTRO 2'!V$19,'DATA MAESTRO 2'!V$20,'DATA MAESTRO 2'!V$21,'DATA MAESTRO 2'!V$22,'DATA MAESTRO 2'!V$23,'DATA MAESTRO 2'!V$24,'DATA MAESTRO 2'!V$25,'DATA MAESTRO 2'!V$26,'DATA MAESTRO 2'!V$27,'DATA MAESTRO 2'!V$28,'DATA MAESTRO 2'!V$29,'DATA MAESTRO 2'!V$30,'DATA MAESTRO 2'!V$31,'DATA MAESTRO 2'!V$32,'DATA MAESTRO 2'!V$33,'DATA MAESTRO 2'!V$34,'DATA MAESTRO 2'!V$35,'DATA MAESTRO 2'!V$36,'DATA MAESTRO 2'!V$37,'DATA MAESTRO 2'!V$38,'DATA MAESTRO 2'!V$39,'DATA MAESTRO 2'!V$40,) -> 0 | X8: =CHOOSE($B8,'DATA MAESTRO 2'!W$6,'DATA MAESTRO 2'!W$7,'DATA MAESTRO 2'!W$8,'DATA MAESTRO 2'!W$9,'DATA MAESTRO 2'!W$10,'DATA MAESTRO 2'!W$11,'DATA MAESTRO 2'!W$12,'DATA MAESTRO 2'!W$13,'DATA MAESTRO 2'!W$14,'DATA MAESTRO 2'!W$15,'DATA MAESTRO 2'!W$16,'DATA MAESTRO 2'!W$17,'DATA MAESTRO 2'!W$18,'DATA MAESTRO 2'!W$19,'DATA MAESTRO 2'!W$20,'DATA MAESTRO 2'!W$21,'DATA MAESTRO 2'!W$22,'DATA MAESTRO 2'!W$23,'DATA MAESTRO 2'!W$24,'DATA MAESTRO 2'!W$25,'DATA MAESTRO 2'!W$26,'DATA MAESTRO 2'!W$27,'DATA MAESTRO 2'!W$28,'DATA MAESTRO 2'!W$29,'DATA MAESTRO 2'!W$30,'DATA MAESTRO 2'!W$31,'DATA MAESTRO 2'!W$32,'DATA MAESTRO 2'!W$33,'DATA MAESTRO 2'!W$34,'DATA MAESTRO 2'!W$35,'DATA MAESTRO 2'!W$36,'DATA MAESTRO 2'!W$37,'DATA MAESTRO 2'!W$38,'DATA MAESTRO 2'!W$39,'DATA MAESTRO 2'!W$40,) -> 0.6 | Y8: =CHOOSE($B8,'DATA MAESTRO 2'!X$6,'DATA MAESTRO 2'!X$7,'DATA MAESTRO 2'!X$8,'DATA MAESTRO 2'!X$9,'DATA MAESTRO 2'!X$10,'DATA MAESTRO 2'!X$11,'DATA MAESTRO 2'!X$12,'DATA MAESTRO 2'!X$13,'DATA MAESTRO 2'!X$14,'DATA MAESTRO 2'!X$15,'DATA MAESTRO 2'!X$16,'DATA MAESTRO 2'!X$17,'DATA MAESTRO 2'!X$18,'DATA MAESTRO 2'!X$19,'DATA MAESTRO 2'!X$20,'DATA MAESTRO 2'!X$21,'DATA MAESTRO 2'!X$22,'DATA MAESTRO 2'!X$23,'DATA MAESTRO 2'!X$24,'DATA MAESTRO 2'!X$25,'DATA MAESTRO 2'!X$26,'DATA MAESTRO 2'!X$27,'DATA MAESTRO 2'!X$28,'DATA MAESTRO 2'!X$29,'DATA MAESTRO 2'!X$30,'DATA MAESTRO 2'!X$31,'DATA MAESTRO 2'!X$32,'DATA MAESTRO 2'!X$33,'DATA MAESTRO 2'!X$34,'DATA MAESTRO 2'!X$35,'DATA MAESTRO 2'!X$36,'DATA MAESTRO 2'!X$37,'DATA MAESTRO 2'!X$38,'DATA MAESTRO 2'!X$39,'DATA MAESTRO 2'!X$40,) -> 0 | Z8: =CHOOSE($B8,'DATA MAESTRO 2'!Y$6,'DATA MAESTRO 2'!Y$7,'DATA MAESTRO 2'!Y$8,'DATA MAESTRO 2'!Y$9,'DATA MAESTRO 2'!Y$10,'DATA MAESTRO 2'!Y$11,'DATA MAESTRO 2'!Y$12,'DATA MAESTRO 2'!Y$13,'DATA MAESTRO 2'!Y$14,'DATA MAESTRO 2'!Y$15,'DATA MAESTRO 2'!Y$16,'DATA MAESTRO 2'!Y$17,'DATA MAESTRO 2'!Y$18,'DATA MAESTRO 2'!Y$19,'DATA MAESTRO 2'!Y$20,'DATA MAESTRO 2'!Y$21,'DATA MAESTRO 2'!Y$22,'DATA MAESTRO 2'!Y$23,'DATA MAESTRO 2'!Y$24,'DATA MAESTRO 2'!Y$25,'DATA MAESTRO 2'!Y$26,'DATA MAESTRO 2'!Y$27,'DATA MAESTRO 2'!Y$28,'DATA MAESTRO 2'!Y$29,'DATA MAESTRO 2'!Y$30,'DATA MAESTRO 2'!Y$31,'DATA MAESTRO 2'!Y$32,'DATA MAESTRO 2'!Y$33,'DATA MAESTRO 2'!Y$34,'DATA MAESTRO 2'!Y$35,'DATA MAESTRO 2'!Y$36,'DATA MAESTRO 2'!Y$37,'DATA MAESTRO 2'!Y$38,'DATA MAESTRO 2'!Y$39,'DATA MAESTRO 2'!Y$40,) -> 0 | AA8: =CHOOSE($B8,'DATA MAESTRO 2'!Z$6,'DATA MAESTRO 2'!Z$7,'DATA MAESTRO 2'!Z$8,'DATA MAESTRO 2'!Z$9,'DATA MAESTRO 2'!Z$10,'DATA MAESTRO 2'!Z$11,'DATA MAESTRO 2'!Z$12,'DATA MAESTRO 2'!Z$13,'DATA MAESTRO 2'!Z$14,'DATA MAESTRO 2'!Z$15,'DATA MAESTRO 2'!Z$16,'DATA MAESTRO 2'!Z$17,'DATA MAESTRO 2'!Z$18,'DATA MAESTRO 2'!Z$19,'DATA MAESTRO 2'!Z$20,'DATA MAESTRO 2'!Z$21,'DATA MAESTRO 2'!Z$22,'DATA MAESTRO 2'!Z$23,'DATA MAESTRO 2'!Z$24,'DATA MAESTRO 2'!Z$25,'DATA MAESTRO 2'!Z$26,'DATA MAESTRO 2'!Z$27,'DATA MAESTRO 2'!Z$28,'DATA MAESTRO 2'!Z$29,'DATA MAESTRO 2'!Z$30,'DATA MAESTRO 2'!Z$31,'DATA MAESTRO 2'!Z$32,'DATA MAESTRO 2'!Z$33,'DATA MAESTRO 2'!Z$34,'DATA MAESTRO 2'!Z$35,'DATA MAESTRO 2'!Z$36,'DATA MAESTRO 2'!Z$37,'DATA MAESTRO 2'!Z$38,'DATA MAESTRO 2'!Z$39,'DATA MAESTRO 2'!Z$40,) -> 0 | AB8: =CHOOSE($B8,'DATA MAESTRO 2'!AA$6,'DATA MAESTRO 2'!AA$7,'DATA MAESTRO 2'!AA$8,'DATA MAESTRO 2'!AA$9,'DATA MAESTRO 2'!AA$10,'DATA MAESTRO 2'!AA$11,'DATA MAESTRO 2'!AA$12,'DATA MAESTRO 2'!AA$13,'DATA MAESTRO 2'!AA$14,'DATA MAESTRO 2'!AA$15,'DATA MAESTRO 2'!AA$16,'DATA MAESTRO 2'!AA$17,'DATA MAESTRO 2'!AA$18,'DATA MAESTRO 2'!AA$19,'DATA MAESTRO 2'!AA$20,'DATA MAESTRO 2'!AA$21,'DATA MAESTRO 2'!AA$22,'DATA MAESTRO 2'!AA$23,'DATA MAESTRO 2'!AA$24,'DATA MAESTRO 2'!AA$25,'DATA MAESTRO 2'!AA$26,'DATA MAESTRO 2'!AA$27,'DATA MAESTRO 2'!AA$28,'DATA MAESTRO 2'!AA$29,'DATA MAESTRO 2'!AA$30,'DATA MAESTRO 2'!AA$31,'DATA MAESTRO 2'!AA$32,'DATA MAESTRO 2'!AA$33,'DATA MAESTRO 2'!AA$34,'DATA MAESTRO 2'!AA$35,'DATA MAESTRO 2'!AA$36,'DATA MAESTRO 2'!AA$37,'DATA MAESTRO 2'!AA$38,'DATA MAESTRO 2'!AA$39,'DATA MAESTRO 2'!AA$40,) -> 0 | AC8: =CHOOSE($B8,'DATA MAESTRO 2'!AB$6,'DATA MAESTRO 2'!AB$7,'DATA MAESTRO 2'!AB$8,'DATA MAESTRO 2'!AB$9,'DATA MAESTRO 2'!AB$10,'DATA MAESTRO 2'!AB$11,'DATA MAESTRO 2'!AB$12,'DATA MAESTRO 2'!AB$13,'DATA MAESTRO 2'!AB$14,'DATA MAESTRO 2'!AB$15,'DATA MAESTRO 2'!AB$16,'DATA MAESTRO 2'!AB$17,'DATA MAESTRO 2'!AB$18,'DATA MAESTRO 2'!AB$19,'DATA MAESTRO 2'!AB$20,'DATA MAESTRO 2'!AB$21,'DATA MAESTRO 2'!AB$22,'DATA MAESTRO 2'!AB$23,'DATA MAESTRO 2'!AB$24,'DATA MAESTRO 2'!AB$25,'DATA MAESTRO 2'!AB$26,'DATA MAESTRO 2'!AB$27,'DATA MAESTRO 2'!AB$28,'DATA MAESTRO 2'!AB$29,'DATA MAESTRO 2'!AB$30,'DATA MAESTRO 2'!AB$31,'DATA MAESTRO 2'!AB$32,'DATA MAESTRO 2'!AB$33,'DATA MAESTRO 2'!AB$34,'DATA MAESTRO 2'!AB$35,'DATA MAESTRO 2'!AB$36,'DATA MAESTRO 2'!AB$37,'DATA MAESTRO 2'!AB$38,'DATA MAESTRO 2'!AB$39,'DATA MAESTRO 2'!AB$40,) -> 0 | AD8: =CHOOSE($B8,'DATA MAESTRO 2'!AC$6,'DATA MAESTRO 2'!AC$7,'DATA MAESTRO 2'!AC$8,'DATA MAESTRO 2'!AC$9,'DATA MAESTRO 2'!AC$10,'DATA MAESTRO 2'!AC$11,'DATA MAESTRO 2'!AC$12,'DATA MAESTRO 2'!AC$13,'DATA MAESTRO 2'!AC$14,'DATA MAESTRO 2'!AC$15,'DATA MAESTRO 2'!AC$16,'DATA MAESTRO 2'!AC$17,'DATA MAESTRO 2'!AC$18,'DATA MAESTRO 2'!AC$19,'DATA MAESTRO 2'!AC$20,'DATA MAESTRO 2'!AC$21,'DATA MAESTRO 2'!AC$22,'DATA MAESTRO 2'!AC$23,'DATA MAESTRO 2'!AC$24,'DATA MAESTRO 2'!AC$25,'DATA MAESTRO 2'!AC$26,'DATA MAESTRO 2'!AC$27,'DATA MAESTRO 2'!AC$28,'DATA MAESTRO 2'!AC$29,'DATA MAESTRO 2'!AC$30,'DATA MAESTRO 2'!AC$31,'DATA MAESTRO 2'!AC$32,'DATA MAESTRO 2'!AC$33,'DATA MAESTRO 2'!AC$34,'DATA MAESTRO 2'!AC$35,'DATA MAESTRO 2'!AC$36,'DATA MAESTRO 2'!AC$37,'DATA MAESTRO 2'!AC$38,'DATA MAESTRO 2'!AC$39,'DATA MAESTRO 2'!AC$40,) -> 0 | AE8: =CHOOSE($B8,'DATA MAESTRO 2'!AD$6,'DATA MAESTRO 2'!AD$7,'DATA MAESTRO 2'!AD$8,'DATA MAESTRO 2'!AD$9,'DATA MAESTRO 2'!AD$10,'DATA MAESTRO 2'!AD$11,'DATA MAESTRO 2'!AD$12,'DATA MAESTRO 2'!AD$13,'DATA MAESTRO 2'!AD$14,'DATA MAESTRO 2'!AD$15,'DATA MAESTRO 2'!AD$16,'DATA MAESTRO 2'!AD$17,'DATA MAESTRO 2'!AD$18,'DATA MAESTRO 2'!AD$19,'DATA MAESTRO 2'!AD$20,'DATA MAESTRO 2'!AD$21,'DATA MAESTRO 2'!AD$22,'DATA MAESTRO 2'!AD$23,'DATA MAESTRO 2'!AD$24,'DATA MAESTRO 2'!AD$25,'DATA MAESTRO 2'!AD$26,'DATA MAESTRO 2'!AD$27,'DATA MAESTRO 2'!AD$28,'DATA MAESTRO 2'!AD$29,'DATA MAESTRO 2'!AD$30,'DATA MAESTRO 2'!AD$31,'DATA MAESTRO 2'!AD$32,'DATA MAESTRO 2'!AD$33,'DATA MAESTRO 2'!AD$34,'DATA MAESTRO 2'!AD$35,'DATA MAESTRO 2'!AD$36,'DATA MAESTRO 2'!AD$37,'DATA MAESTRO 2'!AD$38,'DATA MAESTRO 2'!AD$39,'DATA MAESTRO 2'!AD$40,) -> 0 | AF8: =CHOOSE($B8,'DATA MAESTRO 2'!AE$6,'DATA MAESTRO 2'!AE$7,'DATA MAESTRO 2'!AE$8,'DATA MAESTRO 2'!AE$9,'DATA MAESTRO 2'!AE$10,'DATA MAESTRO 2'!AE$11,'DATA MAESTRO 2'!AE$12,'DATA MAESTRO 2'!AE$13,'DATA MAESTRO 2'!AE$14,'DATA MAESTRO 2'!AE$15,'DATA MAESTRO 2'!AE$16,'DATA MAESTRO 2'!AE$17,'DATA MAESTRO 2'!AE$18,'DATA MAESTRO 2'!AE$19,'DATA MAESTRO 2'!AE$20,'DATA MAESTRO 2'!AE$21,'DATA MAESTRO 2'!AE$22,'DATA MAESTRO 2'!AE$23,'DATA MAESTRO 2'!AE$24,'DATA MAESTRO 2'!AE$25,'DATA MAESTRO 2'!AE$26,'DATA MAESTRO 2'!AE$27,'DATA MAESTRO 2'!AE$28,'DATA MAESTRO 2'!AE$29,'DATA MAESTRO 2'!AE$30,'DATA MAESTRO 2'!AE$31,'DATA MAESTRO 2'!AE$32,'DATA MAESTRO 2'!AE$33,'DATA MAESTRO 2'!AE$34,'DATA MAESTRO 2'!AE$35,'DATA MAESTRO 2'!AE$36,'DATA MAESTRO 2'!AE$37,'DATA MAESTRO 2'!AE$38,'DATA MAESTRO 2'!AE$39,'DATA MAESTRO 2'!AE$40,) -> 0 | AG8: =CHOOSE($B8,'DATA MAESTRO 2'!AF$6,'DATA MAESTRO 2'!AF$7,'DATA MAESTRO 2'!AF$8,'DATA MAESTRO 2'!AF$9,'DATA MAESTRO 2'!AF$10,'DATA MAESTRO 2'!AF$11,'DATA MAESTRO 2'!AF$12,'DATA MAESTRO 2'!AF$13,'DATA MAESTRO 2'!AF$14,'DATA MAESTRO 2'!AF$15,'DATA MAESTRO 2'!AF$16,'DATA MAESTRO 2'!AF$17,'DATA MAESTRO 2'!AF$18,'DATA MAESTRO 2'!AF$19,'DATA MAESTRO 2'!AF$20,'DATA MAESTRO 2'!AF$21,'DATA MAESTRO 2'!AF$22,'DATA MAESTRO 2'!AF$23,'DATA MAESTRO 2'!AF$24,'DATA MAESTRO 2'!AF$25,'DATA MAESTRO 2'!AF$26,'DATA MAESTRO 2'!AF$27,'DATA MAESTRO 2'!AF$28,'DATA MAESTRO 2'!AF$29,'DATA MAESTRO 2'!AF$30,'DATA MAESTRO 2'!AF$31,'DATA MAESTRO 2'!AF$32,'DATA MAESTRO 2'!AF$33,'DATA MAESTRO 2'!AF$34,'DATA MAESTRO 2'!AF$35,'DATA MAESTRO 2'!AF$36,'DATA MAESTRO 2'!AF$37,'DATA MAESTRO 2'!AF$38,'DATA MAESTRO 2'!AF$39,'DATA MAESTRO 2'!AF$40,) -> 0 | AH8: =CHOOSE($B8,'DATA MAESTRO 2'!AG$6,'DATA MAESTRO 2'!AG$7,'DATA MAESTRO 2'!AG$8,'DATA MAESTRO 2'!AG$9,'DATA MAESTRO 2'!AG$10,'DATA MAESTRO 2'!AG$11,'DATA MAESTRO 2'!AG$12,'DATA MAESTRO 2'!AG$13,'DATA MAESTRO 2'!AG$14,'DATA MAESTRO 2'!AG$15,'DATA MAESTRO 2'!AG$16,'DATA MAESTRO 2'!AG$17,'DATA MAESTRO 2'!AG$18,'DATA MAESTRO 2'!AG$19,'DATA MAESTRO 2'!AG$20,'DATA MAESTRO 2'!AG$21,'DATA MAESTRO 2'!AG$22,'DATA MAESTRO 2'!AG$23,'DATA MAESTRO 2'!AG$24,'DATA MAESTRO 2'!AG$25,'DATA MAESTRO 2'!AG$26,'DATA MAESTRO 2'!AG$27,'DATA MAESTRO 2'!AG$28,'DATA MAESTRO 2'!AG$29,'DATA MAESTRO 2'!AG$30,'DATA MAESTRO 2'!AG$31,'DATA MAESTRO 2'!AG$32,'DATA MAESTRO 2'!AG$33,'DATA MAESTRO 2'!AG$34,'DATA MAESTRO 2'!AG$35,'DATA MAESTRO 2'!AG$36,'DATA MAESTRO 2'!AG$37,'DATA MAESTRO 2'!AG$38,'DATA MAESTRO 2'!AG$39,'DATA MAESTRO 2'!AG$40,) -> 0 | AI8: =CHOOSE($B8,'DATA MAESTRO 2'!AH$6,'DATA MAESTRO 2'!AH$7,'DATA MAESTRO 2'!AH$8,'DATA MAESTRO 2'!AH$9,'DATA MAESTRO 2'!AH$10,'DATA MAESTRO 2'!AH$11,'DATA MAESTRO 2'!AH$12,'DATA MAESTRO 2'!AH$13,'DATA MAESTRO 2'!AH$14,'DATA MAESTRO 2'!AH$15,'DATA MAESTRO 2'!AH$16,'DATA MAESTRO 2'!AH$17,'DATA MAESTRO 2'!AH$18,'DATA MAESTRO 2'!AH$19,'DATA MAESTRO 2'!AH$20,'DATA MAESTRO 2'!AH$21,'DATA MAESTRO 2'!AH$22,'DATA MAESTRO 2'!AH$23,'DATA MAESTRO 2'!AH$24,'DATA MAESTRO 2'!AH$25,'DATA MAESTRO 2'!AH$26,'DATA MAESTRO 2'!AH$27,'DATA MAESTRO 2'!AH$28,'DATA MAESTRO 2'!AH$29,'DATA MAESTRO 2'!AH$30,'DATA MAESTRO 2'!AH$31,'DATA MAESTRO 2'!AH$32,'DATA MAESTRO 2'!AH$33,'DATA MAESTRO 2'!AH$34,'DATA MAESTRO 2'!AH$35,'DATA MAESTRO 2'!AH$36,'DATA MAESTRO 2'!AH$37,'DATA MAESTRO 2'!AH$38,'DATA MAESTRO 2'!AH$39,'DATA MAESTRO 2'!AH$40,) -> 0 | AJ8: =CHOOSE($B8,'DATA MAESTRO 2'!AI$6,'DATA MAESTRO 2'!AI$7,'DATA MAESTRO 2'!AI$8,'DATA MAESTRO 2'!AI$9,'DATA MAESTRO 2'!AI$10,'DATA MAESTRO 2'!AI$11,'DATA MAESTRO 2'!AI$12,'DATA MAESTRO 2'!AI$13,'DATA MAESTRO 2'!AI$14,'DATA MAESTRO 2'!AI$15,'DATA MAESTRO 2'!AI$16,'DATA MAESTRO 2'!AI$17,'DATA MAESTRO 2'!AI$18,'DATA MAESTRO 2'!AI$19,'DATA MAESTRO 2'!AI$20,'DATA MAESTRO 2'!AI$21,'DATA MAESTRO 2'!AI$22,'DATA MAESTRO 2'!AI$23,'DATA MAESTRO 2'!AI$24,'DATA MAESTRO 2'!AI$25,'DATA MAESTRO 2'!AI$26,'DATA MAESTRO 2'!AI$27,'DATA MAESTRO 2'!AI$28,'DATA MAESTRO 2'!AI$29,'DATA MAESTRO 2'!AI$30,'DATA MAESTRO 2'!AI$31,'DATA MAESTRO 2'!AI$32,'DATA MAESTRO 2'!AI$33,'DATA MAESTRO 2'!AI$34,'DATA MAESTRO 2'!AI$35,'DATA MAESTRO 2'!AI$36,'DATA MAESTRO 2'!AI$37,'DATA MAESTRO 2'!AI$38,'DATA MAESTRO 2'!AI$39,'DATA MAESTRO 2'!AI$40,) -> 0 | AK8: =CHOOSE($B8,'DATA MAESTRO 2'!AJ$6,'DATA MAESTRO 2'!AJ$7,'DATA MAESTRO 2'!AJ$8,'DATA MAESTRO 2'!AJ$9,'DATA MAESTRO 2'!AJ$10,'DATA MAESTRO 2'!AJ$11,'DATA MAESTRO 2'!AJ$12,'DATA MAESTRO 2'!AJ$13,'DATA MAESTRO 2'!AJ$14,'DATA MAESTRO 2'!AJ$15,'DATA MAESTRO 2'!AJ$16,'DATA MAESTRO 2'!AJ$17,'DATA MAESTRO 2'!AJ$18,'DATA MAESTRO 2'!AJ$19,'DATA MAESTRO 2'!AJ$20,'DATA MAESTRO 2'!AJ$21,'DATA MAESTRO 2'!AJ$22,'DATA MAESTRO 2'!AJ$23,'DATA MAESTRO 2'!AJ$24,'DATA MAESTRO 2'!AJ$25,'DATA MAESTRO 2'!AJ$26,'DATA MAESTRO 2'!AJ$27,'DATA MAESTRO 2'!AJ$28,'DATA MAESTRO 2'!AJ$29,'DATA MAESTRO 2'!AJ$30,'DATA MAESTRO 2'!AJ$31,'DATA MAESTRO 2'!AJ$32,'DATA MAESTRO 2'!AJ$33,'DATA MAESTRO 2'!AJ$34,'DATA MAESTRO 2'!AJ$35,'DATA MAESTRO 2'!AJ$36,'DATA MAESTRO 2'!AJ$37,'DATA MAESTRO 2'!AJ$38,'DATA MAESTRO 2'!AJ$39,'DATA MAESTRO 2'!AJ$40,) -> 0
